Workbook

Sheet Paràmetres (hidden)
A1: COMPONENTS | B1: POSICIÓ | C1: PARÀMETRES DE CÀLCUL
A2: ='Taula Farratges'!B$1 -> MS % | B2: 1 | C2: 2
A3: ='Taula Farratges'!C$1 -> UFL | B3: =1+B2 -> 2 | C3: 1
A4: ='Taula Farratges'!D$1 -> UFV | B4: 3 | C4: 1
A5: ='Taula Farratges'!E1 -> MNT_PB | B5: 4 | C5: 1
A6: ='Taula Farratges'!F1 -> PDIA | B6: 5 | C6: 1
A7: ='Taula Farratges'!G1 -> PDI | B7: 6 | C7: 1
A8: ='Taula Farratges'!H1 -> BPR | B8: 7 | C8: 1
A9: ='Taula Farratges'!I1 -> UEL | B9: 8 | C9: 1
A10: ='Taula Farratges'!J1 -> UEB | B10: 9 | C10: 1
A11: ='Taula Farratges'!K1 -> UEM | B11: 10 | C11: 1
A12: ='Taula Farratges'!L1 -> NI ref | B12: 11 | C12: 1
A13: ='Taula Farratges'!M1 -> dMO | B13: 12 | C13: 1
A14: ='Taula Farratges'!N1 -> MOD | B14: 13 | C14: 1
A15: ='Taula Farratges'!O1 -> EE | B15: 14 | C15: 1
A16: ='Taula Farratges'!P1 -> FB | B16: 15 | C16: 1
A17: ='Taula Farratges'!Q1 -> NDF | B17: 16 | C17: 1
A18: ='Taula Farratges'!R1 -> ADF | B18: 17 | C18: 1
A19: ='Taula Farratges'!S1 -> Lignina | B19: 18 | C19: 1
A20: ='Taula Farratges'!T1 -> cendres | B20: 19 | C20: 1
A21: ='Taula Farratges'!U1 -> Ca | B21: 20 | C21: 1
A22: ='Taula Farratges'!V1 -> P | B22: 21 | C22: 1
A23: ='Taula Farratges'!W1 -> Mg | B23: 22 | C23: 1
A24: ='Taula Farratges'!X1 -> Cl | B24: 23 | C24: 1
A25: ='Taula Farratges'!Y1 -> K | B25: 24 | C25: 1
A26: ='Taula Farratges'!Z1 -> Na | B26: 25 | C26: 1
A27: ='Taula Farratges'!AA1 -> S | B27: 26 | C27: 1
A28: ='Taula Farratges'!AB1 -> Co | B28: 27 | C28: 1
A29: ='Taula Farratges'!AC1 -> Cu | B29: 28 | C29: 1
A30: ='Taula Farratges'!AD1 -> Mo | B30: 29 | C30: 1
A31: ='Taula Farratges'!AE1 -> Iode | B31: 30 | C31: 1
A32: ='Taula Farratges'!AF1 -> Fe | B32: 31 | C32: 1
A33: ='Taula Farratges'!AG1 -> Mn | B33: 32 | C33: 1
A34: ='Taula Farratges'!AH1 -> Se | B34: 33 | C34: 1
A35: ='Taula Farratges'!AI1 -> Zn | B35: 34 | C35: 1
A36: ='Taula Farratges'!AJ1 -> Vit A | B36: 35 | C36: 1
A37: ='Taula Farratges'!AK1 -> Vit D | B37: 36 | C37: 1
A38: ='Taula Farratges'!AL1 -> Vit E | B38: 37 | C38: 1
A39: ='Taula Farratges'!AM1 -> AG | B39: 38 | C39: 1
A40: ='Taula Farratges'!AN1 -> DT_N | B40: 39 | C40: 1
A41: ='Taula Farratges'!AO1 -> PF | B41: 40 | C41: 1
A42: ='Taula Farratges'!AP1 -> MOF | B42: 41 | C42: 1

Sheet Taula Farratges
A1: Nom | B1: MS % | C1: UFL | D1: UFV | E1: MNT_PB | F1: PDIA | G1: PDI | H1: BPR | I1: UEL | J1: UEB | K1: UEM | L1: NI ref | M1: dMO | N1: MOD | O1: EE | P1: FB | Q1: NDF | R1: ADF | S1: Lignina | T1: cendres | U1: Ca | V1: P | W1: Mg | X1: Cl | Y1: K | Z1: Na | AA1: S | AB1: Co | AC1: Cu | AD1: Mo | AE1: Iode | AF1: Fe | AG1: Mn | AH1: Se | AI1: Zn | AJ1: Vit A | AK1: Vit D | AL1: Vit E | AM1: AG | AN1: DT_N | AO1: PF | AP1: MOF
A3: VERD Raigràs italià Fulla tardor/hivern | B3: 16.6 | C3: 0.987525423 | D3: 0.968623439 | E3: 190 | F3: 37.05 | G3: 83.72930525 | H3: 53.46358554 | I3: 0.9908485486 | J3: 0.9829225231 | K3: 0.9787806617 | L3: 2.753201964 | M3: 0.75792 | N3: 649.53744 | O3: 41 | P3: 238 | Q3: 531.32 | R3: 265 | T3: 143 | U3: 5.7 | V3: 4.3 | AM3: 27.18 | AN3: 0.74 | AP3: =N3-F3-(11.4+0.08*(785-8.62*M3*100))-(6+0.599*(9.7+0.75*AM3)) -> 566.5326882
A4: VERD Raigràs italià Fulla primavera | B4: 15.1 | C4: 1.095029615 | D4: 1.09899354 | E4: 191 | F4: 34.38 | G4: 86.07504607 | H4: 50.18649052 | I4: 0.9708980146 | J4: 0.9494630462 | K4: 0.9358514742 | L4: 2.879496281 | M4: 0.81287 | N4: 704.75829 | O4: 43 | P4: 178 | Q4: 462.92 | R4: 203 | T4: 133 | U4: 5 | V4: 4 | W4: 1.7 | Y4: 30 | Z4: 3 | AC4: 8.1 | AG4: 85.1 | AM4: 27.285 | AN4: 0.76 | AP4: 628.165719
A5: VERD Raigràs italià Espiga a 10 cm | B5: 15.8 | C5: 1.073514419 | D5: 1.069426873 | E5: 168 | F5: 26.46 | G5: 77.8462145 | H5: 38.22903984 | I5: 0.9910346389 | J5: 0.9832391547 | K5: 0.9791911182 | L5: 2.752047879 | M5: 0.79572 | N5: 705.00792 | O5: 39 | P5: 188 | Q5: 474.32 | R5: 213 | T5: 114 | U5: 4.5 | V5: 3.5 | W5: 1.7 | Y5: 30 | Z5: 3 | AA5: 1 | AC5: 8.1 | AG5: 85.1 | AM5: 24.87 | AN5: 0.79 | AP5: 636.2376237
A6: VERD Raigràs italià 1 setmana abans inici espigat | B6: 16.4 | C6: 0.9568987067 | D6: 0.9279323027 | E6: 112 | F6: 22.68 | G6: 69.96884231 | H6: -6.328816115 | I6: 1.057101244 | J6: 1.101295022 | K6: 1.137999252 | L6: 2.36799878 | M6: 0.7379 | N6: 663.3721 | O6: 33 | P6: 230 | Q6: 522.2 | R6: 257 | T6: 101 | U6: 4.5 | V6: 3 | W6: 1.7 | Y6: 30 | Z6: 3 | AA6: 1 | AC6: 6 | AG6: 80 | AI6: 23 | AJ6: 80000 | AK6: 30 | AL6: 20 | AM6: 18.99 | AN6: 0.73 | AP6: 597.0361265
A7: VERD Raigràs italià Inici espigat | B7: 16.5 | C7: 0.9368495611 | D7: 0.9041024886 | E7: 105 | F7: 21.2625 | G7: 67.81242603 | H7: -10.28425943 | I7: 1.067222853 | J7: 1.120433875 | K7: 1.164876603 | L7: 2.313361632 | M7: 0.72817 | N7: 654.62483 | O7: 32 | P7: 238 | Q7: 531.32 | R7: 265 | T7: 101 | U7: 4.5 | V7: 3 | W7: 1.7 | Y7: 30 | Z7: 3 | AA7: 1 | AC7: 5 | AG7: 80 | AI7: 23 | AJ7: 80000 | AK7: 30 | AL7: 20 | AM7: 18.255 | AN7: 0.73 | AP7: 589.3655744
A8: VERD Raigràs italià Espigat | B8: 17.8 | C8: 0.8818407587 | D8: 0.8377966687 | E8: 88 | F8: 19.14 | G8: 63.38289694 | H8: -20.84952647 | I8: 1.091434895 | J8: 1.167439208 | K8: 1.232308365 | L8: 2.186774769 | M8: 0.69765 | N8: 629.97795 | O8: 30 | P8: 265 | Q8: 562.1 | R8: 293 | T8: 97 | U8: 4.5 | V8: 2.5 | AC8: 5 | AG8: 79.6 | AI8: 23.8 | AJ8: 80000 | AK8: 30 | AL8: 20 | AM8: 16.47 | AN8: 0.71 | AP8: 565.5384465
A9: VERD Raigràs italià Final espigat | B9: 20.4 | C9: 0.8544008851 | D9: 0.8031831803 | E9: 80 | F9: 17.4 | G9: 60.32551195 | H9: -24.47111242 | I9: 1.096771795 | J9: 1.178039486 | K9: 1.247801042 | L9: 2.15962381 | M9: 0.67756 | N9: 617.93472 | O9: 29 | P9: 284 | Q9: 583.76 | R9: 313 | T9: 88 | U9: 4.5 | V9: 2.5 | W9: 2.3 | Y9: 26 | Z9: 1.5 | AJ9: 80000 | AK9: 30 | AL9: 20 | AM9: 15.63 | AN9: 0.71 | AP9: 554.2271801
A10: VERD Raigràs italià Inici floració | B10: 24 | C10: 0.8342394507 | D10: 0.7793634604 | E10: 70 | F10: 15.225 | G10: 57.3422064 | H10: -30.308135 | I10: 1.094099952 | J10: 1.172721579 | K10: 1.240015355 | L10: 2.173183444 | M10: 0.66587 | N10: 608.60518 | O10: 28 | P10: 293 | Q10: 594.02 | R10: 322 | T10: 86 | U10: 4.5 | V10: 2 | AJ10: 80000 | AK10: 30 | AL10: 20 | AM10: 14.58 | AN10: 0.71 | AP10: 546.7382102
A11: VERD Raigràs italià Floració | B11: 27.5 | C11: 0.8068536711 | D11: 0.7469697818 | E11: 60 | F11: 13.5 | G11: 54.39933876 | H11: -36.10521681 | I11: 1.094509341 | J11: 1.173534971 | K11: 1.241204453 | L11: 2.171101492 | M11: 0.64963 | N11: 595.06108 | O11: 27 | P11: 307 | Q11: 609.98 | R11: 337 | T11: 84 | U11: 4.5 | V11: 2 | AJ11: 80000 | AK11: 30 | AL11: 20 | AM11: 13.53 | AN11: 0.7 | AP11: 534.2709123
A12: VERD Blat de moro Pastós | B12: 30.7 | C12: 1.336519373 | D12: 1.297656969 | E12: 77.4 | F12: 13.932 | G12: 58.79146932 | H12: -25.46892081 | I12: 1.02870768 | J12: 1.049139944 | K12: 1.066392013 | L12: 1.4 | M12: 0.720464135 | N12: 687.4668776 | O12: 23.8 | P12: 208 | Q12: 454.4 | R12: 243.9 | S12: 29.5 | T12: 45.8 | U12: 2.1 | V12: 2.3 | AA12: 1.1 | AF12: 160 | AJ12: 80000 | AK12: 30 | AL12: 20 | AM12: 15.357 | AN12: 0.76 | AP12: 630.3086521
A13: VERD Civada Inici allargament tiges | B13: 14.9 | C13: 1.064086631 | D13: 1.064854725 | E13: 120 | F13: 26.1 | G13: 78.54094724 | H13: -10.93898005 | I13: 1.020791557 | J13: 1.034988504 | K13: 1.047364373 | L13: 2.572916273 | M13: 0.8100113766 | N13: 712 | O13: 34 | P13: 230 | Q13: 522.2 | R13: 257 | T13: 121 | U13: 5 | V13: 4 | AJ13: 80000 | AK13: 30 | AL13: 20 | AM13: 19.83 | AN13: 0.74 | AP13: 646.839457
A14: VERD Civada Inici espigat | B14: 20.6 | C14: 0.9133309306 | D14: 0.8741939522 | E14: 102 | F14: 19.89 | G14: 65.21758227 | H14: -9.54434729 | I14: 1.060258573 | J14: 1.1072336 | K14: 1.146303874 | L14: 2.350843351 | M14: 0.7104972376 | N14: 643 | O14: 32 | P14: 302 | Q14: 604.28 | R14: 331 | T14: 95 | U14: 4.5 | V14: 3.5 | AJ14: 80000 | AK14: 30 | AL14: 20 | AM14: 17.94 | AN14: 0.74 | AP14: 578.0360445
A15: VERD Civada Floració | B15: 17.7 | C15: 0.8229420319 | D15: 0.7662555366 | E15: 101 | F15: 18.9375 | G15: 59.89304518 | H15: -2.443039347 | I15: 1.102855944 | J15: 1.190232315 | K15: 1.265754423 | L15: 2.128991841 | M15: 0.66 | N15: 594 | O15: 32 | P15: 333 | Q15: 639.62 | R15: 364 | T15: 100 | U15: 4 | V15: 3 | AJ15: 80000 | AK15: 30 | AL15: 20 | AM15: 17.835 | AN15: 0.75 | AP15: 526.5534262
A16: VERD Civada Lletós-pastós | B16: 31.8 | C16: 0.735658448 | D16: 0.6565506562 | E16: 67 | F16: 12.5625 | G16: 48.69970816 | H16: -20.41438775 | I16: 1.10231487 | J16: 1.18914327 | K16: 1.26414502 | L16: 2.131702295 | M16: 0.5894396552 | N16: 547 | O16: 25 | P16: 270 | Q16: 567.8 | R16: 298 | T16: 72 | U16: 3.5 | V16: 2.5 | AJ16: 80000 | AK16: 30 | AL16: 20 | AM16: 14.265 | AN16: 0.75 | AP16: 482.6664074
A17: VERD Civada Pastós | B17: 38.3 | C17: 0.7072537332 | D17: 0.6232506884 | E17: 63 | F17: 12.285 | G17: 46.82400532 | H17: -21.5471958 | I17: 1.085210225 | J17: 1.155186303 | K17: 1.214532939 | L17: 2.218779543 | M17: 0.5698924731 | N17: 530 | O17: 25 | P17: 263 | Q17: 559.82 | R17: 291 | T17: 70 | U17: 3 | V17: 2.5 | AJ17: 80000 | AK17: 30 | AL17: 20 | AM17: 13.845 | AN17: 0.74 | AP17: 464.7846187
A18: VERD Triticale Lletós-pastós | B18: 40.51 | C18: 0.7866308836 | D18: 0.7130740068 | E18: 71.9 | F18: 13.48125 | G18: 51.74268223 | H18: -20.05848786 | I18: 1.046395966 | J18: 1.081369429 | K18: 1.110363008 | L18: 2.426936796 | M18: 0.6102620087 | N18: 574.9278384 | O18: 14.8 | P18: 299 | Q18: 618.4 | R18: 350.1 | S18: 43.5 | T18: 57.9 | U18: 2.9 | V18: 1.5 | W18: 2.7 | Y18: 25 | Z18: 1.7 | AA18: 3 | AC18: 8.6 | AD18: 0.44 | AG18: 43.9 | AI18: 24.1 | AJ18: 80000 | AK18: 30 | AL18: 20 | AM18: 14.7795 | AN18: 0.75 | AP18: 510.8802662
A19: VERD Alfals Inici botons florals | B19: 19.83 | C19: 0.8954507068 | D19: 0.8453932124 | E19: 196.7 | F19: 33.93075 | G19: 74.37573864 | H19: 74.06370524 | I19: 0.9783295072 | J19: 0.9618149826 | K19: 0.9515972519 | L19: 2.83185017 | M19: 0.674826 | N19: 585.2091072 | O19: 22.6 | P19: 277.4 | Q19: 442.1 | R19: 334.4 | S19: 74.3 | T19: 132.8 | U19: 18.1 | V19: 2.5 | AC19: 8.8 | AD19: 1.3 | AG19: 26.7 | AI19: 32.3 | AJ19: 120000 | AK19: 20 | AL19: 100 | AM19: 20.3135 | AN19: 0.77 | AP19: 502.6782183
A20: VERD Alfals Vegetatiu 30 cm | B20: 14.4 | C20: 1.057970395 | D20: 1.037917837 | E20: 246 | F20: 40.59 | G20: 87.13790609 | H20: 104.9488967 | I20: 0.9343019937 | J20: 0.8904932233 | K20: 0.8622791436 | L20: 3.125183834 | M20: 0.75199 | N20: 654.98329 | O20: 33 | P20: 201 | Q20: 489.14 | R20: 259 | T20: 129 | U20: 16.5 | V20: 4.5 | AC20: 8.8 | AD20: 1.3 | AG20: 26.7 | AI20: 32.3 | AJ20: 120000 | AK20: 20 | AL20: 100 | AM20: 25.49 | AN20: 0.78 | AP20: 568.7888379
A21: VERD Enclova fulla, 1r any | B21: 9.31 | C21: 1.096854529 | D21: 1.092315415 | E21: 233.5 | F21: 47.28375 | G21: 101.4759961 | H21: 71.57961546 | I21: 0.9440674911 | J21: 0.9059343706 | K21: 0.8812924975 | L21: 3.057759878 | M21: 0.789865 | N21: 687.814442 | O21: 27 | P21: 163.5 | Q21: 249.6 | R21: 234.1 | T21: 129.2 | AM21: 24.1775 | AN21: 0.73 | AP21: 598.1277405 | AQ21: 17.00377003 | AR21: 2.8672075 | AS21: 3.72277 | AT21: 18.7616 | AU21: 52.11987442
A22: VERD Enclova tija fulla, 1r any | B22: 9.73 | C22: 1.018584209 | D22: 0.9979952283 | E22: 186 | F22: 37.665 | G22: 91.19718606 | H22: 37.93595928 | I22: 0.988232989 | J22: 0.9784811434 | K22: 0.9730315989 | L22: 2.76946899 | M22: 0.754515 | N22: 664.0486515 | O22: 27 | P22: 198.5 | Q22: 280.5 | R22: 269.9 | T22: 119.9 | AM22: 19.19 | AN22: 0.73 | AP22: 583.7835984 | AQ22: 18.1417305 | AR22: 3.00187 | AS22: 3.98212 | AT22: 19.5596 | AU22: 49.1942568
A23: VERD Enclova gemmes florals, 1r any | B23: 11.91 | C23: 0.971662067 | D23: 0.9400058138 | E23: 170.3 | F23: 34.48575 | G23: 87.26725566 | H23: 27.64789741 | I23: 1.00280174 | J23: 1.003435006 | K23: 1.005537317 | L23: 2.679941156 | M23: 0.727447 | N23: 645.6819572 | O23: 27 | P23: 225.3 | Q23: 323.9 | R23: 304.2 | T23: 112.4 | AM23: 17.5415 | AN23: 0.73 | AP23: 567.4701334 | AQ23: 18.57255361 | AR23: 3.0463795 | AS23: 4.067842 | AT23: 19.82336 | AU23: 48.09598983
A24: VERD Enclova Botons florals, 1r any | B24: 13.77 | C24: 0.9661408557 | D24: 0.9305393291 | E24: 168.9 | F24: 34.20225 | G24: 86.94535264 | H24: 26.68590212 | I24: 1.000730959 | J24: 0.9998558827 | K24: 1.000844288 | L24: 2.692507587 | M24: 0.717953 | N24: 645.1525658 | O24: 27 | P24: 234.7 | Q24: 348.5 | R24: 330.4 | T24: 101.4 | AM24: 17.3945 | AN24: 0.73 | AP24: 566.6355756 | AQ24: 18.61229065 | AR24: 3.0503485 | AS24: 4.075486 | AT24: 19.84688 | AU24: 47.99488794
A25: VERD Enclova Inici Floració, 1r any | B25: 14.5 | C25: 0.9196215428 | D25: 0.8756744961 | E25: 167 | F25: 32.565 | G25: 84.17295987 | H25: 28.74256271 | I25: 1.010019035 | J25: 1.015994101 | K25: 1.022087499 | L25: 2.63654613 | M25: 0.695127 | N25: 620.3313348 | O25: 23 | P25: 257.3 | Q25: 366 | R25: 334.1 | T25: 107.6 | AM25: 17.195 | AN25: 0.74 | AP25: 541.967139 | AQ25: 18.66656512 | AR25: 3.055735 | AS25: 4.08586 | AT25: 19.8788 | AU25: 47.8568487
A26: VERD Enclova Floració, 1r any | B26: 14.92 | C26: 0.8896999035 | D26: 0.8413566291 | E26: 162.4 | F26: 31.668 | G26: 82.56252045 | H26: 26.45331179 | I26: 1.017849675 | J26: 1.029771407 | K26: 1.040391915 | L26: 2.590159344 | M26: 0.682098 | N26: 604.6116672 | O26: 23 | P26: 270.2 | Q26: 390.1 | R26: 346.3 | T26: 113.6 | AM26: 16.712 | AN26: 0.74 | AP26: 526.4629793 | AQ26: 18.79961472 | AR26: 3.068776 | AS26: 4.110976 | AT26: 19.95608 | AU26: 47.51869267
A27: VERD Enclova Fructificació, 1r any | B27: 18.93 | C27: 0.7740194666 | D27: 0.7050334795 | E27: 130.8 | F27: 25.506 | G27: 74.01316404 | H27: 6.799556184 | I27: 1.056133358 | J27: 1.099480224 | K27: 1.135467666 | L27: 2.373278359 | M27: 0.618165 | N27: 549.4868685 | O27: 21 | P27: 333.5 | Q27: 519.6 | R27: 450.7 | T27: 111.1 | AM27: 13.394 | AN27: 0.74 | AP27: 474.5819724 | AQ27: 19.77666618 | AR27: 3.158362 | AS27: 4.283512 | AT27: 20.48696 | AU27: 45.04436717
A28: VERD Enclova fulla, 2n any | B28: 9.62 | C28: 1.099747568 | D28: 1.095573936 | E28: 240.5 | F28: 48.70125 | G28: 102.775997 | H28: 76.87320774 | I28: 0.9385770623 | J28: 0.8972271293 | K28: 0.8705493025 | L28: 3.095494801 | M28: 0.790269 | N28: 686.9808417 | O28: 27 | P28: 163.1 | Q28: 272.8 | R28: 253.3 | T28: 130.7 | AM28: 24.9125 | AN28: 0.73 | AP28: 595.5743013 | AQ28: 16.85710078 | AR28: 2.8473625 | AS28: 3.68455 | AT28: 18.644 | AU28: 52.50054562
A29: VERD Enclova tija fulla, 2n any | B29: 10.03 | C29: 1.027185591 | D29: 1.007222315 | E29: 206.5 | F29: 41.81625 | G29: 95.04208597 | H29: 53.3796313 | I29: 0.9734076994 | J29: 0.9536197806 | K29: 0.9411371114 | L29: 2.863324384 | M29: 0.755121 | N29: 662.4676533 | O29: 27 | P29: 197.9 | Q29: 311.2 | R29: 290.4 | T29: 122.7 | AM29: 21.3425 | AN29: 0.73 | AP29: 577.1261293 | AQ29: 17.62009903 | AR29: 2.9437525 | AS29: 3.87019 | AT29: 19.2152 | AU29: 50.53011982
A30: VERD Enclova gemmes florals,2n any | B30: 12.06 | C30: 0.9414798783 | D30: 0.9030186208 | E30: 177.4 | F30: 35.9235 | G30: 87.76027264 | H30: 34.30704275 | I30: 1.00595395 | J30: 1.008904022 | K30: 1.012728493 | L30: 2.660911447 | M30: 0.709469 | N30: 628.1638526 | O30: 27 | P30: 243.1 | Q30: 360.2 | R30: 330.5 | T30: 114.6 | AM30: 18.287 | AN30: 0.73 | AP30: 546.9396001 | AQ30: 18.37435685 | AR30: 3.026251 | AS30: 4.029076 | AT30: 19.70408 | AU30: 48.60073657
A31: VERD Enclova Botons Florals, 2n any | B31: 12.51 | C31: 0.8951169505 | D31: 0.8483103437 | E31: 168.9 | F31: 34.20225 | G31: 85.02746379 | H31: 29.68260345 | I31: 1.021257856 | J31: 1.035817512 | K31: 1.048474402 | L31: 2.570192304 | M31: 0.686441 | N31: 605.6468943 | O31: 27 | P31: 265.9 | Q31: 382.3 | R31: 352.4 | T31: 117.7 | AM31: 17.3945 | AN31: 0.73 | AP31: 524.9568365 | AQ31: 18.61229065 | AR31: 3.0503485 | AS31: 4.075486 | AT31: 19.84688 | AU31: 47.99488794
A32: VERD Enclova Inici Floració, 2n any | B32: 15.37 | C32: 0.8688196702 | D32: 0.8142223989 | E32: 151.5 | F32: 29.5425 | G32: 80.22335033 | H32: 18.72117137 | I32: 1.03172308 | J32: 1.054574304 | K32: 1.073743818 | L32: 2.50970557 | M32: 0.666039 | N32: 598.4360415 | O32: 23 | P32: 286.1 | Q32: 406 | R32: 371.5 | T32: 101.5 | AM32: 15.5675 | AN32: 0.74 | AP32: 521.8195916 | AQ32: 19.12419778 | AR32: 3.0996775 | AS32: 4.17049 | AT32: 20.1392 | AU32: 46.69505782
A33: VERD Enclova Floració, 2n any | B33: 17.12 | C33: 0.8321434211 | D33: 0.7722857657 | E33: 141.1 | F33: 27.5145 | G33: 77.40801428 | H33: 12.25538394 | I33: 1.04040746 | J33: 1.070362352 | K33: 1.095245434 | L33: 2.460435584 | M33: 0.64897 | N33: 579.984489 | O33: 23 | P33: 303 | Q33: 452.6 | R33: 406.5 | T33: 106.3 | AM33: 14.4755 | AN33: 0.74 | AP33: 504.7095418 | AQ33: 19.446103 | AR33: 3.1291615 | AS33: 4.227274 | AT33: 20.31392 | AU33: 45.8798973
A34: VERD Enclova Fructificació, 2n any | B34: 20.03 | C34: 0.7714311913 | D34: 0.6990913505 | E34: 135.4 | F34: 26.403 | G34: 74.79356037 | H34: 10.38574942 | I34: 1.052200861 | J34: 1.092134028 | K34: 1.125249773 | L34: 2.394829046 | M34: 0.609681 | N34: 548.6519319 | O34: 21 | P34: 341.9 | Q34: 491.1 | R34: 452.9 | T34: 100.1 | AM34: 13.877 | AN34: 0.74 | AP34: 472.0479914 | AQ34: 19.62759064 | AR34: 3.145321 | AS34: 4.258396 | AT34: 20.40968 | AU34: 45.42098545
A35: VERD Enclova Botons | B35: 9.1 | C35: 0.9871458131 | D35: 0.9668537027 | E35: 199 | F35: 40.2975 | G35: 86.21303252 | H35: 59.32698044 | I35: 0.9828422118 | J35: 0.9693798556 | K35: 0.9612993691 | L35: 2.803269123 | M35: 0.753 | N35: 637.791 | O35: 27 | P35: 200 | Q35: 488 | R35: 230 | T35: 153 | U35: 11 | V35: 3 | AJ35: 120000 | AK35: 20 | AL35: 100 | AM35: 20.555 | AN35: 0.73 | AP35: 554.1757463
A36: VERD Enclova Floració | B36: 13.5 | C36: 0.8566351193 | D36: 0.8059033998 | E36: 155 | F36: 30.225 | G36: 70.91503133 | H36: 36.92182605 | I36: 1.033625341 | J36: 1.058015117 | K36: 1.078411657 | L36: 2.498842463 | M36: 0.67321 | N36: 586.36591 | O36: 23 | P36: 279 | Q36: 578.06 | R36: 305.05 | T36: 129 | U36: 12 | V36: 3 | AJ36: 120000 | AK36: 20 | AL36: 100 | AM36: 15.935 | AN36: 0.74 | AP36: 509.3963728
A37: VERD Enclova Final floració | B37: 15.3 | C37: 0.8276145297 | D37: 0.7672213764 | E37: 152 | F37: 29.64 | G37: 68.69210074 | H37: 37.26109259 | I37: 1.041416423 | J37: 1.072209943 | K37: 1.097775658 | L37: 2.454764615 | M37: 0.64695 | N37: 574.4916 | O37: 21 | P37: 305 | Q37: 607.7 | R37: 329.75 | T37: 112 | U37: 9 | V37: 5 | AJ37: 120000 | AK37: 20 | AL37: 100 | AM37: 15.62 | AN37: 0.74 | AP37: 496.437687
A38: ENSITJAT prefenificat Raigràs italià 1 setmana abans inici espigat | B38: 33.5 | C38: 0.9154038958 | D38: 0.8723292381 | E38: 118.5 | F38: 10.665 | G38: 48.65372355 | H38: 27.16761945 | I38: 1.105738415 | J38: 1.175086905 | K38: 1.551868928 | L38: 1.736474512 | M38: 0.715223 | N38: 635.1895463 | O38: 41.8 | P38: 280.9 | Q38: 529.4 | R38: 338.3 | S38: 38.4 | T38: 111.9 | U38: 4.6 | V38: 2.6 | AJ38: 8000 | AK38: 200 | AL38: 5 | AM38: 18.6055 | AN38: 0.85 | AO38: 80 | AP38: =N38-F38-(11.4+0.08*(785-8.62*M38*100))-(6+0.599*(9.7+0.75*AM38))-AO38 -> 499.4775035
A39: ENSITJAT prefenificat Raigràs italià Inici espigat | B39: 28 | C39: 0.9097615867 | D39: 0.8637645931 | E39: 170.8 | F39: 20.496 | G39: 60.64368821 | H39: 59.70923717 | I39: 1.051419536 | J39: 1.074950282 | K39: 1.438784999 | L39: 1.872955891 | M39: 0.706043 | N39: 617.4346035 | O39: 38.7 | P39: 286.9 | Q39: 530.8 | R39: 350.8 | S39: 39 | T39: 125.5 | U39: 5.6 | V39: 3.5 | AJ39: 8000 | AK39: 200 | AL39: 5 | AM39: 22.9464 | AN39: 0.85 | AO39: 80 | AP39: 469.3083586
A40: ENSITJAT prefenificat Raigràs italià Final espigat | B40: 29 | C40: 0.8557456741 | D40: 0.802016223 | E40: 124.5 | F40: 15.687 | G40: 54.5455591 | H40: 23.4385014 | I40: 1.103387577 | J40: 1.172074816 | K40: 1.56628935 | L40: 1.720487239 | M40: 0.685388 | N40: 602.113358 | O40: 36.5 | P40: 300.4 | Q40: 565.6 | R40: 373.7 | S40: 46.5 | T40: 121.5 | U40: 5.3 | V40: 3.4 | AJ40: 8000 | AK40: 200 | AL40: 5 | AM40: 19.1035 | AN40: 0.79 | AO40: 80 | AP40: 459.0981671
A41: ENSITJAT Prat natural pla, gramínies en gran part | B41: 48 | C41: 0.9301076693 | D41: 0.8656931921 | E41: 114.3 | F41: 15.0876 | G41: 51.5305866 | H41: 18.01183343 | I41: 1.131789867 | J41: 1.229566374 | K41: 1.638343115 | L41: 1.644820804 | M41: 0.668711 | N41: 599.165056 | O41: 22.2 | P41: 311.3 | Q41: 584.2 | R41: 385 | T41: 104 | U41: 8.7 | V41: 2.6 | AJ41: 8000 | AK41: 200 | AL41: 5 | AM41: 18.2569 | AN41: 0.78 | AO41: 115 | AP41: 420.9795542
A42: ENSITJAT Blat de moro Lletós | B42: 28.5 | C42: 0.9421569565 | D42: 0.8895769703 | E42: 78.1 | F42: 13.6675 | G42: 49.99866751 | H42: -12.39244924 | I42: 1.080663836 | J42: 1.19129726 | K42: 1.345532831 | L42: 1.4 | M42: 0.69 | N42: 651.222 | O42: 33.3 | P42: 232.6 | Q42: 488.2 | R42: 278.4 | S42: 30.4 | T42: 56.2 | U42: 3.6 | V42: 2.3 | AM42: 24 | AN42: 0.75 | AO42: 100 | AP42: 488.3446
A43: ENSITJAT Blat de moro Lletós-pastós | B43: 28.5 | C43: 0.9787464011 | D43: 0.9339294308 | E43: 78.1 | F43: 13.6675 | G43: 51.60752582 | H43: -14.90629035 | I43: 1.042209484 | J43: 1.152562936 | K43: 1.284686536 | L43: 1.4 | M43: 0.71 | N43: 670.098 | O43: 33.3 | P43: 232.6 | Q43: 488.2 | R43: 278.4 | S43: 30.4 | T43: 56.2 | U43: 3.6 | V43: 2.3 | AM43: 24 | AN43: 0.75 | AO43: 125 | AP43: 483.5998
A44: ENSITJAT Blat de moro Pastós | B44: 30 | C44: 0.9962612852 | D44: 0.9540342158 | E44: 77 | F44: 13.475 | G44: 54.02881787 | H44: -19.81534042 | I44: 1.01329589 | J44: 1.116491162 | K44: 1.278523867 | L44: 1.4 | M44: 0.717 | N44: 680.2179 | O44: 34.4 | P44: 216.5 | Q44: 450.9 | R44: 287.5 | S44: 29.3 | T44: 51.3 | U44: 3 | V44: 2.2 | AM44: 24 | AN44: 0.75 | AO44: 80 | AP44: 539.39492
A45: ENSITJAT Blat de moro Pastós-vidriós | B45: 32 | C45: 0.9831423928 | D45: 0.9382032062 | E45: 75.9 | F45: 13.2825 | G45: 52.11647112 | H45: -17.95307988 | I45: 1.004191288 | J45: 1.098575718 | K45: 1.284420211 | L45: 1.4 | M45: 0.7101910828 | N45: 673.6872611 | O45: 32.1 | P45: 203.7 | Q45: 432.7 | R45: 244.4 | S45: 22.9 | T45: 51.4 | U45: 3 | V45: 2.3 | AM45: 24 | AN45: 0.75 | AO45: 100 | AP45: 512.5872382
A46: ENSITJAT Blat de moro Vidriós | B46: 32 | C46: 0.9640116468 | D46: 0.9154634589 | E46: 76 | F46: 13.3 | G46: 51.89904202 | H46: -17.51100316 | I46: 1.020614142 | J46: 1.114790276 | K46: 1.304256824 | L46: 1.4 | M46: 0.7008046463 | N46: 663.5218391 | O46: 32 | P46: 202 | Q46: 432.4 | R46: 244.4 | S46: 26.5 | T46: 53.2 | U46: 3.1 | V46: 2.3 | AM46: 24 | AN46: 0.75 | AO46: 80 | AP46: 521.7570275
A47: ENSITJAT Civada Lletós-pastós | B47: 31 | C47: 0.6642411484 | D47: 0.5695207363 | E47: 96.6 | F47: 18.9336 | G47: 47.97507469 | H47: 9.974695795 | I47: 1.154955419 | J47: 1.282660589 | K47: 1.791224433 | L47: 1.504435061 | M47: 0.56 | N47: 508.704 | O47: 45 | P47: 333.4 | Q47: 600.1 | R47: 385.3 | S47: 49.3 | T47: 91.6 | U47: 5.4 | V47: 2.8 | AC47: 5 | AD47: 0.13 | AG47: 30 | AJ47: 5000 | AK47: 200 | AL47: 5 | AM47: 19 | AN47: 0.72 | AO47: 80 | AP47: 353.84195
A48: ENSITJAT Ordi Lletós-pastós | B48: 30.5 | C48: 0.721420216 | D48: 0.6340131908 | E48: 98.8 | F48: 19.3648 | G48: 51.13221978 | H48: 7.299406592 | I48: 1.147495958 | J48: 1.265287422 | K48: 1.745392764 | L48: 1.543939505 | M48: 0.5903225806 | N48: 540.1451613 | O48: 40.7 | P48: 278.4 | Q48: 533.3 | R48: 328.5 | S48: 42.9 | T48: 85 | U48: 5.3 | V48: 2.7 | AJ48: 5000 | AK48: 200 | AL48: 5 | AM48: 19 | AN48: 0.72 | AO48: 80 | AP48: 386.9429565
A49: ENSITJAT Sorgo Pastós | B49: 24 | C49: 0.8946611737 | D49: 0.8448988526 | E49: 102.3 | F49: 26.4957 | G49: 67.48794219 | H49: -13.80137843 | I49: 1.126297354 | J49: 1.216028017 | K49: 1.608406605 | L49: 1.675435074 | M49: 0.701 | N49: 644.7097 | O49: 25 | P49: 293.4 | Q49: 586.4 | R49: 346.8 | S49: 42.4 | T49: 80.3 | U49: 5.6 | V49: 2.4 | AJ49: 5000 | AK49: 200 | AL49: 5 | AM49: 19 | AN49: 0.63 | AO49: 80 | AP49: 492.00891
A50: ENSITJAT Triticale lletós | B50: 28.1 | C50: 0.7185428841 | D50: 0.6315093177 | E50: 99.8 | F50: 19.5608 | G50: 51.20239422 | H50: 8.216009025 | I50: 1.146293336 | J50: 1.262798213 | K50: 1.742230253 | L50: 1.546742077 | M50: 0.5903225806 | N50: 537.6067742 | O50: 46.6 | P50: 329.3 | Q50: 589.7 | R50: 373.5 | S50: 46.2 | T50: 89.3 | U50: 4.9 | V50: 2.9 | AJ50: 5000 | AK50: 200 | AL50: 5 | AM50: 19 | AN50: 0.72 | AO50: 80 | AP50: 384.2085694
A51: ENSITJAT prefenificat Alfals Inici botons florals | B51: 45 | C51: 0.980732297 | D51: 0.9375437283 | E51: 213.6 | F51: 22.3212 | G51: 62.68377642 | H51: 95.74947435 | I51: 0.9797376592 | J51: 0.954797698 | K51: 1.099990717 | L51: 2.449821438 | M51: 0.709856 | N51: 621.9758272 | O51: 20.8 | P51: 247.2 | Q51: 407.2 | R51: 320.1 | S51: 64.3 | T51: 123.8 | U51: 12.8 | V51: 2.6 | AJ51: 3000 | AK51: 200 | AL51: 5 | AM51: 26.4988 | AN51: 0.83 | AO51: 80 | AP51: 470.6914111
A52: ENSITJAT prefenificat Alfals abans floració | B52: 43 | C52: 0.9478567903 | D52: 0.9046584391 | E52: 198.2 | F52: 21.802 | G52: 61.32585238 | H52: 82.60398065 | I52: 0.9937421911 | J52: 0.9777668498 | K52: 1.121023222 | L52: 2.403858178 | M52: 0.707306 | N52: 605.0295524 | O52: 18.7 | P52: 249.7 | Q52: 424.6 | R52: 336.1 | S52: 65.9 | T52: 144.6 | U52: 12.8 | V52: 2.6 | AJ52: 3000 | AK52: 200 | AL52: 5 | AM52: 25.2206 | AN52: 0.8 | AO52: 80 | AP52: 454.6627196
A53: ENSITJAT prefenificat Alfals rebrots floració | B53: 47 | C53: 1.003207297 | D53: 0.9674763745 | E53: 219.7 | F53: 27.79205 | G53: 68.85859238 | H53: 90.80252753 | I53: 0.972568435 | J53: 0.942718323 | K53: 1.084479733 | L53: 2.484860488 | M53: 0.726176 | N53: 627.779152 | O53: 17.8 | P53: 231.2 | Q53: 391.4 | R53: 298.9 | S53: 61.9 | T53: 135.5 | U53: 17.4 | V53: 3.5 | AJ53: 3000 | AK53: 200 | AL53: 5 | AM53: 27.0051 | AN53: 0.79 | AO53: 80 | AP53: 471.9218578
A54: ENSITJAT Enclova Botons Florals a Floració, Bolles | B54: 27.16 | C54: 0.754603903 | D54: 0.6728644459 | E54: 140.9 | F54: 16.27395 | G54: 57.0350509 | H54: 33.42177985 | I54: 1.075441606 | J54: 1.126048654 | K54: 1.267021205 | L54: 2.126863251 | M54: 0.60143 | N54: 526.25125 | O54: 27 | P54: 353.5 | Q54: 537.2 | R54: 351.6765 | S54: Falta valor lignina | T54: 125 | AM54: 20.4647 | AN54: 0.79 | AO54: 150 | AP54: 306.2478463 | AQ54: 18.9901 | AR54: 2.96 | AS54: 4.2346 | AT54: 20.182 | AU54: 48.0613
A55: ENSITJAT Enclova Inici Floració a Fructificació | B55: 19.66 | C55: 0.7669925154 | D55: 0.6858718121 | E55: 135.6 | F55: 15.6618 | G55: 56.90934942 | H55: 28.47470403 | I55: 1.080492689 | J55: 1.135321292 | K55: 1.273160331 | L55: 2.116607605 | M55: 0.605612 | N55: 535.7243752 | O55: 27 | P55: 349.4 | Q55: 589.3 | R55: 349.3026 | S55: Falta valor lignina | T55: 115.4 | AM55: 20.0248 | AN55: 0.79 | AO55: 150 | AP55: 316.8191373 | AQ55: 19.0484 | AR55: 2.96 | AS55: 4.2664 | AT55: 20.288 | AU55: 47.7592
A56: FENC Bromo Final vegetació | B56: 85 | C56: 0.7641928518 | D56: 0.6935543947 | E56: 100 | F56: 20.3 | G56: 58.49315002 | H56: -2.876796905 | I56: 1.083509489 | J56: 1.149054212 | K56: 1.470370044 | L56: 1.832722892 | M56: 0.62749 | N56: 564.741 | O56: 34 | P56: 320 | Q56: 640 | R56: 333 | T56: 100 | U56: 3.1 | V56: 2.9 | AJ56: 50000 | AK56: 50 | AL56: 5 | AM56: 15.93 | AN56: 0.71 | AP56: =N56-F56-(11.4+0.08*(785-8.62*M56*100))-(6+0.599*(9.7+0.75*AM56)) -> 494.5458579
A57: FENC Dàctil Floració | B57: 85 | C57: 0.6267609342 | D57: 0.5315550907 | E57: 88 | F57: 17.248 | G57: 48.36165599 | H57: 0.5449125084 | I57: 1.134465219 | J57: 1.249296501 | K57: 1.633810149 | L57: 1.649384319 | M57: 0.537152 | N57: 491.49408 | O57: 27 | P57: 372 | Q57: 684.08 | R57: 404 | T57: 85 | U57: 2.3 | V57: 1.8 | AJ57: 50000 | AK57: 50 | AL57: 5 | AM57: 14.934 | AN57: 0.72 | AP57: 418.5686824
A58: FENC Festuca Floració | B58: 88.2 | C58: 0.7394322088 | D58: 0.6592885094 | E58: 116 | F58: 23.548 | G58: 59.75765181 | H58: 11.58241904 | I58: 1.079354117 | J58: 1.140751809 | K58: 1.457997654 | L58: 1.848275155 | M58: 0.6004725 | N58: 550.6332825 | O58: 27 | P58: 331 | Q58: 637.34 | R58: 354.45 | T58: 83 | AJ58: 50000 | AK58: 50 | AL58: 5 | AM58: 17.258 | AN58: 0.71 | AP58: 474.7304096
A59: FENC Raigràs italià Espigat | B59: 85 | C59: 0.7551388452 | D59: 0.682416558 | E59: 79 | F59: 13.825 | G59: 52.18563094 | H59: -14.88848585 | I59: 1.106265531 | J59: 1.193403103 | K59: 1.540819033 | L59: 1.74892754 | M59: 0.622116 | N59: 566.12556 | O59: 26 | P59: 307 | Q59: 609.98 | R59: 337 | T59: 90 | U59: 4 | V59: 2.3 | W59: 2 | Y59: 20 | Z59: 2 | AC59: 4.9 | AG59: 110 | AI59: 26.5 | AJ59: 50000 | AK59: 50 | AL59: 5 | AM59: 14.187 | AN59: 0.75 | AP59: 502.8178696
A60: FENC Raigràs italià Floració | B60: 85 | C60: 0.6767027483 | D60: 0.590716319 | E60: 52 | F60: 10.92 | G60: 45.71239642 | H60: -32.16311941 | I60: 1.155610109 | J60: 1.294411723 | K60: 1.707296002 | L60: 1.578391115 | M60: 0.574748 | N60: 528.76816 | O60: 24 | P60: 344 | Q60: 652.16 | R60: 374 | T60: 80 | U60: 4 | V60: 1.8 | AJ60: 50000 | AK60: 50 | AL60: 5 | AM60: 11.946 | AN60: 0.7 | AP60: 466.1057416
A61: FENC Raigràs italià rebrots d'espigat amb fulles | B61: 85 | C61: 0.8845575231 | D61: 0.835550182 | E61: 107 | F61: 23.219 | G61: 65.95615613 | H61: -7.14680645 | I61: 1.050313537 | J61: 1.087684312 | K61: 1.37366381 | L61: 1.961746987 | M61: 0.69441 | N61: 629.13546 | O61: 29 | P61: 256 | Q61: 567 | R61: 291 | T61: 94 | U61: 4 | V61: 2.7 | W61: 2 | Y61: 20 | Z61: 2 | AJ61: 50000 | AK61: 50 | AL61: 5 | AM61: 16.511 | AN61: 0.69 | AP61: 560.3751069
A62: FENC Civada Floració | B62: 90 | C62: 0.6748031786 | D62: 0.5822746186 | E62: 140 | F62: 33.32 | G62: 65.22813994 | H62: 28.34353135 | I62: 1.074914591 | J62: 1.131741987 | K62: 1.444961085 | L62: 1.864950459 | M62: 0.55566 | N62: 509.54022 | O62: 33 | P62: 320 | Q62: 620 | R62: 390 | S62: 60 | T62: 83 | U62: 6.3 | V62: 1 | AJ62: 50000 | AK62: 50 | AL62: 5 | AM62: 19.25 | AN62: 0.66 | AP62: 419.8801711
A63: FENC Civada Inici espigat | B63: 90 | C63: 0.7865238981 | D63: 0.7057522891 | E63: 175 | F63: 41.65 | G63: 77.97898436 | H63: 44.53596194 | I63: 1.023756676 | J63: 1.039063255 | K63: 1.301625956 | L63: 2.070318916 | M63: 0.60695 | N63: 567.49825 | O63: 26 | P63: 290 | Q63: 580 | R63: 350 | S63: 40 | T63: 65 | U63: 6.3 | V63: 1 | AJ63: 50000 | AK63: 50 | AL63: 5 | AM63: 22.155 | AN63: 0.66 | AP63: 471.7400882
A64: FENC Ordi Espigat | B64: 78.5 | C64: 0.5919301713 | D64: 0.4925934379 | E64: 112 | F64: 26.656 | G64: 55.09811221 | H64: 15.27919967 | I64: 1.11967543 | J64: 1.218703295 | K64: 1.584554034 | L64: 1.700655693 | M64: 0.514628 | N64: 464.709084 | O64: 12.5 | P64: 285 | Q64: 584.9 | R64: 422 | T64: 97 | U64: 2.95 | V64: 2.5 | W64: 1.6 | Y64: 14.15 | Z64: 1.75 | AA64: 1.7 | AB64: 0.07 | AC64: 24 | AF64: 101 | AG64: 27 | AH64: 0.16 | AI64: 48 | AM64: 16.926 | AN64: 0.66 | AP64: 379.9275254
A65: FENC Ordi Inici espigat | B65: 83.7 | C65: 0.7873403043 | D65: 0.7263260237 | E65: 108 | F65: 25.704 | G65: 65.002965 | H65: -4.324632817 | I65: 1.065656642 | J65: 1.11556277 | K65: 1.417509819 | L65: 1.901066789 | M65: 0.653002 | N65: 570.723748 | O65: 12.5 | P65: 285 | Q65: 584.9 | R65: 313 | T65: 126 | U65: 2.95 | V65: 2.5 | W65: 1.6 | Y65: 14.15 | Z65: 1.75 | AA65: 1.7 | AB65: 0.07 | AC65: 24 | AF65: 101 | AG65: 27 | AH65: 0.16 | AI65: 48 | AJ65: 50000 | AK65: 50 | AL65: 5 | AM65: 16.594 | AN65: 0.66 | AP65: 496.5856114
A66: FENC Ordi Lletós | B66: 90 | C66: 0.7063206172 | D66: 0.6214014901 | E66: 135 | F66: 32.13 | G66: 65.96134992 | H66: 22.03851575 | I66: 1.06938303 | J66: 1.121640879 | K66: 1.428604953 | L66: 1.886302322 | M66: 0.58099 | N66: 526.37694 | O66: 12.5 | P66: 285 | Q66: 610 | R66: 370 | T66: 94 | U66: 3.6 | V66: 2.4 | W66: 1.6 | Y66: 14.15 | Z66: 1.75 | AA66: 1.7 | AB66: 0.07 | AC66: 24 | AF66: 101 | AG66: 27 | AH66: 0.16 | AI66: 48 | AJ66: 50000 | AK66: 50 | AL66: 5 | AM66: 18.835 | AN66: 0.66 | AP66: 439.8400866
A67: FENC Ordi Vidriós | B67: 76.3 | C67: 0.7403468234 | D67: 0.6622083638 | E67: 99 | F67: 23.562 | G67: 60.20475676 | H67: -6.114307443 | I67: 1.093450987 | J67: 1.167979739 | K67: 1.500772141 | L67: 1.795596257 | M67: 0.605886 | N67: 554.38569 | O67: 12.5 | P67: 285 | Q67: 584.9 | R67: 350 | T67: 85 | U67: 3.6 | V67: 2.4 | W67: 1.8 | Y67: 11.8 | Z67: 1.4 | AA67: 1.7 | AB67: 0.07 | AC67: 24 | AF67: 101 | AG67: 27 | AH67: 0.16 | AI67: 48 | AJ67: 50000 | AK67: 50 | AL67: 5 | AM67: 15.847 | AN67: 0.66 | AP67: 479.4760238
A68: PALLA blat | B68: 88 | C68: 0.5448944996 | D68: 0.4422046337 | E68: 35 | F68: 7.84 | G68: 35.75192835 | H68: -34.01238805 | I68: 1.215855774 | J68: 1.428129804 | K68: 1.940357448 | L68: 1.388806399 | M68: 0.49196 | N68: 452.6032 | O68: 15 | P68: 420 | Q68: 738.8 | R68: 439 | T68: 80 | U68: 2 | V68: 1 | W68: 1.4 | Y68: 16.5 | Z68: 2.1 | AM68: 10.535 | AN68: 0.68 | AP68: 387.9456129
A69: PALLA Blat tractada amoniac | B69: 88 | C69: 0.565316952 | D69: 0.4605385981 | E69: 100 | F69: 22.4 | G69: 49.60791438 | H69: 11.28763379 | I69: 1.141925732 | J69: 1.264114285 | K69: 1.659586355 | L69: 1.623766568 | M69: 0.49287 | N69: 453.4404 | O69: 15 | P69: 420 | Q69: 738.8 | R69: 439 | T69: 80 | U69: 2 | V69: 1 | AM69: 15.93 | AN69: 0.66 | AP69: 371.8618627
A70: PALLA Blat de moro rostoll | B70: 85 | C70: 0.6529503033 | D70: 0.5611555319 | E70: 59 | F70: 14.042 | G70: 47.1604761 | H70: -27.00761891 | I70: 1.157472222 | J70: 1.298062411 | K70: 1.714069322 | L70: 1.572153941 | M70: 0.554526 | N70: 514.600128 | O70: 13 | P70: 344 | Q70: 670 | R70: 390 | S70: 110 | T70: 72 | U70: 5.7 | V70: 1 | W70: 1.4 | Y70: 16.5 | Z70: 2.1 | AJ70: 50000 | AK70: 50 | AL70: 5 | AM70: 12.527 | AN70: 0.66 | AP70: 447.1601862
A71: PALLA Civada | B71: 88 | C71: 0.5381272518 | D71: 0.4366356893 | E71: 32 | F71: 7.392 | G71: 35.09975274 | H71: -36.05336365 | I71: 1.219499726 | J71: 1.436733453 | K71: 1.955627715 | L71: 1.377962083 | M71: 0.491918 | N71: 447.64538 | O71: 15 | P71: 420 | Q71: 738.8 | R71: 439 | T71: 90 | U71: 3.5 | V71: 1 | AJ71: 50000 | AK71: 50 | AL71: 5 | AM71: 10.286 | AN71: 0.67 | AP71: 383.5447598
A72: PALLA Ordi | B72: 88 | C72: 0.54583885 | D72: 0.4430524613 | E72: 38 | F72: 8.512 | G72: 36.3914354 | H72: -31.92161781 | I72: 1.212233533 | J72: 1.419628584 | K72: 1.925323806 | L72: 1.399650714 | M72: 0.492002 | N72: 452.64184 | O72: 12.5 | P72: 420 | Q72: 738.8 | R72: 439 | T72: 80 | U72: 3.5 | V72: 1 | W72: 1.4 | Y72: 16.5 | Z72: 2.1 | AC72: 3.1 | AG72: 17.6 | AI72: 7.3 | AJ72: 50000 | AK72: 50 | AL72: 5 | AM72: 10.784 | AN72: 0.68 | AP72: 387.2032859
A73: PALLA Ordi tractada amoniac | B73: 88 | C73: 0.565316952 | D73: 0.4605385981 | E73: 100 | F73: 22.4 | G73: 49.60791438 | H73: 11.28763379 | I73: 1.141925732 | J73: 1.264114285 | K73: 1.659586355 | L73: 1.623766568 | M73: 0.49287 | N73: 453.4404 | O73: 12.5 | P73: 420 | Q73: 738.8 | R73: 439 | T73: 80 | U73: 3.5 | V73: 1 | AM73: 15.93 | AN73: 0.66 | AP73: 371.8618627
A74: FENC Alfals Botons florals | B74: 85 | C74: 0.5712355805 | D74: 0.464442748 | E74: 171 | F74: 35.91 | G74: 61.68676322 | H74: 68.64380747 | I74: 1.073184795 | J74: 1.127610305 | K74: 1.440095705 | L74: 1.871251216 | M74: 0.48796 | N74: 443.06768 | O74: 26 | P74: 372 | Q74: 684.08 | R74: 436 | T74: 92 | U74: 14 | V74: 2.5 | AC74: 7.1 | AG74: 29 | AI74: 24.6 | AJ74: 45000 | AK74: 400 | AL74: 10 | AM74: 21.823 | AN74: 0.72 | AP74: 344.9931188
A75: FENC Alfals Inici vegetació | B75: 85 | C75: 0.7631700038 | D75: 0.6873563 | E75: 168.5 | F75: 35.385 | G75: 71.39879666 | H75: 50.84844271 | I75: 1.027253066 | J75: 1.045286018 | K75: 1.31089825 | L75: 2.055675061 | M75: 0.612562 | N75: 548.9168082 | O75: 21.2 | P75: 283.4 | Q75: 483.1 | R75: 326.7 | S75: 69.3 | T75: 103.9 | U75: 12.5 | V75: 2.4 | AB75: 0.1 | AC75: 4.6 | AD75: 0.6 | AG75: 42.9 | AH75: 0.03 | AI75: 21.3 | AJ75: 45000 | AK75: 400 | AL75: 10 | AM75: 21.6155 | AN75: 0.72 | AP75: 460.0530203
A76: FENC Alfals Floració | B76: 85 | C76: 0.5304260801 | D76: 0.4188102854 | E76: 160 | F76: 33.6 | G76: 57.35624758 | H76: 63.88086315 | I76: 1.094986479 | J76: 1.168978414 | K76: 1.506087001 | L76: 1.789259742 | M76: 0.4606 | N76: 421.9096 | O76: 24 | P76: 395 | Q76: 710.3 | R76: 460 | T76: 84 | U76: 14 | V76: 2.2 | AJ76: 45000 | AK76: 400 | AL76: 10 | AM76: 20.91 | AN76: 0.72 | AP76: 324.6684585
A77: FENC Alfals floració (Catalunya) | B77: 89 | C77: 0.7804774848 | D77: 0.7084236384 | E77: 174.5 | F77: 36.645 | G77: 73.40253262 | H77: 54.00635528 | I77: 1.017963166 | J77: 1.029102189 | K77: 1.286335584 | L77: 2.094928316 | M77: 0.623962 | N77: 555.950142 | O77: 19.8 | P77: 271.5 | Q77: 446.6 | R77: 316.7 | S77: 69.1 | T77: 109 | U77: 18.9 | V77: 3 | AB77: 0.1 | AC77: 4.6 | AD77: 0.6 | AG77: 42.9 | AH77: 0.03 | AI77: 21.3 | AJ77: 45000 | AK77: 400 | AL77: 10 | AM77: 22.1135 | AN77: 0.72 | AP77: 466.3887716
A78: FENC Alfals rebrots (Catalunya) | B78: 89 | C78: 0.8220547044 | D78: 0.7561386752 | E78: 179.3 | F78: 37.653 | G78: 76.25857889 | H78: 54.57478298 | I78: 1.006503009 | J78: 1.009490389 | K78: 1.256671417 | L78: 2.14437983 | M78: 0.64471 | N78: 577.982515 | O78: 19.8 | P78: 259.6 | Q78: 442.1 | R78: 298.5 | S78: 65.8 | T78: 103.5 | U78: 11 | V78: 2.2 | AB78: 0.1 | AC78: 4.6 | AD78: 0.6 | AG78: 42.9 | AH78: 0.03 | AI78: 21.3 | AJ78: 45000 | AK78: 400 | AL78: 10 | AM78: 22.5119 | AN78: 0.72 | AP78: 488.6649455
A79: FENC Alfals rebrots de floració | B79: 85 | C79: 0.5559914214 | D79: 0.4463183361 | E79: 174 | F79: 36.54 | G79: 61.35273255 | H79: 72.3101054 | I79: 1.075441268 | J79: 1.131707149 | K79: 1.446811059 | L79: 1.86256583 | M79: 0.47542 | N79: 434.53388 | O79: 24 | P79: 382 | Q79: 695.48 | R79: 447 | T79: 86 | U79: 12.2 | V79: 2.2 | AB79: 0.1 | AC79: 4.6 | AD79: 0.6 | AG79: 42.9 | AH79: 0.03 | AI79: 21.3 | AJ79: 45000 | AK79: 400 | AL79: 10 | AM79: 22.072 | AN79: 0.72 | AP79: 334.8526972
A80: FENC Alfals Sense especificar (primavera) IAMZ | B80: 90 | C80: 0.8022678479 | D80: 0.7359621515 | E80: 171 | F80: 35.91 | G80: 73.93543875 | H80: 49.50525195 | I80: 1.014835798 | J80: 1.023836553 | K80: 1.278138126 | L80: 2.108364335 | M80: 0.64072 | N80: 567.0372 | O80: 25 | P80: 300 | Q80: 394 | R80: 302 | T80: 115 | U80: 14.6 | V80: 4.5 | AJ80: 45000 | AK80: 400 | AL80: 10 | AM80: 21.823 | AN80: 0.72 | AP80: 479.4969685
A81: FENC Alfals Sense especificar (estiu) IAMZ | B81: 90 | C81: 0.8027529859 | D81: 0.732612327 | E81: 187 | F81: 39.27 | G81: 76.69014372 | H81: 61.97102544 | I81: 1.004731173 | J81: 1.006321977 | K81: 1.25219197 | L81: 2.152050886 | M81: 0.631828 | N81: 566.117888 | O81: 25 | P81: 284 | Q81: 583.76 | R81: 309.8 | T81: 104 | U81: 19.4 | V81: 2.9 | AJ81: 45000 | AK81: 400 | AL81: 10 | AM81: 23.151 | AN81: 0.72 | AP81: 474.0078601
A82: FENC Enclova Final floració | B82: 87.6 | C82: 0.7974276922 | D82: 0.7271766252 | E82: 143 | F82: 30.03 | G82: 68.40600963 | H82: 28.79748495 | I82: 1.041902847 | J82: 1.071676354 | K82: 1.350515054 | L82: 1.995372678 | M82: 0.63274 | N82: 575.16066 | O82: 13.5 | P82: 287 | Q82: 414 | R82: 309 | T82: 91 | U82: 1.2 | V82: 0.3 | AJ82: 45000 | AK82: 400 | AL82: 10 | AM82: 19.499 | AN82: 0.72 | AP82: 493.9941847
A83: FENC Trèvol blanc Vegetatiu | B83: 90 | C83: 0.7981872668 | D83: 0.7236613654 | E83: 220 | F83: 56.1 | G83: 91.79713043 | H83: 75.2232337 | I83: 0.9822368086 | J83: 0.9683089799 | K83: 1.196312677 | L83: 2.252572334 | M83: 0.6202 | N83: 557.5598 | O83: 27 | P83: 212 | Q83: 360 | R83: 320 | S83: 70 | T83: 101 | U83: 13.5 | V83: 3.1 | W83: 4.3 | X83: 3.2 | Y83: 16.2 | Z83: 1.9 | AA83: 1.7 | AB83: 0.16 | AC83: 11 | AE83: 0.25 | AF83: 184 | AG83: 73 | AI83: 17 | AJ83: 45000 | AK83: 400 | AL83: 10 | AM83: 25.89 | AN83: 0.66 | AP83: 446.5874095
A84: FENC Trèvol violeta Final floració | B84: 89 | C84: 0.7112930165 | D84: 0.6233057215 | E84: 160 | F84: 40.8 | G84: 73.88731868 | H84: 39.70106456 | I84: 1.049059571 | J84: 1.083978186 | K84: 1.370545909 | L84: 1.966209831 | M84: 0.5746 | N84: 525.759 | O84: 28 | P84: 288 | Q84: 460 | R84: 360 | S84: 80 | T84: 85 | U84: 15.3 | V84: 2.5 | AJ84: 45000 | AK84: 400 | AL84: 10 | AM84: 20.91 | AN84: 0.66 | AP84: 429.1792985
A85: FENC Veça Inici botons | B85: 91.4 | C85: 0.9721214262 | D85: 0.932227536 | E85: 196 | F85: 49.98 | G85: 94.63849626 | H85: 45.3810996 | I85: 0.9680489979 | J85: 0.9458914147 | K85: 1.16210933 | L85: 2.318870324 | M85: 0.718468 | N85: 653.80588 | O85: 25 | P85: 204 | Q85: 492.56 | R85: 233.8 | T85: 90 | U85: 17.6 | V85: 2.2 | AJ85: 45000 | AK85: 400 | AL85: 10 | AM85: 23.898 | AN85: 0.66 | AP85: 556.6249568
A86: FENC Veça Botons | B86: 92 | C86: 0.7602900998 | D86: 0.6840692248 | E86: 217 | F86: 55.335 | G86: 89.49619547 | H86: 75.64313208 | I86: 0.9884905805 | J86: 0.9786155001 | K86: 1.211628532 | L86: 2.224098202 | M86: 0.6088 | N86: 533.9176 | O86: 25 | P86: 244 | Q86: 470 | R86: 330 | T86: 123 | U86: 17.6 | V86: 2.2 | AJ86: 45000 | AK86: 400 | AL86: 10 | AM86: 25.641 | AN86: 0.66 | AP86: 423.0359288
A87: FENC Veça Inici floració | B87: 90 | C87: 0.7518572372 | D87: 0.6734733305 | E87: 225 | F87: 57.375 | G87: 90.85954176 | H87: 81.98040349 | I87: 0.9844856593 | J87: 0.9718713426 | K87: 1.201833094 | L87: 2.242225526 | M87: 0.60196 | N87: 527.91892 | O87: 25 | P87: 244 | Q87: 538.16 | R87: 336 | T87: 123 | U87: 17.6 | V87: 2.2 | AJ87: 45000 | AK87: 400 | AL87: 10 | AM87: 26.305 | AN87: 0.66 | AP87: 414.2272603
A88: FENC Veça Final floració | B88: 85 | C88: 0.9139505759 | D88: 0.8625564777 | E88: 197 | F88: 50.235 | G88: 92.18452814 | H88: 50.27386229 | I88: 0.9773405656 | J88: 0.960845548 | K88: 1.184313609 | L88: 2.275394642 | M88: 0.688144 | N88: 623.458464 | O88: 25 | P88: 232 | Q88: 524.48 | R88: 260.4 | T88: 94 | U88: 14.7 | V88: 3.1 | AJ88: 45000 | AK88: 400 | AL88: 10 | AM88: 23.981 | AN88: 0.66 | AP88: 523.89411
A89: FENC Veça Fructificació | B89: 91 | C89: 0.8320963568 | D89: 0.7657742026 | E89: 186 | F89: 47.43 | G89: 85.84481608 | H89: 48.53684987 | I89: 1.000806021 | J89: 0.9997563541 | K89: 1.242213475 | L89: 2.169337956 | M89: 0.64528 | N89: 583.33312 | O89: 20 | P89: 236 | Q89: 453 | R89: 298 | T89: 96 | U89: 15.1 | V89: 1.7 | AJ89: 45000 | AK89: 400 | AL89: 10 | AM89: 23.068 | AN89: 0.66 | AP89: 484.0280298
A90: FENC Veça Pastós | B90: 90.2 | C90: 0.9492342693 | D90: 0.908971077 | E90: 188 | F90: 47.94 | G90: 91.99944958 | H90: 41.03711002 | I90: 0.9750278921 | J90: 0.9572930027 | K90: 1.178699078 | L90: 2.286233093 | M90: 0.71596 | N90: 640.7842 | O90: 20 | P90: 278 | Q90: 576.92 | R90: 236 | T90: 105 | U90: 16 | V90: 3 | AJ90: 45000 | AK90: 400 | AL90: 10 | AM90: 23.234 | AN90: 0.66 | AP90: 545.7686271
A91: FENC Veça (>50%)-Civada tall precoç INRA | B91: 84 | C91: 0.73 | D91: 0.65 | E91: 158 | F91: 42 | G91: 93 | H91: 1 | I91: 1.020408163 | J91: 1.024501769 | K91: 0.86 | L91: 3.13 | M91: 0.68 | N91: 881 | P91: 333 | Q91: 674 | R91: 378 | T91: 119 | U91: 13 | V91: 2 | AN91: 0.6 | AP91: 799.8825
A92: FENC Veça (20-50%)-Civada tall precoç INRA | B92: 79 | C92: 0.72 | D92: 0.65 | E92: 104 | F92: 24 | G92: 75 | H92: -28 | I92: 1.065092359 | J92: 1.108776844 | K92: 1.21 | L92: 2.23 | M92: 0.68 | N92: 897 | P92: 280 | Q92: 595 | R92: 323 | T92: 103 | AN92: 0.63 | AP92: 833.8825
A93: FENC Veça (< 20%)-Civada tall precoç INRA | B93: 81 | C93: 0.74 | D93: 0.66 | E93: 129 | F93: 29 | G93: 81 | H93: -11 | I93: 1.031870043 | J93: 1.053472022 | K93: 1.21 | L93: 2.23 | M93: 0.7 | N93: 870 | P93: 270 | Q93: 575 | R93: 308 | T93: 130 | AN93: 0.64 | AP93: 803.2617
A94: FENC Veça (>50%)-Civada tall tardà INRA | B94: 81 | C94: 0.65 | D94: 0.55 | E94: 123 | F94: 31 | G94: 81 | H94: -17 | I94: 1.07880684 | J94: 1.128333036 | K94: 0.89 | L94: 3.02 | M94: 0.61 | N94: 929 | P94: 268 | Q94: 584 | R94: 309 | T94: 71 | AN94: 0.6 | AP94: 854.0553
A95: FENC Veça (20-50%)-Civada tall tardà INRA | B95: 82 | C95: 0.64 | D95: 0.55 | E95: 99 | F95: 23 | G95: 72 | H95: -29 | I95: 1.090181359 | J95: 1.155366373 | K95: 1.39 | L95: 1.94 | M95: 0.63 | N95: 901 | P95: 333 | Q95: 675 | R95: 385 | T95: 99 | AN95: 0.63 | AP95: 835.4345
A96: FENC Veça (< 20%)-Civada tall tardà INRA | B96: 86 | C96: 0.61 | D96: 0.52 | E96: 74 | F96: 17 | G96: 66 | H96: -45 | I96: 1.124534122 | J96: 1.228533002 | K96: 1.25 | L96: 2.16 | M96: 0.6 | N96: 916 | P96: 324 | Q96: 664 | R96: 377 | T96: 84 | AN96: 0.61 | AP96: 854.3657

Sheet Taula Concentrats
A1: Concentrats | B1: MS | C1: UFL | D1: UFV | E1: MNT_PB | F1: PDIA | G1: PDI | H1: BPR | I1: UEL | J1: UEB | K1: UEM | L1: NI ref | M1: dMO | N1: MOD_TDN | O1: EE | P1: FB | Q1: NDF | R1: ADF | S1: Lignina | T1: cendres | U1: Ca | V1: P | W1: Mg | X1: Cl | Y1: K | Z1: Na | AA1: S | AB1: Co | AC1: Cu | AD1: Mo | AE1: Iode | AF1: Fe | AG1: Mn | AH1: Se | AI1: Zn | AJ1: Vit A | AK1: Vit D | AL1: Vit E | AM1: AG | AN1: DT_N | AO1: dr | AP1: MOF
A3: Ordi gra | B3: 87.2 | C3: 1.078969989 | D3: 1.067752556 | E3: 112 | F3: 27.59508246 | G3: 89.46220189 | H3: -31.34737412 | I3: 0.2046 | L3: 2 | M3: 0.837328 | N3: 816.3948 | O3: 19 | P3: 54 | Q3: 215 | R3: 65 | S3: 12 | T3: 25 | U3: 0.8 | V3: 3.9 | W3: 1.3 | Y3: 5.55 | Z3: 0.35 | AB3: 0.01 | AC3: 4.1 | AD3: 0.3 | AF3: 90 | AG3: 17.6 | AH3: 0.02 | AI3: 24.4 | AJ3: 1000 | AL3: 25 | AM3: =0.75*O3 -> 14.25 | AN3: =1-(F3/(E3*AO3)) -> 0.7349259949 | AO3: =(88.3+0.0371*E3-3.7*(10^-5)*(E3^2)-0.107*S3-0.00313*(100-N3))/100 -> 0.9294938772 | AP3: =N3-E3*(1-AN3)-O3 -> 767.7065114
A4: Blat de moro gra | B4: 86 | C4: 1.24475541 | D4: 1.26992117 | E4: 89 | F4: 38.12988822 | G4: 100.7057165 | H4: -70.14473162 | I4: 0.3291 | L4: 2 | M4: 0.882846 | N4: 870.486156 | O4: 43 | P4: 26 | Q4: 125 | R4: 31 | S4: 60 | T4: 14 | U4: 0.5 | V4: 2.9 | W4: 1.4 | Y4: 3.6 | Z4: 0.33 | AB4: 0.02 | AC4: 2.3 | AD4: 0.3 | AF4: 80 | AG4: 10.8 | AH4: 0.02 | AI4: 21.4 | AM4: =0.85*O4 -> 36.55 | AN4: 0.5092513996 | AO4: 0.8730044467 | AP4: 783.8095306
A5: Blat gra | B5: 87 | C5: 1.191513797 | D5: 1.205062577 | E5: 157 | F5: 33.00144942 | G5: 96.50582734 | H5: 5.8944095 | I5: 0.1714 | L5: 2 | M5: 0.87875 | N5: 861.175 | O5: 23 | P5: 29 | Q5: 146 | R5: 38 | S5: 12 | T5: 20 | U5: 0.5 | V5: 3.9 | AB5: 0.02 | AC5: 4.4 | AD5: 0.3 | AG5: 33.7 | AH5: 0.04 | AI5: 32.5 | AL5: 12 | AM5: =O5*0.75 -> 17.25 | AN5: 0.7771204339 | AO5: 0.9431116475 | AP5: 803.1829081
A6: Civada | B6: 87.4 | C6: 1.002754804 | D6: 0.9548146189 | E6: 111 | F6: 20.39754399 | G6: 75.33304787 | H6: -14.56672481 | I6: 0.3208 | L6: 2 | M6: 0.72867 | N6: 706.8099 | O6: 67 | P6: 135 | Q6: 336 | R6: 162 | S6: 27 | T6: 30 | U6: 1 | V6: 4 | W6: 1.75 | Y6: 4.3 | Z6: 0.5 | AB6: 0.02 | AC6: 3.5 | AD6: 0.7 | AG6: 38.4 | AH6: 0.04 | AI6: 25.2 | AL6: 15 | AM6: =O6*0.9 -> 60.3 | AN6: 0.7980031538 | AO6: 0.9097253799 | AP6: 617.3882501
A7: Fajol gra | B7: 88 | C7: 1.000775785 | D7: 0.9661592102 | E7: 125 | F7: 34.09988724 | G7: 90.96989041 | H7: -20.55937996 | I7: 0.2129 | L7: 2 | M7: 0.74393 | N7: 726.81961 | O7: 28 | P7: 118 | Q7: 301 | R7: 158.9 | S7: 33.4 | T7: 23 | U7: 1.1 | V7: 3.7 | W7: 1.2 | X7: 0.5 | Y7: 5.1 | Z7: 0.6 | AA7: 1.6 | AB7: 0.06 | AC7: 11 | AF7: 50 | AG7: 38 | AI7: 10 | AM7: =O7*0.75 -> 21 | AN7: 0.6993867196 | AO7: 0.9074752038 | AP7: 661.2429499
A8: Mill gra | B8: 88 | C8: 1.009546491 | D8: 0.9776763056 | E8: 131 | F8: 35.90764594 | G8: 91.77812279 | H8: -15.03762007 | I8: 0.2129 | L8: 2 | M8: 0.752754 | N8: 721.138332 | O8: 42 | P8: 106 | Q8: 284.5 | R8: 143.86 | S8: 29.7 | T8: 42 | U8: 0.4 | V8: 3.2 | W8: 1.7 | X8: 0.34 | Y8: 4.66 | Z8: 0.45 | AM8: =0.9*O8 -> 37.8 | AN8: 0.6997481148 | AO8: 0.9129140598 | AP8: 639.805335
A9: Segol gra | B9: 86.5 | C9: 1.207814675 | D9: 1.231534718 | E9: 120 | F9: 35.28382464 | G9: 99.1104158 | H9: -34.72904868 | I9: 0.2129 | L9: 2 | M9: 0.88214 | N9: 864.4972 | O9: 16.2 | P9: 26 | Q9: 132 | R9: 42 | S9: 14 | T9: 20 | U9: 0.7 | V9: 4 | W9: 1.35 | Y9: 5.25 | Z9: 0.3 | AB9: 0.03 | AC9: 4.5 | AD9: 0.2 | AG9: 55 | AH9: 0.03 | AI9: 30 | AL9: 17 | AM9: =0.75*O9 -> 12.15 | AN9: 0.6842240358 | AO9: 0.9311407624 | AP9: 810.4040843
A10: Sorgo gra | B10: 86 | C10: 1.256362413 | D10: 1.285094692 | E10: 114 | F10: 33.93068942 | G10: 97.13096315 | H10: -37.7104277 | I10: 0.2129 | L10: 2 | M10: 0.884686 | N10: 869.646338 | O10: 37 | P10: 25 | Q10: 107 | R10: 49 | S10: 4 | T10: 17 | U10: 0.3 | V10: 3.2 | W10: 1.75 | Y10: 3.6 | Z10: 0.4 | AC10: 10 | AF10: 160 | AG10: 14 | AI10: 14 | AJ10: 14000 | AL10: 12 | AM10: =O10*0.9 -> 33.3 | AN10: 0.6834637038 | AO10: 0.9402954104 | AP10: 796.5612002
A11: Triticale gra | B11: 87.1 | C11: 1.191793332 | D11: 1.210362141 | E11: 130 | F11: 38.225488 | G11: 101.2965379 | H11: -26.94851539 | I11: 0.2129 | L11: 2 | M11: 0.87145 | N11: 852.2781 | O11: 17 | P11: 33 | Q11: 148 | R11: 40 | S11: 13 | T11: 22 | U11: 0.5 | V11: 4.6 | AM11: =O11*0.75 -> 12.75 | AN11: 0.6853862298 | AO11: 0.9346133045 | AP11: 794.3783099
A12: Blat segó blat dur | B12: 87.7 | C12: 1.017694369 | D12: 0.9779078471 | E12: 167 | F12: 34.63114108 | G12: 88.47767853 | H12: 25.24478524 | I12: 0.3057772 | L12: 2 | M12: 0.731538 | N12: 692.034948 | O12: 58 | P12: 118 | Q12: 481 | R12: 148 | S12: 38 | T12: 54 | U12: 1.7 | V12: 10.4 | AC12: 10 | AF12: 200 | AG12: 90 | AI12: 80 | AJ12: 1000 | AL12: 21 | AM12: =O12*0.8 -> 46.4 | AN12: 0.7727450842 | AO12: 0.9125087639 | AP12: 596.0833771
A13: Blat de moro flocs | B13: 89 | C13: 1.285459442 | D13: 1.315633547 | E13: 100 | F13: 41.4985065 | G13: 103.9464693 | H13: -59.77494194 | I13: 0.231567 | L13: 2 | M13: 0.88266 | N13: 868.53744 | O13: 43 | P13: 26 | Q13: 90 | R13: 30 | S13: 10 | T13: 16 | U13: 0.3 | V13: 2.9 | W13: 1.4 | X13: 0.5 | Y13: 3.7 | Z13: 0.3 | AA13: 1.2 | AB13: 0.05 | AC13: 4 | AF13: 30 | AG13: 5 | AH13: 0.08 | AI13: 14 | AJ13: 1000 | AL13: 25 | AM13: =O13*0.85 -> 36.55 | AN13: 0.5536620228 | AO13: 0.9297552219 | AP13: 780.9036423
A14: Blat de moro bagàs | B14: 88.1 | C14: 1.203463873 | D14: 1.20550115 | E14: 151 | F14: 56.28378672 | G14: 116.7748185 | H14: -22.64723712 | I14: 0.2876 | L14: 2 | M14: 0.850092 | N14: 833.940252 | O14: 34 | P14: 68 | Q14: 272 | R14: 78 | S14: 11 | T14: 19 | W14: 1.8 | Y14: 3.5 | Z14: 9.5 | AM14: =O14*0.75 -> 25.5 | AN14: 0.6042201418 | AO14: 0.9417869599 | AP14: 740.1774934
A15: Blat de moro hominyfeed (mescla segó, germèn i midó) | B15: 90 | C15: 1.153355136 | D15: 1.157966805 | E15: 114 | F15: 46.52415979 | G15: 107.3745235 | H15: -49.99869329 | I15: 0.2535785 | L15: 2 | M15: 0.837476 | N15: 816.5391 | O15: 19 | P15: 54 | Q15: 215 | R15: 65 | S15: 12 | T15: 25 | U15: 0.5 | V15: 5.7 | W15: 2.6 | X15: 0.6 | Y15: 6.5 | Z15: 0.9 | AA15: 0.3 | AB15: 0.06 | AC15: 15 | AF15: 75 | AG15: 16 | AH15: 0.11 | AI15: 3 | AM15: =O15*0.85 -> 16.15 | AN15: 0.5612101445 | AO15: 0.9300731538 | AP15: 747.5170565
A16: Blat de moro gluten feed | B16: 87.7 | C16: 1.056307439 | D16: 1.029893853 | E16: 216 | F16: 53.8646516 | G16: 111.0030461 | H16: 49.88125855 | I16: 0.3125 | L16: 2 | M16: 0.825072 | N16: 769.792176 | O16: 45 | P16: 88 | Q16: 343 | R16: 100 | S16: 13 | T16: 67 | U16: 3 | V16: 7.8 | W16: 3.5 | Y16: 10.25 | Z16: 7 | AJ16: 3000 | AL16: 14 | AM16: =O16*0.9 -> 40.5 | AN16: 0.7383081976 | AO16: 0.9529277751 | AP16: 668.2667467
A17: Blat de moro gluten meal | B17: 89.3 | C17: 1.647747782 | D17: 1.703959302 | E17: 661 | F17: 427.8502116 | G17: 474.6927582 | H17: 117.5185209 | I17: 0.4868 | L17: 2 | M17: 0.943652 | N17: 929.49722 | O17: 35 | P17: 21 | Q17: 107 | R17: 28 | S17: 6 | T17: 15 | U17: 0.2 | V17: 4 | AJ17: 14000 | AL17: 26 | AM17: =O17*0.8 -> 28 | AN17: 0.3436078323 | AO17: 0.986113493 | AP17: 460.6219971
A18: Blat de moro espigots | B18: 90.2 | C18: 0.5231913971 | D18: 0.4115298955 | E18: 44 | F18: 14.39853914 | G18: 59.97738242 | H18: -62.53694262 | I18: 0.4692912 | L18: 2 | M18: 0.455276 | N18: 437.06496 | O18: 5 | P18: 302 | Q18: 822 | R18: 408 | S18: 38 | T18: 40 | U18: 1.2 | V18: 0.7 | AM18: 2 | AN18: 0.6232120323 | AO18: 0.8684978132 | AP18: 415.4862894
A19: Blat de moro segó | B19: 88.3 | C19: 1.112973677 | D19: 1.10078662 | E19: 101 | F19: 43.23835933 | G19: 96.34428969 | H19: -50.71801618 | I19: 0.3706 | L19: 2 | M19: 0.707252 | N19: 669.060392 | O19: 40 | P19: 150 | Q19: 557 | R19: 164 | S19: 19 | T19: 54 | U19: 0.3 | V19: 2.5 | AM19: =O19*0.85 -> 34 | AN19: 0.5317077588 | AO19: 0.9141782203 | AP19: 581.7628756
A20: Blat de moro tortó de gèrmens a pressió | B20: 88.1 | C20: 1.17895975 | D20: 1.171602179 | E20: 146 | F20: 59.1015472 | G20: 113.8847817 | H20: -23.87880397 | I20: 0.2642698 | L20: 2 | M20: 0.801524 | N20: 763.050848 | O20: 82 | P20: 72 | Q20: 285 | R20: 82 | S20: 11 | T20: 48 | U20: 0.6 | V20: 4.7 | W20: 4.5 | Y20: 1.8 | Z20: 8.5 | AM20: =O20*0.8 -> 65.6 | AN20: 0.5685588128 | AO20: 0.9382625715 | AP20: 618.0604347
A21: Blat de moro tortó de gèrmens amb dissolvent | B21: 87.9 | C21: 1.041990023 | D21: 1.023538393 | E21: 135 | F21: 54.17190727 | G21: 111.6965778 | H21: -33.88229766 | I21: 0.2686721 | L21: 2 | M21: 0.79028 | N21: 752.34656 | O21: 17 | P21: 79 | Q21: 310 | R21: 89 | S21: 12 | T21: 48 | U21: 0.9 | V21: 5 | W21: 4.5 | Y21: 1.8 | Z21: 8.5 | AJ21: 1000 | AL21: 94 | AM21: =O21*0.75 -> 12.75 | AN21: 0.5703343944 | AO21: 0.9339201973 | AP21: 677.3417032
A22: Blat de moro extrussionat | B22: 90.3 | C22: 1.26592428 | D22: 1.305945141 | E22: 96.35 | F22: 55.42277845 | G22: 120.6512297 | H22: -82.39695502 | I22: 0.21464959 | L22: 2 | M22: 0.9181304 | N22: 904.9093222 | O22: 4.32 | P22: 2.55 | Q22: 12.18 | R22: 3.1 | S22: 0.55 | T22: 14.4 | U22: 0.3 | V22: 2.9 | W22: 1.4 | X22: 0.5 | Y22: 3.7 | Z22: 0.3 | AA22: 1.2 | AB22: 0.05 | AC22: 4 | AF22: 30 | AG22: 5 | AH22: 0.08 | AI22: 14 | AJ22: 1000 | AL22: 25 | AM22: =O22*0.85 -> 3.672 | AN22: 0.3880056001 | AO22: 0.9399161825 | AP22: 841.6236618
A23: Fajol segones | B23: 89 | C23: 1.185521315 | D23: 1.168586189 | E23: 335 | F23: 98.39838218 | G23: 150.650279 | H23: 125.2564113 | I23: 0.2129 | L23: 2 | M23: 0.79562 | N23: 751.8609 | O23: 82 | P23: 83 | Q23: 251.39 | R23: 114.99 | S23: 22.61 | T23: 55 | AM23: =O23*0.8 -> 65.6 | AN23: 0.6946621902 | AO23: 0.9619722962 | AP23: 567.5727337
A24: Ordi bagàs cerveseria fresc | B24: 20.5 | C24: 0.8640921799 | D24: 0.7703702942 | E24: 300 | F24: 129.9487159 | G24: 172.9796551 | H24: 53.5641575 | I24: 0.4951 | L24: 2 | M24: 0.6385 | N24: 606.575 | O24: 86 | P24: 150 | Q24: 525 | R24: 206 | S24: 47 | T24: 50 | U24: 3.3 | V24: 5.7 | W24: 1.6 | Y24: 0.7 | Z24: 1.6 | AB24: 0.08 | AC24: 22.2 | AD24: 0.5 | AG24: 38.5 | AH24: 0.06 | AI24: 85 | AL24: 29 | AM24: =O24*0.45 -> 38.7 | AN24: 0.5325076887 | AO24: 0.9265657975 | AP24: 380.3273066
A25: Ordi bagàs cerveseria sec | B25: 91.9 | C25: 0.871193565 | D25: 0.7805426295 | E25: 262.4 | F25: 107.6156328 | G25: 151.6383987 | H25: 35.09442835 | I25: 0.4951 | L25: 2 | M25: 0.62732 | N25: 601.348952 | O25: 79.9 | P25: 161.6 | Q25: 643.3 | R25: 236.4 | S25: 78.9 | T25: 41.4 | U25: 2.3 | V25: 6.3 | AB25: 0.08 | AC25: 22.2 | AD25: 0.5 | AG25: 38.5 | AH25: 0.06 | AI25: 85 | AL25: 29 | AM25: =O25*0.45 -> 35.955 | AN25: 0.5371850665 | AO25: 0.886143731 | AP25: 400.0063135
A26: Ordi malta, gra germinat i eixugat | B26: 89.6 | C26: 0.8231856487 | D26: 0.7581965961 | E26: 255 | F26: 66.35502136 | G26: 127.2527654 | H26: 71.69727487 | I26: 0.2959 | L26: 2 | M26: 0.89925 | N26: 840.79875 | O26: 23 | P26: 10 | Q26: 94 | R26: 10 | S26: 6 | T26: 65 | U26: 2.7 | V26: 7.5 | AL26: 16 | AM26: =O26*0.45 -> 10.35 | AN26: 0.7318227862 | AO26: 0.9703127509 | AP26: 749.4135605
A27: Ordi segó | B27: 89 | C27: 0.7604950037 | D27: 0.683000715 | E27: 118 | F27: 25.13276462 | G27: 75.56717545 | H27: -8.043766921 | I27: 0.3630071 | L27: 2 | M27: 0.620602 | N27: 581.504074 | O27: 32 | P27: 187 | Q27: 539 | R27: 239 | S27: 28 | T27: 63 | U27: 0.8 | V27: 3.9 | AB27: 0.03 | AC27: 11.7 | AD27: 0.6 | AG27: 123 | AH27: 0.05 | AI27: 59 | AM27: =O27*0.8 -> 25.6 | AN27: 0.7651033494 | AO27: 0.9067371975 | AP27: 521.7862692
A28: Cacau tortó | B28: 86.6 | C28: 0.9215256292 | D28: 0.8794694618 | E28: 232 | F28: 88.67087909 | G28: 140.270913 | H28: 25.81494705 | I28: 0.34659281 | L28: 2 | M28: 0.745465 | N28: 673.154895 | O28: 20 | P28: 161 | Q28: 363.86 | R28: 212.9 | S28: 47.29 | T28: 97 | U28: 2.6 | V28: 1.3 | AM28: =O28*0.75 -> 15 | AN28: 0.5829749087 | AO28: 0.9164965682 | AP28: 556.4050738
A29: Cacauet, tortó 48 | B29: 88.6 | C29: 1.194433583 | D29: 1.186516039 | E29: 524 | F29: 143.3022223 | G29: 198.101494 | H29: 261.736138 | I29: 0.2876 | L29: 2 | M29: 0.84376 | N29: 789.75936 | O29: 16 | P29: 77 | Q29: 150 | R29: 101 | S29: 26 | T29: 64 | U29: 1.8 | V29: 6.6 | W29: 3 | AB29: 0.3 | AC29: 14.5 | AD29: 1.7 | AF29: 450 | AG29: 47.5 | AH29: 0.11 | AI29: 61.5 | AM29: =O29*0.75 -> 12 | AN29: 0.7179423819 | AO29: 0.969580348 | AP29: 625.9611681
A30: Coco tortó | B30: 90 | C30: 0.9709595673 | D30: 0.9339995141 | E30: 239 | F30: 87.26903545 | G30: 138.2098434 | H30: 30.48498753 | I30: 0.2876 | L30: 2 | M30: 0.71604 | N30: 660.18888 | O30: 18 | P30: 178 | Q30: 580 | R30: 316 | S30: 78 | T30: 78 | U30: 2 | V30: 6.6 | W30: 4 | Z30: 0.6 | AC30: 20 | AF30: 500 | AG30: 60 | AI30: 70 | AM30: =O30*0.9 -> 16.2 | AN30: 0.5872269422 | AO30: 0.8846081419 | AP30: 543.5361192
A31: Colza, gra | B31: 89.9 | C31: 1.96875359 | D31: 2.026164505 | E31: 217 | F31: 41.88482236 | G31: 81.98060891 | H31: 90.24033351 | I31: 0.2959 | L31: 2 | M31: 0.84608 | N31: 798.69952 | O31: 457 | P31: 68 | Q31: 199 | R31: 116 | S31: 41 | T31: 56 | U31: 3.3 | V31: 5.3 | AM31: =O31*0.85 -> 388.45 | AN31: 0.7911253228 | AO31: 0.924083365 | AP31: 296.3737151
A32: Colza, gra semiesclovellat | B32: 90 | C32: 2.006824385 | D32: 2.066056386 | E32: 217 | F32: 41.88482236 | G32: 80.92224091 | H32: 91.89403351 | I32: 0.2959 | L32: 2 | M32: 0.84608 | N32: 798.69952 | O32: 480 | P32: 68 | Q32: 115 | R32: 84 | S32: 41 | T32: 56 | U32: 3.3 | V32: 5.3 | AM32: =O32*0.79 -> 379.2 | AN32: 0.7911253228 | AO32: 0.924083365 | AP32: 273.3737151
A33: Colza, turtó | B33: 90 | C33: 0.958005025 | D33: 0.9098593603 | E33: 418 | F33: 103.9119909 | G33: 155.8627084 | H33: 193.047004 | I33: 0.3125 | L33: 2 | M33: 0.7842 | N33: 704.9958 | O33: 26 | P33: 120 | Q33: 287 | R33: 182 | S33: 74 | T33: 101 | U33: 8.4 | V33: 12.4 | W33: 5.15 | Y33: 12.4 | Z33: 0.75 | AB33: 0.1 | AC33: 5.5 | AD33: 0.5 | AF33: 300 | AG33: 63.5 | AH33: 0.07 | AI33: 64.5 | AL33: 20 | AM33: =O33*0.8 -> 20.8 | AN33: 0.7277738088 | AO33: 0.9131864885 | AP33: 565.2052521
A34: Colza, turtó tanné, curtit | B34: 89 | C34: 1.240309081 | D34: 1.253284486 | E34: 391 | F34: 143.4249536 | G34: 193.4731611 | H34: 118.7396757 | I34: 0.3374 | L34: 2 | M34: 0.77349 | N34: 713.93127 | O34: 26 | P34: 129 | Q34: 302 | R34: 193 | S34: 79 | T34: 77 | U34: 8.4 | V34: 12.4 | Y34: 12.4 | Z34: 0.75 | AB34: 0.1 | AC34: 5.5 | AD34: 0.5 | AF34: 300 | AG34: 63.5 | AH34: 0.07 | AI34: 64.5 | AM34: =O34*0.69 -> 17.94 | AN34: 0.5952070214 | AO34: 0.9061810788 | AP34: 529.6572154
A35: Cotó, gra | B35: 92 | C35: 1.105745464 | D35: 1.027155353 | E35: 220 | F35: 48.76444907 | G35: 91.65479282 | H35: 70.58383788 | I35: 0.5034 | L35: 2 | M35: 0.64652 | N35: 618.71964 | O35: 198 | P35: 276 | Q35: 456 | R35: 354 | S35: 105 | T35: 43 | U35: 2.1 | V35: 6.4 | AM35: 188.1 | AN35: 0.7394108541 | AO35: 0.8505979247 | AP35: 363.3900279
A36: Cotó tortó dessoliat | B36: 89 | C36: 1.150192028 | D36: 1.125943813 | E36: 466 | F36: 160.9221094 | G36: 212.6445717 | H36: 184.5836527 | I36: 0.2994882 | L36: 2 | M36: 0.802196 | N36: 750.855456 | O36: 20 | P36: 127 | Q36: 232 | R36: 138 | S36: 32 | T36: 64 | U36: 4.7 | V36: 9.4 | W36: 5.2 | Y36: 15.2 | Z36: 0.4 | AM36: =O36*0.75 -> 15 | AN36: 0.6409096727 | AO36: 0.9616700558 | AP36: 563.5193635
A37: Cotó clovella | B37: 91 | C37: 0.3662081422 | D37: 0.2380788633 | E37: 81 | F37: 16.10308659 | G37: 54.6536023 | H37: -25.8351808 | I37: 0.65129486 | L37: 2 | M37: 0.323182 | N37: 309.608356 | O37: 19 | P37: 547 | Q37: 900 | R37: 697.4 | S37: 184.6 | T37: 42 | U37: 1.4 | V37: 1.1 | AM37: =O37*0.75 -> 14.25 | AN37: 0.7237543586 | AO37: 0.7196621715 | AP37: 268.232459
A38: Favó gra | B38: 86.9 | C38: 1.286607118 | D38: 1.320957789 | E38: 302 | F38: 51.43027974 | G38: 115.0698849 | H38: 130.983117 | I38: 0.1714 | L38: 2 | M38: 0.9143 | N38: 876.8137 | O38: 16 | P38: 90 | Q38: 171 | R38: 108 | S38: 24.7 | T38: 41 | U38: 1.3 | V38: 7 | W38: 1.6 | X38: 0.8 | Y38: 12 | Z38: 0.25 | AB38: 0.4 | AC38: 13.8 | AD38: 1 | AF38: 100 | AG38: 12.7 | AH38: 0.02 | AI38: 43.7 | AM38: =O38*0.8 -> 12.8 | AN38: 0.8224539482 | AO38: 0.9591817888 | AP38: 807.1947924
A39: Gira-sol, gra | B39: 93 | C39: 1.708471184 | D39: 1.695156001 | E39: 174 | F39: 24.64749869 | G39: 60.41910651 | H39: 72.58686279 | I39: 0.2627 | L39: 2 | M39: 0.74312 | N39: 714.13832 | O39: 485 | P39: 164 | Q39: 294 | R39: 200 | S39: 56 | T39: 39 | U39: 1.8 | V39: 4.8 | AM39: =O39*0.95 -> 460.75 | AN39: 0.8418449238 | AO39: 0.8956544094 | AP39: 201.6193367
A40: Gira-sol tortó esclovellat | B40: 91 | C40: 0.9910764189 | D40: 0.9439708695 | E40: 417 | F40: 80.25381508 | G40: 133.123438 | H40: 220.1112143 | I40: 0.3208 | L40: 2 | M40: 0.745917 | N40: 691.465059 | O40: 22 | P40: 176 | Q40: 299 | R40: 220 | S40: 70 | T40: 73 | U40: 3.8 | V40: 9.9 | W40: 5.5 | X40: 1.2 | Y40: 12 | Z40: 0.33 | AM40: =O40*0.75 -> 16.5 | AN40: 0.790120834 | AO40: 0.9169809263 | AP40: 581.9454468
A41: Llentia gra | B41: 88 | C41: 1.292742572 | D41: 1.330655343 | E41: 281 | F41: 49.08181296 | G41: 113.199967 | H41: 113.2253843 | I41: 0.1714 | L41: 2 | M41: 0.91963 | N41: 886.52332 | O41: 19.3 | P41: 49 | Q41: 160 | R41: 72 | S41: 3 | T41: 36 | U41: 1.1 | V41: 4.5 | AM41: =O41*0.75 -> 14.475 | AN41: 0.8216657174 | AO41: 0.9794436099 | AP41: 817.1113866
A42: Llí, gra | B42: 90.3 | C42: 1.657583747 | D42: 1.660671498 | E42: 253 | F42: 51.01194867 | G42: 92.3191443 | H42: 111.0075068 | I42: 0.3208 | L42: 2 | M42: 0.780518 | N42: 743.3653432 | O42: 362 | P42: 101.9 | Q42: 244.7 | R42: 148.4 | S42: 62 | T42: 47.6 | U42: 4.208194906 | V42: 6.755260244 | W42: 3.986710963 | X42: 0.6644518272 | Y42: 7.973421927 | Z42: 0.7751937984 | AA42: 2.990033223 | AC42: 13.28903654 | AD42: 0.2214839424 | AE42: 0.4429678848 | AF42: 163.8981174 | AG42: 32.11517165 | AI42: 49.83388704 | AM42: =O42*0.95 -> 343.9 | AN42: 0.7776919873 | AO42: 0.9069770052 | AP42: 325.121416
A43: Llinosa tortó dessoliat | B43: 89 | C43: 1.151871054 | D43: 1.134141167 | E43: 377 | F43: 129.4671117 | G43: 180.6322598 | H43: 120.744456 | I43: 0.3064061 | L43: 2 | M43: 0.803904 | N43: 752.454144 | O43: 58 | P43: 118 | Q43: 236 | R43: 149 | S43: 88 | T43: 64 | U43: 4.7 | V43: 9.4 | W43: 6.1 | Y43: 14 | Z43: 1.3 | AB43: 0.6 | AC43: 21 | AD43: 0.6 | AF43: 250 | AG43: 59 | AH43: 0.5 | AI43: 73 | AL43: 9 | AM43: =O43*0.75 -> 43.5 | AN43: 0.6169566624 | AO43: 0.8965410847 | AP43: 550.0468057
A44: Margalló tortó (palmiste) | B44: 90 | C44: 0.8319475036 | D44: 0.7632996493 | E44: 206 | F44: 83.76805509 | G44: 136.5208369 | H44: -3.926221648 | I44: 0.4287 | L44: 2 | M44: 0.73056 | N44: 699.14592 | O44: 19 | P44: 167 | Q44: 632 | R44: 241 | S44: 103 | T44: 43 | U44: 3.1 | V44: 6.7 | AM44: =O44*0.9 -> 17.1 | AN44: 0.5228718322 | AO44: 0.8522679473 | AP44: 581.8575174
A45: Mongeta gra | B45: 88 | C45: 1.269417567 | D45: 1.306008103 | E45: 257 | F45: 44.57202968 | G45: 108.5638422 | H45: 93.98279293 | I45: 0.1714 | L45: 2 | M45: 0.91937 | N45: 878.91772 | O45: 19 | P45: 51 | Q45: 162 | R45: 74 | S45: 3 | T45: 44 | U45: 1.3 | V45: 5.1 | W45: 1.6 | Y45: 14 | Z45: 0.4 | AM45: =O45*0.8 -> 15.2 | AN45: 0.8221354136 | AO45: 0.9750789946 | AP45: 814.2065213
A46: Pèsol gra | B46: 85.7 | C46: 1.262578618 | D46: 1.297789954 | E46: 259 | F46: 44.91173193 | G46: 108.9957771 | H46: 95.45867945 | I46: 0.1714 | L46: 2 | M46: 0.91768 | N46: 877.30208 | O46: 15 | P46: 64 | Q46: 162 | R46: 74 | S46: 3 | T46: 44 | U46: 0.9 | V46: 4.6 | W46: 1.45 | Y46: 11 | Z46: 0.3 | AB46: 0.07 | AC46: 7.2 | AD46: 1.1 | AG46: 8 | AH46: 0.2 | AI46: 37 | AM46: =O46*0.8 -> 12 | AN46: 0.8222202176 | AO46: 0.9753885851 | AP46: 816.2571164
A47: Soja, gra extrussionat | B47: 88 | C47: 1.485485602 | D47: 1.497390722 | E47: 402 | F47: 188.4323551 | G47: 238.0406285 | H47: 109.2870728 | I47: 0.3208 | L47: 2 | M47: 0.97179 | N47: 912.51081 | O47: 213 | P47: 74 | Q47: 146 | R47: 92 | S47: 7 | T47: 61 | U47: 2.8 | V47: 6.4 | AM47: =O47*0.95 -> 202.35 | AN47: 0.526666784 | AO47: 0.9902901084 | AP47: 509.2308572
A48: Soja, gra torrat | B48: 88.6 | C48: 1.490185728 | D48: 1.502445871 | E48: 397.3 | F48: 133.307895 | G48: 185.6891829 | H48: 158.2262376 | I48: 0.2959 | L48: 2 | M48: 0.975779 | N48: 918.5007727 | O48: 216.7 | P48: 63.2 | Q48: 132 | R48: 77.78 | S48: 13.5 | T48: 58.7 | U48: 3.611738149 | V48: 5.981941309 | W48: 2.595936795 | X48: 0.5643340858 | Y48: 20.76749436 | Z48: 0.9029345372 | AA48: 3.16027088 | AC48: 38.37471783 | AD48: 4.514672686 | AF48: 161.3995485 | AG48: 31.6027088 | AH48: 0.316027088 | AI48: 45.14672686 | AM48: =O48*0.95 -> 205.865 | AN48: 0.6587213001 | AO48: 0.9831688769 | AP48: 566.2107452
A49: Soja tortó 44 | B49: 87.2 | C49: 1.165625863 | D49: 1.159793832 | E49: 488 | F49: 153.419998 | G49: 207.0695265 | H49: 219.1726116 | I49: 0.2781056 | L49: 2 | M49: 0.849655 | N49: 779.133635 | O49: 22 | P49: 84 | Q49: 163 | R49: 104 | S49: 8 | T49: 83 | U49: 3.4 | V49: 7 | W49: 2.7 | Y49: 20 | Z49: 1.95 | AB49: 0.3 | AC49: 17.1 | AD49: 2.3 | AF49: 200 | AG49: 43.7 | AH49: 0.2 | AI49: 54.6 | AL49: 7 | AM49: =O49*0.75 -> 16.5 | AN49: 0.6819996035 | AO49: 0.9886316028 | AP49: 601.9494415
A50: Soja tortó 46 | B50: 87.2 | C50: 1.204239972 | D50: 1.205333606 | E50: 505 | F50: 160.0692099 | G50: 214.4558798 | H50: 229.0708283 | I50: 0.2686721 | L50: 2 | M50: 0.863895 | N50: 799.102875 | O50: 20 | P50: 72 | Q50: 143 | R50: 89 | S50: 7 | T50: 75 | U50: 3.4 | V50: 7.4 | W50: 2.7 | Y50: 20 | Z50: 1.95 | AB50: 0.3 | AC50: 17.1 | AD50: 2.3 | AF50: 200 | AG50: 43.7 | AH50: 0.2 | AI50: 54.6 | AM50: =O50*0.75 -> 15 | AN50: 0.6799548883 | AO50: 0.99038767 | AP50: 617.4800936
A51: Soja tortó 48 | B51: 88.3 | C51: 1.223810674 | D51: 1.22687166 | E51: 520 | F51: 165.0816182 | G51: 219.3151576 | H51: 239.0600948 | I51: 0.2674143 | L51: 2 | M51: 0.867341 | N51: 804.025107 | O51: 23 | P51: 70 | Q51: 140 | R51: 87 | S51: 7 | T51: 73 | U51: 3.4 | V51: 7.8 | W51: 2.7 | Y51: 19.7 | Z51: 1.95 | AB51: 0.3 | AC51: 17.1 | AD51: 2.3 | AF51: 200 | AG51: 43.7 | AH51: 0.2 | AI51: 54.6 | AM51: =O51*0.75 -> 17.25 | AN51: 0.6794639687 | AO51: 0.9904179858 | AP51: 614.3463707
A52: Soja tortó 50 | B52: 87.8 | C52: 1.225744301 | D52: 1.225565004 | E52: 544 | F52: 172.4045434 | G52: 225.7154558 | H52: 256.1016993 | I52: 0.2498051 | L52: 2 | M52: 0.862027 | N52: 797.374975 | O52: 28 | P52: 77 | Q52: 102 | R52: 59 | S52: 6 | T52: 75 | U52: 3 | V52: 7.8 | W52: 2.7 | Y52: 19.7 | Z52: 1.95 | AB52: 0.3 | AC52: 17.1 | AD52: 2.3 | AF52: 200 | AG52: 43.7 | AH52: 0.2 | AI52: 54.6 | AM52: =O52*0.75 -> 21 | AN52: 0.6801163265 | AO52: 0.9907355167 | AP52: 595.3582566
A53: Soja tortó 48 curtit "tanne" | B53: 88.8 | C53: 1.223810674 | D53: 1.22687166 | E53: 520 | F53: 165.0816182 | G53: 219.3151576 | H53: 239.0600948 | I53: 0.2674143 | L53: 2 | M53: 0.867341 | N53: 804.025107 | O53: 23 | P53: 70 | Q53: 140 | R53: 87 | S53: 7 | T53: 73 | U53: 3.4 | V53: 7.8 | AB53: 0.3 | AC53: 17.1 | AD53: 2.3 | AF53: 200 | AG53: 43.7 | AH53: 0.2 | AI53: 54.6 | AM53: =O53*0.66 -> 15.18 | AN53: 0.6794639687 | AO53: 0.9904179858 | AP53: 614.3463707
A54: Llobí (tramús) gra | B54: 86.7 | C54: 1.49857485 | D54: 1.544346092 | E54: 399 | F54: 69.09881582 | G54: 127.2670334 | H54: 218.10216 | I54: 0.1714 | L54: 2 | M54: 0.90507 | N54: 864.34185 | O54: 104 | P54: 161 | Q54: 229 | R54: 172 | S54: 17 | T54: 45 | U54: 2 | V54: 4.6 | W54: 2.5 | Y54: 9.5 | Z54: 0.55 | AM54: =O54*0.9 -> 93.6 | AN54: 0.822898728 | AO54: 0.9778585299 | AP54: 689.6784425
A55: Llobí (tramús) extrussionat | B55: 88 | C55: 1.52751288 | D55: 1.578192665 | E55: 406 | F55: 69.23209069 | G55: 127.7145253 | H55: 223.2811959 | I55: 0.1714 | L55: 2 | M55: 0.91027 | N55: 877.50028 | O55: 109 | P55: 121 | Q55: 214 | R55: 175 | S55: 34.4 | T55: 36 | U55: 2 | V55: 4.5 | W55: 1.7 | X55: 0.23 | Y55: 10 | Z55: 0.11 | AM55: =O55*0.77 -> 83.93 | AN55: 0.8224029302 | AO55: 0.9601644388 | AP55: 696.3958697
A56: Polpes (cítrics) ensitjades | B56: 21 | C56: 1.224764853 | D56: 1.238763409 | E56: 73 | F56: 20.57651646 | G56: 79.53725613 | H56: -58.87615574 | I56: 0.2212 | L56: 2 | M56: 0.87228 | N56: 824.3046 | O56: 97 | P56: 156 | Q56: 356.65 | R56: 206.62 | S56: 44.65 | T56: 55 | U56: 20.4 | V56: 1.5 | W56: 1.6 | Y56: 6.2 | Z56: 0.9 | AA56: 0.2 | AB56: 0.16 | AC56: 6 | AF56: 160 | AG56: 7 | AI56: 16 | AM56: =O56*0.6 -> 58.2 | AN56: 0.6807836781 | AO56: 0.883006504 | AP56: 704.0018085
A57: Polpes (cítrics) | B57: 90 | C57: 1.09457765 | D57: 1.103551588 | E57: 70 | F57: 20.49453097 | G57: 82.57976854 | H57: -65.70818372 | I57: 0.2212 | L57: 2 | M57: 0.87931 | N57: 822.15485 | O57: 28 | P57: 137 | Q57: 223 | R57: 158 | S57: 14 | T57: 65 | U57: 23 | V57: 1.3 | AM57: =O57*0.6 -> 16.8 | AN57: 0.6799461392 | AO57: 0.9147804468 | AP57: 771.7510797
A58: Garrofer garrofa | B58: 87 | C58: 0.843494905 | D58: 0.8273952756 | E58: 58 | F58: 20.57803675 | G58: 81.08159627 | H58: -76.25681175 | I58: 0.288174289 | L58: 2 | M58: 0.8014563863 | N58: 771.8025 | O58: 11 | P58: 87 | Q58: 257.16 | R58: 120.01 | S58: 23.83 | T58: 37 | U58: 1.5 | V58: 0.6 | AM58: =O58*0.9 -> 9.9 | AN58: 0.6052595731 | AO58: 0.8988026382 | AP58: 737.9075552
A59: Garrofer polpa deshidratada sense grana, IAMZ | B59: 86 | C59: 0.8175571336 | D59: 0.8010099087 | E59: 56 | F59: 19.88740459 | G59: 81.02326077 | H59: -78.36477527 | I59: 0.286199543 | L59: 2 | M59: 0.8034925234 | N59: 773.7633 | O59: 0.1 | P59: 84.5 | Q59: 253.55 | R59: 116.87 | S59: 23.07 | T59: 37 | U59: 1.5 | V59: 0.6 | AM59: =O59*0.8 -> 0.08 | AN59: 0.6049783161 | AO59: 0.8990195713 | AP59: 751.5420857
A60: Oliva molinada "orujo" | B60: 89 | C60: 0.3555684594 | D60: 0.2315284959 | E60: 111 | F60: 37.77367179 | G60: 72.19608588 | H60: -21.36502202 | I60: 0.5864 | L60: 2 | M60: 0.33429 | N60: 306.87822 | O60: 74 | P60: 339 | Q60: 620.51 | R60: 456.32 | S60: 108.36 | T60: 82 | U60: 14 | V60: 3.4 | AM60: =O60*0.74 -> 54.76 | AN60: 0.5799513971 | AO60: 0.8101523183 | AP60: 186.2528251
A61: Oliva polpa sense extracció, IAMZ | B61: 68.5 | C61: 0.5285256608 | D61: 0.4118821932 | E61: 114 | F61: 44.70328847 | G61: 84.48223093 | H61: -28.4745976 | I61: 0.5864 | L61: 2 | M61: 0.458 | N61: 425.024 | O61: 74 | P61: 200 | Q61: 341 | R61: 295 | S61: 60.21 | T61: 72 | U61: 11.9 | V61: 1.6 | AM61: =O61*0.74 -> 54.76 | AN61: 0.5473115864 | AO61: 0.8662340312 | AP61: 299.4175209
A62: Oliva polpa d'extracció ("orujo"), IAMZ | B62: 87.6 | C62: 0.2835820822 | D62: 0.1630785602 | E62: 66 | F62: 20.21048157 | G62: 53.34965943 | H62: -38.25996541 | I62: 0.5864 | L62: 2 | M62: 0.26932 | N62: 252.89148 | O62: 74 | P62: 412 | Q62: 725.77 | R62: 527.95 | S62: 134.64 | T62: 61 | U62: 5.6 | V62: 0.9 | AM62: =O62*0.74 -> 54.76 | AN62: 0.6005460193 | AO62: 0.7665949833 | AP62: 152.5275173
A63: Patata-ITEB | B63: 13 | C63: 1.224039877 | D63: 1.270348111 | E63: 100 | F63: 34.23948908 | G63: 100.5831692 | H63: -56.86200025 | I63: 0.1216 | L63: 2 | M63: 0.9445 | N63: 901.9975 | O63: 0.8 | P63: 30 | Q63: 174.97 | R63: 48.46 | S63: 7.28 | T63: 45 | U63: 1 | V63: 2 | W63: 1 | X63: 22 | AM63: =O63*0.8 -> 0.64 | AN63: 0.6332974699 | AO63: 0.9337129217 | AP63: 864.527247
A64: Patata polpa-ITEB | B64: 17 | C64: 1.047562058 | D64: 1.040325904 | E64: 50 | F64: 15.36772122 | G64: 77.36979178 | H64: -80.57823525 | I64: 0.1216 | L64: 2 | M64: 0.8101 | N64: 789.8475 | O64: 2.5 | P64: 150 | Q64: 348 | R64: 199.09 | S64: 43.7 | T64: 25 | U64: 5 | V64: 0.5 | W64: 0.8 | X64: 6 | AM64: =O64*0.8 -> 2 | AN64: 0.6489216562 | AO64: 0.8754582267 | AP64: 769.7935828
A65: Poma deixalles | B65: 22 | C65: 1.10018865 | D65: 1.102760433 | E65: 23 | F65: 8.795543217 | G65: 71.56469958 | H65: -100.0868068 | I65: 0.4868 | L65: 2 | M65: 0.82908 | N65: 813.32748 | O65: 18 | P65: 68 | Q65: 229.76 | R65: 96.16 | S65: 18 | T65: 19 | U65: 0.6 | V65: 0.6 | AM65: =O65*0.9 -> 16.2 | AN65: 0.5724362337 | AO65: 0.8944044201 | AP65: 785.4935134
A66: Poma molinada ("marc") deshidratada | B66: 94.1 | C66: 0.5535459391 | D66: 0.4298652377 | E66: 79 | F66: 22.41772409 | G66: 65.61179369 | H66: -39.82073375 | I66: 0.4868 | L66: 2 | M66: 0.44368 | N66: 435.25008 | O66: 39 | P66: 478 | Q66: 354 | R66: 610.79 | S66: 121 | T66: 19 | U66: 1.9 | V66: 1.6 | AM66: 35.1 | AN66: 0.6412637776 | AO66: 0.7910231575 | AP66: 367.9099184
A67: Poma residu deshidratat, NRC | B67: 89 | C67: 1.017592193 | D67: 0.9832011689 | E67: 49 | F67: 17.45620144 | G67: 73.71511167 | H67: -76.13454724 | I67: 0.4868 | L67: 2 | M67: 0.7332 | N67: 717.0696 | O67: 51 | P67: 170 | Q67: 376.83 | R67: 260 | S67: 50.24 | T67: 22 | U67: 1.3 | V67: 1.1 | W67: 0.7 | Y67: 4.6 | Z67: 1.2 | AA67: 0.2 | AC67: 10 | AF67: 300 | AG67: 7 | AM67: 45.9 | AN67: =1-(F67/(E67*AO67)) -> 0.5885548453 | AO67: =(88.3+0.0371*E67-3.7*(10^-5)*(E67^2)-0.107*S67-0.00313*(100-N67))/100 -> 0.8658481085 | AP67: =N67-E67*(1-AN67)-O67 -> 645.9087874
A68: Raïm vinassa sense pinyols | B68: 67 | C68: 0.6608050597 | D68: 0.5617156148 | E68: 172 | F68: 20.01576435 | G68: 59.87298187 | H68: -4.236902376 | I68: 0.5864 | L68: 2 | M68: 0.54433 | N68: 483.36504 | O68: 97 | P68: 103 | Q68: 777 | R68: 685 | S68: 536 | T68: 112 | U68: 6 | V68: 2.5 | AM68: =O68*0.75 -> 72.75 | AN68: 0.6891352988 | AO68: 0.3743452458 | AP68: 332.8963114
A69: Raïm polpa | B69: 90 | C69: 0.3048901197 | D69: 0.1865548158 | E69: 120 | F69: 11.60850895 | G69: 48.20840292 | H69: -20.98733433 | I69: 0.5864 | L69: 2 | M69: 0.30492 | N69: 292.41828 | O69: 7 | P69: 372 | Q69: 754 | R69: 653 | S69: 499 | T69: 41 | U69: 8 | V69: 4 | AM69: =O69*0.75 -> 5.25 | AN69: 0.754650443 | AO69: 0.3942846922 | AP69: 255.9763332
A70: Raïm tortó de pinyols | B70: 89 | C70: 0.1623041941 | D70: 0.0678723051 | E70: 112 | F70: -1.654010677 | G70: 29.6262119 | H70: -16.03534777 | I70: 0.5864 | L70: 2 | M70: 0.18833 | N70: 181.17346 | O70: 16 | P70: 503 | Q70: 847 | R70: 751 | S70: 644 | T70: 38 | U70: 6.6 | V70: 1.3 | AM70: =O70*0.75 -> 12 | AN70: 1.063280888 | AO70: 0.2333714493 | AP70: 172.2609194
A71: Remolatxa polpes ensitjades | B71: 22 | C71: 1.00766597 | D71: 1.00149028 | E71: 98 | F71: 33.63126047 | G71: 93.73194347 | H71: -53.22731718 | I71: 0.2876 | L71: 2 | M71: 0.85378 | N71: 778.64736 | O71: 9 | P71: 206 | Q71: 428.74 | R71: 269.38 | S71: 62.22 | T71: 88 | U71: 13 | V71: 1 | AB71: 0.1 | AC71: 4.6 | AD71: 0.3 | AG71: 52.4 | AH71: 0.03 | AI71: 9.6 | AM71: =O71*0.5 -> 4.5 | AN71: 0.6057580172 | AO71: 0.8704707824 | AP71: 731.0116457
A72: Remolatxa polpes deshidratades | B72: 90 | C72: 1.025471629 | D72: 1.019108024 | E72: 98 | F72: 34.16981377 | G72: 94.98664694 | H72: -54.34630184 | I72: 0.2876 | L72: 2 | M72: 0.855001 | N72: 794.2104289 | O72: 9 | P72: 202.7 | Q72: 507.9 | R72: 302.1 | S72: 55.1 | T72: 71.1 | U72: 10.6 | V72: 1 | W72: 2.233333333 | X72: 0.4 | Y72: 4 | Z72: 2.233333333 | AA72: 2.2 | AB72: 0.09333333333 | AC72: 7.733333333 | AD72: 0.3 | AF72: 243 | AG72: 47.6 | AH72: 0.03 | AI72: 9.733333333 | AK72: 0.6 | AM72: 4 | AN72: 0.6031402548 | AO72: 0.8785763064 | AP72: 746.3181739
A73: Melassa Remolatxa | B73: 76 | C73: 1.184004733 | D73: 1.207089514 | E73: 146 | F73: 10.22 | G73: 76.74012851 | H73: 17.6422992 | I73: -0.7084 | L73: 3 | M73: 0.89 | N73: 878.252 | O73: 2 | P73: 0 | Q73: 0 | R73: 0 | S73: 0 | T73: 13.2 | U73: 3.5 | V73: 0.5 | W73: 16.5 | Y73: 55 | Z73: 12.5 | AM73: 2 | AN73: 0.93 | AO73: 1 | AP73: 866.032
A74: Melassa canya | B74: 75 | C74: 0.8610639099 | D74: 0.8391616233 | E74: 45 | F74: 3.15 | G74: 61.811424 | H74: -64.008475 | I74: -1.5384 | L74: 4 | M74: 0.8 | N74: 710.4 | O74: 12 | P74: 0 | Q74: 0 | R74: 0 | S74: 0 | T74: 112 | U74: 9.3 | V74: 1.1 | W74: 4.7 | X74: 27 | Y74: 33 | Z74: 1.7 | AM74: 12 | AN74: 0.93 | AO74: 1 | AP74: 695.25
A75: Grassa vegetal, mantega de porc (tots els tipus) | B75: 99.9 | C75: 3.61 | D75: 3.94 | E75: 1e-07 | F75: 1e-07 | G75: 1e-07 | H75: -14 | I75: 0.25 | L75: 2 | M75: 0.9 | N75: 1e-07 | O75: 999 | P75: 1e-07 | Q75: 1e-07 | R75: 1e-07 | S75: 1e-07 | T75: 1e-07 | U75: 1e-07 | V75: 1e-07 | W75: 1e-07 | X75: 1e-07 | Y75: 1e-07 | Z75: 1e-07 | AA75: 1e-07 | AB75: 1e-07 | AC75: 1e-07 | AD75: 1e-07 | AE75: 1e-07 | AF75: 1e-07 | AG75: 1e-07 | AH75: 1e-07 | AI75: 1e-07 | AJ75: 1300 | AK75: 1e-07 | AL75: 95 | AM75: =O75 -> 999 | AN75: 0 | AO75: 0 | AP75: 0
A76: Llevat cerveseria | B76: 93.3 | C76: 1.18 | D76: 1.17 | E76: 476 | F76: 87 | G76: 143 | H76: 278 | I76: 0.15 | L76: 2 | M76: 0.84 | N76: 756 | O76: 40 | P76: 21 | Q76: 88 | R76: 25 | S76: 7 | T76: 32 | U76: 3 | V76: 13.5 | W76: 2.4 | AM76: 32 | AN76: =1-(F76/(E76*AO76)) -> 0.815157707 | AO76: =(88.3+0.0371*E76-3.7*(10^-5)*(E76^2)-0.107*S76-0.00313*(100-N76))/100 -> 0.98880568 | AP76: =N76-E76*(1-AN76)-O76 -> 628.0150685
A77: Urea | B77: 99 | C77: 0.26 | D77: 0.2 | E77: 2870 | F77: 1e-06 | G77: 71 | H77: 2557 | I77: 0.23 | L77: 2 | M77: 0.99 | N77: 1e-06 | O77: 1e-06 | P77: 1e-06 | Q77: 1e-06 | R77: 1e-06 | S77: 1e-06 | T77: 1e-06 | U77: 1e-06 | V77: 1e-06 | W77: 1e-06 | X77: 1e-06 | Y77: 1e-06 | Z77: 1e-06 | AA77: 1e-06 | AB77: 1e-06 | AC77: 1e-06 | AD77: 1e-06 | AE77: 1e-06 | AF77: 1e-06 | AG77: 1e-06 | AH77: 1e-06 | AI77: 1e-06 | AJ77: 1e-06 | AK77: 1e-06 | AL77: 1e-06 | AM77: 0 | AN77: 0 | AO77: 0 | AP77: 0
A78: Residu pa deshidratat, NRC | B78: 92 | C78: 1.096141567 | D78: 1.054875419 | E78: 107 | F78: 22.01612961 | G78: 70.4665579 | H78: -10.7237942 | I78: 0.294457 | L78: 2 | M78: 0.714218 | N78: 628.1690154 | O78: 127 | P78: 130 | Q78: 180 | R78: 130 | S78: 10 | T78: 44 | U78: 1.4 | V78: 2.6 | W78: 2.6 | X78: 16.1 | Y78: 5.3 | Z78: 12.4 | AA78: 0.2 | AB78: 1.05 | AC78: 5 | AF78: 31 | AG78: 71 | AI78: 16 | AJ78: 2000 | AL78: 45 | AN78: =1-(F78/(E78*AO78)) -> 0.7773884271 | AO78: =(88.3+0.0371*E78-3.7*(10^-5)*(E78^2)-0.107*S78-0.00313*(100-N78))/100 -> 0.9242925602 | AP78: =N78-E78*(1-AN78)-O78 -> 477.3495771
A79: Mandioca | B79: 85 | C79: 1.142097463 | D79: 1.174454355 | E79: 31 | F79: 10.10542253 | G79: 75.49002249 | H79: -97.45343744 | I79: 0.1216 | L79: 2 | M79: 0.91762 | N79: 861.64518 | O79: 8.2 | P79: 54 | Q79: 118 | R79: 59 | S79: 14.01 | T79: 61 | U79: 2.5 | V79: 1 | W79: 0.9 | Y79: 7.5 | Z79: 0.35 | AC79: 2 | AF79: 50 | AG79: 5 | AI79: 30 | AM79: =O79*0.8 -> 6.56 | AN79: =1-(F79/(E79*AO79)) -> 0.638999494 | AO79: =(88.3+0.0371*E79-3.7*(10^-5)*(E79^2)-0.107*S79-0.00313*(100-N79))/100 -> 0.9029942241 | AP79: =N79-E79*(1-AN79)-O79 -> 842.2541643
A80: Alfals deshidratat i aglomerats | B80: 90.2 | C80: 0.7398701174 | D80: 0.6738447078 | E80: 233 | F80: 68.64631679 | G80: 116.147103 | H80: 51.38002158 | I80: 0.3789 | L80: 2 | M80: 0.6658 | N80: 579.9118 | O80: 34 | P80: 237 | Q80: 405 | R80: 280 | S80: 76 | T80: 129 | U80: 24.1 | V80: 3.2 | AM80: =O80*0.5 -> 17 | AN80: =1-(F80/(E80*AO80)) -> 0.6663643659 | AO80: =(88.3+0.0371*E80-3.7*(10^-5)*(E80^2)-0.107*S80-0.00313*(100-N80))/100 -> 0.8830573093 | AP80: =N80-E80*(1-AN80)-O80 -> 468.1746973
A81: Graminies deshidratades i aglomerades | B81: 91 | C81: 0.8289959418 | D81: 0.7851460594 | E81: 105 | F81: 26.82240135 | G81: 80.52058238 | H81: -29.85340787 | I81: 0.3818741 | L81: 2 | M81: 0.72207 | N81: 649.14093 | O81: 25 | P81: 238 | Q81: 508 | R81: 269 | S81: 73.08 | T81: 101 | U81: 4.3 | V81: 2.7 | AM81: =O81*0.5 -> 12.5 | AN81: =1-(F81/(E81*AO81)) -> 0.7018778114 | AO81: =(88.3+0.0371*E81-3.7*(10^-5)*(E81^2)-0.107*S81-0.00313*(100-N81))/100 -> 0.8568682611 | AP81: =N81-E81*(1-AN81)-O81 -> 592.8381002

Sheet Taula Minerals-aa
A1: INGREDIENTS | B1: MS | C1: UFL | D1: UFV | E1: MNT_PB | F1: PDIA | G1: PDI | H1: BPR | I1: UEL | J1: UEB | K1: UEM | L1: NI ref | M1: dMO | N1: MOD_TDN | O1: EE | P1: FB | Q1: NDF | R1: ADF | S1: Lignina | T1: cendres | U1: Ca | V1: P | W1: Mg | X1: Cl | Y1: K | Z1: Na | AA1: S | AB1: Co | AC1: Cu | AD1: Mo | AE1: Iode | AF1: Fe | AG1: Mn | AH1: Se | AI1: Zn | AJ1: Vit A | AK1: Vit D | AL1: Vit E | AM1: AG | AN1: DT_N | AO1: dr | AP1: MOF
A3: Bicarbonat sòdic | B3: 99.7 | Z3: 270
A4: Carbonat càlcic | B4: 98 | T4: 955 | U4: 383 | V4: 0.2 | W4: 14 | X4: 0.2 | Y4: 0.7 | Z4: 0.7 | AA4: 0.7 | AC4: 12 | AF4: 620
A5: Carbonat de cobalt | B5: 100 | AB5: 49
A6: Carbonat de manganès | B6: 100 | AG6: 47
A7: Carbonat de zinc | B7: 100 | AI7: 52
A8: Clorur potàssic | B8: 100 | Y8: 52
A9: Clorur sòdic | B9: 98 | X9: 570 | Z9: 360
A10: Farina d’ossos | B10: 100 | U10: 29.5 | V10: 15
A11: Fosfat bicàlcic | B11: 98.8 | T11: 836 | U11: 244 | V11: 180 | W11: 5 | X11: 0.4 | Y11: 1.2 | Z11: 0.8 | AA11: 11 | AC11: 15 | AF11: 7800
A12: Fosfat monocàlcic | B12: 98.8 | U12: 180 | V12: 228
A13: Fosfat monocàlcic | B13: 99 | U13: 175 | V13: 219 | W13: 8 | X13: 1.5 | Y13: 1.5 | Z13: 1 | AA13: 9 | AC13: 8 | AF13: 4000
A14: Fosfat sòdic | B14: 100 | V14: 20 | Z14: 19
A15: Fosfòric | B15: 100 | V15: 31.6
A16: Iodur potàssic | B16: 100 | AE16: 76
A17: Lisina-L (HCl) | B17: 98.5 | E17: 950 | T17: 200 | U17: 0.4 | X17: 194 | Z17: 0.3 | AL17: 780
A18: Metionina-DL | B18: 99.7 | E18: 585 | T18: 5 | U18: 0.2
A19: Òxid de coure | B19: 100 | AC19: 80
A20: Òxid de manganès | B20: 100 | AG20: 77
A21: Òxid de zinc | B21: 100 | AI21: 80
A22: Òxid magnèsic | B22: 100 | U22: 30 | W22: 510
A23: Sulfat de cobalt | B23: 100 | AB23: 22
A24: Sulfat de coure | B24: 100 | AC24: 25
A25: Sulfat de zinc | B25: 100 | AI25: 23
A26: Sulfat magnèsic | B26: 100 | W26: 10 | AA26: 13
A27: Sulfat sòdic | B27: 100 | Z27: 32 | AA27: 22
A28: Triptòfan-L | B28: 99.3 | E28: 851 | T28: 10

Sheet CàlculsOVI (hidden)
D1: =OFFSET('Taula Farratges'!$A$1,0,D2,1,1) -> MS % | E1: =OFFSET('Taula Farratges'!$A$1,0,E2,1,1) -> UEM | F1: =OFFSET('Taula Farratges'!$A$1,0,F2,1,1) -> UFL | G1: =OFFSET('Taula Farratges'!$A$1,0,G2,1,1) -> PDI | H1: =OFFSET('Taula Farratges'!$A$1,0,H2,1,1) -> BPR | I1: =OFFSET('Taula Farratges'!$A$1,0,I2,1,1) -> Ca | J1: =OFFSET('Taula Farratges'!$A$1,0,J2,1,1) -> P | K1: =OFFSET('Taula Farratges'!$A$1,0,K2,1,1) -> Mg | L1: =OFFSET('Taula Farratges'!$A$1,0,L2,1,1) -> K | M1: =OFFSET('Taula Farratges'!$A$1,0,M2,1,1) -> Na | N1: =OFFSET('Taula Farratges'!$A$1,0,N2,1,1) -> S | O1: =OFFSET('Taula Farratges'!$A$1,0,O2,1,1) -> Cl | P1: =OFFSET('Taula Farratges'!$A$1,0,P2,1,1) -> Fe | Q1: =OFFSET('Taula Farratges'!$A$1,0,Q2,1,1) -> Co | R1: =OFFSET('Taula Farratges'!$A$1,0,R2,1,1) -> Cu | S1: =OFFSET('Taula Farratges'!$A$1,0,S2,1,1) -> Mn | T1: =OFFSET('Taula Farratges'!$A$1,0,T2,1,1) -> Zn | U1: =OFFSET('Taula Farratges'!$A$1,0,U2,1,1) -> Iode | V1: =OFFSET('Taula Farratges'!$A$1,0,V2,1,1) -> Se | W1: =OFFSET('Taula Farratges'!$A$1,0,W2,1,1) -> Vit A | X1: =OFFSET('Taula Farratges'!$A$1,0,X2,1,1) -> Vit D | Y1: =OFFSET('Taula Farratges'!$A$1,0,Y2,1,1) -> Vit E | Z1: =OFFSET('Taula Farratges'!$A$1,0,Z2,1,1) -> AG | AA1: =OFFSET('Taula Farratges'!$A$1,0,AA2,1,1) -> DT_N | AB1: =OFFSET('Taula Farratges'!$A$1,0,AB2,1,1) -> PF | AC1: =OFFSET('Taula Farratges'!$A$1,0,AC2,1,1) -> MNT_PB | AD1: =OFFSET('Taula Farratges'!$A$1,0,AD2,1,1) -> PDIA | AE1: =OFFSET('Taula Farratges'!$A$1,0,AE2,1,1) -> NI ref | AF1: =OFFSET('Taula Farratges'!$A$1,0,AF2,1,1) -> dMO | AG1: =OFFSET('Taula Farratges'!$A$1,0,AG2,1,1) -> MOD | AH1: =OFFSET('Taula Farratges'!$A$1,0,AH2,1,1) -> EE | AI1: =OFFSET('Taula Farratges'!$A$1,0,AI2,1,1) -> FB | AJ1: =OFFSET('Taula Farratges'!$A$1,0,AJ2,1,1) -> NDF | AK1: =OFFSET('Taula Farratges'!$A$1,0,AK2,1,1) -> ADF | AL1: =OFFSET('Taula Farratges'!$A$1,0,AL2,1,1) -> Lignina | AM1: =OFFSET('Taula Farratges'!$A$1,0,AM2,1,1) -> cendres | AN1: =OFFSET('Taula Farratges'!$A$1,0,AN2,1,1) -> Mo | AO1: =OFFSET('Taula Farratges'!$A$1,0,AO2,1,1) -> MOF
A2: TIPUS | B2: INGREDIENTS UTILITZATS | C2: Nº | D2: 1 | E2: 10 | F2: =F30+1 -> 2 | G2: 6 | H2: 7 | I2: 20 | J2: 21 | K2: 22 | L2: 24 | M2: 25 | N2: 26 | O2: 23 | P2: 31 | Q2: 27 | R2: 28 | S2: 32 | T2: 34 | U2: 30 | V2: 33 | W2: 35 | X2: 36 | Y2: 37 | Z2: 38 | AA2: 39 | AB2: 40 | AC2: 4 | AD2: 5 | AE2: 11 | AF2: 12 | AG2: 13 | AH2: 14 | AI2: 15 | AJ2: 16 | AK2: 17 | AL2: 18 | AM2: 19 | AN2: 29 | AO2: 41 | AP2: UEM | AQ2: UFL | AR2: PDI | AS2: BPR | AT2: NI ref | AU2: Ca | AV2: P | AW2: Mg | AX2: K | AY2: Na | AZ2: S | BA2: Cl | BB2: Fe | BC2: Co | BD2: Cu | BE2: Mn | BF2: Zn | BG2: Iode | BH2: Se | BI2: Vit A | BJ2: Vit D | BK2: Vit E | BL2: AG | BM2: MNT_PB | BN2: PDIA | BO2: dMO | BP2: MOD | BQ2: EE | BR2: FB | BS2: NDF | BT2: ADF | BU2: Lignina | BV2: cendres | BW2: Mo | BX2: DT_N | BY2: MOF
A3: FARRATGES | B3: =IF(OFFSET('Taula Farratges'!$A$1,C3,0,1,1)=0,"",OFFSET('Taula Farratges'!$A$1,C3,0,1,1)) -> VERD Enclova Inici Floració, 2n any | C3: 31 | D3: =OFFSET('Taula Farratges'!$A$1,$C3,$D$2,1,1) -> 15.37 | E3: =OFFSET('Taula Farratges'!$A$1,$C3,$E$2,1,1) -> 1.073743818 | F3: =OFFSET('Taula Farratges'!$A$1,$C3,$F$2,1,1) -> 0.8688196702 | G3: =OFFSET('Taula Farratges'!$A$1,$C3,$G$2,1,1) -> 80.22335033 | H3: =OFFSET('Taula Farratges'!$A$1,$C3,$H$2,1,1) -> 18.72117137 | I3: =OFFSET('Taula Farratges'!$A$1,$C3,$I$2,1,1) -> 0 | J3: =OFFSET('Taula Farratges'!$A$1,$C3,$J$2,1,1) -> 0 | K3: =OFFSET('Taula Farratges'!$A$1,$C3,$K$2,1,1) -> 0 | L3: =OFFSET('Taula Farratges'!$A$1,$C3,$L$2,1,1) -> 0 | M3: =OFFSET('Taula Farratges'!$A$1,$C3,$M$2,1,1) -> 0 | N3: =OFFSET('Taula Farratges'!$A$1,$C3,$N$2,1,1) -> 0 | O3: =OFFSET('Taula Farratges'!$A$1,$C3,$O$2,1,1) -> 0 | P3: =OFFSET('Taula Farratges'!$A$1,$C3,$P$2,1,1) -> 0 | Q3: =OFFSET('Taula Farratges'!$A$1,$C3,$Q$2,1,1) -> 0 | R3: =OFFSET('Taula Farratges'!$A$1,$C3,$R$2,1,1) -> 0 | S3: =OFFSET('Taula Farratges'!$A$1,$C3,$S$2,1,1) -> 0 | T3: =OFFSET('Taula Farratges'!$A$1,$C3,$T$2,1,1) -> 0 | U3: =OFFSET('Taula Farratges'!$A$1,$C3,$U$2,1,1) -> 0 | V3: =OFFSET('Taula Farratges'!$A$1,$C3,$V$2,1,1) -> 0 | W3: =OFFSET('Taula Farratges'!$A$1,$C3,$W$2,1,1) -> 0 | X3: =OFFSET('Taula Farratges'!$A$1,$C3,$X$2,1,1) -> 0 | Y3: =OFFSET('Taula Farratges'!$A$1,$C3,$Y$2,1,1) -> 0 | Z3: =OFFSET('Taula Farratges'!$A$1,$C3,$Z$2,1,1) -> 15.5675 | AA3: =OFFSET('Taula Farratges'!$A$1,$C3,$AA$2,1,1) -> 0.74 | AB3: =OFFSET('Taula Farratges'!$A$1,$C3,$AB$2,1,1) -> 0 | AC3: =OFFSET('Taula Farratges'!$A$1,$C3,$AC$2,1,1) -> 151.5 | AD3: =OFFSET('Taula Farratges'!$A$1,$C3,$AD$2,1,1) -> 29.5425 | AE3: =OFFSET('Taula Farratges'!$A$1,$C3,$AE$2,1,1) -> 2.50970557 | AF3: =OFFSET('Taula Farratges'!$A$1,$C3,$AF$2,1,1) -> 0.666039 | AG3: =OFFSET('Taula Farratges'!$A$1,$C3,$AG$2,1,1) -> 598.4360415 | AH3: =OFFSET('Taula Farratges'!$A$1,$C3,$AH$2,1,1) -> 23 | AI3: =OFFSET('Taula Farratges'!$A$1,$C3,$AI$2,1,1) -> 286.1 | AJ3: =OFFSET('Taula Farratges'!$A$1,$C3,$AJ$2,1,1) -> 406 | AK3: =OFFSET('Taula Farratges'!$A$1,$C3,$AK$2,1,1) -> 371.5 | AL3: =OFFSET('Taula Farratges'!$A$1,$C3,$AL$2,1,1) ->  | AM3: =OFFSET('Taula Farratges'!$A$1,$C3,$AM$2,1,1) -> 101.5 | AN3: =OFFSET('Taula Farratges'!$A$1,$C3,$AN$2,1,1) -> 0 | AO3: =OFFSET('Taula Farratges'!$A$1,$C3,$AO$2,1,1) -> 521.8195916 | AP3: =IF('II_Plantejar Ració'!$E4>0,IF(E3>0,1,"No"),"") -> 1 | AQ3: =IF('II_Plantejar Ració'!$E4>0,IF(F3>0,1,"No"),"") -> 1 | AR3: =IF('II_Plantejar Ració'!$E4>0,IF(G3>0,1,"No"),"") -> 1 | AS3: =IF('II_Plantejar Ració'!$E4>0,IF(H3=0,"No",1),"") -> 1 | AT3: =IF('II_Plantejar Ració'!$E4>0,IF(AE3>0,1,"No"),"") -> 1 | AU3: =IF('II_Plantejar Ració'!$E4>0,IF(I3>0,1,"No"),"") -> No | AV3: =IF('II_Plantejar Ració'!$E4>0,IF(J3>0,1,"No"),"") -> No | AW3: =IF('II_Plantejar Ració'!$E4>0,IF(K3>0,1,"No"),"") -> No | AX3: =IF('II_Plantejar Ració'!$E4>0,IF(L3>0,1,"No"),"") -> No | AY3: =IF('II_Plantejar Ració'!$E4>0,IF(M3>0,1,"No"),"") -> No | AZ3: =IF('II_Plantejar Ració'!$E4>0,IF(N3>0,1,"No"),"") -> No | BA3: =IF('II_Plantejar Ració'!$E4>0,IF(O3>0,1,"No"),"") -> No | BB3: =IF('II_Plantejar Ració'!$E4>0,IF(P3>0,1,"No"),"") -> No | BC3: =IF('II_Plantejar Ració'!$E4>0,IF(Q3>0,1,"No"),"") -> No | BD3: =IF('II_Plantejar Ració'!$E4>0,IF(R3>0,1,"No"),"") -> No | BE3: =IF('II_Plantejar Ració'!$E4>0,IF(S3>0,1,"No"),"") -> No | BF3: =IF('II_Plantejar Ració'!$E4>0,IF(T3>0,1,"No"),"") -> No | BG3: =IF('II_Plantejar Ració'!$E4>0,IF(U3>0,1,"No"),"") -> No | BH3: =IF('II_Plantejar Ració'!$E4>0,IF(V3>0,1,"No"),"") -> No | BI3: =IF('II_Plantejar Ració'!$E4>0,IF(W3>0,1,"No"),"") -> No | BJ3: =IF('II_Plantejar Ració'!$E4>0,IF(X3>0,1,"No"),"") -> No | BK3: =IF('II_Plantejar Ració'!$E4>0,IF(Y3>0,1,"No"),"") -> No | BL3: =IF('II_Plantejar Ració'!$E4>0,IF(Z3>0,1,"No"),"") -> 1 | BM3: =IF('II_Plantejar Ració'!$E4>0,IF(AA3>0,1,"No"),"") -> 1 | BN3: =IF('II_Plantejar Ració'!$E4>0,IF(AB3>0,1,"No"),"") -> No | BO3: =IF('II_Plantejar Ració'!$E4>0,IF(AC3>0,1,"No"),"") -> 1 | BP3: =IF('II_Plantejar Ració'!$E4>0,IF(AD3>0,1,"No"),"") -> 1 | BQ3: =IF('II_Plantejar Ració'!$E4>0,IF(AE3>0,1,"No"),"") -> 1 | BR3: =IF('II_Plantejar Ració'!$E4>0,IF(AF3>0,1,"No"),"") -> 1 | BS3: =IF('II_Plantejar Ració'!$E4>0,IF(AG3>0,1,"No"),"") -> 1 | BT3: =IF('II_Plantejar Ració'!$E4>0,IF(AH3>0,1,"No"),"") -> 1 | BU3: =IF('II_Plantejar Ració'!$E4>0,IF(AI3>0,1,"No"),"") -> 1 | BV3: =IF('II_Plantejar Ració'!$E4>0,IF(AJ3>0,1,"No"),"") -> 1 | BW3: =IF('II_Plantejar Ració'!$E4>0,IF(AK3>0,1,"No"),"") -> 1 | BX3: =IF('II_Plantejar Ració'!$E4>0,IF(AL3>0,1,"No"),"") -> 1 | BY3: =IF('II_Plantejar Ració'!$E4>0,IF(AM3>0,1,"No"),"") -> 1 | BZ3: =IF(AP3="",0,1) -> 1 | CA3: 1 | CB3: 1 | CC3: 1 | CD3: 1 | CE3: 1 | CF3: 1 | CG3: 1 | CH3: 1 | CI3: 1 | CJ3: 1 | CK3: 1 | CL3: 1 | CM3: 1 | CN3: 1 | CO3: 1 | CP3: 1 | CQ3: 1 | CR3: 1 | CS3: 1 | CT3: 1 | CU3: 1 | CV3: 1 | CW3: 1 | CX3: 1 | CY3: 1 | CZ3: 1 | DA3: 1 | DB3: 1 | DC3: 1 | DD3: 1 | DE3: 1 | DF3: 1 | DG3: 1 | DH3: 1 | DI3: 1
B4: =IF(OFFSET('Taula Farratges'!$A$1,C4,0,1,1)=0,"",OFFSET('Taula Farratges'!$A$1,C4,0,1,1)) -> ENSITJAT Prat natural pla, gramínies en gran part | C4: 40 | D4: =OFFSET('Taula Farratges'!$A$1,$C4,$D$2,1,1) -> 48 | E4: =OFFSET('Taula Farratges'!$A$1,$C4,$E$2,1,1) -> 1.638343115 | F4: =OFFSET('Taula Farratges'!$A$1,$C4,$F$2,1,1) -> 0.9301076693 | G4: =OFFSET('Taula Farratges'!$A$1,$C4,$G$2,1,1) -> 51.5305866 | H4: =OFFSET('Taula Farratges'!$A$1,$C4,$H$2,1,1) -> 18.01183343 | I4: =OFFSET('Taula Farratges'!$A$1,$C4,$I$2,1,1) -> 8.7 | J4: =OFFSET('Taula Farratges'!$A$1,$C4,$J$2,1,1) -> 2.6 | K4: =OFFSET('Taula Farratges'!$A$1,$C4,$K$2,1,1) -> 0 | L4: =OFFSET('Taula Farratges'!$A$1,$C4,$L$2,1,1) -> 0 | M4: =OFFSET('Taula Farratges'!$A$1,$C4,$M$2,1,1) -> 0 | N4: =OFFSET('Taula Farratges'!$A$1,$C4,$N$2,1,1) -> 0 | O4: =OFFSET('Taula Farratges'!$A$1,$C4,$O$2,1,1) -> 0 | P4: =OFFSET('Taula Farratges'!$A$1,$C4,$P$2,1,1) -> 0 | Q4: =OFFSET('Taula Farratges'!$A$1,$C4,$Q$2,1,1) -> 0 | R4: =OFFSET('Taula Farratges'!$A$1,$C4,$R$2,1,1) -> 0 | S4: =OFFSET('Taula Farratges'!$A$1,$C4,$S$2,1,1) -> 0 | T4: =OFFSET('Taula Farratges'!$A$1,$C4,$T$2,1,1) -> 0 | U4: =OFFSET('Taula Farratges'!$A$1,$C4,$U$2,1,1) -> 0 | V4: =OFFSET('Taula Farratges'!$A$1,$C4,$V$2,1,1) -> 0 | W4: =OFFSET('Taula Farratges'!$A$1,$C4,$W$2,1,1) -> 8000 | X4: =OFFSET('Taula Farratges'!$A$1,$C4,$X$2,1,1) -> 200 | Y4: =OFFSET('Taula Farratges'!$A$1,$C4,$Y$2,1,1) -> 5 | Z4: =OFFSET('Taula Farratges'!$A$1,$C4,$Z$2,1,1) -> 18.2569 | AA4: =OFFSET('Taula Farratges'!$A$1,$C4,$AA$2,1,1) -> 0.78 | AB4: =OFFSET('Taula Farratges'!$A$1,$C4,$AB$2,1,1) -> 115 | AC4: =OFFSET('Taula Farratges'!$A$1,$C4,$AC$2,1,1) -> 114.3 | AD4: =OFFSET('Taula Farratges'!$A$1,$C4,$AD$2,1,1) -> 15.0876 | AE4: =OFFSET('Taula Farratges'!$A$1,$C4,$AE$2,1,1) -> 1.644820804 | AF4: =OFFSET('Taula Farratges'!$A$1,$C4,$AF$2,1,1) -> 0.668711 | AG4: =OFFSET('Taula Farratges'!$A$1,$C4,$AG$2,1,1) -> 599.165056 | AH4: =OFFSET('Taula Farratges'!$A$1,$C4,$AH$2,1,1) -> 22.2 | AI4: =OFFSET('Taula Farratges'!$A$1,$C4,$AI$2,1,1) -> 311.3 | AJ4: =OFFSET('Taula Farratges'!$A$1,$C4,$AJ$2,1,1) -> 584.2 | AK4: =OFFSET('Taula Farratges'!$A$1,$C4,$AK$2,1,1) -> 385 | AL4: =OFFSET('Taula Farratges'!$A$1,$C4,$AL$2,1,1) -> 0 | AM4: =OFFSET('Taula Farratges'!$A$1,$C4,$AM$2,1,1) -> 104 | AN4: =OFFSET('Taula Farratges'!$A$1,$C4,$AN$2,1,1) -> 0 | AO4: =OFFSET('Taula Farratges'!$A$1,$C4,$AO$2,1,1) -> 420.9795542 | AP4: =IF('II_Plantejar Ració'!$E5>0,IF(E4>0,1,"No"),"") ->  | AQ4: =IF('II_Plantejar Ració'!$E5>0,IF(F4>0,1,"No"),"") ->  | AR4: =IF('II_Plantejar Ració'!$E5>0,IF(G4>0,1,"No"),"") ->  | AS4: =IF('II_Plantejar Ració'!$E5>0,IF(H4=0,"No",1),"") ->  | AT4: =IF('II_Plantejar Ració'!$E5>0,IF(AE4>0,1,"No"),"") ->  | AU4: =IF('II_Plantejar Ració'!$E5>0,IF(I4>0,1,"No"),"") ->  | AV4: =IF('II_Plantejar Ració'!$E5>0,IF(J4>0,1,"No"),"") ->  | AW4: =IF('II_Plantejar Ració'!$E5>0,IF(K4>0,1,"No"),"") ->  | AX4: =IF('II_Plantejar Ració'!$E5>0,IF(L4>0,1,"No"),"") ->  | AY4: =IF('II_Plantejar Ració'!$E5>0,IF(M4>0,1,"No"),"") ->  | AZ4: =IF('II_Plantejar Ració'!$E5>0,IF(N4>0,1,"No"),"") ->  | BA4: =IF('II_Plantejar Ració'!$E5>0,IF(O4>0,1,"No"),"") ->  | BB4: =IF('II_Plantejar Ració'!$E5>0,IF(P4>0,1,"No"),"") ->  | BC4: =IF('II_Plantejar Ració'!$E5>0,IF(Q4>0,1,"No"),"") ->  | BD4: =IF('II_Plantejar Ració'!$E5>0,IF(R4>0,1,"No"),"") ->  | BE4: =IF('II_Plantejar Ració'!$E5>0,IF(S4>0,1,"No"),"") ->  | BF4: =IF('II_Plantejar Ració'!$E5>0,IF(T4>0,1,"No"),"") ->  | BG4: =IF('II_Plantejar Ració'!$E5>0,IF(U4>0,1,"No"),"") ->  | BH4: =IF('II_Plantejar Ració'!$E5>0,IF(V4>0,1,"No"),"") ->  | BI4: =IF('II_Plantejar Ració'!$E5>0,IF(W4>0,1,"No"),"") ->  | BJ4: =IF('II_Plantejar Ració'!$E5>0,IF(X4>0,1,"No"),"") ->  | BK4: =IF('II_Plantejar Ració'!$E5>0,IF(Y4>0,1,"No"),"") ->  | BL4: =IF('II_Plantejar Ració'!$E5>0,IF(Z4>0,1,"No"),"") ->  | BM4: =IF('II_Plantejar Ració'!$E5>0,IF(AA4>0,1,"No"),"") ->  | BN4: =IF('II_Plantejar Ració'!$E5>0,IF(AB4>0,1,"No"),"") ->  | BO4: =IF('II_Plantejar Ració'!$E5>0,IF(AC4>0,1,"No"),"") ->  | BP4: =IF('II_Plantejar Ració'!$E5>0,IF(AD4>0,1,"No"),"") ->  | BQ4: =IF('II_Plantejar Ració'!$E5>0,IF(AE4>0,1,"No"),"") ->  | BR4: =IF('II_Plantejar Ració'!$E5>0,IF(AF4>0,1,"No"),"") ->  | BS4: =IF('II_Plantejar Ració'!$E5>0,IF(AG4>0,1,"No"),"") ->  | BT4: =IF('II_Plantejar Ració'!$E5>0,IF(AH4>0,1,"No"),"") ->  | BU4: =IF('II_Plantejar Ració'!$E5>0,IF(AI4>0,1,"No"),"") ->  | BV4: =IF('II_Plantejar Ració'!$E5>0,IF(AJ4>0,1,"No"),"") ->  | BW4: =IF('II_Plantejar Ració'!$E5>0,IF(AK4>0,1,"No"),"") ->  | BX4: =IF('II_Plantejar Ració'!$E5>0,IF(AL4>0,1,"No"),"") ->  | BY4: =IF('II_Plantejar Ració'!$E5>0,IF(AM4>0,1,"No"),"") ->  | BZ4: =IF(AP4="",0,1) -> 0 | CA4: =IF(AQ4="",0,1) -> 0 | CB4: =IF(AR4="",0,1) -> 0 | CC4: =IF(AS4="",0,1) -> 0 | CD4: =IF(AT4="",0,1) -> 0 | CE4: =IF(AU4="",0,1) -> 0 | CF4: =IF(AV4="",0,1) -> 0 | CG4: =IF(AW4="",0,1) -> 0 | CH4: =IF(AX4="",0,1) -> 0 | CI4: =IF(AY4="",0,1) -> 0 | CJ4: =IF(AZ4="",0,1) -> 0 | CK4: =IF(BA4="",0,1) -> 0 | CL4: =IF(BB4="",0,1) -> 0 | CM4: =IF(BC4="",0,1) -> 0 | CN4: =IF(BD4="",0,1) -> 0 | CO4: =IF(BE4="",0,1) -> 0 | CP4: =IF(BF4="",0,1) -> 0 | CQ4: =IF(BG4="",0,1) -> 0 | CR4: =IF(BH4="",0,1) -> 0 | CS4: =IF(BI4="",0,1) -> 0 | CT4: =IF(BJ4="",0,1) -> 0 | CU4: =IF(BK4="",0,1) -> 0 | CV4: =IF(BL4="",0,1) -> 0 | CW4: =IF(BM4="",0,1) -> 0 | CX4: =IF(BN4="",0,1) -> 0 | CY4: =IF(BO4="",0,1) -> 0 | CZ4: =IF(BP4="",0,1) -> 0 | DA4: =IF(BQ4="",0,1) -> 0 | DB4: =IF(BR4="",0,1) -> 0 | DC4: =IF(BS4="",0,1) -> 0 | DD4: =IF(BT4="",0,1) -> 0 | DE4: =IF(BU4="",0,1) -> 0 | DF4: =IF(BV4="",0,1) -> 0 | DG4: =IF(BW4="",0,1) -> 0 | DH4: =IF(BX4="",0,1) -> 0 | DI4: =IF(BY4="",0,1) -> 0
B5: =IF(OFFSET('Taula Farratges'!$A$1,C5,0,1,1)=0,"",OFFSET('Taula Farratges'!$A$1,C5,0,1,1)) -> FENC Bromo Final vegetació | C5: 55 | D5: =OFFSET('Taula Farratges'!$A$1,$C5,$D$2,1,1) -> 85 | E5: =OFFSET('Taula Farratges'!$A$1,$C5,$E$2,1,1) -> 1.470370044 | F5: =OFFSET('Taula Farratges'!$A$1,$C5,$F$2,1,1) -> 0.7641928518 | G5: =OFFSET('Taula Farratges'!$A$1,$C5,$G$2,1,1) -> 58.49315002 | H5: =OFFSET('Taula Farratges'!$A$1,$C5,$H$2,1,1) -> -2.876796905 | I5: =OFFSET('Taula Farratges'!$A$1,$C5,$I$2,1,1) -> 3.1 | J5: =OFFSET('Taula Farratges'!$A$1,$C5,$J$2,1,1) -> 2.9 | K5: =OFFSET('Taula Farratges'!$A$1,$C5,$K$2,1,1) -> 0 | L5: =OFFSET('Taula Farratges'!$A$1,$C5,$L$2,1,1) -> 0 | M5: =OFFSET('Taula Farratges'!$A$1,$C5,$M$2,1,1) -> 0 | N5: =OFFSET('Taula Farratges'!$A$1,$C5,$N$2,1,1) -> 0 | O5: =OFFSET('Taula Farratges'!$A$1,$C5,$O$2,1,1) -> 0 | P5: =OFFSET('Taula Farratges'!$A$1,$C5,$P$2,1,1) -> 0 | Q5: =OFFSET('Taula Farratges'!$A$1,$C5,$Q$2,1,1) -> 0 | R5: =OFFSET('Taula Farratges'!$A$1,$C5,$R$2,1,1) -> 0 | S5: =OFFSET('Taula Farratges'!$A$1,$C5,$S$2,1,1) -> 0 | T5: =OFFSET('Taula Farratges'!$A$1,$C5,$T$2,1,1) -> 0 | U5: =OFFSET('Taula Farratges'!$A$1,$C5,$U$2,1,1) -> 0 | V5: =OFFSET('Taula Farratges'!$A$1,$C5,$V$2,1,1) -> 0 | W5: =OFFSET('Taula Farratges'!$A$1,$C5,$W$2,1,1) -> 50000 | X5: =OFFSET('Taula Farratges'!$A$1,$C5,$X$2,1,1) -> 50 | Y5: =OFFSET('Taula Farratges'!$A$1,$C5,$Y$2,1,1) -> 5 | Z5: =OFFSET('Taula Farratges'!$A$1,$C5,$Z$2,1,1) -> 15.93 | AA5: =OFFSET('Taula Farratges'!$A$1,$C5,$AA$2,1,1) -> 0.71 | AB5: =OFFSET('Taula Farratges'!$A$1,$C5,$AB$2,1,1) -> 0 | AC5: =OFFSET('Taula Farratges'!$A$1,$C5,$AC$2,1,1) -> 100 | AD5: =OFFSET('Taula Farratges'!$A$1,$C5,$AD$2,1,1) -> 20.3 | AE5: =OFFSET('Taula Farratges'!$A$1,$C5,$AE$2,1,1) -> 1.832722892 | AF5: =OFFSET('Taula Farratges'!$A$1,$C5,$AF$2,1,1) -> 0.62749 | AG5: =OFFSET('Taula Farratges'!$A$1,$C5,$AG$2,1,1) -> 564.741 | AH5: =OFFSET('Taula Farratges'!$A$1,$C5,$AH$2,1,1) -> 34 | AI5: =OFFSET('Taula Farratges'!$A$1,$C5,$AI$2,1,1) -> 320 | AJ5: =OFFSET('Taula Farratges'!$A$1,$C5,$AJ$2,1,1) -> 640 | AK5: =OFFSET('Taula Farratges'!$A$1,$C5,$AK$2,1,1) -> 333 | AL5: =OFFSET('Taula Farratges'!$A$1,$C5,$AL$2,1,1) -> 0 | AM5: =OFFSET('Taula Farratges'!$A$1,$C5,$AM$2,1,1) -> 100 | AN5: =OFFSET('Taula Farratges'!$A$1,$C5,$AN$2,1,1) -> 0 | AO5: =OFFSET('Taula Farratges'!$A$1,$C5,$AO$2,1,1) -> 494.5458579 | AP5: =IF('II_Plantejar Ració'!$E6>0,IF(E5>0,1,"No"),"") ->  | AQ5: =IF('II_Plantejar Ració'!$E6>0,IF(F5>0,1,"No"),"") ->  | AR5: =IF('II_Plantejar Ració'!$E6>0,IF(G5>0,1,"No"),"") ->  | AS5: =IF('II_Plantejar Ració'!$E6>0,IF(H5=0,"No",1),"") ->  | AT5: =IF('II_Plantejar Ració'!$E6>0,IF(AE5>0,1,"No"),"") ->  | AU5: =IF('II_Plantejar Ració'!$E6>0,IF(I5>0,1,"No"),"") ->  | AV5: =IF('II_Plantejar Ració'!$E6>0,IF(J5>0,1,"No"),"") ->  | AW5: =IF('II_Plantejar Ració'!$E6>0,IF(K5>0,1,"No"),"") ->  | AX5: =IF('II_Plantejar Ració'!$E6>0,IF(L5>0,1,"No"),"") ->  | AY5: =IF('II_Plantejar Ració'!$E6>0,IF(M5>0,1,"No"),"") ->  | AZ5: =IF('II_Plantejar Ració'!$E6>0,IF(N5>0,1,"No"),"") ->  | BA5: =IF('II_Plantejar Ració'!$E6>0,IF(O5>0,1,"No"),"") ->  | BB5: =IF('II_Plantejar Ració'!$E6>0,IF(P5>0,1,"No"),"") ->  | BC5: =IF('II_Plantejar Ració'!$E6>0,IF(Q5>0,1,"No"),"") ->  | BD5: =IF('II_Plantejar Ració'!$E6>0,IF(R5>0,1,"No"),"") ->  | BE5: =IF('II_Plantejar Ració'!$E6>0,IF(S5>0,1,"No"),"") ->  | BF5: =IF('II_Plantejar Ració'!$E6>0,IF(T5>0,1,"No"),"") ->  | BG5: =IF('II_Plantejar Ració'!$E6>0,IF(U5>0,1,"No"),"") ->  | BH5: =IF('II_Plantejar Ració'!$E6>0,IF(V5>0,1,"No"),"") ->  | BI5: =IF('II_Plantejar Ració'!$E6>0,IF(W5>0,1,"No"),"") ->  | BJ5: =IF('II_Plantejar Ració'!$E6>0,IF(X5>0,1,"No"),"") ->  | BK5: =IF('II_Plantejar Ració'!$E6>0,IF(Y5>0,1,"No"),"") ->  | BL5: =IF('II_Plantejar Ració'!$E6>0,IF(Z5>0,1,"No"),"") ->  | BM5: =IF('II_Plantejar Ració'!$E6>0,IF(AA5>0,1,"No"),"") ->  | BN5: =IF('II_Plantejar Ració'!$E6>0,IF(AB5>0,1,"No"),"") ->  | BO5: =IF('II_Plantejar Ració'!$E6>0,IF(AC5>0,1,"No"),"") ->  | BP5: =IF('II_Plantejar Ració'!$E6>0,IF(AD5>0,1,"No"),"") ->  | BQ5: =IF('II_Plantejar Ració'!$E6>0,IF(AE5>0,1,"No"),"") ->  | BR5: =IF('II_Plantejar Ració'!$E6>0,IF(AF5>0,1,"No"),"") ->  | BS5: =IF('II_Plantejar Ració'!$E6>0,IF(AG5>0,1,"No"),"") ->  | BT5: =IF('II_Plantejar Ració'!$E6>0,IF(AH5>0,1,"No"),"") ->  | BU5: =IF('II_Plantejar Ració'!$E6>0,IF(AI5>0,1,"No"),"") ->  | BV5: =IF('II_Plantejar Ració'!$E6>0,IF(AJ5>0,1,"No"),"") ->  | BW5: =IF('II_Plantejar Ració'!$E6>0,IF(AK5>0,1,"No"),"") ->  | BX5: =IF('II_Plantejar Ració'!$E6>0,IF(AL5>0,1,"No"),"") ->  | BY5: =IF('II_Plantejar Ració'!$E6>0,IF(AM5>0,1,"No"),"") ->  | BZ5: 0 | CA5: 0 | CB5: 0 | CC5: 0 | CD5: 0 | CE5: 0 | CF5: 0 | CG5: 0 | CH5: 0 | CI5: 0 | CJ5: 0 | CK5: 0 | CL5: 0 | CM5: 0 | CN5: 0 | CO5: 0 | CP5: 0 | CQ5: 0 | CR5: 0 | CS5: 0 | CT5: 0 | CU5: 0 | CV5: 0 | CW5: 0 | CX5: 0 | CY5: 0 | CZ5: 0 | DA5: 0 | DB5: 0 | DC5: 0 | DD5: 0 | DE5: 0 | DF5: 0 | DG5: 0 | DH5: 0 | DI5: 0
B6: =IF(OFFSET('Taula Farratges'!$A$1,C6,0,1,1)=0,"",OFFSET('Taula Farratges'!$A$1,C6,0,1,1)) ->  | C6: 1 | D6: =OFFSET('Taula Farratges'!$A$1,$C6,$D$2,1,1) -> 0 | E6: =OFFSET('Taula Farratges'!$A$1,$C6,$E$2,1,1) -> 0 | F6: =OFFSET('Taula Farratges'!$A$1,$C6,$F$2,1,1) -> 0 | G6: =OFFSET('Taula Farratges'!$A$1,$C6,$G$2,1,1) -> 0 | H6: =OFFSET('Taula Farratges'!$A$1,$C6,$H$2,1,1) -> 0 | I6: =OFFSET('Taula Farratges'!$A$1,$C6,$I$2,1,1) -> 0 | J6: =OFFSET('Taula Farratges'!$A$1,$C6,$J$2,1,1) -> 0 | K6: =OFFSET('Taula Farratges'!$A$1,$C6,$K$2,1,1) -> 0 | L6: =OFFSET('Taula Farratges'!$A$1,$C6,$L$2,1,1) -> 0 | M6: =OFFSET('Taula Farratges'!$A$1,$C6,$M$2,1,1) -> 0 | N6: =OFFSET('Taula Farratges'!$A$1,$C6,$N$2,1,1) -> 0 | O6: =OFFSET('Taula Farratges'!$A$1,$C6,$O$2,1,1) -> 0 | P6: =OFFSET('Taula Farratges'!$A$1,$C6,$P$2,1,1) -> 0 | Q6: =OFFSET('Taula Farratges'!$A$1,$C6,$Q$2,1,1) -> 0 | R6: =OFFSET('Taula Farratges'!$A$1,$C6,$R$2,1,1) -> 0 | S6: =OFFSET('Taula Farratges'!$A$1,$C6,$S$2,1,1) -> 0 | T6: =OFFSET('Taula Farratges'!$A$1,$C6,$T$2,1,1) -> 0 | U6: =OFFSET('Taula Farratges'!$A$1,$C6,$U$2,1,1) -> 0 | V6: =OFFSET('Taula Farratges'!$A$1,$C6,$V$2,1,1) -> 0 | W6: =OFFSET('Taula Farratges'!$A$1,$C6,$W$2,1,1) -> 0 | X6: =OFFSET('Taula Farratges'!$A$1,$C6,$X$2,1,1) -> 0 | Y6: =OFFSET('Taula Farratges'!$A$1,$C6,$Y$2,1,1) -> 0 | Z6: =OFFSET('Taula Farratges'!$A$1,$C6,$Z$2,1,1) -> 0 | AA6: =OFFSET('Taula Farratges'!$A$1,$C6,$AA$2,1,1) -> 0 | AB6: =OFFSET('Taula Farratges'!$A$1,$C6,$AB$2,1,1) -> 0 | AC6: =OFFSET('Taula Farratges'!$A$1,$C6,$AC$2,1,1) -> 0 | AD6: =OFFSET('Taula Farratges'!$A$1,$C6,$AD$2,1,1) -> 0 | AE6: =OFFSET('Taula Farratges'!$A$1,$C6,$AE$2,1,1) -> 0 | AF6: =OFFSET('Taula Farratges'!$A$1,$C6,$AF$2,1,1) -> 0 | AG6: =OFFSET('Taula Farratges'!$A$1,$C6,$AG$2,1,1) -> 0 | AH6: =OFFSET('Taula Farratges'!$A$1,$C6,$AH$2,1,1) -> 0 | AI6: =OFFSET('Taula Farratges'!$A$1,$C6,$AI$2,1,1) -> 0 | AJ6: =OFFSET('Taula Farratges'!$A$1,$C6,$AJ$2,1,1) -> 0 | AK6: =OFFSET('Taula Farratges'!$A$1,$C6,$AK$2,1,1) -> 0 | AL6: =OFFSET('Taula Farratges'!$A$1,$C6,$AL$2,1,1) -> 0 | AM6: =OFFSET('Taula Farratges'!$A$1,$C6,$AM$2,1,1) -> 0 | AN6: =OFFSET('Taula Farratges'!$A$1,$C6,$AN$2,1,1) -> 0 | AO6: =OFFSET('Taula Farratges'!$A$1,$C6,$AO$2,1,1) -> 0 | AP6: =IF('II_Plantejar Ració'!$E7>0,IF(E6>0,1,"No"),"") ->  | AQ6: =IF('II_Plantejar Ració'!$E7>0,IF(F6>0,1,"No"),"") ->  | AR6: =IF('II_Plantejar Ració'!$E7>0,IF(G6>0,1,"No"),"") ->  | AS6: =IF('II_Plantejar Ració'!$E7>0,IF(H6=0,"No",1),"") ->  | AT6: =IF('II_Plantejar Ració'!$E7>0,IF(AE6>0,1,"No"),"") ->  | AU6: =IF('II_Plantejar Ració'!$E7>0,IF(I6>0,1,"No"),"") ->  | AV6: =IF('II_Plantejar Ració'!$E7>0,IF(J6>0,1,"No"),"") ->  | AW6: =IF('II_Plantejar Ració'!$E7>0,IF(K6>0,1,"No"),"") ->  | AX6: =IF('II_Plantejar Ració'!$E7>0,IF(L6>0,1,"No"),"") ->  | AY6: =IF('II_Plantejar Ració'!$E7>0,IF(M6>0,1,"No"),"") ->  | AZ6: =IF('II_Plantejar Ració'!$E7>0,IF(N6>0,1,"No"),"") ->  | BA6: =IF('II_Plantejar Ració'!$E7>0,IF(O6>0,1,"No"),"") ->  | BB6: =IF('II_Plantejar Ració'!$E7>0,IF(P6>0,1,"No"),"") ->  | BC6: =IF('II_Plantejar Ració'!$E7>0,IF(Q6>0,1,"No"),"") ->  | BD6: =IF('II_Plantejar Ració'!$E7>0,IF(R6>0,1,"No"),"") ->  | BE6: =IF('II_Plantejar Ració'!$E7>0,IF(S6>0,1,"No"),"") ->  | BF6: =IF('II_Plantejar Ració'!$E7>0,IF(T6>0,1,"No"),"") ->  | BG6: =IF('II_Plantejar Ració'!$E7>0,IF(U6>0,1,"No"),"") ->  | BH6: =IF('II_Plantejar Ració'!$E7>0,IF(V6>0,1,"No"),"") ->  | BI6: =IF('II_Plantejar Ració'!$E7>0,IF(W6>0,1,"No"),"") ->  | BJ6: =IF('II_Plantejar Ració'!$E7>0,IF(X6>0,1,"No"),"") ->  | BK6: =IF('II_Plantejar Ració'!$E7>0,IF(Y6>0,1,"No"),"") ->  | BL6: =IF('II_Plantejar Ració'!$E7>0,IF(Z6>0,1,"No"),"") ->  | BM6: =IF('II_Plantejar Ració'!$E7>0,IF(AA6>0,1,"No"),"") ->  | BN6: =IF('II_Plantejar Ració'!$E7>0,IF(AB6>0,1,"No"),"") ->  | BO6: =IF('II_Plantejar Ració'!$E7>0,IF(AC6>0,1,"No"),"") ->  | BP6: =IF('II_Plantejar Ració'!$E7>0,IF(AD6>0,1,"No"),"") ->  | BQ6: =IF('II_Plantejar Ració'!$E7>0,IF(AE6>0,1,"No"),"") ->  | BR6: =IF('II_Plantejar Ració'!$E7>0,IF(AF6>0,1,"No"),"") ->  | BS6: =IF('II_Plantejar Ració'!$E7>0,IF(AG6>0,1,"No"),"") ->  | BT6: =IF('II_Plantejar Ració'!$E7>0,IF(AH6>0,1,"No"),"") ->  | BU6: =IF('II_Plantejar Ració'!$E7>0,IF(AI6>0,1,"No"),"") ->  | BV6: =IF('II_Plantejar Ració'!$E7>0,IF(AJ6>0,1,"No"),"") ->  | BW6: =IF('II_Plantejar Ració'!$E7>0,IF(AK6>0,1,"No"),"") ->  | BX6: =IF('II_Plantejar Ració'!$E7>0,IF(AL6>0,1,"No"),"") ->  | BY6: =IF('II_Plantejar Ració'!$E7>0,IF(AM6>0,1,"No"),"") ->  | BZ6: 0 | CA6: 0 | CB6: 0 | CC6: 0 | CD6: 0 | CE6: 0 | CF6: 0 | CG6: 0 | CH6: 0 | CI6: 0 | CJ6: 0 | CK6: 0 | CL6: 0 | CM6: 0 | CN6: 0 | CO6: 0 | CP6: 0 | CQ6: 0 | CR6: 0 | CS6: 0 | CT6: 0 | CU6: 0 | CV6: 0 | CW6: 0 | CX6: 0 | CY6: 0 | CZ6: 0 | DA6: 0 | DB6: 0 | DC6: 0 | DD6: 0 | DE6: 0 | DF6: 0 | DG6: 0 | DH6: 0 | DI6: 0
B7: =IF(OFFSET('Taula Farratges'!$A$1,C7,0,1,1)=0,"",OFFSET('Taula Farratges'!$A$1,C7,0,1,1)) ->  | C7: 1 | D7: =OFFSET('Taula Farratges'!$A$1,$C7,$D$2,1,1) -> 0 | E7: =OFFSET('Taula Farratges'!$A$1,$C7,$E$2,1,1) -> 0 | F7: =OFFSET('Taula Farratges'!$A$1,$C7,$F$2,1,1) -> 0 | G7: =OFFSET('Taula Farratges'!$A$1,$C7,$G$2,1,1) -> 0 | H7: =OFFSET('Taula Farratges'!$A$1,$C7,$H$2,1,1) -> 0 | I7: =OFFSET('Taula Farratges'!$A$1,$C7,$I$2,1,1) -> 0 | J7: =OFFSET('Taula Farratges'!$A$1,$C7,$J$2,1,1) -> 0 | K7: =OFFSET('Taula Farratges'!$A$1,$C7,$K$2,1,1) -> 0 | L7: =OFFSET('Taula Farratges'!$A$1,$C7,$L$2,1,1) -> 0 | M7: =OFFSET('Taula Farratges'!$A$1,$C7,$M$2,1,1) -> 0 | N7: =OFFSET('Taula Farratges'!$A$1,$C7,$N$2,1,1) -> 0 | O7: =OFFSET('Taula Farratges'!$A$1,$C7,$O$2,1,1) -> 0 | P7: =OFFSET('Taula Farratges'!$A$1,$C7,$P$2,1,1) -> 0 | Q7: =OFFSET('Taula Farratges'!$A$1,$C7,$Q$2,1,1) -> 0 | R7: =OFFSET('Taula Farratges'!$A$1,$C7,$R$2,1,1) -> 0 | S7: =OFFSET('Taula Farratges'!$A$1,$C7,$S$2,1,1) -> 0 | T7: =OFFSET('Taula Farratges'!$A$1,$C7,$T$2,1,1) -> 0 | U7: =OFFSET('Taula Farratges'!$A$1,$C7,$U$2,1,1) -> 0 | V7: =OFFSET('Taula Farratges'!$A$1,$C7,$V$2,1,1) -> 0 | W7: =OFFSET('Taula Farratges'!$A$1,$C7,$W$2,1,1) -> 0 | X7: =OFFSET('Taula Farratges'!$A$1,$C7,$X$2,1,1) -> 0 | Y7: =OFFSET('Taula Farratges'!$A$1,$C7,$Y$2,1,1) -> 0 | Z7: =OFFSET('Taula Farratges'!$A$1,$C7,$Z$2,1,1) -> 0 | AA7: =OFFSET('Taula Farratges'!$A$1,$C7,$AA$2,1,1) -> 0 | AB7: =OFFSET('Taula Farratges'!$A$1,$C7,$AB$2,1,1) -> 0 | AC7: =OFFSET('Taula Farratges'!$A$1,$C7,$AC$2,1,1) -> 0 | AD7: =OFFSET('Taula Farratges'!$A$1,$C7,$AD$2,1,1) -> 0 | AE7: =OFFSET('Taula Farratges'!$A$1,$C7,$AE$2,1,1) -> 0 | AF7: =OFFSET('Taula Farratges'!$A$1,$C7,$AF$2,1,1) -> 0 | AG7: =OFFSET('Taula Farratges'!$A$1,$C7,$AG$2,1,1) -> 0 | AH7: =OFFSET('Taula Farratges'!$A$1,$C7,$AH$2,1,1) -> 0 | AI7: =OFFSET('Taula Farratges'!$A$1,$C7,$AI$2,1,1) -> 0 | AJ7: =OFFSET('Taula Farratges'!$A$1,$C7,$AJ$2,1,1) -> 0 | AK7: =OFFSET('Taula Farratges'!$A$1,$C7,$AK$2,1,1) -> 0 | AL7: =OFFSET('Taula Farratges'!$A$1,$C7,$AL$2,1,1) -> 0 | AM7: =OFFSET('Taula Farratges'!$A$1,$C7,$AM$2,1,1) -> 0 | AN7: =OFFSET('Taula Farratges'!$A$1,$C7,$AN$2,1,1) -> 0 | AO7: =OFFSET('Taula Farratges'!$A$1,$C7,$AO$2,1,1) -> 0 | AP7: =IF('II_Plantejar Ració'!$E8>0,IF(E7>0,1,"No"),"") ->  | AQ7: =IF('II_Plantejar Ració'!$E8>0,IF(F7>0,1,"No"),"") ->  | AR7: =IF('II_Plantejar Ració'!$E8>0,IF(G7>0,1,"No"),"") ->  | AS7: =IF('II_Plantejar Ració'!$E8>0,IF(H7=0,"No",1),"") ->  | AT7: =IF('II_Plantejar Ració'!$E8>0,IF(AE7>0,1,"No"),"") ->  | AU7: =IF('II_Plantejar Ració'!$E8>0,IF(I7>0,1,"No"),"") ->  | AV7: =IF('II_Plantejar Ració'!$E8>0,IF(J7>0,1,"No"),"") ->  | AW7: =IF('II_Plantejar Ració'!$E8>0,IF(K7>0,1,"No"),"") ->  | AX7: =IF('II_Plantejar Ració'!$E8>0,IF(L7>0,1,"No"),"") ->  | AY7: =IF('II_Plantejar Ració'!$E8>0,IF(M7>0,1,"No"),"") ->  | AZ7: =IF('II_Plantejar Ració'!$E8>0,IF(N7>0,1,"No"),"") ->  | BA7: =IF('II_Plantejar Ració'!$E8>0,IF(O7>0,1,"No"),"") ->  | BB7: =IF('II_Plantejar Ració'!$E8>0,IF(P7>0,1,"No"),"") ->  | BC7: =IF('II_Plantejar Ració'!$E8>0,IF(Q7>0,1,"No"),"") ->  | BD7: =IF('II_Plantejar Ració'!$E8>0,IF(R7>0,1,"No"),"") ->  | BE7: =IF('II_Plantejar Ració'!$E8>0,IF(S7>0,1,"No"),"") ->  | BF7: =IF('II_Plantejar Ració'!$E8>0,IF(T7>0,1,"No"),"") ->  | BG7: =IF('II_Plantejar Ració'!$E8>0,IF(U7>0,1,"No"),"") ->  | BH7: =IF('II_Plantejar Ració'!$E8>0,IF(V7>0,1,"No"),"") ->  | BI7: =IF('II_Plantejar Ració'!$E8>0,IF(W7>0,1,"No"),"") ->  | BJ7: =IF('II_Plantejar Ració'!$E8>0,IF(X7>0,1,"No"),"") ->  | BK7: =IF('II_Plantejar Ració'!$E8>0,IF(Y7>0,1,"No"),"") ->  | BL7: =IF('II_Plantejar Ració'!$E8>0,IF(Z7>0,1,"No"),"") ->  | BM7: =IF('II_Plantejar Ració'!$E8>0,IF(AA7>0,1,"No"),"") ->  | BN7: =IF('II_Plantejar Ració'!$E8>0,IF(AB7>0,1,"No"),"") ->  | BO7: =IF('II_Plantejar Ració'!$E8>0,IF(AC7>0,1,"No"),"") ->  | BP7: =IF('II_Plantejar Ració'!$E8>0,IF(AD7>0,1,"No"),"") ->  | BQ7: =IF('II_Plantejar Ració'!$E8>0,IF(AE7>0,1,"No"),"") ->  | BR7: =IF('II_Plantejar Ració'!$E8>0,IF(AF7>0,1,"No"),"") ->  | BS7: =IF('II_Plantejar Ració'!$E8>0,IF(AG7>0,1,"No"),"") ->  | BT7: =IF('II_Plantejar Ració'!$E8>0,IF(AH7>0,1,"No"),"") ->  | BU7: =IF('II_Plantejar Ració'!$E8>0,IF(AI7>0,1,"No"),"") ->  | BV7: =IF('II_Plantejar Ració'!$E8>0,IF(AJ7>0,1,"No"),"") ->  | BW7: =IF('II_Plantejar Ració'!$E8>0,IF(AK7>0,1,"No"),"") ->  | BX7: =IF('II_Plantejar Ració'!$E8>0,IF(AL7>0,1,"No"),"") ->  | BY7: =IF('II_Plantejar Ració'!$E8>0,IF(AM7>0,1,"No"),"") ->  | BZ7: 0 | CA7: 0 | CB7: 0 | CC7: 0 | CD7: 0 | CE7: 0 | CF7: 0 | CG7: 0 | CH7: 0 | CI7: 0 | CJ7: 0 | CK7: 0 | CL7: 0 | CM7: 0 | CN7: 0 | CO7: 0 | CP7: 0 | CQ7: 0 | CR7: 0 | CS7: 0 | CT7: 0 | CU7: 0 | CV7: 0 | CW7: 0 | CX7: 0 | CY7: 0 | CZ7: 0 | DA7: 0 | DB7: 0 | DC7: 0 | DD7: 0 | DE7: 0 | DF7: 0 | DG7: 0 | DH7: 0 | DI7: 0
A8: CONCENTRATS | B8: =IF(OFFSET('Taula Concentrats'!$A$1,C8,0,1,1)=0,"",OFFSET('Taula Concentrats'!$A$1,C8,0,1,1)) -> Ordi gra | C8: 2 | D8: =OFFSET('Taula Concentrats'!$A$1,$C8,$D$2,1,1) -> 87.2 | E8: =OFFSET('Taula Concentrats'!$A$1,$C8,$E$2,1,1) -> 0 | F8: =OFFSET('Taula Concentrats'!$A$1,$C8,$F$2,1,1) -> 1.078969989 | G8: =OFFSET('Taula Concentrats'!$A$1,$C8,$G$2,1,1) -> 89.46220189 | H8: =OFFSET('Taula Concentrats'!$A$1,$C8,$H$2,1,1) -> -31.34737412 | I8: =OFFSET('Taula Concentrats'!$A$1,$C8,$I$2,1,1) -> 0.8 | J8: =OFFSET('Taula Concentrats'!$A$1,$C8,$J$2,1,1) -> 3.9 | K8: =OFFSET('Taula Concentrats'!$A$1,$C8,$K$2,1,1) -> 1.3 | L8: =OFFSET('Taula Concentrats'!$A$1,$C8,$L$2,1,1) -> 5.55 | M8: =OFFSET('Taula Concentrats'!$A$1,$C8,$M$2,1,1) -> 0.35 | N8: =OFFSET('Taula Concentrats'!$A$1,$C8,$N$2,1,1) -> 0 | O8: =OFFSET('Taula Concentrats'!$A$1,$C8,$O$2,1,1) -> 0 | P8: =OFFSET('Taula Concentrats'!$A$1,$C8,$P$2,1,1) -> 90 | Q8: =OFFSET('Taula Concentrats'!$A$1,$C8,$Q$2,1,1) -> 0.01 | R8: =OFFSET('Taula Concentrats'!$A$1,$C8,$R$2,1,1) -> 4.1 | S8: =OFFSET('Taula Concentrats'!$A$1,$C8,$S$2,1,1) -> 17.6 | T8: =OFFSET('Taula Concentrats'!$A$1,$C8,$T$2,1,1) -> 24.4 | U8: =OFFSET('Taula Concentrats'!$A$1,$C8,$U$2,1,1) -> 0 | V8: =OFFSET('Taula Concentrats'!$A$1,$C8,$V$2,1,1) -> 0.02 | W8: =OFFSET('Taula Concentrats'!$A$1,$C8,$W$2,1,1) -> 1000 | X8: =OFFSET('Taula Concentrats'!$A$1,$C8,$X$2,1,1) -> 0 | Y8: =OFFSET('Taula Concentrats'!$A$1,$C8,$Y$2,1,1) -> 25 | Z8: =OFFSET('Taula Concentrats'!$A$1,$C8,$Z$2,1,1) -> 14.25 | AA8: =OFFSET('Taula Concentrats'!$A$1,$C8,$AA$2,1,1) -> 0.7349259949 | AB8: =OFFSET('Taula Concentrats'!$A$1,$C8,$AB$2,1,1) -> 0.9294938772 | AC8: =OFFSET('Taula Concentrats'!$A$1,$C8,$AC$2,1,1) -> 112 | AD8: =OFFSET('Taula Concentrats'!$A$1,$C8,$AD$2,1,1) -> 27.59508246 | AE8: =OFFSET('Taula Concentrats'!$A$1,$C8,$AE$2,1,1) -> 2 | AF8: =OFFSET('Taula Concentrats'!$A$1,$C8,$AF$2,1,1) -> 0.837328 | AG8: =OFFSET('Taula Concentrats'!$A$1,$C8,$AG$2,1,1) -> 816.3948 | AH8: =OFFSET('Taula Concentrats'!$A$1,$C8,$AH$2,1,1) -> 19 | AI8: =OFFSET('Taula Concentrats'!$A$1,$C8,$AI$2,1,1) -> 54 | AJ8: =OFFSET('Taula Concentrats'!$A$1,$C8,$AJ$2,1,1) -> 215 | AK8: =OFFSET('Taula Concentrats'!$A$1,$C8,$AK$2,1,1) -> 65 | AL8: =OFFSET('Taula Concentrats'!$A$1,$C8,$AL$2,1,1) -> 12 | AM8: =OFFSET('Taula Concentrats'!$A$1,$C8,$AM$2,1,1) -> 25 | AN8: =OFFSET('Taula Concentrats'!$A$1,$C8,$AN$2,1,1) -> 0.3 | AO8: =OFFSET('Taula Farratges'!$A$1,$C8,$AO$2,1,1) -> 566.5326882 | AP8: =IF('II_Plantejar Ració'!$E9>0,IF(E8>=0,1,"No"),"") ->  | AQ8: =IF('II_Plantejar Ració'!$E9>0,IF(F8>0,1,"No"),"") ->  | AR8: =IF('II_Plantejar Ració'!$E9>0,IF(G8>0,1,"No"),"") ->  | AS8: =IF('II_Plantejar Ració'!$E9>0,IF(H8=0,"No",1),"") ->  | AT8: =IF('II_Plantejar Ració'!$E9>0,IF(AE8>0,1,"No"),"") ->  | AU8: =IF('II_Plantejar Ració'!$E9>0,IF(I8>0,1,"No"),"") ->  | AV8: =IF('II_Plantejar Ració'!$E9>0,IF(J8>0,1,"No"),"") ->  | AW8: =IF('II_Plantejar Ració'!$E9>0,IF(K8>0,1,"No"),"") ->  | AX8: =IF('II_Plantejar Ració'!$E9>0,IF(L8>0,1,"No"),"") ->  | AY8: =IF('II_Plantejar Ració'!$E9>0,IF(M8>0,1,"No"),"") ->  | AZ8: =IF('II_Plantejar Ració'!$E9>0,IF(N8>0,1,"No"),"") ->  | BA8: =IF('II_Plantejar Ració'!$E9>0,IF(O8>0,1,"No"),"") ->  | BB8: =IF('II_Plantejar Ració'!$E9>0,IF(P8>0,1,"No"),"") ->  | BC8: =IF('II_Plantejar Ració'!$E9>0,IF(Q8>0,1,"No"),"") ->  | BD8: =IF('II_Plantejar Ració'!$E9>0,IF(R8>0,1,"No"),"") ->  | BE8: =IF('II_Plantejar Ració'!$E9>0,IF(S8>0,1,"No"),"") ->  | BF8: =IF('II_Plantejar Ració'!$E9>0,IF(T8>0,1,"No"),"") ->  | BG8: =IF('II_Plantejar Ració'!$E9>0,IF(U8>0,1,"No"),"") ->  | BH8: =IF('II_Plantejar Ració'!$E9>0,IF(V8>0,1,"No"),"") ->  | BI8: =IF('II_Plantejar Ració'!$E9>0,IF(W8>0,1,"No"),"") ->  | BJ8: =IF('II_Plantejar Ració'!$E9>0,IF(X8>0,1,"No"),"") ->  | BK8: =IF('II_Plantejar Ració'!$E9>0,IF(Y8>0,1,"No"),"") ->  | BL8: =IF('II_Plantejar Ració'!$E9>0,IF(Z8>0,1,"No"),"") ->  | BM8: =IF('II_Plantejar Ració'!$E9>0,IF(AA8>0,1,"No"),"") ->  | BN8: =IF('II_Plantejar Ració'!$E9>0,IF(AB8>0,1,"No"),"") ->  | BO8: =IF('II_Plantejar Ració'!$E9>0,IF(AC8>0,1,"No"),"") ->  | BP8: =IF('II_Plantejar Ració'!$E9>0,IF(AD8>0,1,"No"),"") ->  | BQ8: =IF('II_Plantejar Ració'!$E9>0,IF(AE8>0,1,"No"),"") ->  | BR8: =IF('II_Plantejar Ració'!$E9>0,IF(AF8>0,1,"No"),"") ->  | BS8: =IF('II_Plantejar Ració'!$E9>0,IF(AG8>0,1,"No"),"") ->  | BT8: =IF('II_Plantejar Ració'!$E9>0,IF(AH8>0,1,"No"),"") ->  | BU8: =IF('II_Plantejar Ració'!$E9>0,IF(AI8>0,1,"No"),"") ->  | BV8: =IF('II_Plantejar Ració'!$E9>0,IF(AJ8>0,1,"No"),"") ->  | BW8: =IF('II_Plantejar Ració'!$E9>0,IF(AK8>0,1,"No"),"") ->  | BX8: =IF('II_Plantejar Ració'!$E9>0,IF(AL8>0,1,"No"),"") ->  | BY8: =IF('II_Plantejar Ració'!$E9>0,IF(AM8>0,1,"No"),"") ->  | BZ8: 0 | CA8: 0 | CB8: 0 | CC8: 0 | CD8: 0 | CE8: 0 | CF8: 0 | CG8: 0 | CH8: 0 | CI8: 0 | CJ8: 0 | CK8: 0 | CL8: 0 | CM8: 0 | CN8: 0 | CO8: 0 | CP8: 0 | CQ8: 0 | CR8: 0 | CS8: 0 | CT8: 0 | CU8: 0 | CV8: 0 | CW8: 0 | CX8: 0 | CY8: 0 | CZ8: 0 | DA8: 0 | DB8: 0 | DC8: 0 | DD8: 0 | DE8: 0 | DF8: 0 | DG8: 0 | DH8: 0 | DI8: 0
B9: =IF(OFFSET('Taula Concentrats'!$A$1,C9,0,1,1)=0,"",OFFSET('Taula Concentrats'!$A$1,C9,0,1,1)) -> Blat de moro gra | C9: 3 | D9: =OFFSET('Taula Concentrats'!$A$1,$C9,$D$2,1,1) -> 86 | E9: =OFFSET('Taula Concentrats'!$A$1,$C9,$E$2,1,1) -> 0 | F9: =OFFSET('Taula Concentrats'!$A$1,$C9,$F$2,1,1) -> 1.24475541 | G9: =OFFSET('Taula Concentrats'!$A$1,$C9,$G$2,1,1) -> 100.7057165 | H9: =OFFSET('Taula Concentrats'!$A$1,$C9,$H$2,1,1) -> -70.14473162 | I9: =OFFSET('Taula Concentrats'!$A$1,$C9,$I$2,1,1) -> 0.5 | J9: =OFFSET('Taula Concentrats'!$A$1,$C9,$J$2,1,1) -> 2.9 | K9: =OFFSET('Taula Concentrats'!$A$1,$C9,$K$2,1,1) -> 1.4 | L9: =OFFSET('Taula Concentrats'!$A$1,$C9,$L$2,1,1) -> 3.6 | M9: =OFFSET('Taula Concentrats'!$A$1,$C9,$M$2,1,1) -> 0.33 | N9: =OFFSET('Taula Concentrats'!$A$1,$C9,$N$2,1,1) -> 0 | O9: =OFFSET('Taula Concentrats'!$A$1,$C9,$O$2,1,1) -> 0 | P9: =OFFSET('Taula Concentrats'!$A$1,$C9,$P$2,1,1) -> 80 | Q9: =OFFSET('Taula Concentrats'!$A$1,$C9,$Q$2,1,1) -> 0.02 | R9: =OFFSET('Taula Concentrats'!$A$1,$C9,$R$2,1,1) -> 2.3 | S9: =OFFSET('Taula Concentrats'!$A$1,$C9,$S$2,1,1) -> 10.8 | T9: =OFFSET('Taula Concentrats'!$A$1,$C9,$T$2,1,1) -> 21.4 | U9: =OFFSET('Taula Concentrats'!$A$1,$C9,$U$2,1,1) -> 0 | V9: =OFFSET('Taula Concentrats'!$A$1,$C9,$V$2,1,1) -> 0.02 | W9: =OFFSET('Taula Concentrats'!$A$1,$C9,$W$2,1,1) -> 0 | X9: =OFFSET('Taula Concentrats'!$A$1,$C9,$X$2,1,1) -> 0 | Y9: =OFFSET('Taula Concentrats'!$A$1,$C9,$Y$2,1,1) -> 0 | Z9: =OFFSET('Taula Concentrats'!$A$1,$C9,$Z$2,1,1) -> 36.55 | AA9: =OFFSET('Taula Concentrats'!$A$1,$C9,$AA$2,1,1) -> 0.5092513996 | AB9: =OFFSET('Taula Concentrats'!$A$1,$C9,$AB$2,1,1) -> 0.8730044467 | AC9: =OFFSET('Taula Concentrats'!$A$1,$C9,$AC$2,1,1) -> 89 | AD9: =OFFSET('Taula Concentrats'!$A$1,$C9,$AD$2,1,1) -> 38.12988822 | AE9: =OFFSET('Taula Concentrats'!$A$1,$C9,$AE$2,1,1) -> 2 | AF9: =OFFSET('Taula Concentrats'!$A$1,$C9,$AF$2,1,1) -> 0.882846 | AG9: =OFFSET('Taula Concentrats'!$A$1,$C9,$AG$2,1,1) -> 870.486156 | AH9: =OFFSET('Taula Concentrats'!$A$1,$C9,$AH$2,1,1) -> 43 | AI9: =OFFSET('Taula Concentrats'!$A$1,$C9,$AI$2,1,1) -> 26 | AJ9: =OFFSET('Taula Concentrats'!$A$1,$C9,$AJ$2,1,1) -> 125 | AK9: =OFFSET('Taula Concentrats'!$A$1,$C9,$AK$2,1,1) -> 31 | AL9: =OFFSET('Taula Concentrats'!$A$1,$C9,$AL$2,1,1) -> 60 | AM9: =OFFSET('Taula Concentrats'!$A$1,$C9,$AM$2,1,1) -> 14 | AN9: =OFFSET('Taula Concentrats'!$A$1,$C9,$AN$2,1,1) -> 0.3 | AO9: =OFFSET('Taula Farratges'!$A$1,$C9,$AO$2,1,1) -> 628.165719 | AP9: =IF('II_Plantejar Ració'!$E10>0,IF(E9>=0,1,"No"),"") ->  | AQ9: =IF('II_Plantejar Ració'!$E10>0,IF(F9>0,1,"No"),"") ->  | AR9: =IF('II_Plantejar Ració'!$E10>0,IF(G9>0,1,"No"),"") ->  | AS9: =IF('II_Plantejar Ració'!$E10>0,IF(H9=0,"No",1),"") ->  | AT9: =IF('II_Plantejar Ració'!$E10>0,IF(AE9>0,1,"No"),"") ->  | AU9: =IF('II_Plantejar Ració'!$E10>0,IF(I9>0,1,"No"),"") ->  | AV9: =IF('II_Plantejar Ració'!$E10>0,IF(J9>0,1,"No"),"") ->  | AW9: =IF('II_Plantejar Ració'!$E10>0,IF(K9>0,1,"No"),"") ->  | AX9: =IF('II_Plantejar Ració'!$E10>0,IF(L9>0,1,"No"),"") ->  | AY9: =IF('II_Plantejar Ració'!$E10>0,IF(M9>0,1,"No"),"") ->  | AZ9: =IF('II_Plantejar Ració'!$E10>0,IF(N9>0,1,"No"),"") ->  | BA9: =IF('II_Plantejar Ració'!$E10>0,IF(O9>0,1,"No"),"") ->  | BB9: =IF('II_Plantejar Ració'!$E10>0,IF(P9>0,1,"No"),"") ->  | BC9: =IF('II_Plantejar Ració'!$E10>0,IF(Q9>0,1,"No"),"") ->  | BD9: =IF('II_Plantejar Ració'!$E10>0,IF(R9>0,1,"No"),"") ->  | BE9: =IF('II_Plantejar Ració'!$E10>0,IF(S9>0,1,"No"),"") ->  | BF9: =IF('II_Plantejar Ració'!$E10>0,IF(T9>0,1,"No"),"") ->  | BG9: =IF('II_Plantejar Ració'!$E10>0,IF(U9>0,1,"No"),"") ->  | BH9: =IF('II_Plantejar Ració'!$E10>0,IF(V9>0,1,"No"),"") ->  | BI9: =IF('II_Plantejar Ració'!$E10>0,IF(W9>0,1,"No"),"") ->  | BJ9: =IF('II_Plantejar Ració'!$E10>0,IF(X9>0,1,"No"),"") ->  | BK9: =IF('II_Plantejar Ració'!$E10>0,IF(Y9>0,1,"No"),"") ->  | BL9: =IF('II_Plantejar Ració'!$E10>0,IF(Z9>0,1,"No"),"") ->  | BM9: =IF('II_Plantejar Ració'!$E10>0,IF(AA9>0,1,"No"),"") ->  | BN9: =IF('II_Plantejar Ració'!$E10>0,IF(AB9>0,1,"No"),"") ->  | BO9: =IF('II_Plantejar Ració'!$E10>0,IF(AC9>0,1,"No"),"") ->  | BP9: =IF('II_Plantejar Ració'!$E10>0,IF(AD9>0,1,"No"),"") ->  | BQ9: =IF('II_Plantejar Ració'!$E10>0,IF(AE9>0,1,"No"),"") ->  | BR9: =IF('II_Plantejar Ració'!$E10>0,IF(AF9>0,1,"No"),"") ->  | BS9: =IF('II_Plantejar Ració'!$E10>0,IF(AG9>0,1,"No"),"") ->  | BT9: =IF('II_Plantejar Ració'!$E10>0,IF(AH9>0,1,"No"),"") ->  | BU9: =IF('II_Plantejar Ració'!$E10>0,IF(AI9>0,1,"No"),"") ->  | BV9: =IF('II_Plantejar Ració'!$E10>0,IF(AJ9>0,1,"No"),"") ->  | BW9: =IF('II_Plantejar Ració'!$E10>0,IF(AK9>0,1,"No"),"") ->  | BX9: =IF('II_Plantejar Ració'!$E10>0,IF(AL9>0,1,"No"),"") ->  | BY9: =IF('II_Plantejar Ració'!$E10>0,IF(AM9>0,1,"No"),"") ->  | BZ9: 0 | CA9: 0 | CB9: 0 | CC9: 0 | CD9: 0 | CE9: 0 | CF9: 0 | CG9: 0 | CH9: 0 | CI9: 0 | CJ9: 0 | CK9: 0 | CL9: 0 | CM9: 0 | CN9: 0 | CO9: 0 | CP9: 0 | CQ9: 0 | CR9: 0 | CS9: 0 | CT9: 0 | CU9: 0 | CV9: 0 | CW9: 0 | CX9: 0 | CY9: 0 | CZ9: 0 | DA9: 0 | DB9: 0 | DC9: 0 | DD9: 0 | DE9: 0 | DF9: 0 | DG9: 0 | DH9: 0 | DI9: 0
B10: =IF(OFFSET('Taula Concentrats'!$A$1,C10,0,1,1)=0,"",OFFSET('Taula Concentrats'!$A$1,C10,0,1,1)) -> Soja tortó 44 | C10: 48 | D10: =OFFSET('Taula Concentrats'!$A$1,$C10,$D$2,1,1) -> 87.2 | E10: =OFFSET('Taula Concentrats'!$A$1,$C10,$E$2,1,1) -> 0 | F10: =OFFSET('Taula Concentrats'!$A$1,$C10,$F$2,1,1) -> 1.165625863 | G10: =OFFSET('Taula Concentrats'!$A$1,$C10,$G$2,1,1) -> 207.0695265 | H10: =OFFSET('Taula Concentrats'!$A$1,$C10,$H$2,1,1) -> 219.1726116 | I10: =OFFSET('Taula Concentrats'!$A$1,$C10,$I$2,1,1) -> 3.4 | J10: =OFFSET('Taula Concentrats'!$A$1,$C10,$J$2,1,1) -> 7 | K10: =OFFSET('Taula Concentrats'!$A$1,$C10,$K$2,1,1) -> 2.7 | L10: =OFFSET('Taula Concentrats'!$A$1,$C10,$L$2,1,1) -> 20 | M10: =OFFSET('Taula Concentrats'!$A$1,$C10,$M$2,1,1) -> 1.95 | N10: =OFFSET('Taula Concentrats'!$A$1,$C10,$N$2,1,1) -> 0 | O10: =OFFSET('Taula Concentrats'!$A$1,$C10,$O$2,1,1) -> 0 | P10: =OFFSET('Taula Concentrats'!$A$1,$C10,$P$2,1,1) -> 200 | Q10: =OFFSET('Taula Concentrats'!$A$1,$C10,$Q$2,1,1) -> 0.3 | R10: =OFFSET('Taula Concentrats'!$A$1,$C10,$R$2,1,1) -> 17.1 | S10: =OFFSET('Taula Concentrats'!$A$1,$C10,$S$2,1,1) -> 43.7 | T10: =OFFSET('Taula Concentrats'!$A$1,$C10,$T$2,1,1) -> 54.6 | U10: =OFFSET('Taula Concentrats'!$A$1,$C10,$U$2,1,1) -> 0 | V10: =OFFSET('Taula Concentrats'!$A$1,$C10,$V$2,1,1) -> 0.2 | W10: =OFFSET('Taula Concentrats'!$A$1,$C10,$W$2,1,1) -> 0 | X10: =OFFSET('Taula Concentrats'!$A$1,$C10,$X$2,1,1) -> 0 | Y10: =OFFSET('Taula Concentrats'!$A$1,$C10,$Y$2,1,1) -> 7 | Z10: =OFFSET('Taula Concentrats'!$A$1,$C10,$Z$2,1,1) -> 16.5 | AA10: =OFFSET('Taula Concentrats'!$A$1,$C10,$AA$2,1,1) -> 0.6819996035 | AB10: =OFFSET('Taula Concentrats'!$A$1,$C10,$AB$2,1,1) -> 0.9886316028 | AC10: =OFFSET('Taula Concentrats'!$A$1,$C10,$AC$2,1,1) -> 488 | AD10: =OFFSET('Taula Concentrats'!$A$1,$C10,$AD$2,1,1) -> 153.419998 | AE10: =OFFSET('Taula Concentrats'!$A$1,$C10,$AE$2,1,1) -> 2 | AF10: =OFFSET('Taula Concentrats'!$A$1,$C10,$AF$2,1,1) -> 0.849655 | AG10: =OFFSET('Taula Concentrats'!$A$1,$C10,$AG$2,1,1) -> 779.133635 | AH10: =OFFSET('Taula Concentrats'!$A$1,$C10,$AH$2,1,1) -> 22 | AI10: =OFFSET('Taula Concentrats'!$A$1,$C10,$AI$2,1,1) -> 84 | AJ10: =OFFSET('Taula Concentrats'!$A$1,$C10,$AJ$2,1,1) -> 163 | AK10: =OFFSET('Taula Concentrats'!$A$1,$C10,$AK$2,1,1) -> 104 | AL10: =OFFSET('Taula Concentrats'!$A$1,$C10,$AL$2,1,1) -> 8 | AM10: =OFFSET('Taula Concentrats'!$A$1,$C10,$AM$2,1,1) -> 83 | AN10: =OFFSET('Taula Concentrats'!$A$1,$C10,$AN$2,1,1) -> 2.3 | AO10: =OFFSET('Taula Farratges'!$A$1,$C10,$AO$2,1,1) -> 492.00891 | AP10: =IF('II_Plantejar Ració'!$E11>0,IF(E10>=0,1,"No"),"") ->  | AQ10: =IF('II_Plantejar Ració'!$E11>0,IF(F10>0,1,"No"),"") ->  | AR10: =IF('II_Plantejar Ració'!$E11>0,IF(G10>0,1,"No"),"") ->  | AS10: =IF('II_Plantejar Ració'!$E11>0,IF(H10=0,"No",1),"") ->  | AT10: =IF('II_Plantejar Ració'!$E11>0,IF(AE10>0,1,"No"),"") ->  | AU10: =IF('II_Plantejar Ració'!$E11>0,IF(I10>0,1,"No"),"") ->  | AV10: =IF('II_Plantejar Ració'!$E11>0,IF(J10>0,1,"No"),"") ->  | AW10: =IF('II_Plantejar Ració'!$E11>0,IF(K10>0,1,"No"),"") ->  | AX10: =IF('II_Plantejar Ració'!$E11>0,IF(L10>0,1,"No"),"") ->  | AY10: =IF('II_Plantejar Ració'!$E11>0,IF(M10>0,1,"No"),"") ->  | AZ10: =IF('II_Plantejar Ració'!$E11>0,IF(N10>0,1,"No"),"") ->  | BA10: =IF('II_Plantejar Ració'!$E11>0,IF(O10>0,1,"No"),"") ->  | BB10: =IF('II_Plantejar Ració'!$E11>0,IF(P10>0,1,"No"),"") ->  | BC10: =IF('II_Plantejar Ració'!$E11>0,IF(Q10>0,1,"No"),"") ->  | BD10: =IF('II_Plantejar Ració'!$E11>0,IF(R10>0,1,"No"),"") ->  | BE10: =IF('II_Plantejar Ració'!$E11>0,IF(S10>0,1,"No"),"") ->  | BF10: =IF('II_Plantejar Ració'!$E11>0,IF(T10>0,1,"No"),"") ->  | BG10: =IF('II_Plantejar Ració'!$E11>0,IF(U10>0,1,"No"),"") ->  | BH10: =IF('II_Plantejar Ració'!$E11>0,IF(V10>0,1,"No"),"") ->  | BI10: =IF('II_Plantejar Ració'!$E11>0,IF(W10>0,1,"No"),"") ->  | BJ10: =IF('II_Plantejar Ració'!$E11>0,IF(X10>0,1,"No"),"") ->  | BK10: =IF('II_Plantejar Ració'!$E11>0,IF(Y10>0,1,"No"),"") ->  | BL10: =IF('II_Plantejar Ració'!$E11>0,IF(Z10>0,1,"No"),"") ->  | BM10: =IF('II_Plantejar Ració'!$E11>0,IF(AA10>0,1,"No"),"") ->  | BN10: =IF('II_Plantejar Ració'!$E11>0,IF(AB10>0,1,"No"),"") ->  | BO10: =IF('II_Plantejar Ració'!$E11>0,IF(AC10>0,1,"No"),"") ->  | BP10: =IF('II_Plantejar Ració'!$E11>0,IF(AD10>0,1,"No"),"") ->  | BQ10: =IF('II_Plantejar Ració'!$E11>0,IF(AE10>0,1,"No"),"") ->  | BR10: =IF('II_Plantejar Ració'!$E11>0,IF(AF10>0,1,"No"),"") ->  | BS10: =IF('II_Plantejar Ració'!$E11>0,IF(AG10>0,1,"No"),"") ->  | BT10: =IF('II_Plantejar Ració'!$E11>0,IF(AH10>0,1,"No"),"") ->  | BU10: =IF('II_Plantejar Ració'!$E11>0,IF(AI10>0,1,"No"),"") ->  | BV10: =IF('II_Plantejar Ració'!$E11>0,IF(AJ10>0,1,"No"),"") ->  | BW10: =IF('II_Plantejar Ració'!$E11>0,IF(AK10>0,1,"No"),"") ->  | BX10: =IF('II_Plantejar Ració'!$E11>0,IF(AL10>0,1,"No"),"") ->  | BY10: =IF('II_Plantejar Ració'!$E11>0,IF(AM10>0,1,"No"),"") ->  | BZ10: 0 | CA10: 0 | CB10: 0 | CC10: 0 | CD10: 0 | CE10: 0 | CF10: 0 | CG10: 0 | CH10: 0 | CI10: 0 | CJ10: 0 | CK10: 0 | CL10: 0 | CM10: 0 | CN10: 0 | CO10: 0 | CP10: 0 | CQ10: 0 | CR10: 0 | CS10: 0 | CT10: 0 | CU10: 0 | CV10: 0 | CW10: 0 | CX10: 0 | CY10: 0 | CZ10: 0 | DA10: 0 | DB10: 0 | DC10: 0 | DD10: 0 | DE10: 0 | DF10: 0 | DG10: 0 | DH10: 0 | DI10: 0
B11: =IF(OFFSET('Taula Concentrats'!$A$1,C11,0,1,1)=0,"",OFFSET('Taula Concentrats'!$A$1,C11,0,1,1)) ->  | C11: 1 | D11: =OFFSET('Taula Concentrats'!$A$1,$C11,$D$2,1,1) -> 0 | E11: =OFFSET('Taula Concentrats'!$A$1,$C11,$E$2,1,1) -> 0 | F11: =OFFSET('Taula Concentrats'!$A$1,$C11,$F$2,1,1) -> 0 | G11: =OFFSET('Taula Concentrats'!$A$1,$C11,$G$2,1,1) -> 0 | H11: =OFFSET('Taula Concentrats'!$A$1,$C11,$H$2,1,1) -> 0 | I11: =OFFSET('Taula Concentrats'!$A$1,$C11,$I$2,1,1) -> 0 | J11: =OFFSET('Taula Concentrats'!$A$1,$C11,$J$2,1,1) -> 0 | K11: =OFFSET('Taula Concentrats'!$A$1,$C11,$K$2,1,1) -> 0 | L11: =OFFSET('Taula Concentrats'!$A$1,$C11,$L$2,1,1) -> 0 | M11: =OFFSET('Taula Concentrats'!$A$1,$C11,$M$2,1,1) -> 0 | N11: =OFFSET('Taula Concentrats'!$A$1,$C11,$N$2,1,1) -> 0 | O11: =OFFSET('Taula Concentrats'!$A$1,$C11,$O$2,1,1) -> 0 | P11: =OFFSET('Taula Concentrats'!$A$1,$C11,$P$2,1,1) -> 0 | Q11: =OFFSET('Taula Concentrats'!$A$1,$C11,$Q$2,1,1) -> 0 | R11: =OFFSET('Taula Concentrats'!$A$1,$C11,$R$2,1,1) -> 0 | S11: =OFFSET('Taula Concentrats'!$A$1,$C11,$S$2,1,1) -> 0 | T11: =OFFSET('Taula Concentrats'!$A$1,$C11,$T$2,1,1) -> 0 | U11: =OFFSET('Taula Concentrats'!$A$1,$C11,$U$2,1,1) -> 0 | V11: =OFFSET('Taula Concentrats'!$A$1,$C11,$V$2,1,1) -> 0 | W11: =OFFSET('Taula Concentrats'!$A$1,$C11,$W$2,1,1) -> 0 | X11: =OFFSET('Taula Concentrats'!$A$1,$C11,$X$2,1,1) -> 0 | Y11: =OFFSET('Taula Concentrats'!$A$1,$C11,$Y$2,1,1) -> 0 | Z11: =OFFSET('Taula Concentrats'!$A$1,$C11,$Z$2,1,1) -> 0 | AA11: =OFFSET('Taula Concentrats'!$A$1,$C11,$AA$2,1,1) -> 0 | AB11: =OFFSET('Taula Concentrats'!$A$1,$C11,$AB$2,1,1) -> 0 | AC11: =OFFSET('Taula Concentrats'!$A$1,$C11,$AC$2,1,1) -> 0 | AD11: =OFFSET('Taula Concentrats'!$A$1,$C11,$AD$2,1,1) -> 0 | AE11: =OFFSET('Taula Concentrats'!$A$1,$C11,$AE$2,1,1) -> 0 | AF11: =OFFSET('Taula Concentrats'!$A$1,$C11,$AF$2,1,1) -> 0 | AG11: =OFFSET('Taula Concentrats'!$A$1,$C11,$AG$2,1,1) -> 0 | AH11: =OFFSET('Taula Concentrats'!$A$1,$C11,$AH$2,1,1) -> 0 | AI11: =OFFSET('Taula Concentrats'!$A$1,$C11,$AI$2,1,1) -> 0 | AJ11: =OFFSET('Taula Concentrats'!$A$1,$C11,$AJ$2,1,1) -> 0 | AK11: =OFFSET('Taula Concentrats'!$A$1,$C11,$AK$2,1,1) -> 0 | AL11: =OFFSET('Taula Concentrats'!$A$1,$C11,$AL$2,1,1) -> 0 | AM11: =OFFSET('Taula Concentrats'!$A$1,$C11,$AM$2,1,1) -> 0 | AN11: =OFFSET('Taula Concentrats'!$A$1,$C11,$AN$2,1,1) -> 0 | AO11: =OFFSET('Taula Farratges'!$A$1,$C11,$AO$2,1,1) -> 0 | AP11: =IF('II_Plantejar Ració'!$E12>0,IF(E11>=0,1,"No"),"") ->  | AQ11: =IF('II_Plantejar Ració'!$E12>0,IF(F11>0,1,"No"),"") ->  | AR11: =IF('II_Plantejar Ració'!$E12>0,IF(G11>0,1,"No"),"") ->  | AS11: =IF('II_Plantejar Ració'!$E12>0,IF(H11=0,"No",1),"") ->  | AT11: =IF('II_Plantejar Ració'!$E12>0,IF(AE11>0,1,"No"),"") ->  | AU11: =IF('II_Plantejar Ració'!$E12>0,IF(I11>0,1,"No"),"") ->  | AV11: =IF('II_Plantejar Ració'!$E12>0,IF(J11>0,1,"No"),"") ->  | AW11: =IF('II_Plantejar Ració'!$E12>0,IF(K11>0,1,"No"),"") ->  | AX11: =IF('II_Plantejar Ració'!$E12>0,IF(L11>0,1,"No"),"") ->  | AY11: =IF('II_Plantejar Ració'!$E12>0,IF(M11>0,1,"No"),"") ->  | AZ11: =IF('II_Plantejar Ració'!$E12>0,IF(N11>0,1,"No"),"") ->  | BA11: =IF('II_Plantejar Ració'!$E12>0,IF(O11>0,1,"No"),"") ->  | BB11: =IF('II_Plantejar Ració'!$E12>0,IF(P11>0,1,"No"),"") ->  | BC11: =IF('II_Plantejar Ració'!$E12>0,IF(Q11>0,1,"No"),"") ->  | BD11: =IF('II_Plantejar Ració'!$E12>0,IF(R11>0,1,"No"),"") ->  | BE11: =IF('II_Plantejar Ració'!$E12>0,IF(S11>0,1,"No"),"") ->  | BF11: =IF('II_Plantejar Ració'!$E12>0,IF(T11>0,1,"No"),"") ->  | BG11: =IF('II_Plantejar Ració'!$E12>0,IF(U11>0,1,"No"),"") ->  | BH11: =IF('II_Plantejar Ració'!$E12>0,IF(V11>0,1,"No"),"") ->  | BI11: =IF('II_Plantejar Ració'!$E12>0,IF(W11>0,1,"No"),"") ->  | BJ11: =IF('II_Plantejar Ració'!$E12>0,IF(X11>0,1,"No"),"") ->  | BK11: =IF('II_Plantejar Ració'!$E12>0,IF(Y11>0,1,"No"),"") ->  | BL11: =IF('II_Plantejar Ració'!$E12>0,IF(Z11>0,1,"No"),"") ->  | BM11: =IF('II_Plantejar Ració'!$E12>0,IF(AA11>0,1,"No"),"") ->  | BN11: =IF('II_Plantejar Ració'!$E12>0,IF(AB11>0,1,"No"),"") ->  | BO11: =IF('II_Plantejar Ració'!$E12>0,IF(AC11>0,1,"No"),"") ->  | BP11: =IF('II_Plantejar Ració'!$E12>0,IF(AD11>0,1,"No"),"") ->  | BQ11: =IF('II_Plantejar Ració'!$E12>0,IF(AE11>0,1,"No"),"") ->  | BR11: =IF('II_Plantejar Ració'!$E12>0,IF(AF11>0,1,"No"),"") ->  | BS11: =IF('II_Plantejar Ració'!$E12>0,IF(AG11>0,1,"No"),"") ->  | BT11: =IF('II_Plantejar Ració'!$E12>0,IF(AH11>0,1,"No"),"") ->  | BU11: =IF('II_Plantejar Ració'!$E12>0,IF(AI11>0,1,"No"),"") ->  | BV11: =IF('II_Plantejar Ració'!$E12>0,IF(AJ11>0,1,"No"),"") ->  | BW11: =IF('II_Plantejar Ració'!$E12>0,IF(AK11>0,1,"No"),"") ->  | BX11: =IF('II_Plantejar Ració'!$E12>0,IF(AL11>0,1,"No"),"") ->  | BY11: =IF('II_Plantejar Ració'!$E12>0,IF(AM11>0,1,"No"),"") ->  | BZ11: 0 | CA11: 0 | CB11: 0 | CC11: 0 | CD11: 0 | CE11: 0 | CF11: 0 | CG11: 0 | CH11: 0 | CI11: 0 | CJ11: 0 | CK11: 0 | CL11: 0 | CM11: 0 | CN11: 0 | CO11: 0 | CP11: 0 | CQ11: 0 | CR11: 0 | CS11: 0 | CT11: 0 | CU11: 0 | CV11: 0 | CW11: 0 | CX11: 0 | CY11: 0 | CZ11: 0 | DA11: 0 | DB11: 0 | DC11: 0 | DD11: 0 | DE11: 0 | DF11: 0 | DG11: 0 | DH11: 0 | DI11: 0
B12: =IF(OFFSET('Taula Concentrats'!$A$1,C12,0,1,1)=0,"",OFFSET('Taula Concentrats'!$A$1,C12,0,1,1)) ->  | C12: 1 | D12: =OFFSET('Taula Concentrats'!$A$1,$C12,$D$2,1,1) -> 0 | E12: =OFFSET('Taula Concentrats'!$A$1,$C12,$E$2,1,1) -> 0 | F12: =OFFSET('Taula Concentrats'!$A$1,$C12,$F$2,1,1) -> 0 | G12: =OFFSET('Taula Concentrats'!$A$1,$C12,$G$2,1,1) -> 0 | H12: =OFFSET('Taula Concentrats'!$A$1,$C12,$H$2,1,1) -> 0 | I12: =OFFSET('Taula Concentrats'!$A$1,$C12,$I$2,1,1) -> 0 | J12: =OFFSET('Taula Concentrats'!$A$1,$C12,$J$2,1,1) -> 0 | K12: =OFFSET('Taula Concentrats'!$A$1,$C12,$K$2,1,1) -> 0 | L12: =OFFSET('Taula Concentrats'!$A$1,$C12,$L$2,1,1) -> 0 | M12: =OFFSET('Taula Concentrats'!$A$1,$C12,$M$2,1,1) -> 0 | N12: =OFFSET('Taula Concentrats'!$A$1,$C12,$N$2,1,1) -> 0 | O12: =OFFSET('Taula Concentrats'!$A$1,$C12,$O$2,1,1) -> 0 | P12: =OFFSET('Taula Concentrats'!$A$1,$C12,$P$2,1,1) -> 0 | Q12: =OFFSET('Taula Concentrats'!$A$1,$C12,$Q$2,1,1) -> 0 | R12: =OFFSET('Taula Concentrats'!$A$1,$C12,$R$2,1,1) -> 0 | S12: =OFFSET('Taula Concentrats'!$A$1,$C12,$S$2,1,1) -> 0 | T12: =OFFSET('Taula Concentrats'!$A$1,$C12,$T$2,1,1) -> 0 | U12: =OFFSET('Taula Concentrats'!$A$1,$C12,$U$2,1,1) -> 0 | V12: =OFFSET('Taula Concentrats'!$A$1,$C12,$V$2,1,1) -> 0 | W12: =OFFSET('Taula Concentrats'!$A$1,$C12,$W$2,1,1) -> 0 | X12: =OFFSET('Taula Concentrats'!$A$1,$C12,$X$2,1,1) -> 0 | Y12: =OFFSET('Taula Concentrats'!$A$1,$C12,$Y$2,1,1) -> 0 | Z12: =OFFSET('Taula Concentrats'!$A$1,$C12,$Z$2,1,1) -> 0 | AA12: =OFFSET('Taula Concentrats'!$A$1,$C12,$AA$2,1,1) -> 0 | AB12: =OFFSET('Taula Concentrats'!$A$1,$C12,$AB$2,1,1) -> 0 | AC12: =OFFSET('Taula Concentrats'!$A$1,$C12,$AC$2,1,1) -> 0 | AD12: =OFFSET('Taula Concentrats'!$A$1,$C12,$AD$2,1,1) -> 0 | AE12: =OFFSET('Taula Concentrats'!$A$1,$C12,$AE$2,1,1) -> 0 | AF12: =OFFSET('Taula Concentrats'!$A$1,$C12,$AF$2,1,1) -> 0 | AG12: =OFFSET('Taula Concentrats'!$A$1,$C12,$AG$2,1,1) -> 0 | AH12: =OFFSET('Taula Concentrats'!$A$1,$C12,$AH$2,1,1) -> 0 | AI12: =OFFSET('Taula Concentrats'!$A$1,$C12,$AI$2,1,1) -> 0 | AJ12: =OFFSET('Taula Concentrats'!$A$1,$C12,$AJ$2,1,1) -> 0 | AK12: =OFFSET('Taula Concentrats'!$A$1,$C12,$AK$2,1,1) -> 0 | AL12: =OFFSET('Taula Concentrats'!$A$1,$C12,$AL$2,1,1) -> 0 | AM12: =OFFSET('Taula Concentrats'!$A$1,$C12,$AM$2,1,1) -> 0 | AN12: =OFFSET('Taula Concentrats'!$A$1,$C12,$AN$2,1,1) -> 0 | AO12: =OFFSET('Taula Farratges'!$A$1,$C12,$AO$2,1,1) -> 0 | AP12: =IF('II_Plantejar Ració'!$E13>0,IF(E12>=0,1,"No"),"") ->  | AQ12: =IF('II_Plantejar Ració'!$E13>0,IF(F12>0,1,"No"),"") ->  | AR12: =IF('II_Plantejar Ració'!$E13>0,IF(G12>0,1,"No"),"") ->  | AS12: =IF('II_Plantejar Ració'!$E13>0,IF(H12=0,"No",1),"") ->  | AT12: =IF('II_Plantejar Ració'!$E13>0,IF(AE12>0,1,"No"),"") ->  | AU12: =IF('II_Plantejar Ració'!$E13>0,IF(I12>0,1,"No"),"") ->  | AV12: =IF('II_Plantejar Ració'!$E13>0,IF(J12>0,1,"No"),"") ->  | AW12: =IF('II_Plantejar Ració'!$E13>0,IF(K12>0,1,"No"),"") ->  | AX12: =IF('II_Plantejar Ració'!$E13>0,IF(L12>0,1,"No"),"") ->  | AY12: =IF('II_Plantejar Ració'!$E13>0,IF(M12>0,1,"No"),"") ->  | AZ12: =IF('II_Plantejar Ració'!$E13>0,IF(N12>0,1,"No"),"") ->  | BA12: =IF('II_Plantejar Ració'!$E13>0,IF(O12>0,1,"No"),"") ->  | BB12: =IF('II_Plantejar Ració'!$E13>0,IF(P12>0,1,"No"),"") ->  | BC12: =IF('II_Plantejar Ració'!$E13>0,IF(Q12>0,1,"No"),"") ->  | BD12: =IF('II_Plantejar Ració'!$E13>0,IF(R12>0,1,"No"),"") ->  | BE12: =IF('II_Plantejar Ració'!$E13>0,IF(S12>0,1,"No"),"") ->  | BF12: =IF('II_Plantejar Ració'!$E13>0,IF(T12>0,1,"No"),"") ->  | BG12: =IF('II_Plantejar Ració'!$E13>0,IF(U12>0,1,"No"),"") ->  | BH12: =IF('II_Plantejar Ració'!$E13>0,IF(V12>0,1,"No"),"") ->  | BI12: =IF('II_Plantejar Ració'!$E13>0,IF(W12>0,1,"No"),"") ->  | BJ12: =IF('II_Plantejar Ració'!$E13>0,IF(X12>0,1,"No"),"") ->  | BK12: =IF('II_Plantejar Ració'!$E13>0,IF(Y12>0,1,"No"),"") ->  | BL12: =IF('II_Plantejar Ració'!$E13>0,IF(Z12>0,1,"No"),"") ->  | BM12: =IF('II_Plantejar Ració'!$E13>0,IF(AA12>0,1,"No"),"") ->  | BN12: =IF('II_Plantejar Ració'!$E13>0,IF(AB12>0,1,"No"),"") ->  | BO12: =IF('II_Plantejar Ració'!$E13>0,IF(AC12>0,1,"No"),"") ->  | BP12: =IF('II_Plantejar Ració'!$E13>0,IF(AD12>0,1,"No"),"") ->  | BQ12: =IF('II_Plantejar Ració'!$E13>0,IF(AE12>0,1,"No"),"") ->  | BR12: =IF('II_Plantejar Ració'!$E13>0,IF(AF12>0,1,"No"),"") ->  | BS12: =IF('II_Plantejar Ració'!$E13>0,IF(AG12>0,1,"No"),"") ->  | BT12: =IF('II_Plantejar Ració'!$E13>0,IF(AH12>0,1,"No"),"") ->  | BU12: =IF('II_Plantejar Ració'!$E13>0,IF(AI12>0,1,"No"),"") ->  | BV12: =IF('II_Plantejar Ració'!$E13>0,IF(AJ12>0,1,"No"),"") ->  | BW12: =IF('II_Plantejar Ració'!$E13>0,IF(AK12>0,1,"No"),"") ->  | BX12: =IF('II_Plantejar Ració'!$E13>0,IF(AL12>0,1,"No"),"") ->  | BY12: =IF('II_Plantejar Ració'!$E13>0,IF(AM12>0,1,"No"),"") ->  | BZ12: 0 | CA12: 0 | CB12: 0 | CC12: 0 | CD12: 0 | CE12: 0 | CF12: 0 | CG12: 0 | CH12: 0 | CI12: 0 | CJ12: 0 | CK12: 0 | CL12: 0 | CM12: 0 | CN12: 0 | CO12: 0 | CP12: 0 | CQ12: 0 | CR12: 0 | CS12: 0 | CT12: 0 | CU12: 0 | CV12: 0 | CW12: 0 | CX12: 0 | CY12: 0 | CZ12: 0 | DA12: 0 | DB12: 0 | DC12: 0 | DD12: 0 | DE12: 0 | DF12: 0 | DG12: 0 | DH12: 0 | DI12: 0
B13: =IF(OFFSET('Taula Concentrats'!$A$1,C13,0,1,1)=0,"",OFFSET('Taula Concentrats'!$A$1,C13,0,1,1)) ->  | C13: 1 | D13: =OFFSET('Taula Concentrats'!$A$1,$C13,$D$2,1,1) -> 0 | E13: =OFFSET('Taula Concentrats'!$A$1,$C13,$E$2,1,1) -> 0 | F13: =OFFSET('Taula Concentrats'!$A$1,$C13,$F$2,1,1) -> 0 | G13: =OFFSET('Taula Concentrats'!$A$1,$C13,$G$2,1,1) -> 0 | H13: =OFFSET('Taula Concentrats'!$A$1,$C13,$H$2,1,1) -> 0 | I13: =OFFSET('Taula Concentrats'!$A$1,$C13,$I$2,1,1) -> 0 | J13: =OFFSET('Taula Concentrats'!$A$1,$C13,$J$2,1,1) -> 0 | K13: =OFFSET('Taula Concentrats'!$A$1,$C13,$K$2,1,1) -> 0 | L13: =OFFSET('Taula Concentrats'!$A$1,$C13,$L$2,1,1) -> 0 | M13: =OFFSET('Taula Concentrats'!$A$1,$C13,$M$2,1,1) -> 0 | N13: =OFFSET('Taula Concentrats'!$A$1,$C13,$N$2,1,1) -> 0 | O13: =OFFSET('Taula Concentrats'!$A$1,$C13,$O$2,1,1) -> 0 | P13: =OFFSET('Taula Concentrats'!$A$1,$C13,$P$2,1,1) -> 0 | Q13: =OFFSET('Taula Concentrats'!$A$1,$C13,$Q$2,1,1) -> 0 | R13: =OFFSET('Taula Concentrats'!$A$1,$C13,$R$2,1,1) -> 0 | S13: =OFFSET('Taula Concentrats'!$A$1,$C13,$S$2,1,1) -> 0 | T13: =OFFSET('Taula Concentrats'!$A$1,$C13,$T$2,1,1) -> 0 | U13: =OFFSET('Taula Concentrats'!$A$1,$C13,$U$2,1,1) -> 0 | V13: =OFFSET('Taula Concentrats'!$A$1,$C13,$V$2,1,1) -> 0 | W13: =OFFSET('Taula Concentrats'!$A$1,$C13,$W$2,1,1) -> 0 | X13: =OFFSET('Taula Concentrats'!$A$1,$C13,$X$2,1,1) -> 0 | Y13: =OFFSET('Taula Concentrats'!$A$1,$C13,$Y$2,1,1) -> 0 | Z13: =OFFSET('Taula Concentrats'!$A$1,$C13,$Z$2,1,1) -> 0 | AA13: =OFFSET('Taula Concentrats'!$A$1,$C13,$AA$2,1,1) -> 0 | AB13: =OFFSET('Taula Concentrats'!$A$1,$C13,$AB$2,1,1) -> 0 | AC13: =OFFSET('Taula Concentrats'!$A$1,$C13,$AC$2,1,1) -> 0 | AD13: =OFFSET('Taula Concentrats'!$A$1,$C13,$AD$2,1,1) -> 0 | AE13: =OFFSET('Taula Concentrats'!$A$1,$C13,$AE$2,1,1) -> 0 | AF13: =OFFSET('Taula Concentrats'!$A$1,$C13,$AF$2,1,1) -> 0 | AG13: =OFFSET('Taula Concentrats'!$A$1,$C13,$AG$2,1,1) -> 0 | AH13: =OFFSET('Taula Concentrats'!$A$1,$C13,$AH$2,1,1) -> 0 | AI13: =OFFSET('Taula Concentrats'!$A$1,$C13,$AI$2,1,1) -> 0 | AJ13: =OFFSET('Taula Concentrats'!$A$1,$C13,$AJ$2,1,1) -> 0 | AK13: =OFFSET('Taula Concentrats'!$A$1,$C13,$AK$2,1,1) -> 0 | AL13: =OFFSET('Taula Concentrats'!$A$1,$C13,$AL$2,1,1) -> 0 | AM13: =OFFSET('Taula Concentrats'!$A$1,$C13,$AM$2,1,1) -> 0 | AN13: =OFFSET('Taula Concentrats'!$A$1,$C13,$AN$2,1,1) -> 0 | AO13: =OFFSET('Taula Farratges'!$A$1,$C13,$AO$2,1,1) -> 0 | AP13: =IF('II_Plantejar Ració'!$E14>0,IF(E13>=0,1,"No"),"") ->  | AQ13: =IF('II_Plantejar Ració'!$E14>0,IF(F13>0,1,"No"),"") ->  | AR13: =IF('II_Plantejar Ració'!$E14>0,IF(G13>0,1,"No"),"") ->  | AS13: =IF('II_Plantejar Ració'!$E14>0,IF(H13=0,"No",1),"") ->  | AT13: =IF('II_Plantejar Ració'!$E14>0,IF(AE13>0,1,"No"),"") ->  | AU13: =IF('II_Plantejar Ració'!$E14>0,IF(I13>0,1,"No"),"") ->  | AV13: =IF('II_Plantejar Ració'!$E14>0,IF(J13>0,1,"No"),"") ->  | AW13: =IF('II_Plantejar Ració'!$E14>0,IF(K13>0,1,"No"),"") ->  | AX13: =IF('II_Plantejar Ració'!$E14>0,IF(L13>0,1,"No"),"") ->  | AY13: =IF('II_Plantejar Ració'!$E14>0,IF(M13>0,1,"No"),"") ->  | AZ13: =IF('II_Plantejar Ració'!$E14>0,IF(N13>0,1,"No"),"") ->  | BA13: =IF('II_Plantejar Ració'!$E14>0,IF(O13>0,1,"No"),"") ->  | BB13: =IF('II_Plantejar Ració'!$E14>0,IF(P13>0,1,"No"),"") ->  | BC13: =IF('II_Plantejar Ració'!$E14>0,IF(Q13>0,1,"No"),"") ->  | BD13: =IF('II_Plantejar Ració'!$E14>0,IF(R13>0,1,"No"),"") ->  | BE13: =IF('II_Plantejar Ració'!$E14>0,IF(S13>0,1,"No"),"") ->  | BF13: =IF('II_Plantejar Ració'!$E14>0,IF(T13>0,1,"No"),"") ->  | BG13: =IF('II_Plantejar Ració'!$E14>0,IF(U13>0,1,"No"),"") ->  | BH13: =IF('II_Plantejar Ració'!$E14>0,IF(V13>0,1,"No"),"") ->  | BI13: =IF('II_Plantejar Ració'!$E14>0,IF(W13>0,1,"No"),"") ->  | BJ13: =IF('II_Plantejar Ració'!$E14>0,IF(X13>0,1,"No"),"") ->  | BK13: =IF('II_Plantejar Ració'!$E14>0,IF(Y13>0,1,"No"),"") ->  | BL13: =IF('II_Plantejar Ració'!$E14>0,IF(Z13>0,1,"No"),"") ->  | BM13: =IF('II_Plantejar Ració'!$E14>0,IF(AA13>0,1,"No"),"") ->  | BN13: =IF('II_Plantejar Ració'!$E14>0,IF(AB13>0,1,"No"),"") ->  | BO13: =IF('II_Plantejar Ració'!$E14>0,IF(AC13>0,1,"No"),"") ->  | BP13: =IF('II_Plantejar Ració'!$E14>0,IF(AD13>0,1,"No"),"") ->  | BQ13: =IF('II_Plantejar Ració'!$E14>0,IF(AE13>0,1,"No"),"") ->  | BR13: =IF('II_Plantejar Ració'!$E14>0,IF(AF13>0,1,"No"),"") ->  | BS13: =IF('II_Plantejar Ració'!$E14>0,IF(AG13>0,1,"No"),"") ->  | BT13: =IF('II_Plantejar Ració'!$E14>0,IF(AH13>0,1,"No"),"") ->  | BU13: =IF('II_Plantejar Ració'!$E14>0,IF(AI13>0,1,"No"),"") ->  | BV13: =IF('II_Plantejar Ració'!$E14>0,IF(AJ13>0,1,"No"),"") ->  | BW13: =IF('II_Plantejar Ració'!$E14>0,IF(AK13>0,1,"No"),"") ->  | BX13: =IF('II_Plantejar Ració'!$E14>0,IF(AL13>0,1,"No"),"") ->  | BY13: =IF('II_Plantejar Ració'!$E14>0,IF(AM13>0,1,"No"),"") ->  | BZ13: 0 | CA13: 0 | CB13: 0 | CC13: 0 | CD13: 0 | CE13: 0 | CF13: 0 | CG13: 0 | CH13: 0 | CI13: 0 | CJ13: 0 | CK13: 0 | CL13: 0 | CM13: 0 | CN13: 0 | CO13: 0 | CP13: 0 | CQ13: 0 | CR13: 0 | CS13: 0 | CT13: 0 | CU13: 0 | CV13: 0 | CW13: 0 | CX13: 0 | CY13: 0 | CZ13: 0 | DA13: 0 | DB13: 0 | DC13: 0 | DD13: 0 | DE13: 0 | DF13: 0 | DG13: 0 | DH13: 0 | DI13: 0
B14: =IF(OFFSET('Taula Concentrats'!$A$1,C14,0,1,1)=0,"",OFFSET('Taula Concentrats'!$A$1,C14,0,1,1)) ->  | C14: 1 | D14: =OFFSET('Taula Concentrats'!$A$1,$C14,$D$2,1,1) -> 0 | E14: =OFFSET('Taula Concentrats'!$A$1,$C14,$E$2,1,1) -> 0 | F14: =OFFSET('Taula Concentrats'!$A$1,$C14,$F$2,1,1) -> 0 | G14: =OFFSET('Taula Concentrats'!$A$1,$C14,$G$2,1,1) -> 0 | H14: =OFFSET('Taula Concentrats'!$A$1,$C14,$H$2,1,1) -> 0 | I14: =OFFSET('Taula Concentrats'!$A$1,$C14,$I$2,1,1) -> 0 | J14: =OFFSET('Taula Concentrats'!$A$1,$C14,$J$2,1,1) -> 0 | K14: =OFFSET('Taula Concentrats'!$A$1,$C14,$K$2,1,1) -> 0 | L14: =OFFSET('Taula Concentrats'!$A$1,$C14,$L$2,1,1) -> 0 | M14: =OFFSET('Taula Concentrats'!$A$1,$C14,$M$2,1,1) -> 0 | N14: =OFFSET('Taula Concentrats'!$A$1,$C14,$N$2,1,1) -> 0 | O14: =OFFSET('Taula Concentrats'!$A$1,$C14,$O$2,1,1) -> 0 | P14: =OFFSET('Taula Concentrats'!$A$1,$C14,$P$2,1,1) -> 0 | Q14: =OFFSET('Taula Concentrats'!$A$1,$C14,$Q$2,1,1) -> 0 | R14: =OFFSET('Taula Concentrats'!$A$1,$C14,$R$2,1,1) -> 0 | S14: =OFFSET('Taula Concentrats'!$A$1,$C14,$S$2,1,1) -> 0 | T14: =OFFSET('Taula Concentrats'!$A$1,$C14,$T$2,1,1) -> 0 | U14: =OFFSET('Taula Concentrats'!$A$1,$C14,$U$2,1,1) -> 0 | V14: =OFFSET('Taula Concentrats'!$A$1,$C14,$V$2,1,1) -> 0 | W14: =OFFSET('Taula Concentrats'!$A$1,$C14,$W$2,1,1) -> 0 | X14: =OFFSET('Taula Concentrats'!$A$1,$C14,$X$2,1,1) -> 0 | Y14: =OFFSET('Taula Concentrats'!$A$1,$C14,$Y$2,1,1) -> 0 | Z14: =OFFSET('Taula Concentrats'!$A$1,$C14,$Z$2,1,1) -> 0 | AA14: =OFFSET('Taula Concentrats'!$A$1,$C14,$AA$2,1,1) -> 0 | AB14: =OFFSET('Taula Concentrats'!$A$1,$C14,$AB$2,1,1) -> 0 | AC14: =OFFSET('Taula Concentrats'!$A$1,$C14,$AC$2,1,1) -> 0 | AD14: =OFFSET('Taula Concentrats'!$A$1,$C14,$AD$2,1,1) -> 0 | AE14: =OFFSET('Taula Concentrats'!$A$1,$C14,$AE$2,1,1) -> 0 | AF14: =OFFSET('Taula Concentrats'!$A$1,$C14,$AF$2,1,1) -> 0 | AG14: =OFFSET('Taula Concentrats'!$A$1,$C14,$AG$2,1,1) -> 0 | AH14: =OFFSET('Taula Concentrats'!$A$1,$C14,$AH$2,1,1) -> 0 | AI14: =OFFSET('Taula Concentrats'!$A$1,$C14,$AI$2,1,1) -> 0 | AJ14: =OFFSET('Taula Concentrats'!$A$1,$C14,$AJ$2,1,1) -> 0 | AK14: =OFFSET('Taula Concentrats'!$A$1,$C14,$AK$2,1,1) -> 0 | AL14: =OFFSET('Taula Concentrats'!$A$1,$C14,$AL$2,1,1) -> 0 | AM14: =OFFSET('Taula Concentrats'!$A$1,$C14,$AM$2,1,1) -> 0 | AN14: =OFFSET('Taula Concentrats'!$A$1,$C14,$AN$2,1,1) -> 0 | AO14: =OFFSET('Taula Farratges'!$A$1,$C14,$AO$2,1,1) -> 0 | AP14: =IF('II_Plantejar Ració'!$E15>0,IF(E14>=0,1,"No"),"") ->  | AQ14: =IF('II_Plantejar Ració'!$E15>0,IF(F14>0,1,"No"),"") ->  | AR14: =IF('II_Plantejar Ració'!$E15>0,IF(G14>0,1,"No"),"") ->  | AS14: =IF('II_Plantejar Ració'!$E15>0,IF(H14=0,"No",1),"") ->  | AT14: =IF('II_Plantejar Ració'!$E15>0,IF(AE14>0,1,"No"),"") ->  | AU14: =IF('II_Plantejar Ració'!$E15>0,IF(I14>0,1,"No"),"") ->  | AV14: =IF('II_Plantejar Ració'!$E15>0,IF(J14>0,1,"No"),"") ->  | AW14: =IF('II_Plantejar Ració'!$E15>0,IF(K14>0,1,"No"),"") ->  | AX14: =IF('II_Plantejar Ració'!$E15>0,IF(L14>0,1,"No"),"") ->  | AY14: =IF('II_Plantejar Ració'!$E15>0,IF(M14>0,1,"No"),"") ->  | AZ14: =IF('II_Plantejar Ració'!$E15>0,IF(N14>0,1,"No"),"") ->  | BA14: =IF('II_Plantejar Ració'!$E15>0,IF(O14>0,1,"No"),"") ->  | BB14: =IF('II_Plantejar Ració'!$E15>0,IF(P14>0,1,"No"),"") ->  | BC14: =IF('II_Plantejar Ració'!$E15>0,IF(Q14>0,1,"No"),"") ->  | BD14: =IF('II_Plantejar Ració'!$E15>0,IF(R14>0,1,"No"),"") ->  | BE14: =IF('II_Plantejar Ració'!$E15>0,IF(S14>0,1,"No"),"") ->  | BF14: =IF('II_Plantejar Ració'!$E15>0,IF(T14>0,1,"No"),"") ->  | BG14: =IF('II_Plantejar Ració'!$E15>0,IF(U14>0,1,"No"),"") ->  | BH14: =IF('II_Plantejar Ració'!$E15>0,IF(V14>0,1,"No"),"") ->  | BI14: =IF('II_Plantejar Ració'!$E15>0,IF(W14>0,1,"No"),"") ->  | BJ14: =IF('II_Plantejar Ració'!$E15>0,IF(X14>0,1,"No"),"") ->  | BK14: =IF('II_Plantejar Ració'!$E15>0,IF(Y14>0,1,"No"),"") ->  | BL14: =IF('II_Plantejar Ració'!$E15>0,IF(Z14>0,1,"No"),"") ->  | BM14: =IF('II_Plantejar Ració'!$E15>0,IF(AA14>0,1,"No"),"") ->  | BN14: =IF('II_Plantejar Ració'!$E15>0,IF(AB14>0,1,"No"),"") ->  | BO14: =IF('II_Plantejar Ració'!$E15>0,IF(AC14>0,1,"No"),"") ->  | BP14: =IF('II_Plantejar Ració'!$E15>0,IF(AD14>0,1,"No"),"") ->  | BQ14: =IF('II_Plantejar Ració'!$E15>0,IF(AE14>0,1,"No"),"") ->  | BR14: =IF('II_Plantejar Ració'!$E15>0,IF(AF14>0,1,"No"),"") ->  | BS14: =IF('II_Plantejar Ració'!$E15>0,IF(AG14>0,1,"No"),"") ->  | BT14: =IF('II_Plantejar Ració'!$E15>0,IF(AH14>0,1,"No"),"") ->  | BU14: =IF('II_Plantejar Ració'!$E15>0,IF(AI14>0,1,"No"),"") ->  | BV14: =IF('II_Plantejar Ració'!$E15>0,IF(AJ14>0,1,"No"),"") ->  | BW14: =IF('II_Plantejar Ració'!$E15>0,IF(AK14>0,1,"No"),"") ->  | BX14: =IF('II_Plantejar Ració'!$E15>0,IF(AL14>0,1,"No"),"") ->  | BY14: =IF('II_Plantejar Ració'!$E15>0,IF(AM14>0,1,"No"),"") ->  | BZ14: 0 | CA14: 0 | CB14: 0 | CC14: 0 | CD14: 0 | CE14: 0 | CF14: 0 | CG14: 0 | CH14: 0 | CI14: 0 | CJ14: 0 | CK14: 0 | CL14: 0 | CM14: 0 | CN14: 0 | CO14: 0 | CP14: 0 | CQ14: 0 | CR14: 0 | CS14: 0 | CT14: 0 | CU14: 0 | CV14: 0 | CW14: 0 | CX14: 0 | CY14: 0 | CZ14: 0 | DA14: 0 | DB14: 0 | DC14: 0 | DD14: 0 | DE14: 0 | DF14: 0 | DG14: 0 | DH14: 0 | DI14: 0
B15: =IF(OFFSET('Taula Concentrats'!$A$1,C15,0,1,1)=0,"",OFFSET('Taula Concentrats'!$A$1,C15,0,1,1)) -> Grassa vegetal, mantega de porc (tots els tipus) | C15: 74 | D15: =OFFSET('Taula Concentrats'!$A$1,$C15,$D$2,1,1) -> 99.9 | E15: =OFFSET('Taula Concentrats'!$A$1,$C15,$E$2,1,1) -> 0 | F15: =OFFSET('Taula Concentrats'!$A$1,$C15,$F$2,1,1) -> 3.61 | G15: =OFFSET('Taula Concentrats'!$A$1,$C15,$G$2,1,1) -> 1e-07 | H15: =OFFSET('Taula Concentrats'!$A$1,$C15,$H$2,1,1) -> -14 | I15: =OFFSET('Taula Concentrats'!$A$1,$C15,$I$2,1,1) -> 1e-07 | J15: =OFFSET('Taula Concentrats'!$A$1,$C15,$J$2,1,1) -> 1e-07 | K15: =OFFSET('Taula Concentrats'!$A$1,$C15,$K$2,1,1) -> 1e-07 | L15: =OFFSET('Taula Concentrats'!$A$1,$C15,$L$2,1,1) -> 1e-07 | M15: =OFFSET('Taula Concentrats'!$A$1,$C15,$M$2,1,1) -> 1e-07 | N15: =OFFSET('Taula Concentrats'!$A$1,$C15,$N$2,1,1) -> 1e-07 | O15: =OFFSET('Taula Concentrats'!$A$1,$C15,$O$2,1,1) -> 1e-07 | P15: =OFFSET('Taula Concentrats'!$A$1,$C15,$P$2,1,1) -> 1e-07 | Q15: =OFFSET('Taula Concentrats'!$A$1,$C15,$Q$2,1,1) -> 1e-07 | R15: =OFFSET('Taula Concentrats'!$A$1,$C15,$R$2,1,1) -> 1e-07 | S15: =OFFSET('Taula Concentrats'!$A$1,$C15,$S$2,1,1) -> 1e-07 | T15: =OFFSET('Taula Concentrats'!$A$1,$C15,$T$2,1,1) -> 1e-07 | U15: =OFFSET('Taula Concentrats'!$A$1,$C15,$U$2,1,1) -> 1e-07 | V15: =OFFSET('Taula Concentrats'!$A$1,$C15,$V$2,1,1) -> 1e-07 | W15: =OFFSET('Taula Concentrats'!$A$1,$C15,$W$2,1,1) -> 1300 | X15: =OFFSET('Taula Concentrats'!$A$1,$C15,$X$2,1,1) -> 1e-07 | Y15: =OFFSET('Taula Concentrats'!$A$1,$C15,$Y$2,1,1) -> 95 | Z15: =OFFSET('Taula Concentrats'!$A$1,$C15,$Z$2,1,1) -> 999 | AA15: =OFFSET('Taula Concentrats'!$A$1,$C15,$AA$2,1,1) -> 0 | AB15: =OFFSET('Taula Concentrats'!$A$1,$C15,$AB$2,1,1) -> 0 | AC15: =OFFSET('Taula Concentrats'!$A$1,$C15,$AC$2,1,1) -> 1e-07 | AD15: =OFFSET('Taula Concentrats'!$A$1,$C15,$AD$2,1,1) -> 1e-07 | AE15: =OFFSET('Taula Concentrats'!$A$1,$C15,$AE$2,1,1) -> 2 | AF15: =OFFSET('Taula Concentrats'!$A$1,$C15,$AF$2,1,1) -> 0.9 | AG15: =OFFSET('Taula Concentrats'!$A$1,$C15,$AG$2,1,1) -> 1e-07 | AH15: =OFFSET('Taula Concentrats'!$A$1,$C15,$AH$2,1,1) -> 999 | AI15: =OFFSET('Taula Concentrats'!$A$1,$C15,$AI$2,1,1) -> 1e-07 | AJ15: =OFFSET('Taula Concentrats'!$A$1,$C15,$AJ$2,1,1) -> 1e-07 | AK15: =OFFSET('Taula Concentrats'!$A$1,$C15,$AK$2,1,1) -> 1e-07 | AL15: =OFFSET('Taula Concentrats'!$A$1,$C15,$AL$2,1,1) -> 1e-07 | AM15: =OFFSET('Taula Concentrats'!$A$1,$C15,$AM$2,1,1) -> 1e-07 | AN15: =OFFSET('Taula Concentrats'!$A$1,$C15,$AN$2,1,1) -> 1e-07 | AO15: =OFFSET('Taula Farratges'!$A$1,$C15,$AO$2,1,1) -> 460.0530203 | AP15: =IF('II_Plantejar Ració'!$E16>0,IF(E15>=0,1,"No"),"") ->  | AQ15: =IF('II_Plantejar Ració'!$E16>0,IF(F15>0,1,"No"),"") ->  | AR15: =IF('II_Plantejar Ració'!$E16>0,IF(G15>0,1,"No"),"") ->  | AS15: =IF('II_Plantejar Ració'!$E16>0,IF(H15=0,"No",1),"") ->  | AT15: =IF('II_Plantejar Ració'!$E16>0,IF(AE15>0,1,"No"),"") ->  | AU15: =IF('II_Plantejar Ració'!$E16>0,IF(I15>0,1,"No"),"") ->  | AV15: =IF('II_Plantejar Ració'!$E16>0,IF(J15>0,1,"No"),"") ->  | AW15: =IF('II_Plantejar Ració'!$E16>0,IF(K15>0,1,"No"),"") ->  | AX15: =IF('II_Plantejar Ració'!$E16>0,IF(L15>0,1,"No"),"") ->  | AY15: =IF('II_Plantejar Ració'!$E16>0,IF(M15>0,1,"No"),"") ->  | AZ15: =IF('II_Plantejar Ració'!$E16>0,IF(N15>0,1,"No"),"") ->  | BA15: =IF('II_Plantejar Ració'!$E16>0,IF(O15>0,1,"No"),"") ->  | BB15: =IF('II_Plantejar Ració'!$E16>0,IF(P15>0,1,"No"),"") ->  | BC15: =IF('II_Plantejar Ració'!$E16>0,IF(Q15>0,1,"No"),"") ->  | BD15: =IF('II_Plantejar Ració'!$E16>0,IF(R15>0,1,"No"),"") ->  | BE15: =IF('II_Plantejar Ració'!$E16>0,IF(S15>0,1,"No"),"") ->  | BF15: =IF('II_Plantejar Ració'!$E16>0,IF(T15>0,1,"No"),"") ->  | BG15: =IF('II_Plantejar Ració'!$E16>0,IF(U15>0,1,"No"),"") ->  | BH15: =IF('II_Plantejar Ració'!$E16>0,IF(V15>0,1,"No"),"") ->  | BI15: =IF('II_Plantejar Ració'!$E16>0,IF(W15>0,1,"No"),"") ->  | BJ15: =IF('II_Plantejar Ració'!$E16>0,IF(X15>0,1,"No"),"") ->  | BK15: =IF('II_Plantejar Ració'!$E16>0,IF(Y15>0,1,"No"),"") ->  | BL15: =IF('II_Plantejar Ració'!$E16>0,IF(Z15>0,1,"No"),"") ->  | BM15: =IF('II_Plantejar Ració'!$E16>0,IF(AA15>0,1,"No"),"") ->  | BN15: =IF('II_Plantejar Ració'!$E16>0,IF(AB15>0,1,"No"),"") ->  | BO15: =IF('II_Plantejar Ració'!$E16>0,IF(AC15>0,1,"No"),"") ->  | BP15: =IF('II_Plantejar Ració'!$E16>0,IF(AD15>0,1,"No"),"") ->  | BQ15: =IF('II_Plantejar Ració'!$E16>0,IF(AE15>0,1,"No"),"") ->  | BR15: =IF('II_Plantejar Ració'!$E16>0,IF(AF15>0,1,"No"),"") ->  | BS15: =IF('II_Plantejar Ració'!$E16>0,IF(AG15>0,1,"No"),"") ->  | BT15: =IF('II_Plantejar Ració'!$E16>0,IF(AH15>0,1,"No"),"") ->  | BU15: =IF('II_Plantejar Ració'!$E16>0,IF(AI15>0,1,"No"),"") ->  | BV15: =IF('II_Plantejar Ració'!$E16>0,IF(AJ15>0,1,"No"),"") ->  | BW15: =IF('II_Plantejar Ració'!$E16>0,IF(AK15>0,1,"No"),"") ->  | BX15: =IF('II_Plantejar Ració'!$E16>0,IF(AL15>0,1,"No"),"") ->  | BY15: =IF('II_Plantejar Ració'!$E16>0,IF(AM15>0,1,"No"),"") ->  | BZ15: 0 | CA15: 0 | CB15: 0 | CC15: 0 | CD15: 0 | CE15: 0 | CF15: 0 | CG15: 0 | CH15: 0 | CI15: 0 | CJ15: 0 | CK15: 0 | CL15: 0 | CM15: 0 | CN15: 0 | CO15: 0 | CP15: 0 | CQ15: 0 | CR15: 0 | CS15: 0 | CT15: 0 | CU15: 0 | CV15: 0 | CW15: 0 | CX15: 0 | CY15: 0 | CZ15: 0 | DA15: 0 | DB15: 0 | DC15: 0 | DD15: 0 | DE15: 0 | DF15: 0 | DG15: 0 | DH15: 0 | DI15: 0
B16: =IF(OFFSET('Taula Concentrats'!$A$1,C16,0,1,1)=0,"",OFFSET('Taula Concentrats'!$A$1,C16,0,1,1)) ->  | C16: 1 | D16: =OFFSET('Taula Concentrats'!$A$1,$C16,$D$2,1,1) -> 0 | E16: =OFFSET('Taula Concentrats'!$A$1,$C16,$E$2,1,1) -> 0 | F16: =OFFSET('Taula Concentrats'!$A$1,$C16,$F$2,1,1) -> 0 | G16: =OFFSET('Taula Concentrats'!$A$1,$C16,$G$2,1,1) -> 0 | H16: =OFFSET('Taula Concentrats'!$A$1,$C16,$H$2,1,1) -> 0 | I16: =OFFSET('Taula Concentrats'!$A$1,$C16,$I$2,1,1) -> 0 | J16: =OFFSET('Taula Concentrats'!$A$1,$C16,$J$2,1,1) -> 0 | K16: =OFFSET('Taula Concentrats'!$A$1,$C16,$K$2,1,1) -> 0 | L16: =OFFSET('Taula Concentrats'!$A$1,$C16,$L$2,1,1) -> 0 | M16: =OFFSET('Taula Concentrats'!$A$1,$C16,$M$2,1,1) -> 0 | N16: =OFFSET('Taula Concentrats'!$A$1,$C16,$N$2,1,1) -> 0 | O16: =OFFSET('Taula Concentrats'!$A$1,$C16,$O$2,1,1) -> 0 | P16: =OFFSET('Taula Concentrats'!$A$1,$C16,$P$2,1,1) -> 0 | Q16: =OFFSET('Taula Concentrats'!$A$1,$C16,$Q$2,1,1) -> 0 | R16: =OFFSET('Taula Concentrats'!$A$1,$C16,$R$2,1,1) -> 0 | S16: =OFFSET('Taula Concentrats'!$A$1,$C16,$S$2,1,1) -> 0 | T16: =OFFSET('Taula Concentrats'!$A$1,$C16,$T$2,1,1) -> 0 | U16: =OFFSET('Taula Concentrats'!$A$1,$C16,$U$2,1,1) -> 0 | V16: =OFFSET('Taula Concentrats'!$A$1,$C16,$V$2,1,1) -> 0 | W16: =OFFSET('Taula Concentrats'!$A$1,$C16,$W$2,1,1) -> 0 | X16: =OFFSET('Taula Concentrats'!$A$1,$C16,$X$2,1,1) -> 0 | Y16: =OFFSET('Taula Concentrats'!$A$1,$C16,$Y$2,1,1) -> 0 | Z16: =OFFSET('Taula Concentrats'!$A$1,$C16,$Z$2,1,1) -> 0 | AA16: =OFFSET('Taula Concentrats'!$A$1,$C16,$AA$2,1,1) -> 0 | AB16: =OFFSET('Taula Concentrats'!$A$1,$C16,$AB$2,1,1) -> 0 | AC16: =OFFSET('Taula Concentrats'!$A$1,$C16,$AC$2,1,1) -> 0 | AD16: =OFFSET('Taula Concentrats'!$A$1,$C16,$AD$2,1,1) -> 0 | AE16: =OFFSET('Taula Concentrats'!$A$1,$C16,$AE$2,1,1) -> 0 | AF16: =OFFSET('Taula Concentrats'!$A$1,$C16,$AF$2,1,1) -> 0 | AG16: =OFFSET('Taula Concentrats'!$A$1,$C16,$AG$2,1,1) -> 0 | AH16: =OFFSET('Taula Concentrats'!$A$1,$C16,$AH$2,1,1) -> 0 | AI16: =OFFSET('Taula Concentrats'!$A$1,$C16,$AI$2,1,1) -> 0 | AJ16: =OFFSET('Taula Concentrats'!$A$1,$C16,$AJ$2,1,1) -> 0 | AK16: =OFFSET('Taula Concentrats'!$A$1,$C16,$AK$2,1,1) -> 0 | AL16: =OFFSET('Taula Concentrats'!$A$1,$C16,$AL$2,1,1) -> 0 | AM16: =OFFSET('Taula Concentrats'!$A$1,$C16,$AM$2,1,1) -> 0 | AN16: =OFFSET('Taula Concentrats'!$A$1,$C16,$AN$2,1,1) -> 0 | AO16: =OFFSET('Taula Farratges'!$A$1,$C16,$AO$2,1,1) -> 0 | AP16: =IF('II_Plantejar Ració'!$E17>0,IF(E16>=0,1,"No"),"") ->  | AQ16: =IF('II_Plantejar Ració'!$E17>0,IF(F16>0,1,"No"),"") ->  | AR16: =IF('II_Plantejar Ració'!$E17>0,IF(G16>0,1,"No"),"") ->  | AS16: =IF('II_Plantejar Ració'!$E17>0,IF(H16=0,"No",1),"") ->  | AT16: =IF('II_Plantejar Ració'!$E17>0,IF(AE16>0,1,"No"),"") ->  | AU16: =IF('II_Plantejar Ració'!$E17>0,IF(I16>0,1,"No"),"") ->  | AV16: =IF('II_Plantejar Ració'!$E17>0,IF(J16>0,1,"No"),"") ->  | AW16: =IF('II_Plantejar Ració'!$E17>0,IF(K16>0,1,"No"),"") ->  | AX16: =IF('II_Plantejar Ració'!$E17>0,IF(L16>0,1,"No"),"") ->  | AY16: =IF('II_Plantejar Ració'!$E17>0,IF(M16>0,1,"No"),"") ->  | AZ16: =IF('II_Plantejar Ració'!$E17>0,IF(N16>0,1,"No"),"") ->  | BA16: =IF('II_Plantejar Ració'!$E17>0,IF(O16>0,1,"No"),"") ->  | BB16: =IF('II_Plantejar Ració'!$E17>0,IF(P16>0,1,"No"),"") ->  | BC16: =IF('II_Plantejar Ració'!$E17>0,IF(Q16>0,1,"No"),"") ->  | BD16: =IF('II_Plantejar Ració'!$E17>0,IF(R16>0,1,"No"),"") ->  | BE16: =IF('II_Plantejar Ració'!$E17>0,IF(S16>0,1,"No"),"") ->  | BF16: =IF('II_Plantejar Ració'!$E17>0,IF(T16>0,1,"No"),"") ->  | BG16: =IF('II_Plantejar Ració'!$E17>0,IF(U16>0,1,"No"),"") ->  | BH16: =IF('II_Plantejar Ració'!$E17>0,IF(V16>0,1,"No"),"") ->  | BI16: =IF('II_Plantejar Ració'!$E17>0,IF(W16>0,1,"No"),"") ->  | BJ16: =IF('II_Plantejar Ració'!$E17>0,IF(X16>0,1,"No"),"") ->  | BK16: =IF('II_Plantejar Ració'!$E17>0,IF(Y16>0,1,"No"),"") ->  | BL16: =IF('II_Plantejar Ració'!$E17>0,IF(Z16>0,1,"No"),"") ->  | BM16: =IF('II_Plantejar Ració'!$E17>0,IF(AA16>0,1,"No"),"") ->  | BN16: =IF('II_Plantejar Ració'!$E17>0,IF(AB16>0,1,"No"),"") ->  | BO16: =IF('II_Plantejar Ració'!$E17>0,IF(AC16>0,1,"No"),"") ->  | BP16: =IF('II_Plantejar Ració'!$E17>0,IF(AD16>0,1,"No"),"") ->  | BQ16: =IF('II_Plantejar Ració'!$E17>0,IF(AE16>0,1,"No"),"") ->  | BR16: =IF('II_Plantejar Ració'!$E17>0,IF(AF16>0,1,"No"),"") ->  | BS16: =IF('II_Plantejar Ració'!$E17>0,IF(AG16>0,1,"No"),"") ->  | BT16: =IF('II_Plantejar Ració'!$E17>0,IF(AH16>0,1,"No"),"") ->  | BU16: =IF('II_Plantejar Ració'!$E17>0,IF(AI16>0,1,"No"),"") ->  | BV16: =IF('II_Plantejar Ració'!$E17>0,IF(AJ16>0,1,"No"),"") ->  | BW16: =IF('II_Plantejar Ració'!$E17>0,IF(AK16>0,1,"No"),"") ->  | BX16: =IF('II_Plantejar Ració'!$E17>0,IF(AL16>0,1,"No"),"") ->  | BY16: =IF('II_Plantejar Ració'!$E17>0,IF(AM16>0,1,"No"),"") ->  | BZ16: 0 | CA16: 0 | CB16: 0 | CC16: 0 | CD16: 0 | CE16: 0 | CF16: 0 | CG16: 0 | CH16: 0 | CI16: 0 | CJ16: 0 | CK16: 0 | CL16: 0 | CM16: 0 | CN16: 0 | CO16: 0 | CP16: 0 | CQ16: 0 | CR16: 0 | CS16: 0 | CT16: 0 | CU16: 0 | CV16: 0 | CW16: 0 | CX16: 0 | CY16: 0 | CZ16: 0 | DA16: 0 | DB16: 0 | DC16: 0 | DD16: 0 | DE16: 0 | DF16: 0 | DG16: 0 | DH16: 0 | DI16: 0
B17: =IF(OFFSET('Taula Concentrats'!$A$1,C17,0,1,1)=0,"",OFFSET('Taula Concentrats'!$A$1,C17,0,1,1)) ->  | C17: 1 | D17: =OFFSET('Taula Concentrats'!$A$1,$C17,$D$2,1,1) -> 0 | E17: =OFFSET('Taula Concentrats'!$A$1,$C17,$E$2,1,1) -> 0 | F17: =OFFSET('Taula Concentrats'!$A$1,$C17,$F$2,1,1) -> 0 | G17: =OFFSET('Taula Concentrats'!$A$1,$C17,$G$2,1,1) -> 0 | H17: =OFFSET('Taula Concentrats'!$A$1,$C17,$H$2,1,1) -> 0 | I17: =OFFSET('Taula Concentrats'!$A$1,$C17,$I$2,1,1) -> 0 | J17: =OFFSET('Taula Concentrats'!$A$1,$C17,$J$2,1,1) -> 0 | K17: =OFFSET('Taula Concentrats'!$A$1,$C17,$K$2,1,1) -> 0 | L17: =OFFSET('Taula Concentrats'!$A$1,$C17,$L$2,1,1) -> 0 | M17: =OFFSET('Taula Concentrats'!$A$1,$C17,$M$2,1,1) -> 0 | N17: =OFFSET('Taula Concentrats'!$A$1,$C17,$N$2,1,1) -> 0 | O17: =OFFSET('Taula Concentrats'!$A$1,$C17,$O$2,1,1) -> 0 | P17: =OFFSET('Taula Concentrats'!$A$1,$C17,$P$2,1,1) -> 0 | Q17: =OFFSET('Taula Concentrats'!$A$1,$C17,$Q$2,1,1) -> 0 | R17: =OFFSET('Taula Concentrats'!$A$1,$C17,$R$2,1,1) -> 0 | S17: =OFFSET('Taula Concentrats'!$A$1,$C17,$S$2,1,1) -> 0 | T17: =OFFSET('Taula Concentrats'!$A$1,$C17,$T$2,1,1) -> 0 | U17: =OFFSET('Taula Concentrats'!$A$1,$C17,$U$2,1,1) -> 0 | V17: =OFFSET('Taula Concentrats'!$A$1,$C17,$V$2,1,1) -> 0 | W17: =OFFSET('Taula Concentrats'!$A$1,$C17,$W$2,1,1) -> 0 | X17: =OFFSET('Taula Concentrats'!$A$1,$C17,$X$2,1,1) -> 0 | Y17: =OFFSET('Taula Concentrats'!$A$1,$C17,$Y$2,1,1) -> 0 | Z17: =OFFSET('Taula Concentrats'!$A$1,$C17,$Z$2,1,1) -> 0 | AA17: =OFFSET('Taula Concentrats'!$A$1,$C17,$AA$2,1,1) -> 0 | AB17: =OFFSET('Taula Concentrats'!$A$1,$C17,$AB$2,1,1) -> 0 | AC17: =OFFSET('Taula Concentrats'!$A$1,$C17,$AC$2,1,1) -> 0 | AD17: =OFFSET('Taula Concentrats'!$A$1,$C17,$AD$2,1,1) -> 0 | AE17: =OFFSET('Taula Concentrats'!$A$1,$C17,$AE$2,1,1) -> 0 | AF17: =OFFSET('Taula Concentrats'!$A$1,$C17,$AF$2,1,1) -> 0 | AG17: =OFFSET('Taula Concentrats'!$A$1,$C17,$AG$2,1,1) -> 0 | AH17: =OFFSET('Taula Concentrats'!$A$1,$C17,$AH$2,1,1) -> 0 | AI17: =OFFSET('Taula Concentrats'!$A$1,$C17,$AI$2,1,1) -> 0 | AJ17: =OFFSET('Taula Concentrats'!$A$1,$C17,$AJ$2,1,1) -> 0 | AK17: =OFFSET('Taula Concentrats'!$A$1,$C17,$AK$2,1,1) -> 0 | AL17: =OFFSET('Taula Concentrats'!$A$1,$C17,$AL$2,1,1) -> 0 | AM17: =OFFSET('Taula Concentrats'!$A$1,$C17,$AM$2,1,1) -> 0 | AN17: =OFFSET('Taula Concentrats'!$A$1,$C17,$AN$2,1,1) -> 0 | AO17: =OFFSET('Taula Farratges'!$A$1,$C17,$AO$2,1,1) -> 0 | AP17: =IF('II_Plantejar Ració'!$E18>0,IF(E17>=0,1,"No"),"") ->  | AQ17: =IF('II_Plantejar Ració'!$E18>0,IF(F17>0,1,"No"),"") ->  | AR17: =IF('II_Plantejar Ració'!$E18>0,IF(G17>0,1,"No"),"") ->  | AS17: =IF('II_Plantejar Ració'!$E18>0,IF(H17=0,"No",1),"") ->  | AT17: =IF('II_Plantejar Ració'!$E18>0,IF(AE17>0,1,"No"),"") ->  | AU17: =IF('II_Plantejar Ració'!$E18>0,IF(I17>0,1,"No"),"") ->  | AV17: =IF('II_Plantejar Ració'!$E18>0,IF(J17>0,1,"No"),"") ->  | AW17: =IF('II_Plantejar Ració'!$E18>0,IF(K17>0,1,"No"),"") ->  | AX17: =IF('II_Plantejar Ració'!$E18>0,IF(L17>0,1,"No"),"") ->  | AY17: =IF('II_Plantejar Ració'!$E18>0,IF(M17>0,1,"No"),"") ->  | AZ17: =IF('II_Plantejar Ració'!$E18>0,IF(N17>0,1,"No"),"") ->  | BA17: =IF('II_Plantejar Ració'!$E18>0,IF(O17>0,1,"No"),"") ->  | BB17: =IF('II_Plantejar Ració'!$E18>0,IF(P17>0,1,"No"),"") ->  | BC17: =IF('II_Plantejar Ració'!$E18>0,IF(Q17>0,1,"No"),"") ->  | BD17: =IF('II_Plantejar Ració'!$E18>0,IF(R17>0,1,"No"),"") ->  | BE17: =IF('II_Plantejar Ració'!$E18>0,IF(S17>0,1,"No"),"") ->  | BF17: =IF('II_Plantejar Ració'!$E18>0,IF(T17>0,1,"No"),"") ->  | BG17: =IF('II_Plantejar Ració'!$E18>0,IF(U17>0,1,"No"),"") ->  | BH17: =IF('II_Plantejar Ració'!$E18>0,IF(V17>0,1,"No"),"") ->  | BI17: =IF('II_Plantejar Ració'!$E18>0,IF(W17>0,1,"No"),"") ->  | BJ17: =IF('II_Plantejar Ració'!$E18>0,IF(X17>0,1,"No"),"") ->  | BK17: =IF('II_Plantejar Ració'!$E18>0,IF(Y17>0,1,"No"),"") ->  | BL17: =IF('II_Plantejar Ració'!$E18>0,IF(Z17>0,1,"No"),"") ->  | BM17: =IF('II_Plantejar Ració'!$E18>0,IF(AA17>0,1,"No"),"") ->  | BN17: =IF('II_Plantejar Ració'!$E18>0,IF(AB17>0,1,"No"),"") ->  | BO17: =IF('II_Plantejar Ració'!$E18>0,IF(AC17>0,1,"No"),"") ->  | BP17: =IF('II_Plantejar Ració'!$E18>0,IF(AD17>0,1,"No"),"") ->  | BQ17: =IF('II_Plantejar Ració'!$E18>0,IF(AE17>0,1,"No"),"") ->  | BR17: =IF('II_Plantejar Ració'!$E18>0,IF(AF17>0,1,"No"),"") ->  | BS17: =IF('II_Plantejar Ració'!$E18>0,IF(AG17>0,1,"No"),"") ->  | BT17: =IF('II_Plantejar Ració'!$E18>0,IF(AH17>0,1,"No"),"") ->  | BU17: =IF('II_Plantejar Ració'!$E18>0,IF(AI17>0,1,"No"),"") ->  | BV17: =IF('II_Plantejar Ració'!$E18>0,IF(AJ17>0,1,"No"),"") ->  | BW17: =IF('II_Plantejar Ració'!$E18>0,IF(AK17>0,1,"No"),"") ->  | BX17: =IF('II_Plantejar Ració'!$E18>0,IF(AL17>0,1,"No"),"") ->  | BY17: =IF('II_Plantejar Ració'!$E18>0,IF(AM17>0,1,"No"),"") ->  | BZ17: 0 | CA17: 0 | CB17: 0 | CC17: 0 | CD17: 0 | CE17: 0 | CF17: 0 | CG17: 0 | CH17: 0 | CI17: 0 | CJ17: 0 | CK17: 0 | CL17: 0 | CM17: 0 | CN17: 0 | CO17: 0 | CP17: 0 | CQ17: 0 | CR17: 0 | CS17: 0 | CT17: 0 | CU17: 0 | CV17: 0 | CW17: 0 | CX17: 0 | CY17: 0 | CZ17: 0 | DA17: 0 | DB17: 0 | DC17: 0 | DD17: 0 | DE17: 0 | DF17: 0 | DG17: 0 | DH17: 0 | DI17: 0
B18: =IF(OFFSET('Taula Concentrats'!$A$1,C18,0,1,1)=0,"",OFFSET('Taula Concentrats'!$A$1,C18,0,1,1)) ->  | C18: 176 | D18: =OFFSET('Taula Concentrats'!$A$1,$C18,$D$2,1,1) -> 0 | E18: =OFFSET('Taula Concentrats'!$A$1,$C18,$E$2,1,1) -> 0 | F18: =OFFSET('Taula Concentrats'!$A$1,$C18,$F$2,1,1) -> 0 | G18: =OFFSET('Taula Concentrats'!$A$1,$C18,$G$2,1,1) -> 0 | H18: =OFFSET('Taula Concentrats'!$A$1,$C18,$H$2,1,1) -> 0 | I18: =OFFSET('Taula Concentrats'!$A$1,$C18,$I$2,1,1) -> 0 | J18: =OFFSET('Taula Concentrats'!$A$1,$C18,$J$2,1,1) -> 0 | K18: =OFFSET('Taula Concentrats'!$A$1,$C18,$K$2,1,1) -> 0 | L18: =OFFSET('Taula Concentrats'!$A$1,$C18,$L$2,1,1) -> 0 | M18: =OFFSET('Taula Concentrats'!$A$1,$C18,$M$2,1,1) -> 0 | N18: =OFFSET('Taula Concentrats'!$A$1,$C18,$N$2,1,1) -> 0 | O18: =OFFSET('Taula Concentrats'!$A$1,$C18,$O$2,1,1) -> 0 | P18: =OFFSET('Taula Concentrats'!$A$1,$C18,$P$2,1,1) -> 0 | Q18: =OFFSET('Taula Concentrats'!$A$1,$C18,$Q$2,1,1) -> 0 | R18: =OFFSET('Taula Concentrats'!$A$1,$C18,$R$2,1,1) -> 0 | S18: =OFFSET('Taula Concentrats'!$A$1,$C18,$S$2,1,1) -> 0 | T18: =OFFSET('Taula Concentrats'!$A$1,$C18,$T$2,1,1) -> 0 | U18: =OFFSET('Taula Concentrats'!$A$1,$C18,$U$2,1,1) -> 0 | V18: =OFFSET('Taula Concentrats'!$A$1,$C18,$V$2,1,1) -> 0 | W18: =OFFSET('Taula Concentrats'!$A$1,$C18,$W$2,1,1) -> 0 | X18: =OFFSET('Taula Concentrats'!$A$1,$C18,$X$2,1,1) -> 0 | Y18: =OFFSET('Taula Concentrats'!$A$1,$C18,$Y$2,1,1) -> 0 | Z18: =OFFSET('Taula Concentrats'!$A$1,$C18,$Z$2,1,1) -> 0 | AA18: =OFFSET('Taula Concentrats'!$A$1,$C18,$AA$2,1,1) -> 0 | AB18: =OFFSET('Taula Concentrats'!$A$1,$C18,$AB$2,1,1) -> 0 | AC18: =OFFSET('Taula Concentrats'!$A$1,$C18,$AC$2,1,1) -> 0 | AD18: =OFFSET('Taula Concentrats'!$A$1,$C18,$AD$2,1,1) -> 0 | AE18: =OFFSET('Taula Concentrats'!$A$1,$C18,$AE$2,1,1) -> 0 | AF18: =OFFSET('Taula Concentrats'!$A$1,$C18,$AF$2,1,1) -> 0 | AG18: =OFFSET('Taula Concentrats'!$A$1,$C18,$AG$2,1,1) -> 0 | AH18: =OFFSET('Taula Concentrats'!$A$1,$C18,$AH$2,1,1) -> 0 | AI18: =OFFSET('Taula Concentrats'!$A$1,$C18,$AI$2,1,1) -> 0 | AJ18: =OFFSET('Taula Concentrats'!$A$1,$C18,$AJ$2,1,1) -> 0 | AK18: =OFFSET('Taula Concentrats'!$A$1,$C18,$AK$2,1,1) -> 0 | AL18: =OFFSET('Taula Concentrats'!$A$1,$C18,$AL$2,1,1) -> 0 | AM18: =OFFSET('Taula Concentrats'!$A$1,$C18,$AM$2,1,1) -> 0 | AN18: =OFFSET('Taula Concentrats'!$A$1,$C18,$AN$2,1,1) -> 0 | AO18: =OFFSET('Taula Farratges'!$A$1,$C18,$AO$2,1,1) -> 0 | AP18: =IF('II_Plantejar Ració'!$E19>0,IF(E18>=0,1,"No"),"") ->  | AQ18: =IF('II_Plantejar Ració'!$E19>0,IF(F18>0,1,"No"),"") ->  | AR18: =IF('II_Plantejar Ració'!$E19>0,IF(G18>0,1,"No"),"") ->  | AS18: =IF('II_Plantejar Ració'!$E19>0,IF(H18=0,"No",1),"") ->  | AT18: =IF('II_Plantejar Ració'!$E19>0,IF(AE18>0,1,"No"),"") ->  | AU18: =IF('II_Plantejar Ració'!$E19>0,IF(I18>0,1,"No"),"") ->  | AV18: =IF('II_Plantejar Ració'!$E19>0,IF(J18>0,1,"No"),"") ->  | AW18: =IF('II_Plantejar Ració'!$E19>0,IF(K18>0,1,"No"),"") ->  | AX18: =IF('II_Plantejar Ració'!$E19>0,IF(L18>0,1,"No"),"") ->  | AY18: =IF('II_Plantejar Ració'!$E19>0,IF(M18>0,1,"No"),"") ->  | AZ18: =IF('II_Plantejar Ració'!$E19>0,IF(N18>0,1,"No"),"") ->  | BA18: =IF('II_Plantejar Ració'!$E19>0,IF(O18>0,1,"No"),"") ->  | BB18: =IF('II_Plantejar Ració'!$E19>0,IF(P18>0,1,"No"),"") ->  | BC18: =IF('II_Plantejar Ració'!$E19>0,IF(Q18>0,1,"No"),"") ->  | BD18: =IF('II_Plantejar Ració'!$E19>0,IF(R18>0,1,"No"),"") ->  | BE18: =IF('II_Plantejar Ració'!$E19>0,IF(S18>0,1,"No"),"") ->  | BF18: =IF('II_Plantejar Ració'!$E19>0,IF(T18>0,1,"No"),"") ->  | BG18: =IF('II_Plantejar Ració'!$E19>0,IF(U18>0,1,"No"),"") ->  | BH18: =IF('II_Plantejar Ració'!$E19>0,IF(V18>0,1,"No"),"") ->  | BI18: =IF('II_Plantejar Ració'!$E19>0,IF(W18>0,1,"No"),"") ->  | BJ18: =IF('II_Plantejar Ració'!$E19>0,IF(X18>0,1,"No"),"") ->  | BK18: =IF('II_Plantejar Ració'!$E19>0,IF(Y18>0,1,"No"),"") ->  | BL18: =IF('II_Plantejar Ració'!$E19>0,IF(Z18>0,1,"No"),"") ->  | BM18: =IF('II_Plantejar Ració'!$E19>0,IF(AA18>0,1,"No"),"") ->  | BN18: =IF('II_Plantejar Ració'!$E19>0,IF(AB18>0,1,"No"),"") ->  | BO18: =IF('II_Plantejar Ració'!$E19>0,IF(AC18>0,1,"No"),"") ->  | BP18: =IF('II_Plantejar Ració'!$E19>0,IF(AD18>0,1,"No"),"") ->  | BQ18: =IF('II_Plantejar Ració'!$E19>0,IF(AE18>0,1,"No"),"") ->  | BR18: =IF('II_Plantejar Ració'!$E19>0,IF(AF18>0,1,"No"),"") ->  | BS18: =IF('II_Plantejar Ració'!$E19>0,IF(AG18>0,1,"No"),"") ->  | BT18: =IF('II_Plantejar Ració'!$E19>0,IF(AH18>0,1,"No"),"") ->  | BU18: =IF('II_Plantejar Ració'!$E19>0,IF(AI18>0,1,"No"),"") ->  | BV18: =IF('II_Plantejar Ració'!$E19>0,IF(AJ18>0,1,"No"),"") ->  | BW18: =IF('II_Plantejar Ració'!$E19>0,IF(AK18>0,1,"No"),"") ->  | BX18: =IF('II_Plantejar Ració'!$E19>0,IF(AL18>0,1,"No"),"") ->  | BY18: =IF('II_Plantejar Ració'!$E19>0,IF(AM18>0,1,"No"),"") ->  | BZ18: 0 | CA18: 0 | CB18: 0 | CC18: 0 | CD18: 0 | CE18: 0 | CF18: 0 | CG18: 0 | CH18: 0 | CI18: 0 | CJ18: 0 | CK18: 0 | CL18: 0 | CM18: 0 | CN18: 0 | CO18: 0 | CP18: 0 | CQ18: 0 | CR18: 0 | CS18: 0 | CT18: 0 | CU18: 0 | CV18: 0 | CW18: 0 | CX18: 0 | CY18: 0 | CZ18: 0 | DA18: 0 | DB18: 0 | DC18: 0 | DD18: 0 | DE18: 0 | DF18: 0 | DG18: 0 | DH18: 0 | DI18: 0
B19: =IF(OFFSET('Taula Concentrats'!$A$1,C19,0,1,1)=0,"",OFFSET('Taula Concentrats'!$A$1,C19,0,1,1)) ->  | C19: 168 | D19: =OFFSET('Taula Concentrats'!$A$1,$C19,$D$2,1,1) -> 0 | E19: =OFFSET('Taula Concentrats'!$A$1,$C19,$E$2,1,1) -> 0 | F19: =OFFSET('Taula Concentrats'!$A$1,$C19,$F$2,1,1) -> 0 | G19: =OFFSET('Taula Concentrats'!$A$1,$C19,$G$2,1,1) -> 0 | H19: =OFFSET('Taula Concentrats'!$A$1,$C19,$H$2,1,1) -> 0 | I19: =OFFSET('Taula Concentrats'!$A$1,$C19,$I$2,1,1) -> 0 | J19: =OFFSET('Taula Concentrats'!$A$1,$C19,$J$2,1,1) -> 0 | K19: =OFFSET('Taula Concentrats'!$A$1,$C19,$K$2,1,1) -> 0 | L19: =OFFSET('Taula Concentrats'!$A$1,$C19,$L$2,1,1) -> 0 | M19: =OFFSET('Taula Concentrats'!$A$1,$C19,$M$2,1,1) -> 0 | N19: =OFFSET('Taula Concentrats'!$A$1,$C19,$N$2,1,1) -> 0 | O19: =OFFSET('Taula Concentrats'!$A$1,$C19,$O$2,1,1) -> 0 | P19: =OFFSET('Taula Concentrats'!$A$1,$C19,$P$2,1,1) -> 0 | Q19: =OFFSET('Taula Concentrats'!$A$1,$C19,$Q$2,1,1) -> 0 | R19: =OFFSET('Taula Concentrats'!$A$1,$C19,$R$2,1,1) -> 0 | S19: =OFFSET('Taula Concentrats'!$A$1,$C19,$S$2,1,1) -> 0 | T19: =OFFSET('Taula Concentrats'!$A$1,$C19,$T$2,1,1) -> 0 | U19: =OFFSET('Taula Concentrats'!$A$1,$C19,$U$2,1,1) -> 0 | V19: =OFFSET('Taula Concentrats'!$A$1,$C19,$V$2,1,1) -> 0 | W19: =OFFSET('Taula Concentrats'!$A$1,$C19,$W$2,1,1) -> 0 | X19: =OFFSET('Taula Concentrats'!$A$1,$C19,$X$2,1,1) -> 0 | Y19: =OFFSET('Taula Concentrats'!$A$1,$C19,$Y$2,1,1) -> 0 | Z19: =OFFSET('Taula Concentrats'!$A$1,$C19,$Z$2,1,1) -> 0 | AA19: =OFFSET('Taula Concentrats'!$A$1,$C19,$AA$2,1,1) -> 0 | AB19: =OFFSET('Taula Concentrats'!$A$1,$C19,$AB$2,1,1) -> 0 | AC19: =OFFSET('Taula Concentrats'!$A$1,$C19,$AC$2,1,1) -> 0 | AD19: =OFFSET('Taula Concentrats'!$A$1,$C19,$AD$2,1,1) -> 0 | AE19: =OFFSET('Taula Concentrats'!$A$1,$C19,$AE$2,1,1) -> 0 | AF19: =OFFSET('Taula Concentrats'!$A$1,$C19,$AF$2,1,1) -> 0 | AG19: =OFFSET('Taula Concentrats'!$A$1,$C19,$AG$2,1,1) -> 0 | AH19: =OFFSET('Taula Concentrats'!$A$1,$C19,$AH$2,1,1) -> 0 | AI19: =OFFSET('Taula Concentrats'!$A$1,$C19,$AI$2,1,1) -> 0 | AJ19: =OFFSET('Taula Concentrats'!$A$1,$C19,$AJ$2,1,1) -> 0 | AK19: =OFFSET('Taula Concentrats'!$A$1,$C19,$AK$2,1,1) -> 0 | AL19: =OFFSET('Taula Concentrats'!$A$1,$C19,$AL$2,1,1) -> 0 | AM19: =OFFSET('Taula Concentrats'!$A$1,$C19,$AM$2,1,1) -> 0 | AN19: =OFFSET('Taula Concentrats'!$A$1,$C19,$AN$2,1,1) -> 0 | AO19: =OFFSET('Taula Farratges'!$A$1,$C19,$AO$2,1,1) -> 0 | AP19: =IF('II_Plantejar Ració'!$E20>0,IF(E19>=0,1,"No"),"") ->  | AQ19: =IF('II_Plantejar Ració'!$E20>0,IF(F19>0,1,"No"),"") ->  | AR19: =IF('II_Plantejar Ració'!$E20>0,IF(G19>0,1,"No"),"") ->  | AS19: =IF('II_Plantejar Ració'!$E20>0,IF(H19=0,"No",1),"") ->  | AT19: =IF('II_Plantejar Ració'!$E20>0,IF(AE19>0,1,"No"),"") ->  | AU19: =IF('II_Plantejar Ració'!$E20>0,IF(I19>0,1,"No"),"") ->  | AV19: =IF('II_Plantejar Ració'!$E20>0,IF(J19>0,1,"No"),"") ->  | AW19: =IF('II_Plantejar Ració'!$E20>0,IF(K19>0,1,"No"),"") ->  | AX19: =IF('II_Plantejar Ració'!$E20>0,IF(L19>0,1,"No"),"") ->  | AY19: =IF('II_Plantejar Ració'!$E20>0,IF(M19>0,1,"No"),"") ->  | AZ19: =IF('II_Plantejar Ració'!$E20>0,IF(N19>0,1,"No"),"") ->  | BA19: =IF('II_Plantejar Ració'!$E20>0,IF(O19>0,1,"No"),"") ->  | BB19: =IF('II_Plantejar Ració'!$E20>0,IF(P19>0,1,"No"),"") ->  | BC19: =IF('II_Plantejar Ració'!$E20>0,IF(Q19>0,1,"No"),"") ->  | BD19: =IF('II_Plantejar Ració'!$E20>0,IF(R19>0,1,"No"),"") ->  | BE19: =IF('II_Plantejar Ració'!$E20>0,IF(S19>0,1,"No"),"") ->  | BF19: =IF('II_Plantejar Ració'!$E20>0,IF(T19>0,1,"No"),"") ->  | BG19: =IF('II_Plantejar Ració'!$E20>0,IF(U19>0,1,"No"),"") ->  | BH19: =IF('II_Plantejar Ració'!$E20>0,IF(V19>0,1,"No"),"") ->  | BI19: =IF('II_Plantejar Ració'!$E20>0,IF(W19>0,1,"No"),"") ->  | BJ19: =IF('II_Plantejar Ració'!$E20>0,IF(X19>0,1,"No"),"") ->  | BK19: =IF('II_Plantejar Ració'!$E20>0,IF(Y19>0,1,"No"),"") ->  | BL19: =IF('II_Plantejar Ració'!$E20>0,IF(Z19>0,1,"No"),"") ->  | BM19: =IF('II_Plantejar Ració'!$E20>0,IF(AA19>0,1,"No"),"") ->  | BN19: =IF('II_Plantejar Ració'!$E20>0,IF(AB19>0,1,"No"),"") ->  | BO19: =IF('II_Plantejar Ració'!$E20>0,IF(AC19>0,1,"No"),"") ->  | BP19: =IF('II_Plantejar Ració'!$E20>0,IF(AD19>0,1,"No"),"") ->  | BQ19: =IF('II_Plantejar Ració'!$E20>0,IF(AE19>0,1,"No"),"") ->  | BR19: =IF('II_Plantejar Ració'!$E20>0,IF(AF19>0,1,"No"),"") ->  | BS19: =IF('II_Plantejar Ració'!$E20>0,IF(AG19>0,1,"No"),"") ->  | BT19: =IF('II_Plantejar Ració'!$E20>0,IF(AH19>0,1,"No"),"") ->  | BU19: =IF('II_Plantejar Ració'!$E20>0,IF(AI19>0,1,"No"),"") ->  | BV19: =IF('II_Plantejar Ració'!$E20>0,IF(AJ19>0,1,"No"),"") ->  | BW19: =IF('II_Plantejar Ració'!$E20>0,IF(AK19>0,1,"No"),"") ->  | BX19: =IF('II_Plantejar Ració'!$E20>0,IF(AL19>0,1,"No"),"") ->  | BY19: =IF('II_Plantejar Ració'!$E20>0,IF(AM19>0,1,"No"),"") ->  | BZ19: 0 | CA19: 0 | CB19: 0 | CC19: 0 | CD19: 0 | CE19: 0 | CF19: 0 | CG19: 0 | CH19: 0 | CI19: 0 | CJ19: 0 | CK19: 0 | CL19: 0 | CM19: 0 | CN19: 0 | CO19: 0 | CP19: 0 | CQ19: 0 | CR19: 0 | CS19: 0 | CT19: 0 | CU19: 0 | CV19: 0 | CW19: 0 | CX19: 0 | CY19: 0 | CZ19: 0 | DA19: 0 | DB19: 0 | DC19: 0 | DD19: 0 | DE19: 0 | DF19: 0 | DG19: 0 | DH19: 0 | DI19: 0
A20: MINERALS | B20: =IF(OFFSET('Taula Minerals-aa'!$A$1,C20,0,1,1)=0,"",OFFSET('Taula Minerals-aa'!$A$1,C20,0,1,1)) -> Fosfat bicàlcic | C20: 10 | D20: =OFFSET('Taula Minerals-aa'!$A$1,$C20,D2,1,1) -> 98.8 | E20: =OFFSET('Taula Minerals-aa'!$A$1,$C20,E2,1,1) -> 0 | F20: =OFFSET('Taula Minerals-aa'!$A$1,$C20,F2,1,1) -> 0 | G20: =OFFSET('Taula Minerals-aa'!$A$1,$C20,G2,1,1) -> 0 | H20: =OFFSET('Taula Minerals-aa'!$A$1,$C20,H2,1,1) -> 0 | I20: =OFFSET('Taula Minerals-aa'!$A$1,$C20,I2,1,1) -> 244 | J20: =OFFSET('Taula Minerals-aa'!$A$1,$C20,J2,1,1) -> 180 | K20: =OFFSET('Taula Minerals-aa'!$A$1,$C20,K$2,1,1) -> 5 | L20: =OFFSET('Taula Minerals-aa'!$A$1,$C20,L$2,1,1) -> 1.2 | M20: =OFFSET('Taula Minerals-aa'!$A$1,$C20,M$2,1,1) -> 0.8 | N20: =OFFSET('Taula Minerals-aa'!$A$1,$C20,N$2,1,1) -> 11 | O20: =OFFSET('Taula Minerals-aa'!$A$1,$C20,O$2,1,1) -> 0.4 | P20: =OFFSET('Taula Minerals-aa'!$A$1,$C20,P$2,1,1) -> 7800 | Q20: =OFFSET('Taula Minerals-aa'!$A$1,$C20,Q$2,1,1) -> 0 | R20: =OFFSET('Taula Minerals-aa'!$A$1,$C20,$R$2,1,1) -> 15 | S20: =OFFSET('Taula Minerals-aa'!$A$1,$C20,$S$2,1,1) -> 0 | T20: =OFFSET('Taula Minerals-aa'!$A$1,$C20,$T$2,1,1) -> 0 | U20: =OFFSET('Taula Minerals-aa'!$A$1,$C20,$U$2,1,1) -> 0 | V20: =OFFSET('Taula Minerals-aa'!$A$1,$C20,$V$2,1,1) -> 0 | W20: =OFFSET('Taula Minerals-aa'!$A$1,$C20,$W$2,1,1) -> 0 | X20: =OFFSET('Taula Minerals-aa'!$A$1,$C20,$X$2,1,1) -> 0 | Y20: =OFFSET('Taula Minerals-aa'!$A$1,$C20,$Y$2,1,1) -> 0 | Z20: =OFFSET('Taula Minerals-aa'!$A$1,$C20,$Z$2,1,1) -> 0 | AA20: =OFFSET('Taula Minerals-aa'!$A$1,$C20,$AA$2,1,1) -> 0 | AB20: =OFFSET('Taula Minerals-aa'!$A$1,$C20,$AB$2,1,1) -> 0 | AC20: =OFFSET('Taula Minerals-aa'!$A$1,$C20,$AC$2,1,1) -> 0 | AD20: =OFFSET('Taula Minerals-aa'!$A$1,$C20,$AD$2,1,1) -> 0 | AE20: =OFFSET('Taula Minerals-aa'!$A$1,$C20,$AE$2,1,1) -> 0 | AF20: =OFFSET('Taula Minerals-aa'!$A$1,$C20,$AF$2,1,1) -> 0 | AG20: =OFFSET('Taula Minerals-aa'!$A$1,$C20,$AG$2,1,1) -> 0 | AH20: =OFFSET('Taula Minerals-aa'!$A$1,$C20,$AH$2,1,1) -> 0 | AI20: =OFFSET('Taula Minerals-aa'!$A$1,$C20,$AI$2,1,1) -> 0 | AJ20: =OFFSET('Taula Minerals-aa'!$A$1,$C20,$AJ$2,1,1) -> 0 | AK20: =OFFSET('Taula Minerals-aa'!$A$1,$C20,$AK$2,1,1) -> 0 | AL20: =OFFSET('Taula Minerals-aa'!$A$1,$C20,$AL$2,1,1) -> 0 | AM20: =OFFSET('Taula Minerals-aa'!$A$1,$C20,$AM$2,1,1) -> 836 | AN20: =OFFSET('Taula Minerals-aa'!$A$1,$C20,$AN$2,1,1) -> 0 | AO20: =OFFSET('Taula Farratges'!$A$1,$C20,$AO$2,1,1) -> 534.2709123 | AP20: =SUM(AP3:AP19) -> 1 | AQ20: 1 | AR20: 1 | AS20: 1 | AT20: 1 | AU20: 0 | AV20: 0 | AW20: 0 | AX20: 0 | AY20: 0 | AZ20: 0 | BA20: 0 | BB20: 0 | BC20: 0 | BD20: 0 | BE20: 0 | BF20: 0 | BG20: 0 | BH20: 0 | BI20: 0 | BJ20: 0 | BK20: 0 | BL20: 1 | BM20: 1 | BN20: 0 | BO20: 1 | BP20: 1 | BQ20: 1 | BR20: 1 | BS20: 1 | BT20: 1 | BU20: 1 | BV20: 1 | BW20: 1 | BX20: 1 | BY20: 1 | BZ20: =SUM(BZ3:BZ19) -> 1 | CA20: =SUM(CA3:CA19) -> 1 | CB20: 1 | CC20: 1 | CD20: 1 | CE20: 1 | CF20: 1 | CG20: 1 | CH20: 1 | CI20: 1 | CJ20: 1 | CK20: 1 | CL20: 1 | CM20: 1 | CN20: 1 | CO20: 1 | CP20: 1 | CQ20: 1 | CR20: 1 | CS20: 1 | CT20: 1 | CU20: 1 | CV20: 1 | CW20: 1 | CX20: 1 | CY20: 1 | CZ20: 1 | DA20: 1 | DB20: 1 | DC20: =SUM(DC3:DC19) -> 1 | DD20: 1 | DE20: 1 | DF20: 1 | DG20: 1 | DH20: 1 | DI20: 1
B21: =IF(OFFSET('Taula Minerals-aa'!$A$1,C21,0,1,1)=0,"",OFFSET('Taula Minerals-aa'!$A$1,C21,0,1,1)) -> Carbonat càlcic | C21: 3 | D21: =OFFSET('Taula Minerals-aa'!$A$1,$C21,D2,1,1) -> 98 | E21: =OFFSET('Taula Minerals-aa'!$A$1,$C21,E2,1,1) -> 0 | F21: =OFFSET('Taula Minerals-aa'!$A$1,$C21,F2,1,1) -> 0 | G21: =OFFSET('Taula Minerals-aa'!$A$1,$C21,G2,1,1) -> 0 | H21: =OFFSET('Taula Minerals-aa'!$A$1,$C21,H2,1,1) -> 0 | I21: =OFFSET('Taula Minerals-aa'!$A$1,$C21,I2,1,1) -> 383 | J21: =OFFSET('Taula Minerals-aa'!$A$1,$C21,J2,1,1) -> 0.2 | K21: =OFFSET('Taula Minerals-aa'!$A$1,$C21,K$2,1,1) -> 14 | L21: =OFFSET('Taula Minerals-aa'!$A$1,$C21,L$2,1,1) -> 0.7 | M21: =OFFSET('Taula Minerals-aa'!$A$1,$C21,M$2,1,1) -> 0.7 | N21: =OFFSET('Taula Minerals-aa'!$A$1,$C21,N$2,1,1) -> 0.7 | O21: =OFFSET('Taula Minerals-aa'!$A$1,$C21,O$2,1,1) -> 0.2 | P21: =OFFSET('Taula Minerals-aa'!$A$1,$C21,P$2,1,1) -> 620 | Q21: =OFFSET('Taula Minerals-aa'!$A$1,$C21,Q$2,1,1) -> 0 | R21: =OFFSET('Taula Minerals-aa'!$A$1,$C21,$R$2,1,1) -> 12 | S21: =OFFSET('Taula Minerals-aa'!$A$1,$C21,$S$2,1,1) -> 0 | T21: =OFFSET('Taula Minerals-aa'!$A$1,$C21,$T$2,1,1) -> 0 | U21: =OFFSET('Taula Minerals-aa'!$A$1,$C21,$U$2,1,1) -> 0 | V21: =OFFSET('Taula Minerals-aa'!$A$1,$C21,$V$2,1,1) -> 0 | W21: =OFFSET('Taula Minerals-aa'!$A$1,$C21,$W$2,1,1) -> 0 | X21: =OFFSET('Taula Minerals-aa'!$A$1,$C21,$X$2,1,1) -> 0 | Y21: =OFFSET('Taula Minerals-aa'!$A$1,$C21,$Y$2,1,1) -> 0 | Z21: =OFFSET('Taula Minerals-aa'!$A$1,$C21,$Z$2,1,1) -> 0 | AA21: =OFFSET('Taula Minerals-aa'!$A$1,$C21,$AA$2,1,1) -> 0 | AB21: =OFFSET('Taula Minerals-aa'!$A$1,$C21,$AB$2,1,1) -> 0 | AC21: =OFFSET('Taula Minerals-aa'!$A$1,$C21,$AC$2,1,1) -> 0 | AD21: =OFFSET('Taula Minerals-aa'!$A$1,$C21,$AD$2,1,1) -> 0 | AE21: =OFFSET('Taula Minerals-aa'!$A$1,$C21,$AE$2,1,1) -> 0 | AF21: =OFFSET('Taula Minerals-aa'!$A$1,$C21,$AF$2,1,1) -> 0 | AG21: =OFFSET('Taula Minerals-aa'!$A$1,$C21,$AG$2,1,1) -> 0 | AH21: =OFFSET('Taula Minerals-aa'!$A$1,$C21,$AH$2,1,1) -> 0 | AI21: =OFFSET('Taula Minerals-aa'!$A$1,$C21,$AI$2,1,1) -> 0 | AJ21: =OFFSET('Taula Minerals-aa'!$A$1,$C21,$AJ$2,1,1) -> 0 | AK21: =OFFSET('Taula Minerals-aa'!$A$1,$C21,$AK$2,1,1) -> 0 | AL21: =OFFSET('Taula Minerals-aa'!$A$1,$C21,$AL$2,1,1) -> 0 | AM21: =OFFSET('Taula Minerals-aa'!$A$1,$C21,$AM$2,1,1) -> 955 | AN21: =OFFSET('Taula Minerals-aa'!$A$1,$C21,$AN$2,1,1) -> 0 | AO21: =OFFSET('Taula Farratges'!$A$1,$C21,$AO$2,1,1) -> 628.165719 | AP21: =IF(AP20/BZ20=1,"",AP2) ->  | AU21: Ca | AV21: P | AW21: =IF(AW20/CG20=1,"", AW2) -> Mg | AX21: K | AY21: Na | AZ21: S | BA21: Cl | BB21: Fe | BC21: Co | BD21: Cu | BE21: Mn | BF21: Zn | BG21: Iode | BH21: Se | BI21: Vit A | BJ21: Vit D | BK21: Vit E | BN21: PDIA
B22: =IF(OFFSET('Taula Minerals-aa'!$A$1,C22,0,1,1)=0,"",OFFSET('Taula Minerals-aa'!$A$1,C22,0,1,1)) -> Bicarbonat sòdic | C22: 2 | D22: =OFFSET('Taula Minerals-aa'!$A$1,$C22,D2,1,1) -> 99.7 | E22: =OFFSET('Taula Minerals-aa'!$A$1,$C22,E2,1,1) -> 0 | F22: =OFFSET('Taula Minerals-aa'!$A$1,$C22,F2,1,1) -> 0 | G22: =OFFSET('Taula Minerals-aa'!$A$1,$C22,G2,1,1) -> 0 | H22: =OFFSET('Taula Minerals-aa'!$A$1,$C22,H2,1,1) -> 0 | I22: =OFFSET('Taula Minerals-aa'!$A$1,$C22,I2,1,1) -> 0 | J22: =OFFSET('Taula Minerals-aa'!$A$1,$C22,J2,1,1) -> 0 | K22: =OFFSET('Taula Minerals-aa'!$A$1,$C22,K$2,1,1) -> 0 | L22: =OFFSET('Taula Minerals-aa'!$A$1,$C22,L$2,1,1) -> 0 | M22: =OFFSET('Taula Minerals-aa'!$A$1,$C22,M$2,1,1) -> 270 | N22: =OFFSET('Taula Minerals-aa'!$A$1,$C22,N$2,1,1) -> 0 | O22: =OFFSET('Taula Minerals-aa'!$A$1,$C22,O$2,1,1) -> 0 | P22: =OFFSET('Taula Minerals-aa'!$A$1,$C22,P$2,1,1) -> 0 | Q22: =OFFSET('Taula Minerals-aa'!$A$1,$C22,Q$2,1,1) -> 0 | R22: =OFFSET('Taula Minerals-aa'!$A$1,$C22,$R$2,1,1) -> 0 | S22: =OFFSET('Taula Minerals-aa'!$A$1,$C22,$S$2,1,1) -> 0 | T22: =OFFSET('Taula Minerals-aa'!$A$1,$C22,$T$2,1,1) -> 0 | U22: =OFFSET('Taula Minerals-aa'!$A$1,$C22,$U$2,1,1) -> 0 | V22: =OFFSET('Taula Minerals-aa'!$A$1,$C22,$V$2,1,1) -> 0 | W22: =OFFSET('Taula Minerals-aa'!$A$1,$C22,$W$2,1,1) -> 0 | X22: =OFFSET('Taula Minerals-aa'!$A$1,$C22,$X$2,1,1) -> 0 | Y22: =OFFSET('Taula Minerals-aa'!$A$1,$C22,$Y$2,1,1) -> 0 | Z22: =OFFSET('Taula Minerals-aa'!$A$1,$C22,$Z$2,1,1) -> 0 | AA22: =OFFSET('Taula Minerals-aa'!$A$1,$C22,$AA$2,1,1) -> 0 | AB22: =OFFSET('Taula Minerals-aa'!$A$1,$C22,$AB$2,1,1) -> 0 | AC22: =OFFSET('Taula Minerals-aa'!$A$1,$C22,$AC$2,1,1) -> 0 | AD22: =OFFSET('Taula Minerals-aa'!$A$1,$C22,$AD$2,1,1) -> 0 | AE22: =OFFSET('Taula Minerals-aa'!$A$1,$C22,$AE$2,1,1) -> 0 | AF22: =OFFSET('Taula Minerals-aa'!$A$1,$C22,$AF$2,1,1) -> 0 | AG22: =OFFSET('Taula Minerals-aa'!$A$1,$C22,$AG$2,1,1) -> 0 | AH22: =OFFSET('Taula Minerals-aa'!$A$1,$C22,$AH$2,1,1) -> 0 | AI22: =OFFSET('Taula Minerals-aa'!$A$1,$C22,$AI$2,1,1) -> 0 | AJ22: =OFFSET('Taula Minerals-aa'!$A$1,$C22,$AJ$2,1,1) -> 0 | AK22: =OFFSET('Taula Minerals-aa'!$A$1,$C22,$AK$2,1,1) -> 0 | AL22: =OFFSET('Taula Minerals-aa'!$A$1,$C22,$AL$2,1,1) -> 0 | AM22: =OFFSET('Taula Minerals-aa'!$A$1,$C22,$AM$2,1,1) -> 0 | AN22: =OFFSET('Taula Minerals-aa'!$A$1,$C22,$AN$2,1,1) -> 0 | AO22: =OFFSET('Taula Farratges'!$A$1,$C22,$AO$2,1,1) -> 566.5326882
B23: =IF(OFFSET('Taula Minerals-aa'!$A$1,C23,0,1,1)=0,"",OFFSET('Taula Minerals-aa'!$A$1,C23,0,1,1)) ->  | C23: 1 | D23: =OFFSET('Taula Minerals-aa'!$A$1,$C23,D2,1,1) -> 0 | E23: =OFFSET('Taula Minerals-aa'!$A$1,$C23,E2,1,1) -> 0 | F23: =OFFSET('Taula Minerals-aa'!$A$1,$C23,F2,1,1) -> 0 | G23: =OFFSET('Taula Minerals-aa'!$A$1,$C23,G2,1,1) -> 0 | H23: =OFFSET('Taula Minerals-aa'!$A$1,$C23,H2,1,1) -> 0 | I23: =OFFSET('Taula Minerals-aa'!$A$1,$C23,I2,1,1) -> 0 | J23: =OFFSET('Taula Minerals-aa'!$A$1,$C23,J2,1,1) -> 0 | K23: =OFFSET('Taula Minerals-aa'!$A$1,$C23,K$2,1,1) -> 0 | L23: =OFFSET('Taula Minerals-aa'!$A$1,$C23,L$2,1,1) -> 0 | M23: =OFFSET('Taula Minerals-aa'!$A$1,$C23,M$2,1,1) -> 0 | N23: =OFFSET('Taula Minerals-aa'!$A$1,$C23,N$2,1,1) -> 0 | O23: =OFFSET('Taula Minerals-aa'!$A$1,$C23,O$2,1,1) -> 0 | P23: =OFFSET('Taula Minerals-aa'!$A$1,$C23,P$2,1,1) -> 0 | Q23: =OFFSET('Taula Minerals-aa'!$A$1,$C23,Q$2,1,1) -> 0 | R23: =OFFSET('Taula Minerals-aa'!$A$1,$C23,$R$2,1,1) -> 0 | S23: =OFFSET('Taula Minerals-aa'!$A$1,$C23,$S$2,1,1) -> 0 | T23: =OFFSET('Taula Minerals-aa'!$A$1,$C23,$T$2,1,1) -> 0 | U23: =OFFSET('Taula Minerals-aa'!$A$1,$C23,$U$2,1,1) -> 0 | V23: =OFFSET('Taula Minerals-aa'!$A$1,$C23,$V$2,1,1) -> 0 | W23: =OFFSET('Taula Minerals-aa'!$A$1,$C23,$W$2,1,1) -> 0 | X23: =OFFSET('Taula Minerals-aa'!$A$1,$C23,$X$2,1,1) -> 0 | Y23: =OFFSET('Taula Minerals-aa'!$A$1,$C23,$Y$2,1,1) -> 0 | Z23: =OFFSET('Taula Minerals-aa'!$A$1,$C23,$Z$2,1,1) -> 0 | AA23: =OFFSET('Taula Minerals-aa'!$A$1,$C23,$AA$2,1,1) -> 0 | AB23: =OFFSET('Taula Minerals-aa'!$A$1,$C23,$AB$2,1,1) -> 0 | AC23: =OFFSET('Taula Minerals-aa'!$A$1,$C23,$AC$2,1,1) -> 0 | AD23: =OFFSET('Taula Minerals-aa'!$A$1,$C23,$AD$2,1,1) -> 0 | AE23: =OFFSET('Taula Minerals-aa'!$A$1,$C23,$AE$2,1,1) -> 0 | AF23: =OFFSET('Taula Minerals-aa'!$A$1,$C23,$AF$2,1,1) -> 0 | AG23: =OFFSET('Taula Minerals-aa'!$A$1,$C23,$AG$2,1,1) -> 0 | AH23: =OFFSET('Taula Minerals-aa'!$A$1,$C23,$AH$2,1,1) -> 0 | AI23: =OFFSET('Taula Minerals-aa'!$A$1,$C23,$AI$2,1,1) -> 0 | AJ23: =OFFSET('Taula Minerals-aa'!$A$1,$C23,$AJ$2,1,1) -> 0 | AK23: =OFFSET('Taula Minerals-aa'!$A$1,$C23,$AK$2,1,1) -> 0 | AL23: =OFFSET('Taula Minerals-aa'!$A$1,$C23,$AL$2,1,1) -> 0 | AM23: =OFFSET('Taula Minerals-aa'!$A$1,$C23,$AM$2,1,1) -> 0 | AN23: =OFFSET('Taula Minerals-aa'!$A$1,$C23,$AN$2,1,1) -> 0 | AO23: =OFFSET('Taula Farratges'!$A$1,$C23,$AO$2,1,1) -> 0
B24: =IF(OFFSET('Taula Minerals-aa'!$A$1,C24,0,1,1)=0,"",OFFSET('Taula Minerals-aa'!$A$1,C24,0,1,1)) ->  | C24: 1 | D24: =OFFSET('Taula Minerals-aa'!$A$1,$C24,D2,1,1) -> 0 | E24: =OFFSET('Taula Minerals-aa'!$A$1,$C24,E2,1,1) -> 0 | F24: =OFFSET('Taula Minerals-aa'!$A$1,$C24,F2,1,1) -> 0 | G24: =OFFSET('Taula Minerals-aa'!$A$1,$C24,G2,1,1) -> 0 | H24: =OFFSET('Taula Minerals-aa'!$A$1,$C24,H2,1,1) -> 0 | I24: =OFFSET('Taula Minerals-aa'!$A$1,$C24,I2,1,1) -> 0 | J24: =OFFSET('Taula Minerals-aa'!$A$1,$C24,J2,1,1) -> 0 | K24: =OFFSET('Taula Minerals-aa'!$A$1,$C24,K$2,1,1) -> 0 | L24: =OFFSET('Taula Minerals-aa'!$A$1,$C24,L$2,1,1) -> 0 | M24: =OFFSET('Taula Minerals-aa'!$A$1,$C24,M$2,1,1) -> 0 | N24: =OFFSET('Taula Minerals-aa'!$A$1,$C24,N$2,1,1) -> 0 | O24: =OFFSET('Taula Minerals-aa'!$A$1,$C24,O$2,1,1) -> 0 | P24: =OFFSET('Taula Minerals-aa'!$A$1,$C24,P$2,1,1) -> 0 | Q24: =OFFSET('Taula Minerals-aa'!$A$1,$C24,Q$2,1,1) -> 0 | R24: =OFFSET('Taula Minerals-aa'!$A$1,$C24,$R$2,1,1) -> 0 | S24: =OFFSET('Taula Minerals-aa'!$A$1,$C24,$S$2,1,1) -> 0 | T24: =OFFSET('Taula Minerals-aa'!$A$1,$C24,$T$2,1,1) -> 0 | U24: =OFFSET('Taula Minerals-aa'!$A$1,$C24,$U$2,1,1) -> 0 | V24: =OFFSET('Taula Minerals-aa'!$A$1,$C24,$V$2,1,1) -> 0 | W24: =OFFSET('Taula Minerals-aa'!$A$1,$C24,$W$2,1,1) -> 0 | X24: =OFFSET('Taula Minerals-aa'!$A$1,$C24,$X$2,1,1) -> 0 | Y24: =OFFSET('Taula Minerals-aa'!$A$1,$C24,$Y$2,1,1) -> 0 | Z24: =OFFSET('Taula Minerals-aa'!$A$1,$C24,$Z$2,1,1) -> 0 | AA24: =OFFSET('Taula Minerals-aa'!$A$1,$C24,$AA$2,1,1) -> 0 | AB24: =OFFSET('Taula Minerals-aa'!$A$1,$C24,$AB$2,1,1) -> 0 | AC24: =OFFSET('Taula Minerals-aa'!$A$1,$C24,$AC$2,1,1) -> 0 | AD24: =OFFSET('Taula Minerals-aa'!$A$1,$C24,$AD$2,1,1) -> 0 | AE24: =OFFSET('Taula Minerals-aa'!$A$1,$C24,$AE$2,1,1) -> 0 | AF24: =OFFSET('Taula Minerals-aa'!$A$1,$C24,$AF$2,1,1) -> 0 | AG24: =OFFSET('Taula Minerals-aa'!$A$1,$C24,$AG$2,1,1) -> 0 | AH24: =OFFSET('Taula Minerals-aa'!$A$1,$C24,$AH$2,1,1) -> 0 | AI24: =OFFSET('Taula Minerals-aa'!$A$1,$C24,$AI$2,1,1) -> 0 | AJ24: =OFFSET('Taula Minerals-aa'!$A$1,$C24,$AJ$2,1,1) -> 0 | AK24: =OFFSET('Taula Minerals-aa'!$A$1,$C24,$AK$2,1,1) -> 0 | AL24: =OFFSET('Taula Minerals-aa'!$A$1,$C24,$AL$2,1,1) -> 0 | AM24: =OFFSET('Taula Minerals-aa'!$A$1,$C24,$AM$2,1,1) -> 0 | AN24: =OFFSET('Taula Minerals-aa'!$A$1,$C24,$AN$2,1,1) -> 0 | AO24: =OFFSET('Taula Farratges'!$A$1,$C24,$AO$2,1,1) -> 0
B25: =IF(OFFSET('Taula Minerals-aa'!$A$1,C25,0,1,1)=0,"",OFFSET('Taula Minerals-aa'!$A$1,C25,0,1,1)) ->  | C25: 1 | D25: =OFFSET('Taula Minerals-aa'!$A$1,$C25,D2,1,1) -> 0 | E25: =OFFSET('Taula Minerals-aa'!$A$1,$C25,E2,1,1) -> 0 | F25: =OFFSET('Taula Minerals-aa'!$A$1,$C25,F2,1,1) -> 0 | G25: =OFFSET('Taula Minerals-aa'!$A$1,$C25,G2,1,1) -> 0 | H25: =OFFSET('Taula Minerals-aa'!$A$1,$C25,H2,1,1) -> 0 | I25: =OFFSET('Taula Minerals-aa'!$A$1,$C25,I2,1,1) -> 0 | J25: =OFFSET('Taula Minerals-aa'!$A$1,$C25,J2,1,1) -> 0 | K25: =OFFSET('Taula Minerals-aa'!$A$1,$C25,K$2,1,1) -> 0 | L25: =OFFSET('Taula Minerals-aa'!$A$1,$C25,L$2,1,1) -> 0 | M25: =OFFSET('Taula Minerals-aa'!$A$1,$C25,M$2,1,1) -> 0 | N25: =OFFSET('Taula Minerals-aa'!$A$1,$C25,N$2,1,1) -> 0 | O25: =OFFSET('Taula Minerals-aa'!$A$1,$C25,O$2,1,1) -> 0 | P25: =OFFSET('Taula Minerals-aa'!$A$1,$C25,P$2,1,1) -> 0 | Q25: =OFFSET('Taula Minerals-aa'!$A$1,$C25,Q$2,1,1) -> 0 | R25: =OFFSET('Taula Minerals-aa'!$A$1,$C25,$R$2,1,1) -> 0 | S25: =OFFSET('Taula Minerals-aa'!$A$1,$C25,$S$2,1,1) -> 0 | T25: =OFFSET('Taula Minerals-aa'!$A$1,$C25,$T$2,1,1) -> 0 | U25: =OFFSET('Taula Minerals-aa'!$A$1,$C25,$U$2,1,1) -> 0 | V25: =OFFSET('Taula Minerals-aa'!$A$1,$C25,$V$2,1,1) -> 0 | W25: =OFFSET('Taula Minerals-aa'!$A$1,$C25,$W$2,1,1) -> 0 | X25: =OFFSET('Taula Minerals-aa'!$A$1,$C25,$X$2,1,1) -> 0 | Y25: =OFFSET('Taula Minerals-aa'!$A$1,$C25,$Y$2,1,1) -> 0 | Z25: =OFFSET('Taula Minerals-aa'!$A$1,$C25,$Z$2,1,1) -> 0 | AA25: =OFFSET('Taula Minerals-aa'!$A$1,$C25,$AA$2,1,1) -> 0 | AB25: =OFFSET('Taula Minerals-aa'!$A$1,$C25,$AB$2,1,1) -> 0 | AC25: =OFFSET('Taula Minerals-aa'!$A$1,$C25,$AC$2,1,1) -> 0 | AD25: =OFFSET('Taula Minerals-aa'!$A$1,$C25,$AD$2,1,1) -> 0 | AE25: =OFFSET('Taula Minerals-aa'!$A$1,$C25,$AE$2,1,1) -> 0 | AF25: =OFFSET('Taula Minerals-aa'!$A$1,$C25,$AF$2,1,1) -> 0 | AG25: =OFFSET('Taula Minerals-aa'!$A$1,$C25,$AG$2,1,1) -> 0 | AH25: =OFFSET('Taula Minerals-aa'!$A$1,$C25,$AH$2,1,1) -> 0 | AI25: =OFFSET('Taula Minerals-aa'!$A$1,$C25,$AI$2,1,1) -> 0 | AJ25: =OFFSET('Taula Minerals-aa'!$A$1,$C25,$AJ$2,1,1) -> 0 | AK25: =OFFSET('Taula Minerals-aa'!$A$1,$C25,$AK$2,1,1) -> 0 | AL25: =OFFSET('Taula Minerals-aa'!$A$1,$C25,$AL$2,1,1) -> 0 | AM25: =OFFSET('Taula Minerals-aa'!$A$1,$C25,$AM$2,1,1) -> 0 | AN25: =OFFSET('Taula Minerals-aa'!$A$1,$C25,$AN$2,1,1) -> 0 | AO25: =OFFSET('Taula Farratges'!$A$1,$C25,$AO$2,1,1) -> 0
E26: =SUMPRODUCT(E3:E25,'II_Plantejar Ració'!$E$4:$E$26) -> 0.1650344248 | F26: =SUMPRODUCT(F3:F25,'II_Plantejar Ració'!$E$4:$E$26) -> 0.1335375833 | G26: =SUMPRODUCT(G3:G25,'II_Plantejar Ració'!$E$4:$E$26) -> 12.33032895 | H26: =SUMPRODUCT(H3:H25,'II_Plantejar Ració'!$E$4:$E$26) -> 2.877444039 | I26: =SUMPRODUCT(I3:I25,'II_Plantejar Ració'!$E$4:$E$26) -> 0 | J26: =SUMPRODUCT(J3:J25,'II_Plantejar Ració'!$E$4:$E$26) -> 0 | K26: =SUMPRODUCT(K3:K25,'II_Plantejar Ració'!$E$4:$E$26) -> 0 | L26: =SUMPRODUCT(L3:L25,'II_Plantejar Ració'!$E$4:$E$26) -> 0 | M26: =SUMPRODUCT(M3:M25,'II_Plantejar Ració'!$E$4:$E$26) -> 0 | N26: =SUMPRODUCT(N3:N25,'II_Plantejar Ració'!$E$4:$E$26) -> 0 | O26: =SUMPRODUCT(O3:O25,'II_Plantejar Ració'!$E$4:$E$26) -> 0 | P26: =SUMPRODUCT(P3:P25,'II_Plantejar Ració'!$E$4:$E$26) -> 0 | Q26: =SUMPRODUCT(Q3:Q25,'II_Plantejar Ració'!$E$4:$E$26) -> 0 | R26: =SUMPRODUCT(R3:R25,'II_Plantejar Ració'!$E$4:$E$26) -> 0 | S26: =SUMPRODUCT(S3:S25,'II_Plantejar Ració'!$E$4:$E$26) -> 0 | T26: =SUMPRODUCT(T3:T25,'II_Plantejar Ració'!$E$4:$E$26) -> 0 | U26: =SUMPRODUCT(U3:U25,'II_Plantejar Ració'!$E$4:$E$26) -> 0 | V26: =SUMPRODUCT(V3:V25,'II_Plantejar Ració'!$E$4:$E$26) -> 0 | W26: =SUMPRODUCT(W3:W25,'II_Plantejar Ració'!$E$4:$E$26) -> 0 | X26: =SUMPRODUCT(X3:X25,'II_Plantejar Ració'!$E$4:$E$26) -> 0 | Y26: =SUMPRODUCT(Y3:Y25,'II_Plantejar Ració'!$E$4:$E$26) -> 0 | Z26: =SUMPRODUCT(Z3:Z25,'II_Plantejar Ració'!$E$4:$E$26)/SUM('II_Plantejar Ració'!E4:E26) -> 15.5675 | AA26: =SUMPRODUCT(AA3:AA25,'II_Plantejar Ració'!$E$4:$E$26)/SUM('II_Plantejar Ració'!E4:E26) -> 0.74 | AB26: =SUMPRODUCT(AB3:AB25,'II_Plantejar Ració'!$E$4:$E$26)/SUM('II_Plantejar Ració'!E4:E26) -> 0 | AC26: =SUMPRODUCT(AC3:AC25,'II_Plantejar Ració'!$E$4:$E$26) -> 23.28555 | AD26: =SUMPRODUCT(AD3:AD25,'II_Plantejar Ració'!$E$4:$E$26) -> 4.54068225 | AE26: =SUMPRODUCT(AE3:AE25,'II_Plantejar Ració'!$E$4:$E$26)/SUM('II_Plantejar Ració'!E4:E26) -> 2.50970557 | AF26: =SUMPRODUCT(AF3:AF25,'II_Plantejar Ració'!$E$4:$E$26) -> 0.1023701943 | AG26: =SUMPRODUCT(AG3:AG25,'II_Plantejar Ració'!$E$4:$E$26) -> 91.97961958 | AH26: =SUMPRODUCT(AH3:AH25,'II_Plantejar Ració'!$E$4:$E$26) -> 3.5351 | AI26: =SUMPRODUCT(AI3:AI25,'II_Plantejar Ració'!$E$4:$E$26) -> 43.97357 | AJ26: =SUMPRODUCT(AJ3:AJ25,'II_Plantejar Ració'!$E$4:$E$26) -> 62.4022 | AK26: =SUMPRODUCT(AK3:AK25,'II_Plantejar Ració'!$E$4:$E$26) -> 57.09955 | AL26: =SUMPRODUCT(AL3:AL25,'II_Plantejar Ració'!$E$4:$E$26) -> 0 | AM26: =SUMPRODUCT(AM3:AM25,'II_Plantejar Ració'!$E$4:$E$26) -> 15.60055 | AN26: =SUMPRODUCT(AN3:AN25,'II_Plantejar Ració'!$E$4:$E$26) -> 0 | AO26: =SUMPRODUCT(AO3:AO25,'II_Plantejar Ració'!$E$4:$E$26) -> 80.20367122
F30: =IF(NR!B6=8,2,1) -> 1 | H30: =H3*0.34+H4*0.37+H8*0.29+H9*0.01 -> 3.237390824
H31: =H30/(0.34+0.37+0.29+0.01) -> 3.20533745
H34: =SUMPRODUCT(H3:H19,'II_Plantejar Ració'!E4:E20) -> 2.877444039
B37: =CàlculsOVI!B3 -> VERD Enclova Inici Floració, 2n any
B38: =CàlculsOVI!B4 -> ENSITJAT Prat natural pla, gramínies en gran part
B39: =CàlculsOVI!B5 -> FENC Bromo Final vegetació
B40: =CàlculsOVI!B6 -> 
B41: =CàlculsOVI!B7 -> 
B42: =CàlculsOVI!B8 -> Ordi gra
B43: =CàlculsOVI!B9 -> Blat de moro gra
B44: =CàlculsOVI!B10 -> Soja tortó 44
B45: =CàlculsOVI!B11 -> 
B46: =CàlculsOVI!B12 -> 
B47: =CàlculsOVI!B13 -> 
B48: =CàlculsOVI!B14 -> 
B49: =CàlculsOVI!B15 -> Grassa vegetal, mantega de porc (tots els tipus)
B50: =CàlculsOVI!B16 -> 
B51: =CàlculsOVI!B17 -> 
B52: =CàlculsOVI!B18 -> 
B53: =CàlculsOVI!B19 -> 

Sheet I_Necessitats
L1: Càlculs auxiliars Gestació
L2: =IF(C10<=3,0.0345*(C5^0.75),IF(C8<=2,-0.0031*C11^2+0.1183*C11-0.0951+0.0345*(C5^0.75),IF(C8<=4,0.0523*C11^0.8927+0.0345*(C5^0.75),0.0309*C11^0.6303+0.0345*(C5^0.75)))) -> 0.7437595118 | M2: A | N2: UFL
B3: Elegir tipus d'animal | L3: =(IF(C10<=3,0.0345*(55^0.75),IF(C8<=2,-0.0031*C11^2+0.1183*C11-0.0951+0.0345*(55^0.75),IF(C8<=4,0.0523*C11^0.8927+0.0345*(55^0.75),0.0309*C11^0.6303+0.0345*(55^0.75))))) -> 0.6967726772 | M3: A55 | N3: =L3+0.04*((C5-55)/5) -> 0.7367726772
D4: =NR!B6 -> 2 | E4: =IF(NR!$B$6=8,IF(NR!$B$1=1,"Mascles moderat",IF(NR!$B$1=2,"Femelles moderat",IF(NR!$B$1=3,"Mascles alt","Femelles alt"))),"") ->  | L4: =IF(C10<=3,0.0345*(70^0.75),IF(C8<=2,-0.0031*C11^2+0.1183*C11-0.0951+0.0345*(70^0.75),IF(C8<=4,0.0523*C11^0.8927+0.0345*(70^0.75),0.0309*C11^0.6303+0.0345*(70^0.75)))) -> 0.8349156949 | M4: A70 | N4: =L4+0.04*((C5-70)/5) -> 0.7549156949
B5: Pes viu | C5: 60 | D5: =IF(NR!$B$6=8,E5,IF(NR!$B$6=5,"Valors normals entre 40 i 90",IF(NR!$B$6=4,"Valors normals entre 40 i 110","Valors normals entre 40 i 80"))) -> Valors normals entre 40 i 80 | E5: =IF(NR!$B$6=8,IF(NR!$B$1=1,"15 a 35 kg",IF(NR!$B$1=2,"15 a 30 kg",IF(NR!$B$1=3,"20 a 40 kg","20 a 40 kg"))),"") ->  | L5: =IF(C10<=3,F49,IF(C8<=2,18.144*C11^0.8184+F49,IF(C8<=4,0.5978*C11^2-0.1668*C11+37.222+F49,0.0853*C11^2+4.087*C11+5.7653+F49))) -> 54.96941922 | M5: A | N5: PDI
B6: =IF(NR!B6=8,"","CC") -> CC | C6: 3 | D6: =IF(NR!$B$6=8,"","Valors normals entre 2 i 4,5") -> Valors normals entre 2 i 4,5 | F6: mascles alt | G6: femelles alt | H6: mascles moderat | I6: femelles moderat | L6: =IF(C10<=3,G49,IF(C8<=2,18.144*C11^0.8184+G49,IF(C8<=4,0.5978*C11^2-0.1668*C11+37.222+G49,0.0853*C11^2+4.087*C11+5.7653+G49))) -> 53.20480642 | M6: A55 | N6: =L6+3*((C5-55)/5) -> 56.20480642
B7: =IF(NR!B6=3,"Variació pes o potencial engreix",IF(NR!B6=8,"Variació pes o potencial engreix","")) ->  | C7: 250 | D7: =IF(NR!$B$6=3,"Valors normals entre 50 i 150 g/dia",IF(NR!$B$6=8,E7,"")) ->  | E7: =IF(E4="Mascles moderat",H7,IF(E4="Femelles moderat",I7,IF(E4="Mascles alt",F7,G7))) ->  | F7: =IF(NR!$B$6=8,IF(C5<40,IF(C5>=35,"150 a 450",IF(C5>=30,"150 a 400",IF(C5>=25,"150 a 350","150 a 300"))),"200 a 450"),"") ->  | G7: =IF(NR!$B$6=8,IF(C5<40,IF(C5>=35,"150 a 400",IF(C5>=30,"150 a 350",IF(C5>=25,"150 a 350","150 a 300"))),"200 a 400"),"") ->  | H7: =IF(NR!$B$6=8,IF(C5<35,IF(C5>=30,"150 a 400",IF(C5>=25,"150 a 350",IF(C5>=15,"150 a 300",))),"200 a 400"),"") ->  | I7: =IF(NR!$B$6=8,IF(C5<30,IF(C5>=25,"150 a 300",IF(C5>=20,"150 a 300","150 a 250")),"150 a 300"),"") ->  | L7: =IF(C10<=3,H49,IF(C8<=2,18.144*C11^0.8184+H49,IF(C8<=4,0.5978*C11^2-0.1668*C11+37.222+H49,0.0853*C11^2+4.087*C11+5.7653+H49))) -> 58.47920705 | M7: A70 | N7: =L7+3*((C5-70)/5) -> 52.47920705
B8: =IF(NR!B6=5,"Setmanes abans part","") ->  | D8: =IF(NR!B6=5,"De 6 a 1 setmana abans part","") ->  | L8: =IF(C10<=3,0.02*C5,IF(C8<=2,0.395*C11-0.003+0.02*C5,IF(C8<=4,0.2256*C11+0.0547+0.02*C5,0.144*C11+0.0224+0.02*C5))) -> 1.2 | M8: A | N8: Ca
B9: =IF(NR!B6=6,"Setmanes postpart/lactació",IF(NR!B6=7,"Setmanes postpart/lactació","")) ->  | C9: 20 | D9: =IF(NR!B6=6,"De 1 a 14",IF(NR!B6=7,"De 1 a 35","")) ->  | L9: =IF(C10<=3,0.02*55,IF(C8<=2,0.395*C11-0.003+0.02*55,IF(C8<=4,0.2256*C11+0.0547+0.02*55,0.144*C11+0.0224+0.02*55))) -> 1.1 | M9: A55 | N9: =L9+0.3*(C5-55)/5 -> 1.4 | Q9: =IF(NR!B6=8,"ELEGIR SEXE I POTENCIAL ENGREIX XAIS","") -> 
B10: =IF(NR!B6=5,"Mesos gestació","") ->  | D10: =IF(NR!B6=5,"Es consideren dos períodes: 3 primers mesos i 2 últims. Valors d'1 a 5","") ->  | L10: =IF(C10<=3,0.02*70,IF(C8<=2,0.395*C11-0.003+0.02*70,IF(C8<=4,0.2256*C11+0.0547+0.02*70,0.144*C11+0.0224+0.02*70))) -> 1.4 | M10: A70 | N10: =L10+0.3*(C5-70)/5 -> 0.8 | S10: =IF(Q9="","","ENGREIX") -> 
B11: =IF(NR!B6=5,"Pes fetus","") ->  | D11: =IF(NR!B6=5,"Entre 4 i 11 kg","") ->  | L11: =IF(C10<=3,0.027*C5-0.06,IF(C8<=2,0.395*C11-0.003+0.027*C5-0.06,IF(C8<=4,0.1292*C11+0.1728+0.027*C5-0.06,0.0788*C11+0.203+0.027*C5-0.06))) -> 1.56 | M11: A | N11: P
B12: =IF(NR!B6=5,"Nombre xais fetus","") ->  | D12: =IF(NR!B6=5,"1 a 3","") ->  | L12: =IF(C10<=3,0.027*55-0.06,IF(C8<=2,0.395*C11-0.003+0.027*55-0.06,IF(C8<=4,0.1292*C11+0.1728+0.027*55-0.06,0.0788*C11+0.203+0.027*55-0.06))) -> 1.425 | M12: A55 | N12: =L12+0.2*(C5-55)/5 -> 1.625
B13: =IF(NR!B6=6,"Increment pes 10-30 dies, anyells","") ->  | D13: =IF(NR!$B$6=6,"Valors normals entre 150 i 550 g/dia","") ->  | L13: =IF(C10<=3,0.027*70-0.06,IF(C8<=2,0.395*C11-0.003+0.027*70-0.06,IF(C8<=4,0.1292*C11+0.1728+0.027*70-0.06,0.0788*C11+0.203+0.027*70-0.06))) -> 1.83 | M13: A70 | N13: =L13+0.2*(C5-70)/5 -> 1.43
B14: =IF(NR!B6=6,"Consum llet anyells kg","") ->  | D14: =IF(NR!B6=6,"De 0 a 3","") ->  | L14: =IF(C10<=3,I22*(C5^0.75),IF(C8<=6,0.16430288+0.01917949*C5+0.0650641*C11-0.19095353*C12,I22*(C5^0.75))) -> 1.746217984 | M14: A | N14: CI
B15: =IF(NR!B6=7,"Pl producció llet litres","") ->  | C15: 2.5 | H15: =-0.0274*C9*7*C13/1000-0.0007*C9*7+3.66*C13/1000+0.0602+E23-J50 -> 0.3935805168 | L15: =IF(C10<=3,I22*(55^0.75),IF(C8<=6,0.16430288+0.01917949*55+0.0650641*C11-0.19095353*C12,I22*(55^0.75))) -> 1.635901068 | M15: A55 | N15: =L15+0.1*(C5-55)/5 -> 1.735901068
B16: =IF(NR!B6=7,"tg ‰, taxa greix","") ->  | C16: 55 | H16: =0.059816601-0.007659235*C9+0.000492681*C13+0.524018623*C14 -> -0.093368099 | J16: =0.89366351+0.06489911*C9-0.00060124*C13+0.70203193*C14+(0.1*(C5-60)/5) -> 2.19164571 | L16: =IF(C10<=3,I22*(70^0.75),IF(C8<=6,0.16430288+0.01917949*70+0.0650641*C11-0.19095353*C12,I22*(70^0.75))) -> 1.960236849 | M16: A70 | N16: =L16+0.1*(C5-70)/5 -> 1.760236849
B17: =IF(NR!B6=7,"tp ‰, taxa proteïna","") ->  | C17: 46 | J17: =C18*0.16667 -> 0.083335
B18: =IF(NR!B6<6,"",IF(NR!B6>7,"","Pèrdua punts cc des del part fins 6a setmana")) ->  | C18: 0.5 | D18: =IF(NR!B6<6,"",IF(NR!B6>7,"","0,5 a 1")) ->  | J18: =SUM(J16:J17) -> 2.27498071
B19: =IF(NR!$B$6=1,NR!A7,IF(NR!$B$6=2,NR!A8,IF(NR!$B$6=3,NR!A9,IF(NR!$B$6=4,NR!A10,IF(NR!$B$6=5,NR!A11,IF(NR!$B$6=6,NR!A12,IF(NR!$B$6=7,NR!A13,IF(NR!$B$6=8,NR!A14)))))))) -> Reconstitució ovelles
B20: Inota | C20: =IF(NR!$B$6=1,E22,IF(NR!$B$6=2,F22,IF(NR!$B$6=3,G22,IF(NR!$B$6=4,H22,IF(NR!$B$6=5,I22,IF(NR!$B$6=6,J22,IF(NR!$B$6=7,K22,IF(NR!$B$6=8,L22)))))))) -> 0.081 | E20: 40 a 80 | F20: 40 a 80 | G20: 40 a 80 | H20: 40 a 110 | I20: 40 a 90 | J20: 40 a 80 | K20: 40 a 80 | L20: 15 a 40
B21: =IF(NR!B6=8,"Necessitats o recomanacions UFV","Necessitats o recomanacions UFL") -> Necessitats o recomanacions UFL | C21: =IF(NR!$B$6=1,E23,IF(NR!$B$6=2,F23,IF(NR!$B$6=3,G23,IF(NR!$B$6=4,H23,IF(NR!$B$6=5,I23,IF(NR!$B$6=6,J23,IF(NR!$B$6=7,K23,IF(NR!$B$6=8,L23)))))))) -> 2.143760074 | E21: Ovelles eixutes i inici gestació | F21: Reconstitució ovelles | G21: Ovelles amb anyells 50-150 g/dia | H21: Mardà/marrà | I21: Ovelles en gestació (6ena setmana abans del part -part) | J21: Ovelles alletants 1-14 setmanes després del part | K21: Ovelles munyides | L21: Creixement i engreix de xais
B22: Necessitats o recomanacions PDI | C22: =IF(NR!$B$6=1,E24,IF(NR!$B$6=2,F24,IF(NR!$B$6=3,G24,IF(NR!$B$6=4,H24,IF(NR!$B$6=5,I24,IF(NR!$B$6=6,J24,IF(NR!$B$6=7,K24,IF(NR!$B$6=8,L24)))))))) -> 109.9694192 | E22: =IF(C6<5,IF(C6<4,IF(C6<3,IF(C6<2,0,0.089),0.081),0.075),0) -> 0.081 | F22: =IF(C6<5,IF(C6<4,IF(C6<3,IF(C6<2,0,0.089),0.081),0.075),0) -> 0.081 | G22: =IF(C6<5,IF(C6<4,IF(C6<3,IF(C6<2,0,0.089),0.081),0.075),0) -> 0.081 | H22: =IF(C6<5,IF(C6<4,IF(C6<3,IF(C6<2,0,0.089),0.081),0.075),0) -> 0.081 | I22: =IF(C6<5,IF(C6<4,IF(C6<3,IF(C6<2,0,0.089),0.081),0.075),0) -> 0.081
B23: CI | C23: =IF(NR!$B$6=1,E25,IF(NR!$B$6=2,F25,IF(NR!$B$6=3,G25,IF(NR!$B$6=4,H25,IF(NR!$B$6=5,I25,IF(NR!$B$6=6,J25,IF(NR!$B$6=7,K25,IF(NR!$B$6=8,L25)))))))) -> 1.746217984 | E23: =IF(NR!B15=3,1.2*(0.0345*(C5^0.75)),IF(NR!B15=2,1.1*(0.0345*(C5^0.75)),(0.0345*(C5^0.75)))) -> 0.7437595118 | F23: =IF(C6<3.5,IF(NR!B15=3,1.2*(0.0345*(C5^0.75)),IF(NR!B15=2,1.1*(0.0345*(C5^0.75)),(0.0345*(C5^0.75))))+0.0056*C7+5*EXP(-16),IF(NR!B15=3,1.2*(0.0345*(C5^0.75)),IF(NR!B15=2,1.1*(0.0345*(C5^0.75)),(0.0345*(C5^0.75))))) -> 2.143760074 | G23: =IF(C6<3.5,0.0026*C7+IF(NR!B15=3,1.2*(0.0345*(C5^0.75)),IF(NR!B15=2,1.1*(0.0345*(C5^0.75)),(0.0345*(C5^0.75)))),IF(NR!B15=3,1.2*(0.0345*(C5^0.75)),IF(NR!B15=2,1.1*(0.0345*(C5^0.75)),(0.0345*(C5^0.75))))) -> 1.393759512 | H23: =(IF(NR!B15=3,1.2*(0.0345*(C5^0.75)),IF(NR!B15=2,1.1*(0.0345*(C5^0.75)),(0.0345*(C5^0.75)))))*1.1 -> 0.8181354629 | I23: =IF(NR!B15=3,(IF(C5<55,$N$3,IF(C5>70,$N$4,$L$2)))*1.2,IF(NR!B15=2,(IF(C5<55,$N$3,IF(C5>70,$N$4,$L$2)))*1.1,(IF(C5<55,$N$3,IF(C5>70,$N$4,$L$2))))) -> 0.7437595118 | J23: =-0.0274*C9*7*C13/1000-0.0007*C9*7+3.66*C13/1000+0.0602+E23-J50 -> 0.3935805168 | K23: =E23+0.686*K49+IF(C9<=6,K50,IF(C9>=27,-K50)) -> 2.134110012 | L23: =(0.01802+0.00205*C7/C5)*C5 -> 1.5937 | M23: UFL o UFV
B24: Nec Ca | C24: =(IF(NR!$B$6=1,E26,IF(NR!$B$6=2,F26,IF(NR!$B$6=3,G26,IF(NR!$B$6=4,H26,IF(NR!$B$6=5,I26,IF(NR!$B$6=6,J26,IF(NR!$B$6=7,K26,IF(NR!$B$6=8,L26)))))))))/0.4 -> 3 | E24: =I_Necessitats!F49 -> 54.96941922 | F24: =IF(C6<3.5,E24+0.22*C7,E24) -> 109.9694192 | G24: =IF(C6<3.5,0.22*C7+E24,E24) -> 109.9694192 | H24: =E24*1.1 -> 60.46636114 | I24: =IF(C5<55,$N$6,IF(C5>70,$N$7,$L$5)) -> 54.96941922 | J24: =(-3.22*C9*7*C13/1000-0.018*C9*7+420*C13/1000+4.64)*0.58+E24 -> 56.19901922 | K24: =E24+(C15*C17)/0.58 -> 253.2452813 | L24: =0.141*C7/0.5+F50 -> 164.1 | M24: PDI
B25: Nec P | C25: =IF(NR!$B$6=1,E27,IF(NR!$B$6=2,F27,IF(NR!$B$6=3,G27,IF(NR!$B$6=4,H27,IF(NR!$B$6=5,I27,IF(NR!$B$6=6,J27,IF(NR!$B$6=7,K27,IF(NR!$B$6=8,L27))))))))/0.65 -> 2.4 | E25: =E22*(C5^0.75) -> 1.746217984 | F25: =F22*(C5^0.75) -> 1.746217984 | G25: =G22*(C5^0.75) -> 1.746217984 | H25: =H22*(C5^0.75) -> 1.746217984 | I25: =IF(C5<55,$N$15,IF(C5>70,$N$16,$L$14)) -> 1.746217984 | J25: =0.89366351+0.06489911*C9-0.00060124*C13+0.70203193*C14+(0.1*(C5-60)/5)+IF(C9<=6,C18*0.16667,IF(C9>14,0,IF(C9<11,C18*0.19166667,C18*0.24))) -> 2.19164571 | K25: =0.024*C5+0.9*K49 -> 3.264075 | L25: =0.089*C5^0.75 -> 1.918683958 | M25: UE
B26: Mg (g) | C26: =IF(NR!$B$6=1,E28,IF(NR!$B$6=2,F28,IF(NR!$B$6=3,G28,IF(NR!$B$6=4,H28,IF(NR!$B$6=5,I28,IF(NR!$B$6=6,J28,IF(NR!$B$6=7,K28,IF(NR!$B$6=8,L28))))))))/0.16 -> 3.75 | E26: =0.02*C5 -> 1.2 | F26: =0.02*C5 -> 1.2 | G26: =IF(C6<3.5,0.005*C7-0.0667+0.02*C5 +0.2,0.02*C5 +0.2) -> 2.5833 | H26: =0.02*C5 -> 1.2 | I26: =IF(C5<55,$N$9,IF(C5>70,$N$10,$L$8)) -> 1.2 | J26: =0.00078181+0.00368208*C9-0.00015632*C13+1.92035899*C14+E26 -> 1.27442341 | K26: =8.017329907+0.933584863*C15-0.038410057*C16-0.033059023*C17+0.3*(C5-70)/10 -> 6.418023872 | L26: =0.690355789-0.00119142*C5+0.008207615*C7 -> 2.670774339 | M26: Ca
B27: K (g) | C27: =IF(NR!$B$6=1,E29,IF(NR!$B$6=2,F29,IF(NR!$B$6=3,G29,IF(NR!$B$6=4,H29,IF(NR!$B$6=5,I29,IF(NR!$B$6=6,J29,IF(NR!$B$6=7,K29,IF(NR!$B$6=8,L29)))))))) -> 4.2 | E27: =0.027*C5-0.06 -> 1.56 | F27: =0.027*C5-0.06 -> 1.56 | G27: =IF(C6<3.5,0.007*C7+0.027*C5-0.21,0.027*C5-0.21) -> 3.16 | H27: =0.027*C5-0.06 -> 1.56 | I27: =IF(C5<55,$N$12,IF(C5>70,$N$13,$L$11)) -> 1.56 | J27: =0.02704921-0.00136369*C9+0.000055257870866066*C13+1.4833199*C14+E27 -> 1.55977541 | K27: =7.596806665+0.72496131*C15-0.030674951*C16-0.026445637*C17+0.2*(C5-70)/10 -> 6.305588333 | L27: =0.334483115+0.017912474*C5+0.004998622*C7 -> 2.658887055
B28: Na (g) | C28: =IF(NR!$B$6=1,E30,IF(NR!$B$6=2,F30,IF(NR!$B$6=3,G30,IF(NR!$B$6=4,H30,IF(NR!$B$6=5,I30,IF(NR!$B$6=6,J30,IF(NR!$B$6=7,K30,IF(NR!$B$6=8,L30)))))))) -> 0.9 | E28: =0.01*$C$5 -> 0.6 | F28: =0.01*$C$5 -> 0.6 | G28: =0.01*$C$5+0.4*C7/1000 -> 0.7 | H28: =0.01*$C$5 -> 0.6 | I28: =0.01*$C$5+0.03 -> 0.63 | J28: =0.01*$C$5+0.18*C14 -> 0.6 | K28: =0.115*$C$5+0.18*K49 -> 7.264815 | L28: =0.07*$C$5+1.8*C7/1000 -> 4.65
B29: S (g) | C29: =IF(NR!$B$6=1,E31,IF(NR!$B$6=2,F31,IF(NR!$B$6=3,G31,IF(NR!$B$6=4,H31,IF(NR!$B$6=5,I31,IF(NR!$B$6=6,J31,IF(NR!$B$6=7,K31,IF(NR!$B$6=8,L31)))))))) -> 2.839378836 | E29: =0.07*$C$5 -> 4.2 | F29: =0.07*$C$5 -> 4.2 | G29: =0.115*$C$5+1.8*C7/1000 -> 7.35 | H29: =0.07*$C$5 -> 4.2 | I29: =0.115*$C$5+0.2 -> 7.1 | J29: =0.115*$C$5+1.4*C14 -> 6.9 | K29: =0.115*$C$5+1.4*K49 -> 9.73745 | L29: =0.07*$C$5+1.8*C7/1000 -> 4.65
B30: Cl (g) | C30: =IF(NR!$B$6=1,E32,IF(NR!$B$6=2,F32,IF(NR!$B$6=3,G32,IF(NR!$B$6=4,H32,IF(NR!$B$6=5,I32,IF(NR!$B$6=6,J32,IF(NR!$B$6=7,K32,IF(NR!$B$6=8,L32)))))))) -> 1.38 | E30: =0.015*$C$5 -> 0.9 | F30: =0.015*$C$5 -> 0.9 | G30: =0.015*$C$5+0.9*C7/1000 -> 1.125 | H30: 0.9 | I30: =0.015*$C$5+0.3 -> 1.2 | J30: =0.023*$C$5+0.45*C14 -> 1.38 | K30: =0.023*$C$5+0.45*K49 -> 2.2920375 | L30: =0.015*$C$5+0.9*C7/1000 -> 1.125
B31: Co (mg) | C31: =IF(NR!$B$6=1,E33,IF(NR!$B$6=2,F33,IF(NR!$B$6=3,G33,IF(NR!$B$6=4,H33,IF(NR!$B$6=5,I33,IF(NR!$B$6=6,J33,IF(NR!$B$6=7,K33,IF(NR!$B$6=8,L33)))))))) -> 0.4259068254 | E31: =2*I_Necessitats!F48 -> 2.839378836 | F31: =2*I_Necessitats!F48 -> 2.839378836 | G31: =2*I_Necessitats!$F$48 -> 2.839378836 | H31: =2*I_Necessitats!$F$48 -> 2.839378836 | I31: =2*I_Necessitats!$F$48 -> 2.839378836 | J31: =2*I_Necessitats!$F$48 -> 2.839378836 | K31: =2*I_Necessitats!$F$48 -> 2.839378836 | L31: =2*I_Necessitats!$F$48 -> 2.839378836
B32: Cu (mg) | C32: =IF(NR!$B$6=1,E34,IF(NR!$B$6=2,F34,IF(NR!$B$6=3,G34,IF(NR!$B$6=4,H34,IF(NR!$B$6=5,I34,IF(NR!$B$6=6,J34,IF(NR!$B$6=7,K34,IF(NR!$B$6=8,L34)))))))) -> 14.19689418 | E32: =0.023*$C$5 -> 1.38 | F32: =0.023*$C$5 -> 1.38 | G32: =0.023*$C$5+0.7*C7/1000 -> 1.555 | H32: =0.023*$C$5 -> 1.38 | I32: =0.023*$C$5+0.4 -> 1.78 | J32: =0.035*$C$5+0.15*C14 -> 2.1 | K32: =0.035*$C$5+0.15*K49 -> 2.4040125 | L32: =0.023*$C$5+0.7*C7/1000 -> 1.555
B33: Mn (mg) | C33: =IF(NR!$B$6=1,E35,IF(NR!$B$6=2,F35,IF(NR!$B$6=3,G35,IF(NR!$B$6=4,H35,IF(NR!$B$6=5,I35,IF(NR!$B$6=6,J35,IF(NR!$B$6=7,K35,IF(NR!$B$6=8,L35)))))))) -> 70.9844709 | E33: =0.3*I_Necessitats!$F$48 -> 0.4259068254 | F33: =0.3*I_Necessitats!$F$48 -> 0.4259068254 | G33: =0.3*I_Necessitats!$F$48 -> 0.4259068254 | H33: =0.3*I_Necessitats!$F$48 -> 0.4259068254 | I33: =0.3*I_Necessitats!$F$48 -> 0.4259068254 | J33: =0.3*I_Necessitats!$F$48 -> 0.4259068254 | K33: =0.3*I_Necessitats!$F$48 -> 0.4259068254 | L33: =0.3*I_Necessitats!$F$48 -> 0.4259068254
B34: Zn (mg) | C34: =IF(NR!$B$6=1,E36,IF(NR!$B$6=2,F36,IF(NR!$B$6=3,G36,IF(NR!$B$6=4,H36,IF(NR!$B$6=5,I36,IF(NR!$B$6=6,J36,IF(NR!$B$6=7,K36,IF(NR!$B$6=8,L36)))))))) -> 70.9844709 | E34: =10*I_Necessitats!$F$48 -> 14.19689418 | F34: =10*I_Necessitats!$F$48 -> 14.19689418 | G34: =10*I_Necessitats!$F$48 -> 14.19689418 | H34: =10*I_Necessitats!$F$48 -> 14.19689418 | I34: =10*I_Necessitats!$F$48 -> 14.19689418 | J34: =10*I_Necessitats!$F$48 -> 14.19689418 | K34: =10*I_Necessitats!$F$48 -> 14.19689418 | L34: =10*I_Necessitats!$F$48 -> 14.19689418
B35: I (mg) | C35: =IF(NR!$B$6=1,E37,IF(NR!$B$6=2,F37,IF(NR!$B$6=3,G37,IF(NR!$B$6=4,H37,IF(NR!$B$6=5,I37,IF(NR!$B$6=6,J37,IF(NR!$B$6=7,K37,IF(NR!$B$6=8,L37)))))))) -> 0.6388602381 | E35: =50*I_Necessitats!$F$48 -> 70.9844709 | F35: =50*I_Necessitats!$F$48 -> 70.9844709 | G35: =50*I_Necessitats!$F$48 -> 70.9844709 | H35: =50*I_Necessitats!$F$48 -> 70.9844709 | I35: =50*I_Necessitats!$F$48 -> 70.9844709 | J35: =50*I_Necessitats!$F$48 -> 70.9844709 | K35: =50*I_Necessitats!$F$48 -> 70.9844709 | L35: =50*I_Necessitats!$F$48 -> 70.9844709
B36: Se (mg) | C36: =IF(NR!$B$6=1,E38,IF(NR!$B$6=2,F38,IF(NR!$B$6=3,G38,IF(NR!$B$6=4,H38,IF(NR!$B$6=5,I38,IF(NR!$B$6=6,J38,IF(NR!$B$6=7,K38,IF(NR!$B$6=8,L38)))))))) -> 0 | E36: =50*I_Necessitats!$F$48 -> 70.9844709 | F36: =50*I_Necessitats!$F$48 -> 70.9844709 | G36: =50*I_Necessitats!$F$48 -> 70.9844709 | H36: =50*I_Necessitats!$F$48 -> 70.9844709 | I36: =50*I_Necessitats!$F$48 -> 70.9844709 | J36: =50*I_Necessitats!$F$48 -> 70.9844709 | K36: =50*I_Necessitats!$F$48 -> 70.9844709 | L36: =50*I_Necessitats!$F$48 -> 70.9844709
B37: Mo (mg) | C37: =IF(NR!$B$6=1,E39,IF(NR!$B$6=2,F39,IF(NR!$B$6=3,G39,IF(NR!$B$6=4,H39,IF(NR!$B$6=5,I39,IF(NR!$B$6=6,J39,IF(NR!$B$6=7,K39,IF(NR!$B$6=8,L39)))))))) -> 0.709844709 | E37: =0.45*I_Necessitats!$F$48 -> 0.6388602381 | F37: =0.45*I_Necessitats!$F$48 -> 0.6388602381 | G37: =0.45*I_Necessitats!$F$48 -> 0.6388602381 | H37: =0.45*I_Necessitats!$F$48 -> 0.6388602381 | I37: =0.45*I_Necessitats!$F$48 -> 0.6388602381 | J37: =0.65*I_Necessitats!$F$48 -> 0.9227981217 | K37: =0.65*I_Necessitats!$F$48 -> 0.9227981217 | L37: =0.45*I_Necessitats!$F$48 -> 0.6388602381
B38: Vit A (UI)/kg MST | C38: =IF(NR!$B$6=1,E40,IF(NR!$B$6=2,F40,IF(NR!$B$6=3,G40,IF(NR!$B$6=4,H40,IF(NR!$B$6=5,I40,IF(NR!$B$6=6,J40,IF(NR!$B$6=7,K40,IF(NR!$B$6=8,L40)))))))) -> 2700 | J38: =0.15*$C$14 -> 0 | K38: =0.15*K49 -> 0.3040125
B39: Vit D (UI)/kg MST | C39: =IF(NR!$B$6=1,E41,IF(NR!$B$6=2,F41,IF(NR!$B$6=3,G41,IF(NR!$B$6=4,H41,IF(NR!$B$6=5,I41,IF(NR!$B$6=6,J41,IF(NR!$B$6=7,K41,IF(NR!$B$6=8,L41)))))))) -> 500 | E39: =0.5*F48 -> 0.709844709 | F39: =0.5*F48 -> 0.709844709 | G39: =0.5*F48 -> 0.709844709 | H39: =0.5*$F$48 -> 0.709844709 | I39: =0.5*$F$48 -> 0.709844709 | J39: 0.709844709 | K39: 0.709844709 | L39: 0.709844709
B40: Vit E (UI)/kg MST | C40: =IF(NR!$B$6=1,E42,IF(NR!$B$6=2,F42,IF(NR!$B$6=3,G42,IF(NR!$B$6=4,H42,IF(NR!$B$6=5,I42,IF(NR!$B$6=6,J42,IF(NR!$B$6=7,K42,IF(NR!$B$6=8,L42)))))))) -> 15 | E40: 2700 | F40: 2700 | G40: 2700 | H40: 2000 | I40: 3300 | J40: 2400 | K40: 2400 | L40: 1200
B41: Dades complementàries per al racionament | E41: 500 | F41: 500 | G41: 500 | H41: 500 | I41: 500 | J41: 500 | K41: 500 | L41: 500
B42: Límit tolerància càlcul (%) | C42: 12.5 | E42: 15 | F42: 15 | G42: 15 | H42: 15 | I42: 15 | J42: 15 | K42: 15 | L42: 15
B43: MS farratgera % mínim | C43: 50
B44: Sistema maneig | G44: 55 | H44: 70 | J44: =(3.22*C9*7*C13/1000-0.018*C9*7+420*C13/1000+4.64)+E24 -> 57.08941922
E45: NecPDI_Puendo | F45: =0.312*I_Necessitats!C5 -> 18.72 | G45: =0.312*G44 -> 17.16 | H45: =0.312*H44 -> 21.84
E46: NecPDI_Pepidèrmiques | F46: =(0.2*I_Necessitats!C5^0.6)/0.58 -> 4.022469431 | G46: =(0.2*G44^0.6)/0.58 -> 3.817856632 | H46: =(0.2*H44^0.6)/0.58 -> 4.412257257
E47: Nec_PDI_PEF | F47: =22.7*F48 -> 32.22694979 | G47: =22.7*F48 -> 32.22694979 | H47: =22.7*F48 -> 32.22694979
E48: MSI | F48: =I_Necessitats!C23/1.23 -> 1.419689418 | L48: =0.686*C15*(0.0071*C16+0.0043*C17+0.2224) -> 1.3903505
E49: NecPDI_no productives | F49: =SUM(F45:F47) -> 54.96941922 | G49: =SUM(G45:G48) -> 53.20480642 | H49: =SUM(H45:H48) -> 58.47920705 | I49: Ple | K49: =C15*(0.0071*C16+0.0043*C17+0.2224) -> 2.02675
E50: NecPDI_no productives xais creixement i engreix | F50: =1.56*C5 -> 93.6 | I50: Mobilització postpart, 6 setmanes | J50: =IF(C6>=3,IF(C18=0,0,IF(C18<=1,IF(C18>0.6,0.85*E23,0.42*E23)))) -> 0.3123789949 | K50: =IF(C6>=3,IF(C18=0,0,IF(C18<=1,IF(C18>0.6,0.85*E23,0.42*E23)))) -> 0.3123789949
E51: Guany proteïna | F51: =0.22*C7 -> 55 | G51: Reconst
E52: =IF(NR!$B$6=1,0,IF(NR!$B$6=2,F51,IF(NR!$B$6=3,F52,IF(NR!$B$6=4,0,IF(NR!$B$6=5,F53,IF(NR!$B$6=6,F54,IF(NR!$B$6=7,F55,IF(NR!$B$6=8,F56)))))))) -> 55 | F52: =0.22*C7 -> 55 | G52: Ovelles anyells
F53: =I24-E24 -> 0 | G53: gest
F54: =J24-E24 -> 1.2296 | G54: alletants
F55: =C15*C17 -> 115 | G55: munyides
F56: =L24-E24 -> 109.1305808 | G56: creixement
E59: =E23/E25 -> 0.4259259259 | F59: 1.227658914 | G59: 0.7981589495 | H59: 0.4685185185 | I59: 0.4259259259 | J59: 0.1795821811 | K59: 0.6538177008 | L59: 0.8306214233
J62: -0.1501818175

Sheet II_Plantejar Ració
A1: Selecció d'ingredients, límits d'incorporació i preu | H1: Full no protegit, només s'han d'introduir els límits en kg d'ingredient seleccionat i el preu de cadascun d'ells. Activar SOLVER
B2: Límits d'incorporació | D2: Càlculs | G2: Preu Ingredient
B3: kg mín | C3: kg màx | D3: kg fresc | E3: kg MS | F3: % fresc ració | G3: €/kg fresc | H3: kg fresc total
B4: 0 | C4: 100 | D4: 1 | E4: =D4*CàlculsOVI!D3/100 -> 0.1537 | F4: =(D4*100)/$K$4 -> 100 | G4: 0.01 | K4: =SUM(D4:D26) -> 1 | L4: =K22 -> 15.37 | M4: %MS
A5: 0 | B5: 0 | C5: 5 | D5: 0 | E5: =D5*CàlculsOVI!D4/100 -> 0 | F5: 0 | G5: 0.01 | H5: kg farratge fresc total | K5: =SUM(D4:D8) -> 1
A6: 0 | B6: 0 | C6: 2 | D6: 0 | E6: =D6*CàlculsOVI!D5/100 -> 0 | F6: 0 | G6: 0.01 | H6: kg concentrat fresc total | K6: =K4-K5 -> 0 | L6: =SUMPRODUCT($E$4:$E$8,CàlculsOVI!$E$3:$E$7)/SUM(E4:E8) -> 1.073743818 | M6: UE/kg MS
A7: 0 | B7: 0 | C7: 0 | D7: 0 | E7: =D7*CàlculsOVI!D6/100 -> 0 | F7: 0 | G7: 0.01 | H7: Aportacions totals UE | K7: =SUMPRODUCT($E$4:$E$8,CàlculsOVI!E3:E7) -> 0.1650344248
A8: 0 | B8: 0 | C8: 0 | D8: 0 | E8: =D8*CàlculsOVI!D7/100 -> 0 | F8: 0 | G8: 0.01 | H8: kg MS total | K8: =SUM(E4:E26) -> 0.1537 | L8: =I_Necessitats!F48 -> 1.419689418 | M8: Dife MSIcalc i ració | N8: =K8-L8 -> -1.265989418
A9: 0 | B9: 0 | C9: 10 | D9: 0 | E9: =D9*CàlculsOVI!D8/100 -> 0 | F9: 0 | G9: 0.01 | H9: kg MS total farratge | K9: =SUM(E4:E8) -> 0.1537
A10: 0 | B10: 0 | C10: 10 | D10: 0 | E10: =D10*CàlculsOVI!D9/100 -> 0 | F10: 0 | G10: 0.01 | H10: kg MS total concentrat | K10: =K8-K9 -> 0 | M10: =I_Necessitats!B42 -> Límit tolerància càlcul (%) | O10: =I_Necessitats!C42 -> 12.5
A11: 0 | B11: 0 | C11: 2 | D11: 0 | E11: =D11*CàlculsOVI!D10/100 -> 0 | F11: 0 | G11: 0.226 | H11: % MS farratge a la ració | K11: =(K9*100)/K8 -> 100 | M11: =I_Necessitats!B43 -> MS farratgera % mínim | O11: =I_Necessitats!C43 -> 50
A12: 0 | B12: 0 | C12: 0 | D12: 0 | E12: =D12*CàlculsOVI!D11/100 -> 0 | F12: 0 | G12: 0.192 | H12: PCO | K12: =(K10)/K8 -> 0 | L12: Auxiliar càlcul Sg | N12: Ovelles amb anyells 50-150 g/dia | O12: Mardà/marrà | P12: Ovelles en gestació (6ena setmana abans del part -part) | Q12: Ovelles alletants 1-14 setmanes després del part | R12: Ovelles munyides | S12: Engreix
A13: 0 | B13: 0 | C13: 0 | D13: 0 | E13: =D13*CàlculsOVI!D12/100 -> 0 | F13: 0 | G13: 0.215 | H13: =IF(NR!B6=8,"Relació UFV/UEM farratge","Relació UFL/UEM farratge") -> Relació UFL/UEM farratge | K13: =SUMPRODUCT($E$4:$E$8,CàlculsOVI!$F$3:$F$7)/SUMPRODUCT($E$4:$E$8,CàlculsOVI!$E$3:$E$7) -> 0.8091498697 | L13: Ovelles eixutes i inici gestació | M13: Reconstitució ovelles
A14: 0 | B14: 0 | C14: 0 | D14: 0 | E14: =D14*CàlculsOVI!D13/100 -> 0 | F14: 0 | G14: 0.43 | H14: Taxa de substitució global | K14: =IF(NR!B6<5,L14,IF(NR!B6=5,P15,IF(NR!B6=6,Q14,IF(NR!B6=7,R14,IF(NR!B6=8,S14))))) -> 0.7291665185 | L14: =IF((1.4271-0.65*L6)<0,0,(1.4271-0.65*L6)) -> 0.7291665185 | P14: =IF(I_Necessitats!C8<=2,1.731-1.1371*L6,IF(I_Necessitats!C8<=4,1.6421-1.0743*L6,1.546-1.0257*L6)) -> 0.5100459049 | Q14: =IF(I_Necessitats!C9<=6,IF(I_Necessitats!C9>3,2.8975-1.6*L6,2.8975-1.6*L6-0.150182),IF(I_Necessitats!C9<=14,1.59-0.8*L6)) -> FALSE | R14: =IF((3.35-(2.3*L6))<0,0,(3.35-(2.3*L6))) -> 0.8803892192 | S14: =IF((1.4271-0.65*L6)<0,0,(1.4271-0.65*L6)) -> 0.7291665185
A15: 0 | B15: 0 | C15: 0 | D15: 0 | E15: =D15*CàlculsOVI!D14/100 -> 0 | F15: 0 | G15: 0.312 | H15: Producció de llet | K15: =IF(I_Necessitats!B15="","",I_Necessitats!K49) ->  | P15: =IF(P14<0,0,P14) -> 0.5100459049
A16: 0 | B16: 0 | C16: 0.01 | D16: 0 | E16: =D16*CàlculsOVI!D15/100 -> 0 | F16: 0 | G16: 0.215 | H16: VALOR FUNCIÓ OBJECTIU €/ració | K16: =SUMPRODUCT(D4:D26,G4:G26) -> 0.01
A17: 0 | B17: 0 | C17: 0 | D17: 0 | E17: =D17*CàlculsOVI!D16/100 -> 0 | F17: 0 | G17: 0.146 | H17: COST PART FARRATGERA | K17: =SUMPRODUCT(D4:D8,G4:G8) -> 0.01
B18: 0 | C18: 0 | D18: 0 | E18: =D18*CàlculsOVI!D17/100 -> 0 | F18: 0 | G18: 0.136 | H18: COST PART CONCENTRADA | K18: =K16-K17 -> 0
A19: 0 | B19: 0 | C19: 0 | D19: 0 | E19: =D19*CàlculsOVI!D18/100 -> 0 | F19: 0 | G19: 0.438 | H19: Paràmetres nutritius, límits, valors finals
A20: 0 | B20: 0 | C20: 0 | D20: 0 | E20: =D20*CàlculsOVI!D19/100 -> 0 | F20: 0 | G20: 0.6 | H20: Paràmetres | I20: Mínim | J20: Màxim | K20: Valor | L20: Valor/kg MS o % | M20: En alguns ingredients de la ració no hi consten els nutrients ...
A21: 0 | B21: 0 | C21: 2 | D21: 0 | E21: =D21*CàlculsOVI!D20/100 -> 0 | F21: 0 | G21: 0.29 | H21: MSI (kg/dia) | I21: 0 | J21: 999 | K21: =K8 -> 0.1537
A22: 0 | B22: 0 | C22: 5 | D22: 0 | E22: =D22*CàlculsOVI!D21/100 -> 0 | F22: 0 | G22: 0.067 | H22: %MS ració | I22: 0 | J22: 999 | K22: =SUMPRODUCT(F4:F26,CàlculsOVI!D3:D25)/100 -> 15.37
B23: 0 | C23: 0 | D23: 0 | E23: =D23*CàlculsOVI!D22/100 -> 0 | F23: 0 | G23: 0.285 | H23: UEM | I23: =0.7*I_Necessitats!C23 -> 1.222352589 | J23: =I_Necessitats!C23 -> 1.746217984 | K23: =K7+K7*K14*((K12)/(1-(K12))) -> 0.1650344248 | L23: =K23/$K$8 -> 1.073743818 | M23: =CàlculsOVI!AP21 -> 
B24: 0 | C24: 0 | D24: 0 | E24: =D24*CàlculsOVI!D23/100 -> 0 | F24: 0 | G24: 0.01 | H24: =IF(NR!B6=8,"UFV","UFL") -> UFL | I24: =I_Necessitats!C21*B47/B48 -> 1.961927267 | J24: =I_Necessitats!C21*B47/B48 -> 1.961927267 | K24: =CàlculsOVI!F26 -> 0.1335375833 | L24: 0.8688196702 | M24: =CàlculsOVI!AQ21 -> 
B25: 0 | C25: 0 | D25: 0 | E25: =D25*CàlculsOVI!D24/100 -> 0 | F25: 0 | G25: 0.01 | H25: PDI | I25: =((100-$O$11)/100)*(G33+(G34+N8*0.5*(5.7+0.074*B57)/B79)*G35/B79) -> 30.99866786 | J25: =((100+$O$11)/100)*(G33+(G34+N8*0.5*(5.7+0.074*B57)/B79)*G35/B79) -> 92.99600357 | K25: =CàlculsOVI!G26 -> 12.33032895 | L25: 80.22335033 | M25: =CàlculsOVI!AR21 -> 
B26: 0 | C26: 0 | D26: 0 | E26: =D26*CàlculsOVI!D25/100 -> 0 | F26: 0 | G26: 0.01 | H26: BPR | I26: -8 | J26: 10 | K26: =CàlculsOVI!H26 -> 2.877444039 | L26: 18.72117137 | M26: =CàlculsOVI!AS21 -> 
F27: =SUM(F4:F26) -> 100 | H27: NI | I27: =CàlculsOVI!AE26 -> 2.50970557 | J27: =I27 -> 2.50970557 | K27: =K21*100/I_Necessitats!C5 -> 0.2561666667 | L27: =K27 -> 0.2561666667 | M27: =CàlculsOVI!AT21 -> 
A28: Efecte NI | E28: =[1]I_Necessitats!B7 -> Dades orientatives | H28: Ca | I28: =((100-I_Necessitats!$C$42)/100)*I_Necessitats!C24 -> 2.625 | J28: =(100+I_Necessitats!$C$42)/100*I_Necessitats!C24 -> 3.375 | K28: =CàlculsOVI!I26 -> 0 | L28: 0 | M28: =CàlculsOVI!AU21 -> Ca
A29: NIref | B29: =J27 -> 2.50970557 | E29: =I_Necessitats!B19 -> Reconstitució ovelles | H29: P | I29: =((100-I_Necessitats!$C$42)/100)*I_Necessitats!C25 -> 2.1 | J29: =(100+I_Necessitats!$C$42)/100*I_Necessitats!C25 -> 2.7 | K29: =CàlculsOVI!J26 -> 0 | L29: 0 | M29: =CàlculsOVI!AV21 -> P
A30: NI % PV | B30: =K27 -> 0.2561666667 | F30: CI | G30: =I_Necessitats!C23 -> 1.746217984 | H30: Mg | I30: =((100-I_Necessitats!$C$42)/100)*I_Necessitats!C26 -> 3.28125 | J30: =(100+I_Necessitats!$C$42)/100*I_Necessitats!C26 -> 4.21875 | K30: =CàlculsOVI!K26 -> 0 | L30: 0 | M30: =CàlculsOVI!AW21 -> Mg
A31: dMOm | B31: =76-2.74*B30 -> 75.29810333 | F31: UFL | G31: =I_Necessitats!C21 -> 2.143760074 | H31: K | I31: =((100-I_Necessitats!$C$42)/100)*I_Necessitats!C27 -> 3.675 | J31: =(100+I_Necessitats!$C$42)/100*I_Necessitats!C27 -> 4.725 | K31: =CàlculsOVI!L26 -> 0 | L31: 0 | M31: =CàlculsOVI!AX21 -> K
A32: Δ dMO_NI | B32: =-2.74*(B30-B29)/100 -> 0.06174696594 | F32: PDI | G32: =I_Necessitats!C22 -> 109.9694192 | H32: Na | I32: =((100-I_Necessitats!$C$42)/100)*I_Necessitats!C28 -> 0.7875 | J32: =(100+I_Necessitats!$C$42)/100*I_Necessitats!C28 -> 1.0125 | K32: =CàlculsOVI!M26 -> 0 | L32: 0 | M32: =CàlculsOVI!AY21 -> Na
A33: Efecte %Co (PCO) | F33: NecPDI_PUendo | G33: =B68 -> 18.72 | H33: S | I33: =((100-I_Necessitats!$C$42)/100)*I_Necessitats!C29 -> 2.484456482 | J33: =(100+I_Necessitats!$C$42)/100*I_Necessitats!C29 -> 3.194301191 | K33: =CàlculsOVI!N26 -> 0 | L33: 0 | M33: =CàlculsOVI!AZ21 -> S
A34: PCO | B34: =K12 -> 0 | E34: PDI - NecPDI_PUendo | G34: =G32-G33 -> 91.24941922 | H34: Cl | I34: =((100-I_Necessitats!$C$42)/100)*I_Necessitats!C30 -> 1.2075 | J34: =(100+I_Necessitats!$C$42)/100*I_Necessitats!C30 -> 1.5525 | K34: =CàlculsOVI!O26 -> 0 | L34: 0 | M34: =CàlculsOVI!BA21 -> Cl
A35: Δ dMO_CO | B35: =IF(B34=0,0,((-6.5/(1+(0.35/B34)^3))/100)*0.6) -> 0 | F35: EfPDI | G35: =IF(NR!B6=8,0.5,0.58) -> 0.58 | H35: Co | I35: =((100-I_Necessitats!$C$42)/100)*I_Necessitats!C31 -> 0.3726684722 | J35: =(100+I_Necessitats!$C$42)/100*I_Necessitats!C31 -> 0.4791451786 | K35: =CàlculsOVI!Q26 -> 0 | L35: 0 | M35: =CàlculsOVI!BB21 -> Fe
A36: Efecte balanç proteic rumen | H36: Cu | I36: =((100-I_Necessitats!$C$42)/100)*I_Necessitats!C32 -> 12.42228241 | J36: =(100+I_Necessitats!$C$42)/100*I_Necessitats!C32 -> 15.97150595 | K36: =CàlculsOVI!R26 -> 0 | L36: 0 | M36: =CàlculsOVI!BC21 -> Co
A37: MNT ingerida | B37: =L45 -> 151.5 | H37: Mn | I37: =((100-I_Necessitats!$C$42)/100)*I_Necessitats!C33 -> 62.11141204 | J37: =(100+I_Necessitats!$C$42)/100*I_Necessitats!C33 -> 79.85752976 | K37: =CàlculsOVI!S26 -> 0 | L37: 0 | M37: =CàlculsOVI!BD21 -> Cu | O37: =IF(K37*K21>=1000*K21,"Toxicitat","") -> 
A38: MOrD o MOF | B38: =L57 -> 521.8195916 | H38: Zn | I38: =((100-I_Necessitats!$C$42)/100)*I_Necessitats!C34 -> 62.11141204 | J38: =(100+I_Necessitats!$C$42)/100*I_Necessitats!C34 -> 79.85752976 | K38: =CàlculsOVI!T26 -> 0 | L38: 0 | M38: =CàlculsOVI!BE21 -> Mn | O38: =IF(K38*K21>=900*K21,"Toxicitat","") -> 
A39: MNrD_rumen (MNF) fermentades rumen | B39: =B37*L56 -> 112.11 | H39: Iode | I39: =((100-I_Necessitats!$C$42)/100)*I_Necessitats!C35 -> 0.5590027083 | J39: =(100+I_Necessitats!$C$42)/100*I_Necessitats!C35 -> 0.7187177679 | K39: =CàlculsOVI!U26 -> 0 | L39: 0 | M39: =CàlculsOVI!BF21 -> Zn | O39: =IF(K39*K21>=5,"Toxicitat","") -> 
A40: MN alim_duodè (PIA) no ferm a rumen | B40: =B37*(1-L56) -> 39.39 | H40: Se | I40: =((100-I_Necessitats!$C$42)/100)*I_Necessitats!C36 -> 0 | J40: =(100+I_Necessitats!$C$42)/100*I_Necessitats!C36 -> 0 | K40: =CàlculsOVI!V26 -> 0 | L40: 0 | M40: =CàlculsOVI!BG21 -> Iode
A41: MN microbiana intestí ( 41,7 + 71,9 x 10^-3 x MOrD_rumen + 8,40 x PCO) | B41: =41.7+(B38*71.9*10^-3)+8.4*B34 -> 79.21882863 | H41: Vit A | I41: =((100-I_Necessitats!$C$42)/100)*I_Necessitats!C38 -> 2362.5 | J41: =(100+I_Necessitats!$C$42)/100*I_Necessitats!C38 -> 3037.5 | K41: =CàlculsOVI!W26 -> 0 | L41: 0 | M41: =CàlculsOVI!BH21 -> Se
A42: MN endogena | B42: 14.2 | H42: Vit D | I42: =((100-I_Necessitats!$C$42)/100)*I_Necessitats!C39 -> 437.5 | J42: =(100+I_Necessitats!$C$42)/100*I_Necessitats!C39 -> 562.5 | K42: =CàlculsOVI!X26 -> 0 | L42: 0 | M42: =CàlculsOVI!BI21 -> Vit A
A43: BPR ració | B43: =B37-(B40+B41+B42) -> 18.69117137 | H43: Vit E | I43: =((100-I_Necessitats!$C$42)/100)*I_Necessitats!C40 -> 13.125 | J43: =(100+I_Necessitats!$C$42)/100*I_Necessitats!C40 -> 16.875 | K43: =CàlculsOVI!Y26 -> 0 | L43: 0 | M43: =CàlculsOVI!BJ21 -> Vit D
A44: BPR ref | B44: =L26 -> 18.72117137 | H44: AG | K44: =CàlculsOVI!Z26 -> 15.5675 | L44: =K44 -> 15.5675 | M44: =CàlculsOVI!BK21 -> Vit E
A45: Δ dMO_BPR | B45: =(0.06*(B43-B44))/100 -> -1.8e-05 | H45: MNT_PB | K45: =CàlculsOVI!AC26 -> 23.28555 | L45: =K45/K21 -> 151.5 | M45: =CàlculsOVI!BL21 -> 
H46: PDIA | K46: =CàlculsOVI!AD26 -> 4.54068225 | L46: =K46 -> 4.54068225 | M46: =CàlculsOVI!BM21 -> 
A47: ∑ dMO x PMO, dMO x ingredient a la ració | B47: =K47 -> 0.666039 | H47: dMO | J47: =B48 -> 0.7277679659 | K47: =CàlculsOVI!AF26/K21 -> 0.666039 | L47: =K47/$K$8 -> 4.333370202 | M47: =CàlculsOVI!BN21 -> PDIA
A48: Efecte total interaccions | B48: =B47+(B32+B35+B45) -> 0.7277679659 | H48: MOD | K48: =CàlculsOVI!AG26 -> 91.97961958 | L48: =K48/$K$8 -> 598.4360415 | M48: =CàlculsOVI!BO21 -> 
H49: EE | K49: =CàlculsOVI!AH26 -> 3.5351 | L49: =K49/(K21*10) -> 2.3 | M49: =CàlculsOVI!BP21 -> 
A50: MODc_rumen (MOF corregida) | B50: =B38*B48/B47 -> 570.1822007 | H50: FB | K50: =CàlculsOVI!AI26 -> 43.97357 | L50: =K50/$K$8 -> 286.1 | M50: =CàlculsOVI!BQ21 -> 
A51: PANDI | B51: =0.193*B40 -> 7.60227 | H51: NDF | K51: =CàlculsOVI!AJ26 -> 62.4022 | L51: 406 | M51: =CàlculsOVI!BR21 -> 
A52: dr | B52: =(B40-B51)/B40 -> 0.807 | H52: ADF | K52: =CàlculsOVI!AK26 -> 57.09955 | L52: 371.5 | M52: =CàlculsOVI!BS21 -> 
A53: PDIA | B53: =B37*(1-L56)*B52 -> 31.78773 | H53: Lignina | K53: =CàlculsOVI!AL26 -> 0 | L53: 0 | M53: =CàlculsOVI!BT21 -> 
A54: MN microbianes_duodè (corregida) | B54: =40.7+75.6*10^-3*B50+8.07*B34-0.114*B43 -> 81.67498083 | H54: cendres | K54: =CàlculsOVI!AM26 -> 15.60055 | L54: 101.5 | M54: =CàlculsOVI!BU21 -> 
A55: PDI = PDIA + MN microbianes_duodè x 0,8 x 0,8 | B55: =B53+B54*0.8*0.8 -> 84.05971773 | H55: Mo | I55: =((100-I_Necessitats!$C$42)/100)*I_Necessitats!C37 -> 0.6211141204 | J55: =(100+I_Necessitats!$C$42)/100*I_Necessitats!C37 -> 0.7985752976 | K55: =CàlculsOVI!AN26 -> 0 | L55: 0 | M55: =CàlculsOVI!BV21 -> 
A56: flux de N duodenal endogen (Actualització) | H56: DT_N | K56: =CàlculsOVI!AA26 -> 0.74 | L56: =K56 -> 0.74 | M56: =CàlculsOVI!BW21 -> 
A57: MOND = MO - MODc_rumen | B57: =L58-B50 -> 328.3177993 | H57: MOF | K57: =CàlculsOVI!AO26 -> 80.20367122 | L57: =K57/$K$8 -> 521.8195916
A58: N duodenal endo, g MNT/kg MSI = 14,2 x MSI | B58: =14.2*K21 -> 2.18254 | H58: MO | K58: =K48/K47 -> 138.09945 | L58: =K58/$K$8 -> 898.5 | M58: =CàlculsOVI!BX21 -> 
A59: PÈRDUES FECALS ENDÒGENES (PEF) i (NEC_PDI Actualització) | H59: PDI/UFL | K59: =K25/K24 -> 92.33601986
A60: MNND = 0,163 x MN alim_duodè + 0,20 x MN mic_duodè + 5,7 + 0,074 x MOND | B60: =0.163*B40+0.2*B54+5.7+0.074*B57 -> 52.75108332
A61: PEF (proteïnes endogenes fecals) = 5,7 + 0,074 x MOND | B61: =5.7+0.074*B57 -> 29.99551715
A62: Nec PDI_PEF = MSI x [0,5 x (5,7 + 0,074 x MOND)]/EfPDI | B62: =K21*(0.5*(5.7+0.074*B57))/B79 -> 2.408652169
A63: PÈRDUES ENDÒGENES URINÀRIES i (NEC_PDI Actualització)
A64: log10 NU (N urinari g/dia) log10 NU = - 1,17 + 1,00 x log10 Pv | B64: =-1.17+LOG10(I_Necessitats!C5) -> 0.6081512504
A65: NU | B65: =10^B64 -> 4.056497852
A66: NUNP microbià/NU = 0,3325/(1 + (NU/0,203)) | B66: =0.3325/(1+(B65/0.203)) -> 0.01584635146
A67: NU endo | B67: =0.05*I_Necessitats!C5 -> 3
A68: Nec PDI_NU endo | B68: =0.312*I_Necessitats!C5 -> 18.72
A69: PÈRDUES NITROGENADES PER L’EPIDERMIS i (Nec_PDI Actualització)
A70: P epidèrmiques (0,2 g PDI/kg Pv0,60) | B70: =0.2*I_Necessitats!C5^0.6 -> 2.33303227
A71: Nec PDI_P epidèrmiques = 0,2 x Pv0,60/EffPDI | B71: =B70/B79 -> 2.437780555
A72: Nec_PDI no productives | B72: =B62+B68+B71 -> 23.56643272
A73: Eficàcia de la síntesi proteica en lactació
A74: PDI disponible = PDI ingerida - Nec PDI_NU endògenes | B74: =K25-B68 -> -6.389671055
A75: EfPDI = ∑ despeses prot/PDI disponible = 0,67xEXP(-0,007x(PDI-100) | B75: =0.67*EXP(-0.007*(L25-100)) -> 0.7694794599
A76: Bal EN | B76: =K24-G31 -> -2.010222491
A77: bal Proteïna | B77: =K25-G32 -> -97.63909027
A78: Guany Proteïna | B78: =I_Necessitats!E52 -> 55
A79: EfPDI = (PEF + P epid + MP + bal Prote)/(PDI disponible) | B79: =IF(B76>0,(B61+B70+B78+B77)/B74,(B61+B70+B78)/(B74+ABS(B77))) -> 0.9570312904
A81: NUcal=0,79xBPR/6,25 + (PDI/6,25) x (1-E·fPDI)+Nuendo + NUNPmic + 0,47X bal N | B81: =(0.79*B43/6.25+(K25/6.25)*(1-B79)+B67/6.25+(B41/6.25)+0.47*ABS(B77)/6.25)/[2]I_Necessitats!D164 -> 0.03529970333

Sheet III_Resultat Ració
A1: Explotació: | C1: Data | D1: =TODAY() -> 2023-03-02
A2: =I_Necessitats!B19 -> Reconstitució ovelles | F2: =IF(NR!B6=8,IF(NR!B1=1,NR!A2,IF(NR!B1=2,NR!A3,IF(NR!B1=3,NR!A4,IF(NR!B1=4,NR!A5)))),"") -> 
A3: =I_Necessitats!B5 -> Pes viu | B3: =IF(I_Necessitats!C5="","",I_Necessitats!C5) -> 60 | C3: =I_Necessitats!B12 ->  | H3: =IF(C3="","",I_Necessitats!C12) -> 
A4: =I_Necessitats!B6 -> CC | B4: =IF(I_Necessitats!C6="","",I_Necessitats!C6) -> 3 | C4: =I_Necessitats!B13 ->  | H4: =IF(C4="","",I_Necessitats!C13) -> 
A5: =I_Necessitats!B7 ->  | B5: =IF(A5="","",I_Necessitats!C7) ->  | C5: =I_Necessitats!B14 ->  | H5: =IF(C5="","",I_Necessitats!C14) -> 
A6: =I_Necessitats!B8 ->  | B6: =IF(A6="","",I_Necessitats!C8) ->  | C6: =I_Necessitats!B15 ->  | H6: =IF(C6="","",I_Necessitats!C15) -> 
A7: =I_Necessitats!B9 ->  | B7: =IF(A7="","",I_Necessitats!C9) ->  | C7: =I_Necessitats!B16 ->  | H7: =IF(C7="","",I_Necessitats!C16) -> 
A8: =I_Necessitats!B10 ->  | B8: =IF(A8="","",I_Necessitats!C10) ->  | C8: =I_Necessitats!B17 ->  | H8: =IF(C8="","",I_Necessitats!C17) -> 
A9: =I_Necessitats!B11 ->  | B9: =IF(A9="","",I_Necessitats!C11) ->  | C9: =I_Necessitats!B18 ->  | H9: =IF(C9="","",I_Necessitats!C18) -> 
B10: =IF(I_Necessitats!C12="","",I_Necessitats!C12) ->  | G10: Aportacions de nutrients
A11: INGREDIENTS | B11: kg/dia | C11: % MF | D11: kg/tona | E11: COST | G11: NUTRIENTS | H11: ANÀLISI
A12: =IF(B12="","",CàlculsOVI!B3) -> VERD Enclova Inici Floració, 2n any | B12: =IF('II_Plantejar Ració'!D4<=0,"",'II_Plantejar Ració'!D4) -> 1 | C12: =IF('II_Plantejar Ració'!D4<=0,"",'II_Plantejar Ració'!F4) -> 100 | D12: =IF('II_Plantejar Ració'!D4<=0,"",('II_Plantejar Ració'!D4*1000)/('II_Plantejar Ració'!$K$4)) -> 1000 | E12: =IF('II_Plantejar Ració'!D4<=0,"",'II_Plantejar Ració'!G4*B12) -> 0.01 | G12: ='II_Plantejar Ració'!$H$21 -> MSI (kg/dia) | H12: ='II_Plantejar Ració'!K21 -> 0.1537 | I12: Kg
A13: =IF(B13="","",CàlculsOVI!B4) ->  | B13: =IF('II_Plantejar Ració'!D5<=0,"",'II_Plantejar Ració'!D5) ->  | C13: =IF('II_Plantejar Ració'!D5<=0,"",'II_Plantejar Ració'!F5) ->  | D13: =IF('II_Plantejar Ració'!D5<=0,"",('II_Plantejar Ració'!D5*1000)/('II_Plantejar Ració'!$K$4)) ->  | E13: =IF('II_Plantejar Ració'!D5<=0,"",'II_Plantejar Ració'!G5*B13) ->  | G13: ='II_Plantejar Ració'!$H$22 -> %MS ració | H13: ='II_Plantejar Ració'!K22 -> 15.37 | I13: =IF('II_Plantejar Ració'!L23=1,"g","%") -> %
A14: =IF(B14="","",CàlculsOVI!B5) ->  | B14: =IF('II_Plantejar Ració'!D6<=0,"",'II_Plantejar Ració'!D6) ->  | C14: =IF('II_Plantejar Ració'!D6<=0,"",'II_Plantejar Ració'!F6) ->  | D14: =IF('II_Plantejar Ració'!D6<=0,"",('II_Plantejar Ració'!D6*1000)/('II_Plantejar Ració'!$K$4)) ->  | E14: =IF('II_Plantejar Ració'!D6<=0,"",'II_Plantejar Ració'!G6*B14) ->  | G14: MS farratges | H14: ='II_Plantejar Ració'!K9 -> 0.1537 | I14: Kg
A15: =IF(B15="","",CàlculsOVI!B6) ->  | B15: =IF('II_Plantejar Ració'!D7<=0,"",'II_Plantejar Ració'!D7) ->  | C15: =IF('II_Plantejar Ració'!D7<=0,"",'II_Plantejar Ració'!F7) ->  | D15: =IF('II_Plantejar Ració'!D7<=0,"",('II_Plantejar Ració'!D7*1000)/('II_Plantejar Ració'!$K$4)) ->  | E15: =IF('II_Plantejar Ració'!D7<=0,"",'II_Plantejar Ració'!G7*B15) ->  | G15: =CàlculsOVI!E1 -> UEM | H15: ='II_Plantejar Ració'!K23 -> 0.1650344248 | I15: UE | J15: ='II_Plantejar Ració'!M20 -> En alguns ingredients de la ració no hi consten els nutrients ...
A16: =IF(B16="","",CàlculsOVI!B7) ->  | B16: =IF('II_Plantejar Ració'!D8<=0,"",'II_Plantejar Ració'!D8) ->  | C16: =IF('II_Plantejar Ració'!D8<=0,"",'II_Plantejar Ració'!F8) ->  | D16: =IF('II_Plantejar Ració'!D8<=0,"",('II_Plantejar Ració'!D8*1000)/('II_Plantejar Ració'!$K$4)) ->  | E16: =IF('II_Plantejar Ració'!D8<=0,"",'II_Plantejar Ració'!G8*B16) ->  | G16: =CàlculsOVI!F1 -> UFL | H16: ='II_Plantejar Ració'!K24 -> 0.1335375833 | I16: UFL
A17: =IF(B17="","",CàlculsOVI!B8) ->  | B17: =IF('II_Plantejar Ració'!D9<=0,"",'II_Plantejar Ració'!D9) ->  | C17: =IF('II_Plantejar Ració'!D9<=0,"",'II_Plantejar Ració'!F9) ->  | D17: =IF('II_Plantejar Ració'!D9<=0,"",('II_Plantejar Ració'!D9*1000)/('II_Plantejar Ració'!$K$4)) ->  | E17: =IF('II_Plantejar Ració'!D9<=0,"",'II_Plantejar Ració'!G9*B17) ->  | G17: =CàlculsOVI!G1 -> PDI | H17: ='II_Plantejar Ració'!K25 -> 12.33032895 | I17: g
A18: =IF(B18="","",CàlculsOVI!B9) ->  | B18: =IF('II_Plantejar Ració'!D10<=0,"",'II_Plantejar Ració'!D10) ->  | C18: =IF('II_Plantejar Ració'!D10<=0,"",'II_Plantejar Ració'!F10) ->  | D18: =IF('II_Plantejar Ració'!D10<=0,"",('II_Plantejar Ració'!D10*1000)/('II_Plantejar Ració'!$K$4)) ->  | E18: =IF('II_Plantejar Ració'!D10<=0,"",'II_Plantejar Ració'!G10*B18) ->  | G18: =CàlculsOVI!H1 -> BPR | H18: ='II_Plantejar Ració'!K26 -> 2.877444039 | I18: g
A19: =IF(B19="","",CàlculsOVI!B10) ->  | B19: =IF('II_Plantejar Ració'!D11<=0,"",'II_Plantejar Ració'!D11) ->  | C19: =IF('II_Plantejar Ració'!D11<=0,"",'II_Plantejar Ració'!F11) ->  | D19: =IF('II_Plantejar Ració'!D11<=0,"",('II_Plantejar Ració'!D11*1000)/('II_Plantejar Ració'!$K$4)) ->  | E19: =IF('II_Plantejar Ració'!D11<=0,"",'II_Plantejar Ració'!G11*B19) ->  | G19: =CàlculsOVI!I1 -> Ca | H19: ='II_Plantejar Ració'!K27 -> 0.2561666667 | I19: g | J19: ='II_Plantejar Ració'!M27 -> 
A20: =IF(B20="","",CàlculsOVI!B11) ->  | B20: =IF('II_Plantejar Ració'!D12<=0,"",'II_Plantejar Ració'!D12) ->  | C20: =IF('II_Plantejar Ració'!D12<=0,"",'II_Plantejar Ració'!F12) ->  | D20: =IF('II_Plantejar Ració'!D12<=0,"",('II_Plantejar Ració'!D12*1000)/('II_Plantejar Ració'!$K$4)) ->  | E20: =IF('II_Plantejar Ració'!D12<=0,"",'II_Plantejar Ració'!G12*B20) ->  | G20: =CàlculsOVI!J1 -> P | H20: ='II_Plantejar Ració'!K28 -> 0 | I20: g | J20: ='II_Plantejar Ració'!M28 -> Ca
A21: =IF(B21="","",CàlculsOVI!B12) ->  | B21: =IF('II_Plantejar Ració'!D13<=0,"",'II_Plantejar Ració'!D13) ->  | C21: =IF('II_Plantejar Ració'!D13<=0,"",'II_Plantejar Ració'!F13) ->  | D21: =IF('II_Plantejar Ració'!D13<=0,"",('II_Plantejar Ració'!D13*1000)/('II_Plantejar Ració'!$K$4)) ->  | E21: =IF('II_Plantejar Ració'!D13<=0,"",'II_Plantejar Ració'!G13*B21) ->  | G21: =CàlculsOVI!K1 -> Mg | H21: ='II_Plantejar Ració'!K29 -> 0 | I21: g | J21: ='II_Plantejar Ració'!M29 -> P
A22: =IF(B22="","",CàlculsOVI!B13) ->  | B22: =IF('II_Plantejar Ració'!D14<=0,"",'II_Plantejar Ració'!D14) ->  | C22: =IF('II_Plantejar Ració'!D14<=0,"",'II_Plantejar Ració'!F14) ->  | D22: =IF('II_Plantejar Ració'!D14<=0,"",('II_Plantejar Ració'!D14*1000)/('II_Plantejar Ració'!$K$4)) ->  | E22: =IF('II_Plantejar Ració'!D14<=0,"",'II_Plantejar Ració'!G14*B22) ->  | G22: =CàlculsOVI!L1 -> K | H22: ='II_Plantejar Ració'!K30 -> 0 | I22: g | J22: ='II_Plantejar Ració'!M30 -> Mg
A23: =IF(B23="","",CàlculsOVI!B14) ->  | B23: =IF('II_Plantejar Ració'!D15<=0,"",'II_Plantejar Ració'!D15) ->  | C23: =IF('II_Plantejar Ració'!D15<=0,"",'II_Plantejar Ració'!F15) ->  | D23: =IF('II_Plantejar Ració'!D15<=0,"",('II_Plantejar Ració'!D15*1000)/('II_Plantejar Ració'!$K$4)) ->  | E23: =IF('II_Plantejar Ració'!D15<=0,"",'II_Plantejar Ració'!G15*B23) ->  | G23: =CàlculsOVI!M1 -> Na | H23: ='II_Plantejar Ració'!K31 -> 0 | I23: g | J23: ='II_Plantejar Ració'!M31 -> K
A24: =IF(B24="","",CàlculsOVI!B15) ->  | B24: =IF('II_Plantejar Ració'!D16<=0,"",'II_Plantejar Ració'!D16) ->  | C24: =IF('II_Plantejar Ració'!D16<=0,"",'II_Plantejar Ració'!F16) ->  | D24: =IF('II_Plantejar Ració'!D16<=0,"",('II_Plantejar Ració'!D16*1000)/('II_Plantejar Ració'!$K$4)) ->  | E24: =IF('II_Plantejar Ració'!D16<=0,"",'II_Plantejar Ració'!G16*B24) ->  | G24: =CàlculsOVI!N1 -> S | H24: ='II_Plantejar Ració'!K32 -> 0 | I24: g | J24: ='II_Plantejar Ració'!M32 -> Na
A25: =IF(B25="","",CàlculsOVI!B16) ->  | B25: =IF('II_Plantejar Ració'!D17<=0,"",'II_Plantejar Ració'!D17) ->  | C25: =IF('II_Plantejar Ració'!D17<=0,"",'II_Plantejar Ració'!F17) ->  | D25: =IF('II_Plantejar Ració'!D17<=0,"",('II_Plantejar Ració'!D17*1000)/('II_Plantejar Ració'!$K$4)) ->  | E25: =IF('II_Plantejar Ració'!D17<=0,"",'II_Plantejar Ració'!G17*B25) ->  | G25: =CàlculsOVI!O1 -> Cl | H25: ='II_Plantejar Ració'!K33 -> 0 | I25: g | J25: ='II_Plantejar Ració'!M33 -> S
A26: =IF(B26="","",CàlculsOVI!B17) ->  | B26: =IF('II_Plantejar Ració'!D18<=0,"",'II_Plantejar Ració'!D18) ->  | C26: =IF('II_Plantejar Ració'!D18<=0,"",'II_Plantejar Ració'!F18) ->  | D26: =IF('II_Plantejar Ració'!D18<=0,"",('II_Plantejar Ració'!D18*1000)/('II_Plantejar Ració'!$K$4)) ->  | E26: =IF('II_Plantejar Ració'!D18<=0,"",'II_Plantejar Ració'!G18*B26) ->  | G26: =CàlculsOVI!P1 -> Fe | H26: ='II_Plantejar Ració'!K34 -> 0 | I26: mg | J26: ='II_Plantejar Ració'!M34 -> Cl
A27: =IF(B27="","",CàlculsOVI!B18) ->  | B27: =IF('II_Plantejar Ració'!D19<=0,"",'II_Plantejar Ració'!D19) ->  | C27: =IF('II_Plantejar Ració'!D19<=0,"",'II_Plantejar Ració'!F19) ->  | D27: =IF('II_Plantejar Ració'!D19<=0,"",('II_Plantejar Ració'!D19*1000)/('II_Plantejar Ració'!$K$4)) ->  | E27: =IF('II_Plantejar Ració'!D19<=0,"",'II_Plantejar Ració'!G19*B27) ->  | G27: =CàlculsOVI!Q1 -> Co | H27: ='II_Plantejar Ració'!K35 -> 0 | I27: mg | J27: ='II_Plantejar Ració'!M35 -> Fe
A28: =IF(B28="","",CàlculsOVI!B19) ->  | B28: =IF('II_Plantejar Ració'!D20<=0,"",'II_Plantejar Ració'!D20) ->  | C28: =IF('II_Plantejar Ració'!D20<=0,"",'II_Plantejar Ració'!F20) ->  | D28: =IF('II_Plantejar Ració'!D20<=0,"",('II_Plantejar Ració'!D20*1000)/('II_Plantejar Ració'!$K$4)) ->  | E28: =IF('II_Plantejar Ració'!D20<=0,"",'II_Plantejar Ració'!G20*B28) ->  | G28: =CàlculsOVI!R1 -> Cu | H28: ='II_Plantejar Ració'!K36 -> 0 | I28: mg | J28: ='II_Plantejar Ració'!M36 -> Co
A29: =IF(B29="","",CàlculsOVI!B20) ->  | B29: =IF('II_Plantejar Ració'!D21<=0,"",'II_Plantejar Ració'!D21) ->  | C29: =IF('II_Plantejar Ració'!D21<=0,"",'II_Plantejar Ració'!F21) ->  | D29: =IF('II_Plantejar Ració'!D21<=0,"",('II_Plantejar Ració'!D21*1000)/('II_Plantejar Ració'!$K$4)) ->  | E29: =IF('II_Plantejar Ració'!D21<=0,"",'II_Plantejar Ració'!G21*B29) ->  | G29: =CàlculsOVI!S1 -> Mn | H29: ='II_Plantejar Ració'!K37 -> 0 | I29: mg | J29: ='II_Plantejar Ració'!M37 -> Cu
A30: =IF(B30="","",CàlculsOVI!B21) ->  | B30: =IF('II_Plantejar Ració'!D22<=0,"",'II_Plantejar Ració'!D22) ->  | C30: =IF('II_Plantejar Ració'!D22<=0,"",'II_Plantejar Ració'!F22) ->  | D30: =IF('II_Plantejar Ració'!D22<=0,"",('II_Plantejar Ració'!D22*1000)/('II_Plantejar Ració'!$K$4)) ->  | E30: =IF('II_Plantejar Ració'!D22<=0,"",'II_Plantejar Ració'!G22*B30) ->  | G30: =CàlculsOVI!T1 -> Zn | H30: ='II_Plantejar Ració'!K38 -> 0 | I30: mg | J30: ='II_Plantejar Ració'!M38 -> Mn
A31: =IF(B31="","",CàlculsOVI!B22) ->  | B31: =IF('II_Plantejar Ració'!D23<=0,"",'II_Plantejar Ració'!D23) ->  | C31: =IF('II_Plantejar Ració'!D23<=0,"",'II_Plantejar Ració'!F23) ->  | D31: =IF('II_Plantejar Ració'!D23<=0,"",('II_Plantejar Ració'!D23*1000)/('II_Plantejar Ració'!$K$4)) ->  | E31: =IF('II_Plantejar Ració'!D23<=0,"",'II_Plantejar Ració'!G23*B31) ->  | G31: =CàlculsOVI!U1 -> Iode | H31: ='II_Plantejar Ració'!K39 -> 0 | I31: mg | J31: ='II_Plantejar Ració'!M39 -> Zn
A32: =IF(B32="","",CàlculsOVI!B23) ->  | B32: =IF('II_Plantejar Ració'!D24<=0,"",'II_Plantejar Ració'!D24) ->  | C32: =IF('II_Plantejar Ració'!D24<=0,"",'II_Plantejar Ració'!F24) ->  | D32: =IF('II_Plantejar Ració'!D24<=0,"",('II_Plantejar Ració'!D24*1000)/('II_Plantejar Ració'!$K$4)) ->  | E32: =IF('II_Plantejar Ració'!D24<=0,"",'II_Plantejar Ració'!G24*B32) ->  | G32: =CàlculsOVI!V1 -> Se | H32: ='II_Plantejar Ració'!K40 -> 0 | I32: mg | J32: ='II_Plantejar Ració'!M40 -> Iode
A33: =IF(B33="","",CàlculsOVI!B24) ->  | B33: =IF('II_Plantejar Ració'!D25<=0,"",'II_Plantejar Ració'!D25) ->  | C33: =IF('II_Plantejar Ració'!D25<=0,"",'II_Plantejar Ració'!F25) ->  | D33: =IF('II_Plantejar Ració'!D25<=0,"",('II_Plantejar Ració'!D25*1000)/('II_Plantejar Ració'!$K$4)) ->  | E33: =IF('II_Plantejar Ració'!D25<=0,"",'II_Plantejar Ració'!G25*B33) ->  | G33: =CàlculsOVI!W1 -> Vit A | H33: ='II_Plantejar Ració'!K41 -> 0 | I33: UI | J33: ='II_Plantejar Ració'!M41 -> Se
A34: =IF(B34="","",CàlculsOVI!B25) ->  | B34: =IF('II_Plantejar Ració'!D26<=0,"",'II_Plantejar Ració'!D26) ->  | C34: =IF('II_Plantejar Ració'!D26<=0,"",'II_Plantejar Ració'!F26) ->  | D34: =IF('II_Plantejar Ració'!D26<=0,"",('II_Plantejar Ració'!D26*1000)/('II_Plantejar Ració'!$K$4)) ->  | E34: =IF('II_Plantejar Ració'!D26<=0,"",'II_Plantejar Ració'!G26*B34) ->  | G34: =CàlculsOVI!X1 -> Vit D | H34: ='II_Plantejar Ració'!K42 -> 0 | I34: UI | J34: ='II_Plantejar Ració'!M42 -> Vit A
A35: TOTAL | B35: =SUM(B12:B34) -> 1 | C35: =SUM(C12:C34) -> 100 | D35: =SUM(D12:D34) -> 1000 | E35: ='II_Plantejar Ració'!K16 -> 0.01 | G35: =CàlculsOVI!Y1 -> Vit E | H35: ='II_Plantejar Ració'!K43 -> 0 | I35: UI | J35: ='II_Plantejar Ració'!M43 -> Vit D
G36: =CàlculsOVI!Z1 -> AG | H36: ='II_Plantejar Ració'!K44 -> 15.5675 | I36: % | J36: ='II_Plantejar Ració'!M44 -> Vit E
B37: Fa % | C37: ='II_Plantejar Ració'!K11 -> 100 | D37: % greix s/MS | E37: ='II_Plantejar Ració'!L49 -> 2.3 | G37: =CàlculsOVI!AA$1 -> DT_N | H37: ='II_Plantejar Ració'!K45 -> 23.28555 | I37: % | J37: ='II_Plantejar Ració'!M45 -> 
B38: Co % | C38: ='II_Plantejar Ració'!K12 -> 0 | G38: =CàlculsOVI!AB1 -> PF | H38: ='II_Plantejar Ració'!K46 -> 4.54068225 | I38: % | J38: ='II_Plantejar Ració'!M46 -> 
G39: =CàlculsOVI!AC1 -> MNT_PB | H39: ='II_Plantejar Ració'!L47/10 -> 0.4333370202 | I39: % | J39: ='II_Plantejar Ració'!M47 -> PDIA
G40: =CàlculsOVI!AD1 -> PDIA | H40: ='II_Plantejar Ració'!K48 -> 91.97961958 | I40: g | J40: ='II_Plantejar Ració'!M48 -> 
G41: =CàlculsOVI!AE1 -> NI ref | H41: ='II_Plantejar Ració'!K49 -> 3.5351 | I41: % | J41: ='II_Plantejar Ració'!M49 -> 
G42: =CàlculsOVI!AF1 -> dMO | H42: ='II_Plantejar Ració'!K50 -> 43.97357 | I42: g | J42: ='II_Plantejar Ració'!M50 -> 
G43: =CàlculsOVI!AG$1 -> MOD | H43: ='II_Plantejar Ració'!K51 -> 62.4022 | I43: g | J43: ='II_Plantejar Ració'!M51 -> 
G44: =CàlculsOVI!AH$1 -> EE | H44: ='II_Plantejar Ració'!K52 -> 57.09955 | I44: g | J44: ='II_Plantejar Ració'!M52 -> 
G45: =CàlculsOVI!AI$1 -> FB | H45: ='II_Plantejar Ració'!K53 -> 0 | I45: g | J45: ='II_Plantejar Ració'!M53 -> 
G46: =CàlculsOVI!AJ$1 -> NDF | H46: ='II_Plantejar Ració'!K54 -> 15.60055 | I46: g | J46: ='II_Plantejar Ració'!M54 -> 
G47: =CàlculsOVI!AK$1 -> ADF | H47: ='II_Plantejar Ració'!K55 -> 0 | I47: g | J47: ='II_Plantejar Ració'!M55 -> 
G48: =CàlculsOVI!AL$1 -> Lignina | H48: ='II_Plantejar Ració'!K56 -> 0.74 | I48: g | J48: ='II_Plantejar Ració'!M56 -> 
G49: =CàlculsOVI!AM$1 -> cendres | H49: ='II_Plantejar Ració'!K57 -> 80.20367122 | I49: g
G50: =CàlculsOVI!AN$1 -> Mo | H50: ='II_Plantejar Ració'!K58 -> 138.09945 | I50: g | J50: ='II_Plantejar Ració'!M58 -> 
A66: =IF(B66="","",CàlculsOVI!B26) ->  | B66: =IF('II_Plantejar Ració'!D27=0,"",'II_Plantejar Ració'!D27) -> 

Sheet NR (hidden)
A1: Potencial creixement xais | B1: 3 | E1: Co distribuït a 5èna setmana
A2: Mascles moderat | D2: MSTI(4-6) | E2: 0.2 | F2: 0.3 | G2: 0.4 | H2: 0.5 | I2: 0.6 | J2: 0.7 | K2: 0.8 | L2: 0.9 | M2: 1 | N2: 1.1 | O2: 1.2
A3: Femelles moderat | D3: 1.6 | E3: -1.51 | F3: -0.94 | G3: -0.66 | H3: -0.48 | I3: -0.37 | J3: -0.29 | K3: -0.23 | L3: -0.18 | M3: -0.14 | N3: -0.11 | O3: -0.09
A4: Mascles alt | D4: 1.7 | E4: -1.34 | F4: -0.82 | G4: -0.57 | H4: -0.41 | I4: -0.31 | J4: -0.24 | K4: -0.18 | L4: 0.14 | M4: -0.11 | N4: -0.08 | O4: -0.06
A5: Femelles alt | D5: 1.8 | E5: -1.16 | F5: -0.71 | G5: -0.48 | H5: -0.34 | I5: -0.25 | J5: -0.19 | K5: -0.14 | L5: -0.1 | M5: -0.07 | N5: -0.05 | O5: -0.03
A6: Tipus animal | B6: 2 | D6: 1.9 | E6: -0.99 | F6: -0.59 | G6: -0.39 | H6: -0.27 | I6: -0.2 | J6: -0.14 | K6: -0.1 | L6: -0.06 | M6: -0.04 | N6: -0.02 | O6: 0
A7: Ovelles eixutes i inici gestació | D7: 2 | E7: -0.81 | F7: -0.47 | G7: -0.31 | H7: -0.2 | I7: -0.14 | J7: -0.09 | K7: -0.05 | L7: -0.02 | M7: 0 | N7: 0.02 | O7: 0.03
A8: Reconstitució ovelles | D8: 2.1 | E8: -0.63 | F8: -0.36 | G8: -0.22 | H8: -0.13 | I8: -0.08 | J8: -0.04 | K8: -0.01 | L8: 0.01 | M8: 0.03 | N8: 0.05 | O8: 0.06
A9: Ovelles amb anyells 50-150 g/dia | D9: 2.2 | E9: -0.46 | F9: -0.24 | G9: -0.13 | H9: -0.06 | I9: -0.02 | J9: 0.01 | K9: 0.04 | L9: 0.05 | M9: 0.07 | N9: 0.08 | O9: 0.09
A10: Mardà/marrà | D10: 2.3 | E10: -0.29 | F10: -0.12 | G10: -0.04 | H10: 0.01 | I10: 0.04 | J10: 0.06 | K10: 0.08 | L10: 0.09 | M10: 0.1 | N10: 0.11 | O10: 0.12
A11: Ovelles en gestació (6ena setmana abans del part -part) | D11: 2.4 | E11: -0.11 | F11: -0.01 | G11: 0.05 | H11: 0.08 | I11: 0.1 | J11: 0.11 | K11: 0.12 | L11: 0.13 | M11: 0.14 | N11: 0.14 | O11: 0.15
A12: Ovelles alletants 1-14 setmanes després del part | D12: 2.5 | E12: 0.07 | F12: 0.11 | G12: 0.13 | H12: 0.15 | I12: 0.16 | J12: 0.16 | K12: 0.17 | L12: 0.17 | M12: 0.17 | N12: 0.18 | O12: 0.18
A13: Ovelles munyides
A14: Creixement i engreix de xais
B15: 1
A16: Estabulació
A17: Pastura prop explotació
A18: Pastura lluny explotació
